Workbook

Sheet Intro
G1: ='Powerlink information'!$B$8 -> Powerlink - RFM - data at 16 January 2012
G2: Electricity Transmission Network Service Provider
I3: Roll Forward Model
L4: Version: 2.0
L5: Date: February 2011
B8: Introduction | J8: Electricity Transmission Module
C14: This Roll Forward Model (RFM) is used by the Australian Energy Regulator to determine the opening
C15: regulatory asset base for a transmission network service provider.
C25: Amendment record:
C27: Date | F27: Details of amendments
C28: February 2011 | F28: Asset lives roll forward tab - Updated formula in cells F51:60 to correctly refer to A4stdlife.

Sheet Powerlink information
A1: Powerlink Revenue Reset
A2: Revised Revenue Proposal
B7: This label will appear at the top of each worksheet. Please update as required.
B8: Powerlink - RFM - data at 16 January 2012
B11: POWERLINK modifications to the AER version 2.0 Feb 2011
C13: Page setup has been modified on each sheet to allow for printing.
D14: Footers with filenames, sheet references and page numbers.
D15: Grouping TABs have been aplied so that future years beyond the next regulatory period can be hidden.
D16: Page orientation and grid rulers have been removed.
C18: The spreadsheet has been saved in MS Excel V7.0 formats
C20: 'Intro' sheet has been modified to change the version date to 2011.
C22: Headings on each sheet have been modified to access a version label input on the sheet 'information'.
C24: Italic formatting has been removed.
C25: Merged Cells have been removed to allow the use of cut and paste techniques when manipulating data.
C28: Selected rows have been hidden to allow easier printing.
C30: Powerlink has not used some of the functionality in the model. Comments have been placed on the relevant sheets.
C32: On the advice of the AER, capitalisations by asset class have been recorded in the 2006/07 capital expenditure section of the 'Input' sheet.
C33: The same details for 2006/07 have also been recorded in the capitalisations section of the 'Input' sheet.
C34: In the year 2006/07, the regulatory models were recording capital expenditure on an 'as commissioned' basis.

Sheet Input
F1: ='Powerlink information'!$B$8 -> Powerlink - RFM - data at 16 January 2012
F2: ="Input Variables - RFM "&Intro!L4 -> Input Variables - RFM Version: 2.0 | G2: Input cells are in blue
F5: ="Opening Regulatory Asset Base for "&CONCATENATE(LEFT(V7, 4)-1 &"-" &IF(V7>"2009-10",,"0") &RIGHT(V7,2)-1) &" and Opening Tax Asset Base for "&V7&" ($m Nominal)" -> Opening Regulatory Asset Base for 2006-07 and Opening Tax Asset Base for 2007-08 ($m Nominal)
G6: Asset Class Name | J6: Opening Asset Value | K6: Average Remaining Life (Year) | L6: Standard Life (Year) | M6: Forecast Net Capex | N6: Forecast Regulatory Depreciation | O6: Prudent Additional Capex Allowance | P6: Foregone Return on Additional Capex | Q6: Forecast Assets Under Construction | R6: Actual Assets Under Construction | S6: Opening Tax Asset Value | T6: Average Tax Remaining Life (Year) | U6: Tax Standard Life (Year) | V6: Base Financial Year | W6: Length of Regulatory Control Period (Year)
F7: Asset Class 1 | G7: Transmission Lines - Overhead | J7: 1567.120337 | K7: 30.625 | L7: 50 | M7: 51.04001722 | N7: 40.20019961 | O7: -33.37747475 | Q7: 265.12 | R7: =296.458870436256*((1+$G$245)^0.5) -> 300.0477393 | S7: 1307.88 | T7: 30.625 | U7: 47.5 | V7: 2007-08 | W7: 5
F8: Asset Class 2 | G8: Transmission Lines - Underground | J8: 29.99073556 | K8: 21.431 | L8: 45 | M8: 0 | N8: 0.7582197032 | O8: -2.048580841 | Q8: 0.39 | R8: =0*((1+$G$245)^0.5) -> 0 | S8: 10.8 | T8: 21.431 | U8: 45
F9: Asset Class 3 | G9: Transmission Lines - Refit | J9: 0 | K9: 0 | L9: 15 | M9: 0 | N9: 0 | O9: 0 | R9: =0*((1+$G$245)^0.5) -> 0 | S9: 0 | T9: 0 | U9: 15
F10: Asset Class 4 | G10: Substations Primary Plant | J10: 865.8956695 | K10: 26.269 | L10: 40 | M10: 109.3047707 | N10: 19.70570384 | O10: -53.1760233 | Q10: 137.97 | R10: =136.108972802259*((1+$G$245)^0.5) -> 137.7566795 | S10: 716.71 | T10: 26.269 | U10: 40
F11: Asset Class 5 | G11: Substations Secondary Systems | J11: 131.5955045 | K11: 9.323 | L11: 15 | M11: 64.76646169 | N11: 3.668443815 | O11: 55.93614672 | Q11: 61.8 | R11: =61.1023922616193*((1+$G$245)^0.5) -> 61.842085 | S11: 147.59 | T11: 9.323 | U11: 12.5
F12: Asset Class 6 | G12: Communications Other Assets | J12: 55.59190711 | K12: 8.595 | L12: 15 | M12: 10.73444413 | N12: 0.9174127786 | O12: -15.09906947 | Q12: 9.65 | R12: =12.4815078532162*((1+$G$245)^0.5) -> 12.63260637 | S12: 26.9 | T12: 8.595 | U12: 12.5
F13: Asset Class 7 | G13: Comms - Civil Works | J13: 21.38263998 | K13: 23.72 | L13: 40 | M13: 0 | N13: 0.221435475 | O13: -9.488421301 | Q13: 0 | R13: =0*((1+$G$245)^0.5) -> 0 | S13: 8.78 | T13: 23.72 | U13: 40
F14: Asset Class 8 | G14: Network Switching Centres | J14: 21.92551084 | K14: 5.443 | L14: 12 | M14: 5.414041607 | N14: 0.3238284462 | O14: -1.878906257 | Q14: 0.76 | R14: =5.34868258101625*((1+$G$245)^0.5) -> 5.41343261 | S14: 7.11 | T14: 5.443 | U14: 12
F15: Asset Class 9 | G15: Land | J15: 38.0068623 | K15: n/a | L15: n/a | M15: 17.72971354 | N15: -0.04416535084 | O15: 23.67502271 | Q15: 1.54 | R15: =1.91909397011838*((1+$G$245)^0.5) -> 1.942326119 | S15: 57.6 | T15: n/a | U15: n/a
F16: Asset Class 10 | G16: Easements | J16: 193.9343875 | K16: n/a | L16: n/a | M16: 9.530220049 | N16: -0.2232385421 | O16: 15.72214682 | Q16: 31.89 | R16: =25.939607948798*((1+$G$245)^0.5) -> 26.2536274 | S16: 184.09 | T16: n/a | U16: n/a
F17: Asset Class 11 | J17: 0 | K17: n/a | L17: n/a | M17: 0 | N17: -0.0005148289585 | O17: 0 | Q17: 0 | R17: =0*((1+$G$245)^0.5) -> 0 | S17: 0 | T17: n/a | U17: n/a
F18: Asset Class 12 | G18: Commercial Buildings | J18: 17.13887952 | K18: 34.148 | L18: 40 | M18: 3.848424491 | N18: 0.9535786472 | O18: 24.29232198 | Q18: 0 | R18: =0.336006113428528*((1+$G$245)^0.5) -> 0.3400737329 | S18: 43.71 | T18: 34.148 | U18: 40
F19: Asset Class 13 | G19: Computer Equipment | J19: 31.289478 | K19: 2.285 | L19: 5 | M19: 10.84631863 | N19: 0.2837049838 | O19: 3.385685016 | Q19: 3.77 | R19: =8.01656927542761*((1+$G$245)^0.5) -> 8.11361618 | S19: 7.67 | T19: 2.285 | U19: 2.5
F20: Asset Class 14 | G20: Office Furniture & Miscellaneous | J20: 0.03524011134 | K20: 4.779 | L20: 7 | M20: 0.2169889656 | N20: 0.01933939749 | O20: 2.482754362 | Q20: 0 | R20: =0*((1+$G$245)^0.5) -> 0 | S20: 0 | T20: 4.779 | U20: 15
F21: Asset Class 15 | G21: Office Machines | J21: 0.3429969924 | K21: 2.263 | L21: 7 | M21: 0 | N21: 0.003707888761 | O21: 0.1241509706 | Q21: 0 | R21: =0.122852543428528*((1+$G$245)^0.5) -> 0.1243397705 | S21: 0 | T21: 2.263 | U21: 10
F22: Asset Class 16 | G22: Vehicles | J22: 22.83203482 | K22: 4.131 | L22: 7 | M22: 4.270927044 | N22: 0.1640216401 | O22: -6.31878641 | Q22: 0 | R22: =0.134795663428528*((1+$G$245)^0.5) -> 0.1364274714 | S22: 9.73 | T22: 4.131 | U22: 7
F23: Asset Class 17 | G23: Moveable Plant | J23: 8.429174641 | K23: 4.202 | L23: 7 | M23: 2.330544948 | N23: 0.1501606995 | O23: 0.8239874318 | Q23: 0 | R23: =0.615442190571166*((1+$G$245)^0.5) -> 0.6228926045 | S23: 3.5 | T23: 4.202 | U23: 5
F24: Asset Class 18 | G24: Insurance Spares | J24: 2.017847149 | K24: n/a | L24: n/a | M24: 0 | N24: -0.002360329517 | O24: 4.425323039 | S24: 6.218 | T24: n/a | U24: n/a
F25: Asset Class 19 | J25: 0 | K25: n/a | L25: n/a | M25: 0 | N25: 0 | T25: n/a | U25: n/a
F26: Asset Class 20 | G26: Equity raising costs | J26: 0 | K26: n/a | L26: 43 | N26: 0 | T26: n/a | U26: 43
F27: Asset Class 21 | J27: 0 | K27: n/a | L27: n/a | T27: n/a | U27: n/a
F28: Asset Class 22 | K28: n/a | L28: n/a | T28: n/a | U28: n/a
F29: Asset Class 23 | K29: n/a | L29: n/a | T29: n/a | U29: n/a
F30: Asset Class 24 | K30: n/a | L30: n/a | T30: n/a | U30: n/a
F31: Asset Class 25 | K31: n/a | L31: n/a | T31: n/a | U31: n/a
F32: Asset Class 26 | K32: n/a | L32: n/a | T32: n/a | U32: n/a
F33: Asset Class 27 | K33: n/a | L33: n/a | T33: n/a | U33: n/a
F34: Asset Class 28 | K34: n/a | L34: n/a | T34: n/a | U34: n/a
F35: Asset Class 29 | K35: n/a | L35: n/a | T35: n/a | U35: n/a
F36: Asset Class 30 | K36: n/a | L36: n/a | T36: n/a | U36: n/a
F37: Total | J37: =SUM(J7:J36) -> 3007.529205 | M37: =SUM(M7:M36) -> 290.032873 | N37: 67.09947788 | O37: 9.480276708 | P37: 0 | Q37: 512.89 | R37: 555.225846 | S37: =SUM(S7:S36) -> 2538.288
U38: Recon RAB with fcst AUC = | V38: =RAB+M37-N37+O37+Q37 -> 3752.832877
F39: Actual Capital Expenditure – As Incurred ($m Nominal)
F40: Year | G40: =CONCATENATE(LEFT(H40, 4)-1 &"-" &IF(H40>"2009-10",,"0") &RIGHT(H40,2)-1) -> 2006-07 | H40: =V7 -> 2007-08 | I40: =CONCATENATE(LEFT(H40, 4)+1 &"-" &IF(H40>"2007-08",,"0") &RIGHT(H40,2)+1) -> 2008-09 | J40: =CONCATENATE(LEFT(I40, 4)+1 &"-" &IF(I40>"2007-08",,"0") &RIGHT(I40,2)+1) -> 2009-10 | K40: 2010-11 | L40: 2011-12 | M40: 2012-13 | N40: 2013-14 | O40: 2014-15 | P40: 2015-16 | Q40: =CONCATENATE(LEFT(P40, 4)+1 &"-" &IF(P40>"2007-08",,"0") &RIGHT(P40,2)+1) -> 2016-17
F41: =Asset1 -> Transmission Lines - Overhead | G41: 70.23241 | H41: 310.31503 | I41: 304.625 | J41: =235.996+(4.861) -> 240.857 | K41: =163.817689063774+(0.7356818) -> 164.5533709 | L41: =237.513963485371+(24.894086912913) -> 262.4080504 | R41: Includes transmission line refit asset class.
F42: =Asset2 -> Transmission Lines - Underground | G42: 0 | H42: 0 | I42: 0 | J42: 0 | K42: 8.670042e-05 | L42: 0.05914283058
F43: =Asset3 -> Transmission Lines - Refit | G43: 0 | H43: 0 | I43: 0 | J43: =(4.861)-(4.861) -> 0 | K43: =(0.7356818)-(0.7356818) -> 0 | L43: =(24.894086912913)-(24.894086912913) -> 0 | R43: AER Draft Decision does not recognise new asset class in RFM
F44: =Asset4 -> Substations Primary Plant | G44: 69.98792 | H44: 204.188 | I44: 177.407 | J44: 85.122 | K44: 130.7842781 | L44: 225.8712848
F45: =Asset5 -> Substations Secondary Systems | G45: 63.80126 | H45: 83.617 | I45: 74.754 | J45: 55.976 | K45: 58.99510011 | L45: 98.45274198 | S45: NOTE 06/07 values are capitalisation values. As advised by AER.
F46: =Asset6 -> Communications Other Assets | G46: 2.2746 | H46: 13.872 | I46: 16.978 | J46: 13.923 | K46: 11.65416534 | L46: 40.47245037
F47: =Asset7 -> Comms - Civil Works | G47: 0.0918 | H47: 0 | I47: 0 | J47: 0.009 | K47: 0 | L47: 0
F48: =Asset8 -> Network Switching Centres | G48: 0 | H48: 0.874 | I48: 4.698 | J48: 3.236 | K48: 5.54348099 | L48: 12.04650537
F49: =Asset9 -> Land | G49: 9.23747 | H49: 8.157 | I49: 6.856 | J49: 4.939 | K49: 5.992060254 | L49: 4.824357166
F50: =Asset10 -> Easements | G50: 14.60562 | H50: 15.495 | I50: 16.115 | J50: 12.237 | K50: 10.96745717 | L50: 18.87620766
F51: =Asset11 -> 0 | G51: 0 | H51: 0 | I51: 0 | J51: 0 | K51: 0 | L51: 0
F52: =Asset12 -> Commercial Buildings | G52: 3.3095934 | H52: 4.266 | I52: 3.854 | J52: 10.616 | K52: 14.78 | L52: 4.16937183
F53: =Asset13 -> Computer Equipment | G53: 5.127112 | H53: 9.86 | I53: 13.121 | J53: 11.551 | K53: 12.4 | L53: 14.78765785
F54: =Asset14 -> Office Furniture & Miscellaneous | G54: 0.032608 | H54: 0.131 | I54: 0.007 | J54: 0 | K54: 0 | L54: 0.00615
F55: =Asset15 -> Office Machines | G55: 0.057484 | H55: 0 | I55: 0.025 | J55: 0 | K55: 0 | L55: 0
F56: =Asset16 -> Vehicles | G56: 6.3424515 | H56: 1.954 | I56: 1.797 | J56: 4.284569 | K56: 4.525 | L56: 5.656296265 | R56: CAPEX | S56: =SUM(H41:L58) -> 2832.188814
F57: =Asset17 -> Moveable Plant | G57: 1.53382 | H57: 1.429 | I57: 1.363 | J57: 1.402 | K57: 2.14 | L57: 1.773999336
F58: =Asset18 -> Insurance Spares | G58: -0.831 | H58: 0 | I58: -0.72 | J58: -0.21 | K58: 1.469 | L58: 0
F59: =Asset19 -> 0 | H59: 0 | I59: 0 | J59: 0 | K59: 0 | L59: 0
F60: =Asset20 -> Equity raising costs | H60: 8.739084088 | K60: 0 | L60: 0 | R60: CAPEX | S60: Recon Total incl ERC
F61: =Asset21 -> 0 | S61: =SUM(H41:L59,H60:L60) -> 2840.927898
F62: =Asset22 -> 0
F63: =Asset23 -> 0
F64: =Asset24 -> 0
F65: =Asset25 -> 0
F66: =Asset26 -> 0
F67: =Asset27 -> 0
F68: =Asset28 -> 0
F69: =Asset29 -> 0
F70: =Asset30 -> 0
F71: Total | G71: =SUM(G41:G70) -> 245.8031489 | H71: 662.8971141 | I71: 620.88 | J71: 443.942569 | K71: 423.8039995 | L71: 689.4042158 | M71: 0 | N71: 0 | O71: 0 | P71: 0 | Q71: 0
R72: =SUM(G71:Q71) -> 3086.731047
F73: Actual Asset Disposal – As Incurred ($m Nominal)
F74: Year | G74: =G40 -> 2006-07 | H74: =H40 -> 2007-08 | I74: 2008-09 | J74: 2009-10 | K74: 2010-11 | L74: 2011-12 | M74: 2012-13 | N74: 2013-14 | O74: 2014-15 | P74: 2015-16 | Q74: 2016-17
F75: =Asset1 -> Transmission Lines - Overhead | G75: 0 | H75: 0 | I75: 0.15305114 | J75: 0 | K75: 0 | L75: 1.882229791
F76: =Asset2 -> Transmission Lines - Underground | G76: 0 | H76: 0 | I76: 0 | J76: 0 | K76: 0 | L76: 0
F77: =Asset3 -> Transmission Lines - Refit | G77: 0 | H77: 0 | I77: 0 | J77: 0 | K77: 0 | L77: 0
F78: =Asset4 -> Substations Primary Plant | G78: 0 | H78: 0 | I78: 0.8640851652 | J78: 0 | K78: 0.43009658 | L78: 0
F79: =Asset5 -> Substations Secondary Systems | G79: 0 | H79: 0 | I79: 1.389012249 | J79: 0 | K79: 0 | L79: 0
F80: =Asset6 -> Communications Other Assets | G80: 0 | H80: 0 | I80: 0.06887269611 | J80: 0 | K80: 0 | L80: 0
F81: =Asset7 -> Comms - Civil Works | G81: 0 | H81: 0 | I81: 0 | J81: 0 | K81: 0 | L81: 0
F82: =Asset8 -> Network Switching Centres | G82: 0 | H82: 0 | I82: 0 | J82: 0 | K82: 0 | L82: 0
F83: =Asset9 -> Land | G83: 0.25053575 | H83: 0.61497688 | I83: 1.15856936 | J83: 0.69579884 | K83: 0.34100267 | L83: 0
F84: =Asset10 -> Easements | G84: 0 | H84: 0 | I84: 0.10841016 | J84: 0 | K84: 0.009 | L84: 2.161302178
F85: =Asset11 -> 0 | G85: 0 | H85: 0 | I85: 0 | J85: 0 | K85: 0 | L85: 0
F86: =Asset12 -> Commercial Buildings | G86: 0 | H86: 0 | I86: 0 | J86: 0 | K86: 0.16148568 | L86: 0
F87: =Asset13 -> Computer Equipment | G87: 0 | H87: 0 | I87: 0.06492637 | J87: 0 | K87: 0 | L87: 0
F88: =Asset14 -> Office Furniture & Miscellaneous | G88: 0 | H88: 0 | I88: 0 | J88: 0 | K88: 0 | L88: 0
F89: =Asset15 -> Office Machines | G89: 0 | H89: 0 | I89: 0 | J89: 0 | K89: 0 | L89: 0
F90: =Asset16 -> Vehicles | G90: 1.2831345 | H90: 1.18625952 | I90: 0.53345656 | J90: 0.99267474 | K90: 1.55386902 | L90: 1.409375
F91: =Asset17 -> Moveable Plant | G91: 0 | H91: 0 | I91: 0 | J91: 0 | K91: 0 | L91: 0
F92: =Asset18 -> Insurance Spares | G92: 0 | H92: 0 | I92: 0 | J92: 0 | K92: 0 | L92: 0
F93: =Asset19 -> 0 | G93: 0 | H93: 0 | I93: 0 | J93: 0 | K93: 0 | L93: 0
F94: =Asset20 -> Equity raising costs
F95: =Asset21 -> 0
F96: =Asset22 -> 0
F97: =Asset23 -> 0
F98: =Asset24 -> 0
F99: =Asset25 -> 0
F100: =Asset26 -> 0
F101: =Asset27 -> 0
F102: =Asset28 -> 0
F103: =Asset29 -> 0
F104: =Asset30 -> 0 | R104: Disposals - Capex and Capn in same year.
F105: Total | G105: =SUM(G75:G104) -> 1.53367025 | H105: 1.8012364 | I105: 4.3403837 | J105: 1.68847358 | K105: 2.49545395 | L105: 5.452906969 | M105: 0 | N105: 0 | O105: 0 | P105: 0 | Q105: 0
R106: =SUM(G105:Q105) -> 17.31212485
F107: ="Actual Net Capital Expenditure – As Incurred ($m Real "&CONCATENATE(LEFT(V7, 4)-1 &"-" &IF(V7>"2009-10",,"0") &RIGHT(V7,2)-1)&")" -> Actual Net Capital Expenditure – As Incurred ($m Real 2006-07)
F108: Year | G108: =G40 -> 2006-07 | H108: =H40 -> 2007-08 | I108: 2008-09 | J108: 2009-10 | K108: 2010-11 | L108: 2011-12 | M108: 2012-13 | N108: 2013-14 | O108: 2014-15 | P108: 2015-16 | Q108: 2016-17
F109: =Asset1 -> Transmission Lines - Overhead | G109: =(G41-G75)/G$246 -> 70.23241 | H109: 302.9360736 | I109: 285.137417 | J109: 220.1334434 | K109: 146.1707147 | L109: 223.963853 | M109: 0 | N109: 0 | O109: 0 | P109: 0 | Q109: 0
F110: =Asset2 -> Transmission Lines - Underground | G110: =(G42-G76)/G$246 -> 0 | H110: 0 | I110: 0 | J110: 0 | K110: 7.701490579e-05 | L110: 0.05084277705 | M110: 0 | N110: 0 | O110: 0 | P110: 0 | Q110: 0
F111: =Asset3 -> Transmission Lines - Refit | G111: =(G43-G77)/G$246 -> 0 | H111: 0 | I111: 0 | J111: 0 | K111: 0 | L111: 0 | M111: 0 | N111: 0 | O111: 0 | P111: 0 | Q111: 0
F112: =Asset4 -> Substations Primary Plant | G112: =(G44-G78)/G$246 -> 69.98792 | H112: 199.3326298 | I112: 165.3321132 | J112: 77.79802527 | K112: 115.7919997 | L112: 194.1727046 | M112: 0 | N112: 0 | O112: 0 | P112: 0 | Q112: 0
F113: =Asset5 -> Substations Secondary Systems | G113: =(G45-G79)/G$246 -> 63.80126 | H113: 81.62867802 | I113: 68.70617534 | J113: 51.15977377 | K113: 52.40461439 | L113: 84.63596959 | M113: 0 | N113: 0 | O113: 0 | P113: 0 | Q113: 0
F114: =Asset6 -> Communications Other Assets | G114: =(G46-G80)/G$246 -> 2.2746 | H114: 13.54213882 | I114: 15.83536645 | J114: 12.72505235 | K114: 10.35225026 | L114: 34.7925818 | M114: 0 | N114: 0 | O114: 0 | P114: 0 | Q114: 0
F115: =Asset7 -> Comms - Civil Works | G115: =(G47-G81)/G$246 -> 0.0918 | H115: 0 | I115: 0 | J115: 0.008225631769 | K115: 0 | L115: 0 | M115: 0 | N115: 0 | O115: 0 | P115: 0 | Q115: 0
F116: =Asset8 -> Network Switching Centres | G116: =(G48-G82)/G$246 -> 0 | H116: 0.8532172237 | I116: 4.399668311 | J116: 2.9575716 | K116: 4.924205283 | L116: 10.35590926 | M116: 0 | N116: 0 | O116: 0 | P116: 0 | Q116: 0
F117: =Asset9 -> Land | G117: =(G49-G83)/G$246 -> 8.98693425 | H117: 7.362681953 | I117: 5.335633257 | J117: 3.878112252 | K117: 5.019764235 | L117: 4.147311067 | M117: 0 | N117: 0 | O117: 0 | P117: 0 | Q117: 0
F118: =Asset10 -> Easements | G118: =(G50-G84)/G$246 -> 14.60562 | H118: 15.12654563 | I118: 14.99014178 | J118: 11.18411733 | K118: 9.734261338 | L118: 14.36915015 | M118: 0 | N118: 0 | O118: 0 | P118: 0 | Q118: 0
F119: =Asset11 -> 0 | G119: =(G51-G85)/G$246 -> 0 | H119: 0 | I119: 0 | J119: 0 | K119: 0 | L119: 0 | M119: 0 | N119: 0 | O119: 0 | P119: 0 | Q119: 0
F120: =Asset12 -> Commercial Buildings | G120: =(G52-G86)/G$246 -> 3.3095934 | H120: 4.164559126 | I120: 3.609263872 | J120: 9.702589651 | K120: 12.98544463 | L120: 3.584245805 | M120: 0 | N120: 0 | O120: 0 | P120: 0 | Q120: 0
F121: =Asset13 -> Computer Equipment | G121: =(G53-G87)/G$246 -> 5.127112 | H121: 9.625539846 | I121: 12.22698881 | J121: 10.5571414 | K121: 11.01476592 | L121: 12.71237078 | M121: 0 | N121: 0 | O121: 0 | P121: 0 | Q121: 0
F122: =Asset14 -> Office Furniture & Miscellaneous | G122: =(G54-G88)/G$246 -> 0.032608 | H122: 0.1278849614 | I122: 0.006555487053 | J122: 0 | K122: 0 | L122: 0.005286914336 | M122: 0 | N122: 0 | O122: 0 | P122: 0 | Q122: 0
F123: =Asset15 -> Office Machines | G123: =(G55-G89)/G$246 -> 0.057484 | H123: 0 | I123: 0.02341245376 | J123: 0 | K123: 0 | L123: 0 | M123: 0 | N123: 0 | O123: 0 | P123: 0 | Q123: 0
F124: =Asset16 -> Vehicles | G124: =(G56-G90)/G$246 -> 5.059317 | H124: 0.7494844403 | I124: 1.183306095 | J124: 3.008656667 | K124: 2.639218732 | L124: 3.650912019 | M124: 0 | N124: 0 | O124: 0 | P124: 0 | Q124: 0
F125: =Asset17 -> Moveable Plant | G125: =(G57-G91)/G$246 -> 1.53382 | H125: 1.395019923 | I125: 1.276446979 | J125: 1.281370638 | K125: 1.90093541 | L125: 1.525037809 | M125: 0 | N125: 0 | O125: 0 | P125: 0 | Q125: 0
F126: =Asset18 -> Insurance Spares | G126: =(G58-G92)/G$246 -> -0.831 | H126: 0 | I126: -0.6742786683 | J126: -0.1919314079 | K126: 1.304894447 | L126: 0 | M126: 0 | N126: 0 | O126: 0 | P126: 0 | Q126: 0
F127: =Asset19 -> 0 | G127: =(G59-G93)/G$246 -> 0 | H127: 0 | I127: 0 | J127: 0 | K127: 0 | L127: 0 | M127: 0 | N127: 0 | O127: 0 | P127: 0 | Q127: 0
F128: =Asset20 -> Equity raising costs | G128: =(G60-G94)/G$246 -> 0 | H128: 8.531278104 | I128: 0 | J128: 0 | K128: 0 | L128: 0 | M128: 0 | N128: 0 | O128: 0 | P128: 0 | Q128: 0
F129: =Asset21 -> 0 | G129: =(G61-G95)/G$246 -> 0 | H129: 0 | I129: 0 | J129: 0 | K129: 0 | L129: 0 | M129: 0 | N129: 0 | O129: 0 | P129: 0 | Q129: 0
F130: =Asset22 -> 0 | G130: =(G62-G96)/G$246 -> 0 | H130: 0 | I130: 0 | J130: 0 | K130: 0 | L130: 0 | M130: 0 | N130: 0 | O130: 0 | P130: 0 | Q130: 0
F131: =Asset23 -> 0 | G131: =(G63-G97)/G$246 -> 0 | H131: 0 | I131: 0 | J131: 0 | K131: 0 | L131: 0 | M131: 0 | N131: 0 | O131: 0 | P131: 0 | Q131: 0
F132: =Asset24 -> 0 | G132: =(G64-G98)/G$246 -> 0 | H132: 0 | I132: 0 | J132: 0 | K132: 0 | L132: 0 | M132: 0 | N132: 0 | O132: 0 | P132: 0 | Q132: 0
F133: =Asset25 -> 0 | G133: =(G65-G99)/G$246 -> 0 | H133: 0 | I133: 0 | J133: 0 | K133: 0 | L133: 0 | M133: 0 | N133: 0 | O133: 0 | P133: 0 | Q133: 0
F134: =Asset26 -> 0 | G134: =(G66-G100)/G$246 -> 0 | H134: 0 | I134: 0 | J134: 0 | K134: 0 | L134: 0 | M134: 0 | N134: 0 | O134: 0 | P134: 0 | Q134: 0
F135: =Asset27 -> 0 | G135: =(G67-G101)/G$246 -> 0 | H135: 0 | I135: 0 | J135: 0 | K135: 0 | L135: 0 | M135: 0 | N135: 0 | O135: 0 | P135: 0 | Q135: 0
F136: =Asset28 -> 0 | G136: =(G68-G102)/G$246 -> 0 | H136: 0 | I136: 0 | J136: 0 | K136: 0 | L136: 0 | M136: 0 | N136: 0 | O136: 0 | P136: 0 | Q136: 0
F137: =Asset29 -> 0 | G137: =(G69-G103)/G$246 -> 0 | H137: 0 | I137: 0 | J137: 0 | K137: 0 | L137: 0 | M137: 0 | N137: 0 | O137: 0 | P137: 0 | Q137: 0
F138: =Asset30 -> 0 | G138: =(G70-G104)/G$246 -> 0 | H138: =(H70-H104)/H$246 -> 0 | I138: 0 | J138: 0 | K138: 0 | L138: 0 | M138: 0 | N138: 0 | O138: 0 | P138: =(P70-P104)/P$246 -> 0 | Q138: =(Q70-Q104)/Q$246 -> 0
F139: Total | G139: =SUM(G109:G138) -> 244.2694786 | H139: =SUM(H109:H138) -> 645.3757315 | I139: 577.3882103 | J139: 404.2021486 | K139: 374.2431461 | L139: 587.9661756 | M139: 0 | N139: 0 | O139: 0 | P139: 0 | Q139: 0
R140: =SUM(G139:Q139) -> 2833.444891
F141: Actual Capital Expenditure – As Commissioned ($m Nominal)
F142: Year | G142: =G40 -> 2006-07 | H142: =H40 -> 2007-08 | I142: 2008-09 | J142: 2009-10 | K142: 2010-11 | L142: 2011-12 | M142: 2012-13 | N142: 2013-14 | O142: 2014-15 | P142: 2015-16 | Q142: 2016-17
F143: =Asset1 -> Transmission Lines - Overhead | G143: 70.23241 | H143: 432.865 | I143: 306.619 | J143: =90.137+(0) -> 90.137 | K143: =257.039+(0) -> 257.039 | L143: =206.285075+(9.554) -> 215.839075 | R143: Includes transmission line refit asset class.
F144: =Asset2 -> Transmission Lines - Underground | G144: 0 | H144: 0 | I144: 5.757 | J144: 13.841 | K144: 0.042481 | L144: 0
F145: =Asset3 -> Transmission Lines - Refit | G145: 0 | H145: 0 | I145: 0 | J145: =(0)-(0) -> 0 | K145: =(0)-(0) -> 0 | L145: =(9.554)-(9.554) -> 0 | R145: AER Draft Decision does not recognise new asset class in RFM.
F146: =Asset4 -> Substations Primary Plant | G146: 69.98792 | H146: 135.442 | I146: 224.607 | J146: 193.666 | K146: 85.936 | L146: 130.547208
F147: =Asset5 -> Substations Secondary Systems | G147: 63.80126 | H147: 45.559 | I147: 57.812 | J147: 67.134 | K147: 34.185437 | L147: 66.28599799 | S147: NOTE 06/07 values are not referenced in formulas.
F148: =Asset6 -> Communications Other Assets | G148: 2.2746 | H148: 2.332 | I148: 4.522 | J148: 24.383 | K148: 6.980726 | L148: 19.143759
F149: =Asset7 -> Comms - Civil Works | G149: 0.0918 | H149: 0.226 | I149: 0.441 | J149: 3.482 | K149: 0.310815 | L149: 0
F150: =Asset8 -> Network Switching Centres | G150: 0 | H150: 0 | I150: 0 | J150: 2.617 | K150: 10.662533 | L150: 3.14
F151: =Asset9 -> Land | G151: 9.23747 | H151: 6.947 | I151: 3.427 | J151: 18.432 | K151: 6.936072 | L151: 11.66958
F152: =Asset10 -> Easements | G152: 14.60562 | H152: 2.7 | I152: 19.344 | J152: 14.143 | K152: 8.039056 | L152: 35.53938
F153: =Asset11 -> 0 | G153: 0 | H153: 0 | I153: 0 | J153: 0 | K153: 0 | L153: 0
F154: =Asset12 -> Commercial Buildings | G154: 3.3095934 | H154: 0.092 | I154: 6.335 | J154: 3.878 | K154: 12.22603 | L154: 4.73234883
F155: =Asset13 -> Computer Equipment | G155: 5.127112 | H155: 5.989 | I155: 12.699 | J155: 16.678 | K155: 12.70391854 | L155: 16.61336921
F156: =Asset14 -> Office Furniture & Miscellaneous | G156: 0.032608 | H156: 0.148 | I156: 0.061 | J156: 0 | K156: 0 | L156: 0.00615
F157: =Asset15 -> Office Machines | G157: 0.057484 | H157: 0.062 | I157: 1.3 | J157: 0.946 | K157: 0.225569 | L157: 0.01674947
F158: =Asset16 -> Vehicles | G158: 6.3424515 | H158: 2.082 | I158: 1.518 | J158: 4.112 | K158: 4.387366 | L158: 6.345178265
F159: =Asset17 -> Moveable Plant | G159: 1.53382 | H159: 3.707 | I159: 2.305 | J159: 1.131 | K159: 3.263708 | L159: 2.913661967 | S159: 07/08 to 11/12
F160: =Asset18 -> Insurance Spares | G160: -0.831 | H160: 0 | I160: -0.72 | J160: -0.21 | K160: 1.469 | L160: 0 | R160: CAPN | S160: =SUM(H143:L161) -> 2695.748169
F161: =Asset19 -> 0 | H161: 0 | I161: 0 | J161: 0 | K161: 0 | L161: 0
F162: =Asset20 -> Equity raising costs | H162: 8.739084088 | S162: Recon Total excl ERC
F163: =Asset21 -> 0 | S163: =SUM(H143:L161,H162:L162) -> 2704.487253
F164: =Asset22 -> 0
F165: =Asset23 -> 0
F166: =Asset24 -> 0
F167: =Asset25 -> 0
F168: =Asset26 -> 0
F169: =Asset27 -> 0
F170: =Asset28 -> 0
F171: =Asset29 -> 0
F172: =Asset30 -> 0
F173: Total | G173: =SUM(G143:G172) -> 245.8031489 | H173: =SUM(H143:H172) -> 646.8900841 | I173: 646.027 | J173: 454.37 | K173: 444.4077115 | L173: 512.7924577 | M173: =SUM(M143:M172) -> 0 | N173: =SUM(N143:N172) -> 0 | O173: 0 | P173: 0 | Q173: 0
R174: =SUM(G173:Q173) -> 2950.290402
F175: Actual Asset Disposal – As De-commissioned ($m Nominal)
F176: Year | G176: =G40 -> 2006-07 | H176: =H40 -> 2007-08 | I176: 2008-09 | J176: 2009-10 | K176: 2010-11 | L176: 2011-12 | M176: 2012-13 | N176: 2013-14 | O176: 2014-15 | P176: 2015-16 | Q176: 2016-17
F177: =Asset1 -> Transmission Lines - Overhead | G177: 0 | H177: 0 | I177: 0.15305114 | J177: 0 | K177: 0 | L177: 1.882229791
F178: =Asset2 -> Transmission Lines - Underground | G178: 0 | H178: 0 | I178: 0 | J178: 0 | K178: 0 | L178: 0
F179: =Asset3 -> Transmission Lines - Refit | G179: 0 | H179: 0 | I179: 0 | J179: 0 | K179: 0 | L179: 0
F180: =Asset4 -> Substations Primary Plant | G180: 0 | H180: 0 | I180: 0.8640851652 | J180: 0 | K180: 0.43009658 | L180: 0
F181: =Asset5 -> Substations Secondary Systems | G181: 0 | H181: 0 | I181: 1.389012249 | J181: 0 | K181: 0 | L181: 0
F182: =Asset6 -> Communications Other Assets | G182: 0 | H182: 0 | I182: 0.06887269611 | J182: 0 | K182: 0 | L182: 0
F183: =Asset7 -> Comms - Civil Works | G183: 0 | H183: 0 | I183: 0 | J183: 0 | K183: 0 | L183: 0
F184: =Asset8 -> Network Switching Centres | G184: 0 | H184: 0 | I184: 0 | J184: 0 | K184: 0 | L184: 0
F185: =Asset9 -> Land | G185: 0.25053575 | H185: 0.61497688 | I185: 1.15856936 | J185: 0.69579884 | K185: 0.34100267 | L185: 0
F186: =Asset10 -> Easements | G186: 0 | H186: 0 | I186: 0.10841016 | J186: 0 | K186: 0.009 | L186: 2.161302178
F187: =Asset11 -> 0 | G187: 0 | H187: 0 | I187: 0 | J187: 0 | K187: 0 | L187: 0
F188: =Asset12 -> Commercial Buildings | G188: 0 | H188: 0 | I188: 0 | J188: 0 | K188: 0.16148568 | L188: 0
F189: =Asset13 -> Computer Equipment | G189: 0 | H189: 0 | I189: 0.06492637 | J189: 0 | K189: 0 | L189: 0
F190: =Asset14 -> Office Furniture & Miscellaneous | G190: 0 | H190: 0 | I190: 0 | J190: 0 | K190: 0 | L190: 0
F191: =Asset15 -> Office Machines | G191: 0 | H191: 0 | I191: 0 | J191: 0 | K191: 0 | L191: 0
F192: =Asset16 -> Vehicles | G192: 1.2831345 | H192: 1.18625952 | I192: 0.53345656 | J192: 0.99267474 | K192: 1.55386902 | L192: 1.409375
F193: =Asset17 -> Moveable Plant | G193: 0 | H193: 0 | I193: 0 | J193: 0 | K193: 0 | L193: 0
F194: =Asset18 -> Insurance Spares | K194: 0 | L194: 0
F195: =Asset19 -> 0 | H195: 0 | I195: 0 | J195: 0 | K195: 0 | L195: 0
F196: =Asset20 -> Equity raising costs
F197: =Asset21 -> 0
F198: =Asset22 -> 0
F199: =Asset23 -> 0
F200: =Asset24 -> 0
F201: =Asset25 -> 0
F202: =Asset26 -> 0
... 49 more rows

Sheet Adjustment for previous period
B1: ='Powerlink information'!$B$8 -> Powerlink - RFM - data at 16 January 2012
B2: ="Adjustments for Previous Regulatory Control Period - RFM "&Intro!L4 -> Adjustments for Previous Regulatory Control Period - RFM Version: 2.0
B4: Year | F4: =CONCATENATE(LEFT(G4, 4)-1 &"-" &IF(G4>"2009-10",,"0") &RIGHT(G4,2)-1) -> 2005-06 | G4: =Input!G40 -> 2006-07 | H4: =Input!H40 -> 2007-08 | I4: =Input!I40 -> 2008-09 | J4: =Input!J40 -> 2009-10 | K4: =Input!K40 -> 2010-11 | L4: =Input!L40 -> 2011-12 | M4: =Input!M40 -> 2012-13 | N4: =Input!N40 -> 2013-14 | O4: =Input!O40 -> 2014-15 | P4: =Input!P40 -> 2015-16 | Q4: =Input!Q40 -> 2016-17
B6: Actual CPI Inflation Rate | F6: 0.0298 | G6: =Input!G245 -> 0.02435813035
B7: Nominal Vanilla WACC (fixed real time varying) | H7: =vanilla1 -> 0.09911016353 | I7: =vanilla2 -> 0.08038895626 | J7: =vanilla3 -> 0.08485859428 | K7: =vanilla4 -> 0.08949789627 | L7: =vanilla5 -> 0.0807464857 | M7: =vanilla6 -> 0 | N7: =vanilla7 -> 0 | O7: =vanilla8 -> 0 | P7: =vanilla9 -> 0 | Q7: =vanilla10 -> 0
B9: Nominal Adjustments for Difference Between Forecast and Actual Capex
B11: Nominal Forecast Net Capex (previous regulatory control period) | G11: =SUM(G12:G41) -> 290.032873
C12: =Asset1 -> Transmission Lines - Overhead | G12: =Input!M7 -> 51.04001722
C13: =Asset2 -> Transmission Lines - Underground | G13: =Input!M8 -> 0
C14: =Asset3 -> Transmission Lines - Refit | G14: =Input!M9 -> 0
C15: =Asset4 -> Substations Primary Plant | G15: =Input!M10 -> 109.3047707
C16: =Asset5 -> Substations Secondary Systems | G16: =Input!M11 -> 64.76646169
C17: =Asset6 -> Communications Other Assets | G17: =Input!M12 -> 10.73444413
C18: =Asset7 -> Comms - Civil Works | G18: =Input!M13 -> 0
C19: =Asset8 -> Network Switching Centres | G19: =Input!M14 -> 5.414041607
C20: =Asset9 -> Land | G20: =Input!M15 -> 17.72971354
C21: =Asset10 -> Easements | G21: =Input!M16 -> 9.530220049
C22: =Asset11 -> 0 | G22: =Input!M17 -> 0
C23: =Asset12 -> Commercial Buildings | G23: =Input!M18 -> 3.848424491
C24: =Asset13 -> Computer Equipment | G24: =Input!M19 -> 10.84631863
C25: =Asset14 -> Office Furniture & Miscellaneous | G25: =Input!M20 -> 0.2169889656
C26: =Asset15 -> Office Machines | G26: =Input!M21 -> 0
C27: =Asset16 -> Vehicles | G27: =Input!M22 -> 4.270927044
C28: =Asset17 -> Moveable Plant | G28: =Input!M23 -> 2.330544948
C29: =Asset18 -> Insurance Spares | G29: =Input!M24 -> 0
C30: =Asset19 -> 0 | G30: =Input!M25 -> 0
C31: =Asset20 -> Equity raising costs | G31: =Input!M26 -> 0
C32: =Asset21 -> 0 | G32: =Input!M27 -> 0
C33: =Asset22 -> 0 | G33: =Input!M28 -> 0
C34: =Asset23 -> 0 | G34: =Input!M29 -> 0
C35: =Asset24 -> 0 | G35: =Input!M30 -> 0
C36: =Asset25 -> 0 | G36: =Input!M31 -> 0
C37: =Asset26 -> 0 | G37: =Input!M32 -> 0
C38: =Asset27 -> 0 | G38: =Input!M33 -> 0
C39: =Asset28 -> 0 | G39: =Input!M34 -> 0
C40: =Asset29 -> 0 | G40: =Input!M35 -> 0
C41: =Asset30 -> 0 | G41: =Input!M36 -> 0
B43: Nominal Actual Net Capex | G43: =SUM(G44:G73) -> 254.9700468
C44: =Asset1 -> Transmission Lines - Overhead | G44: =Input!G109*(1+previous_vanilla)^0.5 -> 73.30903953
C45: =Asset2 -> Transmission Lines - Underground | G45: =Input!G110*(1+previous_vanilla)^0.5 -> 0
C46: =Asset3 -> Transmission Lines - Refit | G46: =Input!G111*(1+previous_vanilla)^0.5 -> 0
C47: =Asset4 -> Substations Primary Plant | G47: =Input!G112*(1+previous_vanilla)^0.5 -> 73.0538393
C48: =Asset5 -> Substations Secondary Systems | G48: =Input!G113*(1+previous_vanilla)^0.5 -> 66.59616396
C49: =Asset6 -> Communications Other Assets | G49: =Input!G114*(1+previous_vanilla)^0.5 -> 2.374242053
C50: =Asset7 -> Comms - Civil Works | G50: =Input!G115*(1+previous_vanilla)^0.5 -> 0.09582142816
C51: =Asset8 -> Network Switching Centres | G51: =Input!G116*(1+previous_vanilla)^0.5 -> 0
C52: =Asset9 -> Land | G52: =Input!G117*(1+previous_vanilla)^0.5 -> 9.380619549
C53: =Asset10 -> Easements | G53: =Input!G118*(1+previous_vanilla)^0.5 -> 15.24543973
C54: =Asset11 -> 0 | G54: =Input!G119*(1+previous_vanilla)^0.5 -> 0
C55: =Asset12 -> Commercial Buildings | G55: =Input!G120*(1+previous_vanilla)^0.5 -> 3.454574795
C56: =Asset13 -> Computer Equipment | G56: =Input!G121*(1+previous_vanilla)^0.5 -> 5.351712355
C57: =Asset14 -> Office Furniture & Miscellaneous | G57: =Input!G122*(1+previous_vanilla)^0.5 -> 0.03403643932
C58: =Asset15 -> Office Machines | G58: =Input!G123*(1+previous_vanilla)^0.5 -> 0.0600021675
C59: =Asset16 -> Vehicles | G59: =Input!G124*(1+previous_vanilla)^0.5 -> 5.280947499
C60: =Asset17 -> Moveable Plant | G60: =Input!G125*(1+previous_vanilla)^0.5 -> 1.601011143
C61: =Asset18 -> Insurance Spares | G61: =Input!G126*(1+previous_vanilla)^0.5 -> -0.8674031242
C62: =Asset19 -> 0 | G62: =Input!G127*(1+previous_vanilla)^0.5 -> 0
C63: =Asset20 -> Equity raising costs | G63: =Input!G128*(1+previous_vanilla)^0.5 -> 0
C64: =Asset21 -> 0 | G64: =Input!G129*(1+previous_vanilla)^0.5 -> 0
C65: =Asset22 -> 0 | G65: =Input!G130*(1+previous_vanilla)^0.5 -> 0
C66: =Asset23 -> 0 | G66: =Input!G131*(1+previous_vanilla)^0.5 -> 0
C67: =Asset24 -> 0 | G67: =Input!G132*(1+previous_vanilla)^0.5 -> 0
C68: =Asset25 -> 0 | G68: =Input!G133*(1+previous_vanilla)^0.5 -> 0
C69: =Asset26 -> 0 | G69: =Input!G134*(1+previous_vanilla)^0.5 -> 0
C70: =Asset27 -> 0 | G70: =Input!G135*(1+previous_vanilla)^0.5 -> 0
C71: =Asset28 -> 0 | G71: =Input!G136*(1+previous_vanilla)^0.5 -> 0
C72: =Asset29 -> 0 | G72: =Input!G137*(1+previous_vanilla)^0.5 -> 0
C73: =Asset30 -> 0 | G73: =Input!G138*(1+previous_vanilla)^0.5 -> 0
B75: Nominal Difference Between Actual and Forecast Net Capex | G75: =SUM(G76:G105) -> -33.70830603
C76: =Asset1 -> Transmission Lines - Overhead | G76: =G44*(1+$F$6)/(1+$G$6)-G12 -> 22.65847423
C77: =Asset2 -> Transmission Lines - Underground | G77: 0
C78: =Asset3 -> Transmission Lines - Refit | G78: 0
C79: =Asset4 -> Substations Primary Plant | G79: -35.86283525
C80: =Asset5 -> Substations Secondary Systems | G80: 2.183492249
C81: =Asset6 -> Communications Other Assets | G81: -8.347588991
C82: =Asset7 -> Comms - Civil Works | G82: 0.09633047641
C83: =Asset8 -> Network Switching Centres | G83: -5.414041607
C84: =Asset9 -> Land | G84: -8.29925975
C85: =Asset10 -> Easements | G85: 5.796210593
C86: =Asset11 -> 0 | G86: 0
C87: =Asset12 -> Commercial Buildings | G87: -0.3754973783
C88: =Asset13 -> Computer Equipment | G88: -5.466175478
C89: =Asset14 -> Office Furniture & Miscellaneous | G89: -0.1827717088
C90: =Asset15 -> Office Machines | G90: 0.06032092708
C91: =Asset16 -> Vehicles | G91: 1.038075319
C92: =Asset17 -> Moveable Plant | G92: -0.7210284847
C93: =Asset18 -> Insurance Spares | G93: -0.8720111754
C94: =Asset19 -> 0 | G94: 0
C95: =Asset20 -> Equity raising costs | G95: =G63*(1+$F$6)/(1+$G$6)-G31 -> 0
C96: =Asset21 -> 0 | G96: 0
C97: =Asset22 -> 0 | G97: 0
C98: =Asset23 -> 0 | G98: 0
C99: =Asset24 -> 0 | G99: 0
C100: =Asset25 -> 0 | G100: 0
C101: =Asset26 -> 0 | G101: 0
C102: =Asset27 -> 0 | G102: 0
C103: =Asset28 -> 0 | G103: 0
C104: =Asset29 -> 0 | G104: 0
C105: =Asset30 -> 0 | G105: 0
B107: Compounded Return on Difference - Net Capex | H107: =SUM(H108,H110,H112,H114,H116,H118,H120,H122,H124,H126,H128,H130,H132,H134,H136,H138,H140,H142,H144,H146,H148,H150,H152,H154,H156,H158,H160,H162,H164,H166) -> -3.340835722 | I107: -2.978341836 | J107: -3.39667599 | K107: -3.886370929 | L107: -3.820159075 | M107: 0 | N107: 0 | O107: 0 | P107: 0 | Q107: 0
C108: =Asset1 -> Transmission Lines - Overhead | H108: =($G76+(SUM($G108:G108)))*H$7 -> 2.245685086 | I108: =($G76+(SUM($G108:H108)))*I$7 -> 2.002019374 | J108: =($G76+(SUM($G108:I108)))*J$7 -> 2.283220501 | K108: =($G76+(SUM($G108:J108)))*K$7 -> 2.612389821 | L108: =($G76+(SUM($G108:K108)))*L$7 -> 2.567882702 | M108: =IF(COUNT($H108:L108)>=Input!$W$7,0,($G76+(SUM($G108:L108)))*M$7) -> 0 | N108: =IF(COUNT($H108:M108)>=Input!$W$7,0,($G76+(SUM($G108:M108)))*N$7) -> 0 | O108: =IF(COUNT($H108:N108)>=Input!$W$7,0,($G76+(SUM($G108:N108)))*O$7) -> 0 | P108: =IF(COUNT($H108:O108)>=Input!$W$7,0,($G76+(SUM($G108:O108)))*P$7) -> 0 | Q108: =IF(COUNT($H108:P108)>=Input!$W$7,0,($G76+(SUM($G108:P108)))*Q$7) -> 0
C109: Sub-total | L109: =IF(COUNT($H108:L108)=Input!$W$7,SUM($G108:L108),0) -> 11.71119748 | M109: =IF(COUNT($H108:M108)=Input!$W$7,SUM($G108:M108),0) -> 0 | N109: =IF(COUNT($H108:N108)=Input!$W$7,SUM($G108:N108),0) -> 0 | O109: =IF(COUNT($H108:O108)=Input!$W$7,SUM($G108:O108),0) -> 0 | P109: =IF(COUNT($H108:P108)=Input!$W$7,SUM($G108:P108),0) -> 0 | Q109: =IF(COUNT($H108:Q108)=Input!$W$7,SUM($G108:Q108),0) -> 0
C110: =Asset2 -> Transmission Lines - Underground | H110: =($G77+(SUM($G110:G110)))*H$7 -> 0 | I110: =($G77+(SUM($G110:H110)))*I$7 -> 0 | J110: =($G77+(SUM($G110:I110)))*J$7 -> 0 | K110: =($G77+(SUM($G110:J110)))*K$7 -> 0 | L110: =($G77+(SUM($G110:K110)))*L$7 -> 0 | M110: =IF(COUNT($H110:L110)>=Input!$W$7,0,($G77+(SUM($G110:L110)))*M$7) -> 0 | N110: =IF(COUNT($H110:M110)>=Input!$W$7,0,($G77+(SUM($G110:M110)))*N$7) -> 0 | O110: =IF(COUNT($H110:N110)>=Input!$W$7,0,($G77+(SUM($G110:N110)))*O$7) -> 0 | P110: =IF(COUNT($H110:O110)>=Input!$W$7,0,($G77+(SUM($G110:O110)))*P$7) -> 0 | Q110: =IF(COUNT($H110:P110)>=Input!$W$7,0,($G77+(SUM($G110:P110)))*Q$7) -> 0
C111: Sub-total | L111: =IF(COUNT($H110:L110)=Input!$W$7,SUM($G110:L110),0) -> 0 | M111: =IF(COUNT($H110:M110)=Input!$W$7,SUM($G110:M110),0) -> 0 | N111: =IF(COUNT($H110:N110)=Input!$W$7,SUM($G110:N110),0) -> 0 | O111: =IF(COUNT($H110:O110)=Input!$W$7,SUM($G110:O110),0) -> 0 | P111: =IF(COUNT($H110:P110)=Input!$W$7,SUM($G110:P110),0) -> 0 | Q111: =IF(COUNT($H110:Q110)=Input!$W$7,SUM($G110:Q110),0) -> 0
C112: =Asset3 -> Transmission Lines - Refit | H112: =($G78+(SUM($G112:G112)))*H$7 -> 0 | I112: =($G78+(SUM($G112:H112)))*I$7 -> 0 | J112: =($G78+(SUM($G112:I112)))*J$7 -> 0 | K112: =($G78+(SUM($G112:J112)))*K$7 -> 0 | L112: =($G78+(SUM($G112:K112)))*L$7 -> 0 | M112: =IF(COUNT($H112:L112)>=Input!$W$7,0,($G78+(SUM($G112:L112)))*M$7) -> 0 | N112: =IF(COUNT($H112:M112)>=Input!$W$7,0,($G78+(SUM($G112:M112)))*N$7) -> 0 | O112: =IF(COUNT($H112:N112)>=Input!$W$7,0,($G78+(SUM($G112:N112)))*O$7) -> 0 | P112: =IF(COUNT($H112:O112)>=Input!$W$7,0,($G78+(SUM($G112:O112)))*P$7) -> 0 | Q112: =IF(COUNT($H112:P112)>=Input!$W$7,0,($G78+(SUM($G112:P112)))*Q$7) -> 0
C113: Sub-total | L113: =IF(COUNT($H112:L112)=Input!$W$7,SUM($G112:L112),0) -> 0 | M113: =IF(COUNT($H112:M112)=Input!$W$7,SUM($G112:M112),0) -> 0 | N113: =IF(COUNT($H112:N112)=Input!$W$7,SUM($G112:N112),0) -> 0 | O113: =IF(COUNT($H112:O112)=Input!$W$7,SUM($G112:O112),0) -> 0 | P113: =IF(COUNT($H112:P112)=Input!$W$7,SUM($G112:P112),0) -> 0 | Q113: =IF(COUNT($H112:Q112)=Input!$W$7,SUM($G112:Q112),0) -> 0
C114: =Asset4 -> Substations Primary Plant | H114: =($G79+(SUM($G114:G114)))*H$7 -> -3.554371466 | I114: =($G79+(SUM($G114:H114)))*I$7 -> -3.168708106 | J114: =($G79+(SUM($G114:I114)))*J$7 -> -3.613780868 | K114: =($G79+(SUM($G114:J114)))*K$7 -> -4.134775572 | L114: =($G79+(SUM($G114:K114)))*L$7 -> -4.064331664 | M114: =IF(COUNT($H114:L114)>=Input!$W$7,0,($G79+(SUM($G114:L114)))*M$7) -> 0 | N114: =IF(COUNT($H114:M114)>=Input!$W$7,0,($G79+(SUM($G114:M114)))*N$7) -> 0 | O114: =IF(COUNT($H114:N114)>=Input!$W$7,0,($G79+(SUM($G114:N114)))*O$7) -> 0 | P114: =IF(COUNT($H114:O114)>=Input!$W$7,0,($G79+(SUM($G114:O114)))*P$7) -> 0 | Q114: =IF(COUNT($H114:P114)>=Input!$W$7,0,($G79+(SUM($G114:P114)))*Q$7) -> 0
C115: Sub-total | L115: =IF(COUNT($H114:L114)=Input!$W$7,SUM($G114:L114),0) -> -18.53596768 | M115: =IF(COUNT($H114:M114)=Input!$W$7,SUM($G114:M114),0) -> 0 | N115: =IF(COUNT($H114:N114)=Input!$W$7,SUM($G114:N114),0) -> 0 | O115: =IF(COUNT($H114:O114)=Input!$W$7,SUM($G114:O114),0) -> 0 | P115: =IF(COUNT($H114:P114)=Input!$W$7,SUM($G114:P114),0) -> 0 | Q115: =IF(COUNT($H114:Q114)=Input!$W$7,SUM($G114:Q114),0) -> 0
C116: =Asset5 -> Substations Secondary Systems | H116: =($G80+(SUM($G116:G116)))*H$7 -> 0.2164062739 | I116: =($G80+(SUM($G116:H116)))*I$7 -> 0.1929253374 | J116: =($G80+(SUM($G116:I116)))*J$7 -> 0.220023388 | K116: =($G80+(SUM($G116:J116)))*K$7 -> 0.2517439113 | L116: =($G80+(SUM($G116:K116)))*L$7 -> 0.2474549663 | M116: =IF(COUNT($H116:L116)>=Input!$W$7,0,($G80+(SUM($G116:L116)))*M$7) -> 0 | N116: =IF(COUNT($H116:M116)>=Input!$W$7,0,($G80+(SUM($G116:M116)))*N$7) -> 0 | O116: =IF(COUNT($H116:N116)>=Input!$W$7,0,($G80+(SUM($G116:N116)))*O$7) -> 0 | P116: =IF(COUNT($H116:O116)>=Input!$W$7,0,($G80+(SUM($G116:O116)))*P$7) -> 0 | Q116: =IF(COUNT($H116:P116)>=Input!$W$7,0,($G80+(SUM($G116:P116)))*Q$7) -> 0
C117: Sub-total | L117: =IF(COUNT($H116:L116)=Input!$W$7,SUM($G116:L116),0) -> 1.128553877 | M117: =IF(COUNT($H116:M116)=Input!$W$7,SUM($G116:M116),0) -> 0 | N117: =IF(COUNT($H116:N116)=Input!$W$7,SUM($G116:N116),0) -> 0 | O117: =IF(COUNT($H116:O116)=Input!$W$7,SUM($G116:O116),0) -> 0 | P117: =IF(COUNT($H116:P116)=Input!$W$7,SUM($G116:P116),0) -> 0 | Q117: =IF(COUNT($H116:Q116)=Input!$W$7,SUM($G116:Q116),0) -> 0
C118: =Asset6 -> Communications Other Assets | H118: =($G81+(SUM($G118:G118)))*H$7 -> -0.82733091 | I118: =($G81+(SUM($G118:H118)))*I$7 -> -0.7375622347 | J118: =($G81+(SUM($G118:I118)))*J$7 -> -0.8411592999 | K118: =($G81+(SUM($G118:J118)))*K$7 -> -0.9624282857 | L118: =($G81+(SUM($G118:K118)))*L$7 -> -0.9460314562 | M118: =IF(COUNT($H118:L118)>=Input!$W$7,0,($G81+(SUM($G118:L118)))*M$7) -> 0 | N118: =IF(COUNT($H118:M118)>=Input!$W$7,0,($G81+(SUM($G118:M118)))*N$7) -> 0 | O118: =IF(COUNT($H118:N118)>=Input!$W$7,0,($G81+(SUM($G118:N118)))*O$7) -> 0 | P118: =IF(COUNT($H118:O118)>=Input!$W$7,0,($G81+(SUM($G118:O118)))*P$7) -> 0 | Q118: =IF(COUNT($H118:P118)>=Input!$W$7,0,($G81+(SUM($G118:P118)))*Q$7) -> 0
C119: Sub-total | L119: =IF(COUNT($H118:L118)=Input!$W$7,SUM($G118:L118),0) -> -4.314512186 | M119: =IF(COUNT($H118:M118)=Input!$W$7,SUM($G118:M118),0) -> 0 | N119: =IF(COUNT($H118:N118)=Input!$W$7,SUM($G118:N118),0) -> 0 | O119: =IF(COUNT($H118:O118)=Input!$W$7,SUM($G118:O118),0) -> 0 | P119: =IF(COUNT($H118:P118)=Input!$W$7,SUM($G118:P118),0) -> 0 | Q119: =IF(COUNT($H118:Q118)=Input!$W$7,SUM($G118:Q118),0) -> 0
C120: =Asset7 -> Comms - Civil Works | H120: =($G82+(SUM($G120:G120)))*H$7 -> 0.00954732927 | I120: =($G82+(SUM($G120:H120)))*I$7 -> 0.00851140629 | J120: =($G82+(SUM($G120:I120)))*J$7 -> 0.009706907729 | K120: =($G82+(SUM($G120:J120)))*K$7 -> 0.01110634165 | L120: =($G82+(SUM($G120:K120)))*L$7 -> 0.01091712361 | M120: =IF(COUNT($H120:L120)>=Input!$W$7,0,($G82+(SUM($G120:L120)))*M$7) -> 0 | N120: =IF(COUNT($H120:M120)>=Input!$W$7,0,($G82+(SUM($G120:M120)))*N$7) -> 0 | O120: =IF(COUNT($H120:N120)>=Input!$W$7,0,($G82+(SUM($G120:N120)))*O$7) -> 0 | P120: =IF(COUNT($H120:O120)>=Input!$W$7,0,($G82+(SUM($G120:O120)))*P$7) -> 0 | Q120: =IF(COUNT($H120:P120)>=Input!$W$7,0,($G82+(SUM($G120:P120)))*Q$7) -> 0
C121: Sub-total | L121: =IF(COUNT($H120:L120)=Input!$W$7,SUM($G120:L120),0) -> 0.04978910855 | M121: =IF(COUNT($H120:M120)=Input!$W$7,SUM($G120:M120),0) -> 0 | N121: =IF(COUNT($H120:N120)=Input!$W$7,SUM($G120:N120),0) -> 0 | O121: =IF(COUNT($H120:O120)=Input!$W$7,SUM($G120:O120),0) -> 0 | P121: =IF(COUNT($H120:P120)=Input!$W$7,SUM($G120:P120),0) -> 0 | Q121: =IF(COUNT($H120:Q120)=Input!$W$7,SUM($G120:Q120),0) -> 0
C122: =Asset8 -> Network Switching Centres | H122: =($G83+(SUM($G122:G122)))*H$7 -> -0.536586549 | I122: =($G83+(SUM($G122:H122)))*I$7 -> -0.4783647865 | J122: =($G83+(SUM($G122:I122)))*J$7 -> -0.5455553037 | K122: =($G83+(SUM($G122:J122)))*K$7 -> -0.6242073954 | L122: =($G83+(SUM($G122:K122)))*L$7 -> -0.6135728137 | M122: =IF(COUNT($H122:L122)>=Input!$W$7,0,($G83+(SUM($G122:L122)))*M$7) -> 0 | N122: =IF(COUNT($H122:M122)>=Input!$W$7,0,($G83+(SUM($G122:M122)))*N$7) -> 0 | O122: =IF(COUNT($H122:N122)>=Input!$W$7,0,($G83+(SUM($G122:N122)))*O$7) -> 0 | P122: =IF(COUNT($H122:O122)>=Input!$W$7,0,($G83+(SUM($G122:O122)))*P$7) -> 0 | Q122: =IF(COUNT($H122:P122)>=Input!$W$7,0,($G83+(SUM($G122:P122)))*Q$7) -> 0
C123: Sub-total | L123: =IF(COUNT($H122:L122)=Input!$W$7,SUM($G122:L122),0) -> -2.798286848 | M123: =IF(COUNT($H122:M122)=Input!$W$7,SUM($G122:M122),0) -> 0 | N123: =IF(COUNT($H122:N122)=Input!$W$7,SUM($G122:N122),0) -> 0 | O123: =IF(COUNT($H122:O122)=Input!$W$7,SUM($G122:O122),0) -> 0 | P123: =IF(COUNT($H122:P122)=Input!$W$7,SUM($G122:P122),0) -> 0 | Q123: =IF(COUNT($H122:Q122)=Input!$W$7,SUM($G122:Q122),0) -> 0
C124: =Asset9 -> Land | H124: =($G84+(SUM($G124:G124)))*H$7 -> -0.8225409909 | I124: =($G84+(SUM($G124:H124)))*I$7 -> -0.7332920408 | J124: =($G84+(SUM($G124:I124)))*J$7 -> -0.8362893199 | K124: =($G84+(SUM($G124:J124)))*K$7 -> -0.9568562063 | L124: =($G84+(SUM($G124:K124)))*L$7 -> -0.9405543079 | M124: =IF(COUNT($H124:L124)>=Input!$W$7,0,($G84+(SUM($G124:L124)))*M$7) -> 0 | N124: =IF(COUNT($H124:M124)>=Input!$W$7,0,($G84+(SUM($G124:M124)))*N$7) -> 0 | O124: =IF(COUNT($H124:N124)>=Input!$W$7,0,($G84+(SUM($G124:N124)))*O$7) -> 0 | P124: =IF(COUNT($H124:O124)>=Input!$W$7,0,($G84+(SUM($G124:O124)))*P$7) -> 0 | Q124: =IF(COUNT($H124:P124)>=Input!$W$7,0,($G84+(SUM($G124:P124)))*Q$7) -> 0
C125: Sub-total | L125: =IF(COUNT($H124:L124)=Input!$W$7,SUM($G124:L124),0) -> -4.289532866 | M125: =IF(COUNT($H124:M124)=Input!$W$7,SUM($G124:M124),0) -> 0 | N125: =IF(COUNT($H124:N124)=Input!$W$7,SUM($G124:N124),0) -> 0 | O125: =IF(COUNT($H124:O124)=Input!$W$7,SUM($G124:O124),0) -> 0 | P125: =IF(COUNT($H124:P124)=Input!$W$7,SUM($G124:P124),0) -> 0 | Q125: =IF(COUNT($H124:Q124)=Input!$W$7,SUM($G124:Q124),0) -> 0
C126: =Asset10 -> Easements | H126: =($G85+(SUM($G126:G126)))*H$7 -> 0.5744633797 | I126: =($G85+(SUM($G126:H126)))*I$7 -> 0.5121318313 | J126: =($G85+(SUM($G126:I126)))*J$7 -> 0.5840652252 | K126: =($G85+(SUM($G126:J126)))*K$7 -> 0.6682692488 | L126: =($G85+(SUM($G126:K126)))*L$7 -> 0.6568839881 | M126: =IF(COUNT($H126:L126)>=Input!$W$7,0,($G85+(SUM($G126:L126)))*M$7) -> 0 | N126: =IF(COUNT($H126:M126)>=Input!$W$7,0,($G85+(SUM($G126:M126)))*N$7) -> 0 | O126: =IF(COUNT($H126:N126)>=Input!$W$7,0,($G85+(SUM($G126:N126)))*O$7) -> 0 | P126: =IF(COUNT($H126:O126)>=Input!$W$7,0,($G85+(SUM($G126:O126)))*P$7) -> 0 | Q126: =IF(COUNT($H126:P126)>=Input!$W$7,0,($G85+(SUM($G126:P126)))*Q$7) -> 0
C127: Sub-total | L127: =IF(COUNT($H126:L126)=Input!$W$7,SUM($G126:L126),0) -> 2.995813673 | M127: =IF(COUNT($H126:M126)=Input!$W$7,SUM($G126:M126),0) -> 0 | N127: =IF(COUNT($H126:N126)=Input!$W$7,SUM($G126:N126),0) -> 0 | O127: =IF(COUNT($H126:O126)=Input!$W$7,SUM($G126:O126),0) -> 0 | P127: =IF(COUNT($H126:P126)=Input!$W$7,SUM($G126:P126),0) -> 0 | Q127: =IF(COUNT($H126:Q126)=Input!$W$7,SUM($G126:Q126),0) -> 0
C128: =Asset11 -> 0 | H128: =($G86+(SUM($G128:G128)))*H$7 -> 0 | I128: =($G86+(SUM($G128:H128)))*I$7 -> 0 | J128: =($G86+(SUM($G128:I128)))*J$7 -> 0 | K128: =($G86+(SUM($G128:J128)))*K$7 -> 0 | L128: =($G86+(SUM($G128:K128)))*L$7 -> 0 | M128: =IF(COUNT($H128:L128)>=Input!$W$7,0,($G86+(SUM($G128:L128)))*M$7) -> 0 | N128: =IF(COUNT($H128:M128)>=Input!$W$7,0,($G86+(SUM($G128:M128)))*N$7) -> 0 | O128: =IF(COUNT($H128:N128)>=Input!$W$7,0,($G86+(SUM($G128:N128)))*O$7) -> 0 | P128: =IF(COUNT($H128:O128)>=Input!$W$7,0,($G86+(SUM($G128:O128)))*P$7) -> 0 | Q128: =IF(COUNT($H128:P128)>=Input!$W$7,0,($G86+(SUM($G128:P128)))*Q$7) -> 0
C129: Sub-total | L129: =IF(COUNT($H128:L128)=Input!$W$7,SUM($G128:L128),0) -> 0 | M129: =IF(COUNT($H128:M128)=Input!$W$7,SUM($G128:M128),0) -> 0 | N129: =IF(COUNT($H128:N128)=Input!$W$7,SUM($G128:N128),0) -> 0 | O129: =IF(COUNT($H128:O128)=Input!$W$7,SUM($G128:O128),0) -> 0 | P129: =IF(COUNT($H128:P128)=Input!$W$7,SUM($G128:P128),0) -> 0 | Q129: =IF(COUNT($H128:Q128)=Input!$W$7,SUM($G128:Q128),0) -> 0
C130: =Asset12 -> Commercial Buildings | H130: =($G87+(SUM($G130:G130)))*H$7 -> -0.03721560657 | I130: =($G87+(SUM($G130:H130)))*I$7 -> -0.03317756609 | J130: =($G87+(SUM($G130:I130)))*J$7 -> -0.03783764536 | K130: =($G87+(SUM($G130:J130)))*K$7 -> -0.04329265594 | L130: =($G87+(SUM($G130:K130)))*L$7 -> -0.04255508171 | M130: =IF(COUNT($H130:L130)>=Input!$W$7,0,($G87+(SUM($G130:L130)))*M$7) -> 0 | N130: =IF(COUNT($H130:M130)>=Input!$W$7,0,($G87+(SUM($G130:M130)))*N$7) -> 0 | O130: =IF(COUNT($H130:N130)>=Input!$W$7,0,($G87+(SUM($G130:N130)))*O$7) -> 0 | P130: =IF(COUNT($H130:O130)>=Input!$W$7,0,($G87+(SUM($G130:O130)))*P$7) -> 0 | Q130: =IF(COUNT($H130:P130)>=Input!$W$7,0,($G87+(SUM($G130:P130)))*Q$7) -> 0
C131: Sub-total | L131: =IF(COUNT($H130:L130)=Input!$W$7,SUM($G130:L130),0) -> -0.1940785557 | M131: =IF(COUNT($H130:M130)=Input!$W$7,SUM($G130:M130),0) -> 0 | N131: =IF(COUNT($H130:N130)=Input!$W$7,SUM($G130:N130),0) -> 0 | O131: =IF(COUNT($H130:O130)=Input!$W$7,SUM($G130:O130),0) -> 0 | P131: =IF(COUNT($H130:P130)=Input!$W$7,SUM($G130:P130),0) -> 0 | Q131: =IF(COUNT($H130:Q130)=Input!$W$7,SUM($G130:Q130),0) -> 0
C132: =Asset13 -> Computer Equipment | H132: =($G88+(SUM($G132:G132)))*H$7 -> -0.5417535455 | I132: =($G88+(SUM($G132:H132)))*I$7 -> -0.4829711435 | J132: =($G88+(SUM($G132:I132)))*J$7 -> -0.5508086638 | K132: =($G88+(SUM($G132:J132)))*K$7 -> -0.6302181265 | L132: =($G88+(SUM($G132:K132)))*L$7 -> -0.6194811403 | M132: =IF(COUNT($H132:L132)>=Input!$W$7,0,($G88+(SUM($G132:L132)))*M$7) -> 0 | N132: =IF(COUNT($H132:M132)>=Input!$W$7,0,($G88+(SUM($G132:M132)))*N$7) -> 0 | O132: =IF(COUNT($H132:N132)>=Input!$W$7,0,($G88+(SUM($G132:N132)))*O$7) -> 0 | P132: =IF(COUNT($H132:O132)>=Input!$W$7,0,($G88+(SUM($G132:O132)))*P$7) -> 0 | Q132: =IF(COUNT($H132:P132)>=Input!$W$7,0,($G88+(SUM($G132:P132)))*Q$7) -> 0
C133: Sub-total | L133: =IF(COUNT($H132:L132)=Input!$W$7,SUM($G132:L132),0) -> -2.825232619 | M133: =IF(COUNT($H132:M132)=Input!$W$7,SUM($G132:M132),0) -> 0 | N133: =IF(COUNT($H132:N132)=Input!$W$7,SUM($G132:N132),0) -> 0 | O133: =IF(COUNT($H132:O132)=Input!$W$7,SUM($G132:O132),0) -> 0 | P133: =IF(COUNT($H132:P132)=Input!$W$7,SUM($G132:P132),0) -> 0 | Q133: =IF(COUNT($H132:Q132)=Input!$W$7,SUM($G132:Q132),0) -> 0
C134: =Asset14 -> Office Furniture & Miscellaneous | H134: =($G89+(SUM($G134:G134)))*H$7 -> -0.01811453395 | I134: =($G89+(SUM($G134:H134)))*I$7 -> -0.01614903538 | J134: =($G89+(SUM($G134:I134)))*J$7 -> -0.01841730861 | K134: =($G89+(SUM($G134:J134)))*K$7 -> -0.02107251119 | L134: =($G89+(SUM($G134:K134)))*L$7 -> -0.02071350015 | M134: =IF(COUNT($H134:L134)>=Input!$W$7,0,($G89+(SUM($G134:L134)))*M$7) -> 0 | N134: =IF(COUNT($H134:M134)>=Input!$W$7,0,($G89+(SUM($G134:M134)))*N$7) -> 0 | O134: =IF(COUNT($H134:N134)>=Input!$W$7,0,($G89+(SUM($G134:N134)))*O$7) -> 0 | P134: =IF(COUNT($H134:O134)>=Input!$W$7,0,($G89+(SUM($G134:O134)))*P$7) -> 0 | Q134: =IF(COUNT($H134:P134)>=Input!$W$7,0,($G89+(SUM($G134:P134)))*Q$7) -> 0
C135: Sub-total | L135: =IF(COUNT($H134:L134)=Input!$W$7,SUM($G134:L134),0) -> -0.09446688928 | M135: =IF(COUNT($H134:M134)=Input!$W$7,SUM($G134:M134),0) -> 0 | N135: =IF(COUNT($H134:N134)=Input!$W$7,SUM($G134:N134),0) -> 0 | O135: =IF(COUNT($H134:O134)=Input!$W$7,SUM($G134:O134),0) -> 0 | P135: =IF(COUNT($H134:P134)=Input!$W$7,SUM($G134:P134),0) -> 0 | Q135: =IF(COUNT($H134:Q134)=Input!$W$7,SUM($G134:Q134),0) -> 0
C136: =Asset15 -> Office Machines | H136: =($G90+(SUM($G136:G136)))*H$7 -> 0.005978416947 | I136: =($G90+(SUM($G136:H136)))*I$7 -> 0.005329735067 | J136: =($G90+(SUM($G136:I136)))*J$7 -> 0.006078342962 | K136: =($G90+(SUM($G136:J136)))*K$7 -> 0.006954650799 | L136: =($G90+(SUM($G136:K136)))*L$7 -> 0.006836164855 | M136: =IF(COUNT($H136:L136)>=Input!$W$7,0,($G90+(SUM($G136:L136)))*M$7) -> 0 | N136: =IF(COUNT($H136:M136)>=Input!$W$7,0,($G90+(SUM($G136:M136)))*N$7) -> 0 | O136: =IF(COUNT($H136:N136)>=Input!$W$7,0,($G90+(SUM($G136:N136)))*O$7) -> 0 | P136: =IF(COUNT($H136:O136)>=Input!$W$7,0,($G90+(SUM($G136:O136)))*P$7) -> 0 | Q136: =IF(COUNT($H136:P136)>=Input!$W$7,0,($G90+(SUM($G136:P136)))*Q$7) -> 0
C137: Sub-total | L137: =IF(COUNT($H136:L136)=Input!$W$7,SUM($G136:L136),0) -> 0.03117731063 | M137: =IF(COUNT($H136:M136)=Input!$W$7,SUM($G136:M136),0) -> 0 | N137: =IF(COUNT($H136:N136)=Input!$W$7,SUM($G136:N136),0) -> 0 | O137: =IF(COUNT($H136:O136)=Input!$W$7,SUM($G136:O136),0) -> 0 | P137: =IF(COUNT($H136:P136)=Input!$W$7,SUM($G136:P136),0) -> 0 | Q137: =IF(COUNT($H136:Q136)=Input!$W$7,SUM($G136:Q136),0) -> 0
C138: =Asset16 -> Vehicles | H138: =($G91+(SUM($G138:G138)))*H$7 -> 0.1028838146 | I138: =($G91+(SUM($G138:H138)))*I$7 -> 0.09172051387 | J138: =($G91+(SUM($G138:I138)))*J$7 -> 0.1046034621 | K138: =($G91+(SUM($G138:J138)))*K$7 -> 0.119684025 | L138: =($G91+(SUM($G138:K138)))*L$7 -> 0.1176449759 | M138: =IF(COUNT($H138:L138)>=Input!$W$7,0,($G91+(SUM($G138:L138)))*M$7) -> 0 | N138: =IF(COUNT($H138:M138)>=Input!$W$7,0,($G91+(SUM($G138:M138)))*N$7) -> 0 | O138: =IF(COUNT($H138:N138)>=Input!$W$7,0,($G91+(SUM($G138:N138)))*O$7) -> 0 | P138: =IF(COUNT($H138:O138)>=Input!$W$7,0,($G91+(SUM($G138:O138)))*P$7) -> 0 | Q138: =IF(COUNT($H138:P138)>=Input!$W$7,0,($G91+(SUM($G138:P138)))*Q$7) -> 0
C139: Sub-total | L139: =IF(COUNT($H138:L138)=Input!$W$7,SUM($G138:L138),0) -> 0.5365367914 | M139: =IF(COUNT($H138:M138)=Input!$W$7,SUM($G138:M138),0) -> 0 | N139: =IF(COUNT($H138:N138)=Input!$W$7,SUM($G138:N138),0) -> 0 | O139: =IF(COUNT($H138:O138)=Input!$W$7,SUM($G138:O138),0) -> 0 | P139: =IF(COUNT($H138:P138)=Input!$W$7,SUM($G138:P138),0) -> 0 | Q139: =IF(COUNT($H138:Q138)=Input!$W$7,SUM($G138:Q138),0) -> 0
C140: =Asset17 -> Moveable Plant | H140: =($G92+(SUM($G140:G140)))*H$7 -> -0.07146125103 | I140: =($G92+(SUM($G140:H140)))*I$7 -> -0.0637074227 | J140: =($G92+(SUM($G140:I140)))*J$7 -> -0.07265568729 | K140: =($G92+(SUM($G140:J140)))*K$7 -> -0.08313037563 | L140: =($G92+(SUM($G140:K140)))*L$7 -> -0.08171408871 | M140: =IF(COUNT($H140:L140)>=Input!$W$7,0,($G92+(SUM($G140:L140)))*M$7) -> 0 | N140: =IF(COUNT($H140:M140)>=Input!$W$7,0,($G92+(SUM($G140:M140)))*N$7) -> 0 | O140: =IF(COUNT($H140:N140)>=Input!$W$7,0,($G92+(SUM($G140:N140)))*O$7) -> 0 | P140: =IF(COUNT($H140:O140)>=Input!$W$7,0,($G92+(SUM($G140:O140)))*P$7) -> 0 | Q140: =IF(COUNT($H140:P140)>=Input!$W$7,0,($G92+(SUM($G140:P140)))*Q$7) -> 0
C141: Sub-total | L141: =IF(COUNT($H140:L140)=Input!$W$7,SUM($G140:L140),0) -> -0.3726688254 | M141: =IF(COUNT($H140:M140)=Input!$W$7,SUM($G140:M140),0) -> 0 | N141: =IF(COUNT($H140:N140)=Input!$W$7,SUM($G140:N140),0) -> 0 | O141: =IF(COUNT($H140:O140)=Input!$W$7,SUM($G140:O140),0) -> 0 | P141: =IF(COUNT($H140:P140)=Input!$W$7,SUM($G140:P140),0) -> 0 | Q141: =IF(COUNT($H140:Q140)=Input!$W$7,SUM($G140:Q140),0) -> 0
C142: =Asset18 -> Insurance Spares | H142: =($G93+(SUM($G142:G142)))*H$7 -> -0.08642517019 | I142: =($G93+(SUM($G142:H142)))*I$7 -> -0.07704769746 | J142: =($G93+(SUM($G142:I142)))*J$7 -> -0.08786972029 | K142: =($G93+(SUM($G142:J142)))*K$7 -> -0.1005377986 | L142: =($G93+(SUM($G142:K142)))*L$7 -> -0.0988249425 | M142: =IF(COUNT($H142:L142)>=Input!$W$7,0,($G93+(SUM($G142:L142)))*M$7) -> 0 | N142: =IF(COUNT($H142:M142)>=Input!$W$7,0,($G93+(SUM($G142:M142)))*N$7) -> 0 | O142: =IF(COUNT($H142:N142)>=Input!$W$7,0,($G93+(SUM($G142:N142)))*O$7) -> 0 | P142: =IF(COUNT($H142:O142)>=Input!$W$7,0,($G93+(SUM($G142:O142)))*P$7) -> 0 | Q142: =IF(COUNT($H142:P142)>=Input!$W$7,0,($G93+(SUM($G142:P142)))*Q$7) -> 0
C143: Sub-total | L143: =IF(COUNT($H142:L142)=Input!$W$7,SUM($G142:L142),0) -> -0.450705329 | M143: =IF(COUNT($H142:M142)=Input!$W$7,SUM($G142:M142),0) -> 0 | N143: =IF(COUNT($H142:N142)=Input!$W$7,SUM($G142:N142),0) -> 0 | O143: =IF(COUNT($H142:O142)=Input!$W$7,SUM($G142:O142),0) -> 0 | P143: =IF(COUNT($H142:P142)=Input!$W$7,SUM($G142:P142),0) -> 0 | Q143: =IF(COUNT($H142:Q142)=Input!$W$7,SUM($G142:Q142),0) -> 0
C144: =Asset19 -> 0 | H144: =($G94+(SUM($G144:G144)))*H$7 -> 0 | I144: =($G94+(SUM($G144:H144)))*I$7 -> 0 | J144: =($G94+(SUM($G144:I144)))*J$7 -> 0 | K144: =($G94+(SUM($G144:J144)))*K$7 -> 0 | L144: =($G94+(SUM($G144:K144)))*L$7 -> 0 | M144: =IF(COUNT($H144:L144)>=Input!$W$7,0,($G94+(SUM($G144:L144)))*M$7) -> 0 | N144: =IF(COUNT($H144:M144)>=Input!$W$7,0,($G94+(SUM($G144:M144)))*N$7) -> 0 | O144: =IF(COUNT($H144:N144)>=Input!$W$7,0,($G94+(SUM($G144:N144)))*O$7) -> 0 | P144: =IF(COUNT($H144:O144)>=Input!$W$7,0,($G94+(SUM($G144:O144)))*P$7) -> 0 | Q144: =IF(COUNT($H144:P144)>=Input!$W$7,0,($G94+(SUM($G144:P144)))*Q$7) -> 0
C145: Sub-total | L145: =IF(COUNT($H144:L144)=Input!$W$7,SUM($G144:L144),0) -> 0 | M145: =IF(COUNT($H144:M144)=Input!$W$7,SUM($G144:M144),0) -> 0 | N145: =IF(COUNT($H144:N144)=Input!$W$7,SUM($G144:N144),0) -> 0 | O145: =IF(COUNT($H144:O144)=Input!$W$7,SUM($G144:O144),0) -> 0 | P145: =IF(COUNT($H144:P144)=Input!$W$7,SUM($G144:P144),0) -> 0 | Q145: =IF(COUNT($H144:Q144)=Input!$W$7,SUM($G144:Q144),0) -> 0
C146: =Asset20 -> Equity raising costs | H146: =($G95+(SUM($G146:G146)))*H$7 -> 0 | I146: =($G95+(SUM($G146:H146)))*I$7 -> 0 | J146: =($G95+(SUM($G146:I146)))*J$7 -> 0 | K146: =($G95+(SUM($G146:J146)))*K$7 -> 0 | L146: =($G95+(SUM($G146:K146)))*L$7 -> 0 | M146: =IF(COUNT($H146:L146)>=Input!$W$7,0,($G95+(SUM($G146:L146)))*M$7) -> 0 | N146: =IF(COUNT($H146:M146)>=Input!$W$7,0,($G95+(SUM($G146:M146)))*N$7) -> 0 | O146: =IF(COUNT($H146:N146)>=Input!$W$7,0,($G95+(SUM($G146:N146)))*O$7) -> 0 | P146: =IF(COUNT($H146:O146)>=Input!$W$7,0,($G95+(SUM($G146:O146)))*P$7) -> 0 | Q146: =IF(COUNT($H146:P146)>=Input!$W$7,0,($G95+(SUM($G146:P146)))*Q$7) -> 0
C147: Sub-total | L147: =IF(COUNT($H146:L146)=Input!$W$7,SUM($G146:L146),0) -> 0 | M147: =IF(COUNT($H146:M146)=Input!$W$7,SUM($G146:M146),0) -> 0 | N147: =IF(COUNT($H146:N146)=Input!$W$7,SUM($G146:N146),0) -> 0 | O147: =IF(COUNT($H146:O146)=Input!$W$7,SUM($G146:O146),0) -> 0 | P147: =IF(COUNT($H146:P146)=Input!$W$7,SUM($G146:P146),0) -> 0 | Q147: =IF(COUNT($H146:Q146)=Input!$W$7,SUM($G146:Q146),0) -> 0
C148: =Asset21 -> 0 | H148: =($G96+(SUM($G148:G148)))*H$7 -> 0 | I148: =($G96+(SUM($G148:H148)))*I$7 -> 0 | J148: =($G96+(SUM($G148:I148)))*J$7 -> 0 | K148: =($G96+(SUM($G148:J148)))*K$7 -> 0 | L148: =($G96+(SUM($G148:K148)))*L$7 -> 0 | M148: =IF(COUNT($H148:L148)>=Input!$W$7,0,($G96+(SUM($G148:L148)))*M$7) -> 0 | N148: =IF(COUNT($H148:M148)>=Input!$W$7,0,($G96+(SUM($G148:M148)))*N$7) -> 0 | O148: =IF(COUNT($H148:N148)>=Input!$W$7,0,($G96+(SUM($G148:N148)))*O$7) -> 0 | P148: =IF(COUNT($H148:O148)>=Input!$W$7,0,($G96+(SUM($G148:O148)))*P$7) -> 0 | Q148: =IF(COUNT($H148:P148)>=Input!$W$7,0,($G96+(SUM($G148:P148)))*Q$7) -> 0
C149: Sub-total | L149: =IF(COUNT($H148:L148)=Input!$W$7,SUM($G148:L148),0) -> 0 | M149: =IF(COUNT($H148:M148)=Input!$W$7,SUM($G148:M148),0) -> 0 | N149: =IF(COUNT($H148:N148)=Input!$W$7,SUM($G148:N148),0) -> 0 | O149: =IF(COUNT($H148:O148)=Input!$W$7,SUM($G148:O148),0) -> 0 | P149: =IF(COUNT($H148:P148)=Input!$W$7,SUM($G148:P148),0) -> 0 | Q149: =IF(COUNT($H148:Q148)=Input!$W$7,SUM($G148:Q148),0) -> 0
C150: =Asset22 -> 0 | H150: =($G97+(SUM($G150:G150)))*H$7 -> 0 | I150: =($G97+(SUM($G150:H150)))*I$7 -> 0 | J150: =($G97+(SUM($G150:I150)))*J$7 -> 0 | K150: =($G97+(SUM($G150:J150)))*K$7 -> 0 | L150: =($G97+(SUM($G150:K150)))*L$7 -> 0 | M150: =IF(COUNT($H150:L150)>=Input!$W$7,0,($G97+(SUM($G150:L150)))*M$7) -> 0 | N150: =IF(COUNT($H150:M150)>=Input!$W$7,0,($G97+(SUM($G150:M150)))*N$7) -> 0 | O150: =IF(COUNT($H150:N150)>=Input!$W$7,0,($G97+(SUM($G150:N150)))*O$7) -> 0 | P150: =IF(COUNT($H150:O150)>=Input!$W$7,0,($G97+(SUM($G150:O150)))*P$7) -> 0 | Q150: =IF(COUNT($H150:P150)>=Input!$W$7,0,($G97+(SUM($G150:P150)))*Q$7) -> 0
C151: Sub-total | L151: =IF(COUNT($H150:L150)=Input!$W$7,SUM($G150:L150),0) -> 0 | M151: =IF(COUNT($H150:M150)=Input!$W$7,SUM($G150:M150),0) -> 0 | N151: =IF(COUNT($H150:N150)=Input!$W$7,SUM($G150:N150),0) -> 0 | O151: =IF(COUNT($H150:O150)=Input!$W$7,SUM($G150:O150),0) -> 0 | P151: =IF(COUNT($H150:P150)=Input!$W$7,SUM($G150:P150),0) -> 0 | Q151: =IF(COUNT($H150:Q150)=Input!$W$7,SUM($G150:Q150),0) -> 0
C152: =Asset23 -> 0 | H152: =($G98+(SUM($G152:G152)))*H$7 -> 0 | I152: =($G98+(SUM($G152:H152)))*I$7 -> 0 | J152: =($G98+(SUM($G152:I152)))*J$7 -> 0 | K152: =($G98+(SUM($G152:J152)))*K$7 -> 0 | L152: =($G98+(SUM($G152:K152)))*L$7 -> 0 | M152: =IF(COUNT($H152:L152)>=Input!$W$7,0,($G98+(SUM($G152:L152)))*M$7) -> 0 | N152: =IF(COUNT($H152:M152)>=Input!$W$7,0,($G98+(SUM($G152:M152)))*N$7) -> 0 | O152: =IF(COUNT($H152:N152)>=Input!$W$7,0,($G98+(SUM($G152:N152)))*O$7) -> 0 | P152: =IF(COUNT($H152:O152)>=Input!$W$7,0,($G98+(SUM($G152:O152)))*P$7) -> 0 | Q152: =IF(COUNT($H152:P152)>=Input!$W$7,0,($G98+(SUM($G152:P152)))*Q$7) -> 0
C153: Sub-total | L153: =IF(COUNT($H152:L152)=Input!$W$7,SUM($G152:L152),0) -> 0 | M153: =IF(COUNT($H152:M152)=Input!$W$7,SUM($G152:M152),0) -> 0 | N153: =IF(COUNT($H152:N152)=Input!$W$7,SUM($G152:N152),0) -> 0 | O153: =IF(COUNT($H152:O152)=Input!$W$7,SUM($G152:O152),0) -> 0 | P153: =IF(COUNT($H152:P152)=Input!$W$7,SUM($G152:P152),0) -> 0 | Q153: =IF(COUNT($H152:Q152)=Input!$W$7,SUM($G152:Q152),0) -> 0
C154: =Asset24 -> 0 | H154: =($G99+(SUM($G154:G154)))*H$7 -> 0 | I154: =($G99+(SUM($G154:H154)))*I$7 -> 0 | J154: =($G99+(SUM($G154:I154)))*J$7 -> 0 | K154: =($G99+(SUM($G154:J154)))*K$7 -> 0 | L154: =($G99+(SUM($G154:K154)))*L$7 -> 0 | M154: =IF(COUNT($H154:L154)>=Input!$W$7,0,($G99+(SUM($G154:L154)))*M$7) -> 0 | N154: =IF(COUNT($H154:M154)>=Input!$W$7,0,($G99+(SUM($G154:M154)))*N$7) -> 0 | O154: =IF(COUNT($H154:N154)>=Input!$W$7,0,($G99+(SUM($G154:N154)))*O$7) -> 0 | P154: =IF(COUNT($H154:O154)>=Input!$W$7,0,($G99+(SUM($G154:O154)))*P$7) -> 0 | Q154: =IF(COUNT($H154:P154)>=Input!$W$7,0,($G99+(SUM($G154:P154)))*Q$7) -> 0
C155: Sub-total | L155: =IF(COUNT($H154:L154)=Input!$W$7,SUM($G154:L154),0) -> 0 | M155: =IF(COUNT($H154:M154)=Input!$W$7,SUM($G154:M154),0) -> 0 | N155: =IF(COUNT($H154:N154)=Input!$W$7,SUM($G154:N154),0) -> 0 | O155: =IF(COUNT($H154:O154)=Input!$W$7,SUM($G154:O154),0) -> 0 | P155: =IF(COUNT($H154:P154)=Input!$W$7,SUM($G154:P154),0) -> 0 | Q155: =IF(COUNT($H154:Q154)=Input!$W$7,SUM($G154:Q154),0) -> 0
C156: =Asset25 -> 0 | H156: =($G100+(SUM($G156:G156)))*H$7 -> 0 | I156: =($G100+(SUM($G156:H156)))*I$7 -> 0 | J156: =($G100+(SUM($G156:I156)))*J$7 -> 0 | K156: =($G100+(SUM($G156:J156)))*K$7 -> 0 | L156: =($G100+(SUM($G156:K156)))*L$7 -> 0 | M156: =IF(COUNT($H156:L156)>=Input!$W$7,0,($G100+(SUM($G156:L156)))*M$7) -> 0 | N156: =IF(COUNT($H156:M156)>=Input!$W$7,0,($G100+(SUM($G156:M156)))*N$7) -> 0 | O156: =IF(COUNT($H156:N156)>=Input!$W$7,0,($G100+(SUM($G156:N156)))*O$7) -> 0 | P156: =IF(COUNT($H156:O156)>=Input!$W$7,0,($G100+(SUM($G156:O156)))*P$7) -> 0 | Q156: =IF(COUNT($H156:P156)>=Input!$W$7,0,($G100+(SUM($G156:P156)))*Q$7) -> 0
C157: Sub-total | L157: =IF(COUNT($H156:L156)=Input!$W$7,SUM($G156:L156),0) -> 0 | M157: =IF(COUNT($H156:M156)=Input!$W$7,SUM($G156:M156),0) -> 0 | N157: =IF(COUNT($H156:N156)=Input!$W$7,SUM($G156:N156),0) -> 0 | O157: =IF(COUNT($H156:O156)=Input!$W$7,SUM($G156:O156),0) -> 0 | P157: =IF(COUNT($H156:P156)=Input!$W$7,SUM($G156:P156),0) -> 0 | Q157: =IF(COUNT($H156:Q156)=Input!$W$7,SUM($G156:Q156),0) -> 0
C158: =Asset26 -> 0 | H158: =($G101+(SUM($G158:G158)))*H$7 -> 0 | I158: =($G101+(SUM($G158:H158)))*I$7 -> 0 | J158: =($G101+(SUM($G158:I158)))*J$7 -> 0 | K158: =($G101+(SUM($G158:J158)))*K$7 -> 0 | L158: =($G101+(SUM($G158:K158)))*L$7 -> 0 | M158: =IF(COUNT($H158:L158)>=Input!$W$7,0,($G101+(SUM($G158:L158)))*M$7) -> 0 | N158: =IF(COUNT($H158:M158)>=Input!$W$7,0,($G101+(SUM($G158:M158)))*N$7) -> 0 | O158: =IF(COUNT($H158:N158)>=Input!$W$7,0,($G101+(SUM($G158:N158)))*O$7) -> 0 | P158: =IF(COUNT($H158:O158)>=Input!$W$7,0,($G101+(SUM($G158:O158)))*P$7) -> 0 | Q158: =IF(COUNT($H158:P158)>=Input!$W$7,0,($G101+(SUM($G158:P158)))*Q$7) -> 0
C159: Sub-total | L159: =IF(COUNT($H158:L158)=Input!$W$7,SUM($G158:L158),0) -> 0 | M159: =IF(COUNT($H158:M158)=Input!$W$7,SUM($G158:M158),0) -> 0 | N159: =IF(COUNT($H158:N158)=Input!$W$7,SUM($G158:N158),0) -> 0 | O159: =IF(COUNT($H158:O158)=Input!$W$7,SUM($G158:O158),0) -> 0 | P159: =IF(COUNT($H158:P158)=Input!$W$7,SUM($G158:P158),0) -> 0 | Q159: =IF(COUNT($H158:Q158)=Input!$W$7,SUM($G158:Q158),0) -> 0
C160: =Asset27 -> 0 | H160: =($G102+(SUM($G160:G160)))*H$7 -> 0 | I160: =($G102+(SUM($G160:H160)))*I$7 -> 0 | J160: =($G102+(SUM($G160:I160)))*J$7 -> 0 | K160: =($G102+(SUM($G160:J160)))*K$7 -> 0 | L160: =($G102+(SUM($G160:K160)))*L$7 -> 0 | M160: =IF(COUNT($H160:L160)>=Input!$W$7,0,($G102+(SUM($G160:L160)))*M$7) -> 0 | N160: =IF(COUNT($H160:M160)>=Input!$W$7,0,($G102+(SUM($G160:M160)))*N$7) -> 0 | O160: =IF(COUNT($H160:N160)>=Input!$W$7,0,($G102+(SUM($G160:N160)))*O$7) -> 0 | P160: =IF(COUNT($H160:O160)>=Input!$W$7,0,($G102+(SUM($G160:O160)))*P$7) -> 0 | Q160: =IF(COUNT($H160:P160)>=Input!$W$7,0,($G102+(SUM($G160:P160)))*Q$7) -> 0
C161: Sub-total | L161: =IF(COUNT($H160:L160)=Input!$W$7,SUM($G160:L160),0) -> 0 | M161: =IF(COUNT($H160:M160)=Input!$W$7,SUM($G160:M160),0) -> 0 | N161: =IF(COUNT($H160:N160)=Input!$W$7,SUM($G160:N160),0) -> 0 | O161: =IF(COUNT($H160:O160)=Input!$W$7,SUM($G160:O160),0) -> 0 | P161: =IF(COUNT($H160:P160)=Input!$W$7,SUM($G160:P160),0) -> 0 | Q161: =IF(COUNT($H160:Q160)=Input!$W$7,SUM($G160:Q160),0) -> 0
C162: =Asset28 -> 0 | H162: =($G103+(SUM($G162:G162)))*H$7 -> 0 | I162: =($G103+(SUM($G162:H162)))*I$7 -> 0 | J162: =($G103+(SUM($G162:I162)))*J$7 -> 0 | K162: =($G103+(SUM($G162:J162)))*K$7 -> 0 | L162: =($G103+(SUM($G162:K162)))*L$7 -> 0 | M162: =IF(COUNT($H162:L162)>=Input!$W$7,0,($G103+(SUM($G162:L162)))*M$7) -> 0 | N162: =IF(COUNT($H162:M162)>=Input!$W$7,0,($G103+(SUM($G162:M162)))*N$7) -> 0 | O162: =IF(COUNT($H162:N162)>=Input!$W$7,0,($G103+(SUM($G162:N162)))*O$7) -> 0 | P162: =IF(COUNT($H162:O162)>=Input!$W$7,0,($G103+(SUM($G162:O162)))*P$7) -> 0 | Q162: =IF(COUNT($H162:P162)>=Input!$W$7,0,($G103+(SUM($G162:P162)))*Q$7) -> 0
C163: Sub-total | L163: =IF(COUNT($H162:L162)=Input!$W$7,SUM($G162:L162),0) -> 0 | M163: =IF(COUNT($H162:M162)=Input!$W$7,SUM($G162:M162),0) -> 0 | N163: =IF(COUNT($H162:N162)=Input!$W$7,SUM($G162:N162),0) -> 0 | O163: =IF(COUNT($H162:O162)=Input!$W$7,SUM($G162:O162),0) -> 0 | P163: =IF(COUNT($H162:P162)=Input!$W$7,SUM($G162:P162),0) -> 0 | Q163: =IF(COUNT($H162:Q162)=Input!$W$7,SUM($G162:Q162),0) -> 0
C164: =Asset29 -> 0 | H164: =($G104+(SUM($G164:G164)))*H$7 -> 0 | I164: =($G104+(SUM($G164:H164)))*I$7 -> 0 | J164: =($G104+(SUM($G164:I164)))*J$7 -> 0 | K164: =($G104+(SUM($G164:J164)))*K$7 -> 0 | L164: =($G104+(SUM($G164:K164)))*L$7 -> 0 | M164: =IF(COUNT($H164:L164)>=Input!$W$7,0,($G104+(SUM($G164:L164)))*M$7) -> 0 | N164: =IF(COUNT($H164:M164)>=Input!$W$7,0,($G104+(SUM($G164:M164)))*N$7) -> 0 | O164: =IF(COUNT($H164:N164)>=Input!$W$7,0,($G104+(SUM($G164:N164)))*O$7) -> 0 | P164: =IF(COUNT($H164:O164)>=Input!$W$7,0,($G104+(SUM($G164:O164)))*P$7) -> 0 | Q164: =IF(COUNT($H164:P164)>=Input!$W$7,0,($G104+(SUM($G164:P164)))*Q$7) -> 0
C165: Sub-total | L165: =IF(COUNT($H164:L164)=Input!$W$7,SUM($G164:L164),0) -> 0 | M165: =IF(COUNT($H164:M164)=Input!$W$7,SUM($G164:M164),0) -> 0 | N165: =IF(COUNT($H164:N164)=Input!$W$7,SUM($G164:N164),0) -> 0 | O165: =IF(COUNT($H164:O164)=Input!$W$7,SUM($G164:O164),0) -> 0 | P165: =IF(COUNT($H164:P164)=Input!$W$7,SUM($G164:P164),0) -> 0 | Q165: =IF(COUNT($H164:Q164)=Input!$W$7,SUM($G164:Q164),0) -> 0
C166: =Asset30 -> 0 | H166: =($G105+(SUM($G166:G166)))*H$7 -> 0 | I166: =($G105+(SUM($G166:H166)))*I$7 -> 0 | J166: =($G105+(SUM($G166:I166)))*J$7 -> 0 | K166: =($G105+(SUM($G166:J166)))*K$7 -> 0 | L166: =($G105+(SUM($G166:K166)))*L$7 -> 0 | M166: =IF(COUNT($H166:L166)>=Input!$W$7,0,($G105+(SUM($G166:L166)))*M$7) -> 0 | N166: =IF(COUNT($H166:M166)>=Input!$W$7,0,($G105+(SUM($G166:M166)))*N$7) -> 0 | O166: =IF(COUNT($H166:N166)>=Input!$W$7,0,($G105+(SUM($G166:N166)))*O$7) -> 0 | P166: =IF(COUNT($H166:O166)>=Input!$W$7,0,($G105+(SUM($G166:O166)))*P$7) -> 0 | Q166: =IF(COUNT($H166:P166)>=Input!$W$7,0,($G105+(SUM($G166:P166)))*Q$7) -> 0
C167: Sub-total | L167: =IF(COUNT($H166:L166)=Input!$W$7,SUM($G166:L166),0) -> 0 | M167: =IF(COUNT($H166:M166)=Input!$W$7,SUM($G166:M166),0) -> 0 | N167: =IF(COUNT($H166:N166)=Input!$W$7,SUM($G166:N166),0) -> 0 | O167: =IF(COUNT($H166:O166)=Input!$W$7,SUM($G166:O166),0) -> 0 | P167: =IF(COUNT($H166:P166)=Input!$W$7,SUM($G166:P166),0) -> 0 | Q167: =IF(COUNT($H166:Q166)=Input!$W$7,SUM($G166:Q166),0) -> 0
B168: Total Return at End of Regulatory Period | L168: =IF(COUNT($H107:L107)=Input!$W$7, SUM($G107:L107), 0) -> -17.42238355 | M168: =IF(COUNT($H107:M107)=Input!$W$7, SUM($G107:M107), 0) -> 0 | N168: =IF(COUNT($H107:N107)=Input!$W$7, SUM($G107:N107), 0) -> 0 | O168: =IF(COUNT($H107:O107)=Input!$W$7, SUM($G107:O107), 0) -> 0 | P168: =IF(COUNT($H107:P107)=Input!$W$7, SUM($G107:P107), 0) -> 0 | Q168: =IF(COUNT($H107:Q107)=Input!$W$7, SUM($G107:Q107), 0) -> 0
B170: Nominal Adjustments for Difference Between Forecast and Actual Assets Under Construction
B172: Nominal Forecast Assets Under Construction (previous regulatory period) | G172: =SUM(G173:G202) -> 512.89
C173: =Asset1 -> Transmission Lines - Overhead | G173: =Input!Q7 -> 265.12
C174: =Asset2 -> Transmission Lines - Underground | G174: =Input!Q8 -> 0.39
C175: =Asset3 -> Transmission Lines - Refit | G175: =Input!Q9 -> 0
C176: =Asset4 -> Substations Primary Plant | G176: =Input!Q10 -> 137.97
C177: =Asset5 -> Substations Secondary Systems | G177: =Input!Q11 -> 61.8
C178: =Asset6 -> Communications Other Assets | G178: =Input!Q12 -> 9.65
C179: =Asset7 -> Comms - Civil Works | G179: =Input!Q13 -> 0
C180: =Asset8 -> Network Switching Centres | G180: =Input!Q14 -> 0.76
C181: =Asset9 -> Land | G181: =Input!Q15 -> 1.54
C182: =Asset10 -> Easements | G182: =Input!Q16 -> 31.89
C183: =Asset11 -> 0 | G183: =Input!Q17 -> 0
C184: =Asset12 -> Commercial Buildings | G184: =Input!Q18 -> 0
C185: =Asset13 -> Computer Equipment | G185: =Input!Q19 -> 3.77
C186: =Asset14 -> Office Furniture & Miscellaneous | G186: =Input!Q20 -> 0
C187: =Asset15 -> Office Machines | G187: =Input!Q21 -> 0
C188: =Asset16 -> Vehicles | G188: =Input!Q22 -> 0
C189: =Asset17 -> Moveable Plant | G189: =Input!Q23 -> 0
C190: =Asset18 -> Insurance Spares | G190: =Input!Q24 -> 0
C191: =Asset19 -> 0 | G191: =Input!Q25 -> 0
C192: =Asset20 -> Equity raising costs | G192: =Input!Q26 -> 0
C193: =Asset21 -> 0 | G193: =Input!Q27 -> 0
C194: =Asset22 -> 0 | G194: =Input!Q28 -> 0
C195: =Asset23 -> 0 | G195: =Input!Q29 -> 0
C196: =Asset24 -> 0 | G196: =Input!Q30 -> 0
C197: =Asset25 -> 0 | G197: =Input!Q31 -> 0
C198: =Asset26 -> 0 | G198: =Input!Q32 -> 0
C199: =Asset27 -> 0 | G199: =Input!Q33 -> 0
C200: =Asset28 -> 0 | G200: =Input!Q34 -> 0
C201: =Asset29 -> 0 | G201: =Input!Q35 -> 0
C202: =Asset30 -> 0 | G202: =Input!Q36 -> 0
B204: Nominal Actual Assets Under Construction | G204: =SUM(G205:G234) -> 555.225846
C205: =Asset1 -> Transmission Lines - Overhead | G205: =Input!R7 -> 300.0477393
C206: =Asset2 -> Transmission Lines - Underground | G206: =Input!R8 -> 0
C207: =Asset3 -> Transmission Lines - Refit | G207: =Input!R9 -> 0
C208: =Asset4 -> Substations Primary Plant | G208: =Input!R10 -> 137.7566795
C209: =Asset5 -> Substations Secondary Systems | G209: =Input!R11 -> 61.842085
C210: =Asset6 -> Communications Other Assets | G210: =Input!R12 -> 12.63260637
... 304 more rows

Sheet Actual RAB roll forward
C1: ='Powerlink information'!$B$8 -> Powerlink - RFM - data at 16 January 2012
C2: ="Asset Base Roll Forward - RFM "&Intro!L4 -> Asset Base Roll Forward - RFM Version: 2.0
G3: 0 | H3: =G3+1 -> 1 | I3: 2 | J3: 3 | K3: 4 | L3: 5 | M3: 6 | N3: 7 | O3: 8 | P3: 9 | Q3: 10 | R3: 11
C4: Year | G4: =Input!G40 -> 2006-07 | H4: =Input!H40 -> 2007-08 | I4: =Input!I40 -> 2008-09 | J4: =Input!J40 -> 2009-10 | K4: =Input!K40 -> 2010-11 | L4: =Input!L40 -> 2011-12 | M4: =Input!M40 -> 2012-13 | N4: =Input!N40 -> 2013-14 | O4: =Input!O40 -> 2014-15 | P4: =Input!P40 -> 2015-16 | Q4: =Input!Q40 -> 2016-17 | R4: =CONCATENATE(LEFT(Q4, 4)+1 &"-" &IF(Q4>"2007-08",,"0") &RIGHT(Q4,2)+1) -> 2017-18
C6: Actual CPI Inflation Rate | G6: =Input!G245 -> 0.02435813035 | H6: =Input!H245 -> 0.04241645244 | I6: =Input!I245 -> 0.02466091245 | J6: =Input!J245 -> 0.0289 | K6: =Input!K245 -> 0.0333 | L6: =Input!L245 -> 0.025 | M6: =Input!M245 -> 0 | N6: =Input!N245 -> 0 | O6: =Input!O245 -> 0 | P6: =Input!P245 -> 0 | Q6: =Input!Q245 -> 0
C7: Actual CPI (one year lagged) | G7: =Input!G246 -> 1 | H7: =Input!H246 -> 1.02435813 | I7: =Input!I246 -> 1.067807768 | J7: =Input!J246 -> 1.094140882 | K7: =Input!K246 -> 1.125761554 | L7: =Input!L246 -> 1.163249413 | M7: =Input!M246 -> 1.192330649 | N7: =Input!N246 -> 1.192330649 | O7: =Input!O246 -> 1.192330649 | P7: =Input!P246 -> 1.192330649 | Q7: =Input!Q246 -> 1.192330649
C9: ="Asset Values ($m Real "&G4&")" -> Asset Values ($m Real 2006-07)
C11: Real Actual Net Capex - As Incurred | H11: =SUM(H12:H41) -> 676.6019455 | I11: =SUM(I12:I41) -> 600.1474704 | J11: 421.0029943 | K11: 390.631313 | L11: 611.243507 | M11: 0 | N11: 0 | O11: 0 | P11: 0 | Q11: =SUM(Q12:Q41) -> 0
D12: =Asset1 -> Transmission Lines - Overhead | H12: =Input!H109*(1+vanilla1)^0.5 -> 317.5934991 | I12: =Input!I109*(1+vanilla2)^0.5 -> 296.3768509 | J12: =Input!J109*(1+vanilla3)^0.5 -> 229.2833899 | K12: =Input!K109*(1+vanilla4)^0.5 -> 152.5715535 | L12: =Input!L109*(1+vanilla5)^0.5 -> 232.8304869 | M12: =Input!M109*(1+vanilla6)^0.5 -> 0 | N12: =Input!N109*(1+vanilla7)^0.5 -> 0 | O12: =Input!O109*(1+vanilla8)^0.5 -> 0 | P12: =Input!P109*(1+vanilla9)^0.5 -> 0 | Q12: =Input!Q109*(1+vanilla10)^0.5 -> 0
D13: =Asset2 -> Transmission Lines - Underground | H13: =Input!H110*(1+vanilla1)^0.5 -> 0 | I13: =Input!I110*(1+vanilla2)^0.5 -> 0 | J13: =Input!J110*(1+vanilla3)^0.5 -> 0 | K13: =Input!K110*(1+vanilla4)^0.5 -> 8.038740077e-05 | L13: =Input!L110*(1+vanilla5)^0.5 -> 0.05285562102 | M13: =Input!M110*(1+vanilla6)^0.5 -> 0 | N13: =Input!N110*(1+vanilla7)^0.5 -> 0 | O13: =Input!O110*(1+vanilla8)^0.5 -> 0 | P13: =Input!P110*(1+vanilla9)^0.5 -> 0 | Q13: =Input!Q110*(1+vanilla10)^0.5 -> 0
D14: =Asset3 -> Transmission Lines - Refit | H14: =Input!H111*(1+vanilla1)^0.5 -> 0 | I14: =Input!I111*(1+vanilla2)^0.5 -> 0 | J14: =Input!J111*(1+vanilla3)^0.5 -> 0 | K14: =Input!K111*(1+vanilla4)^0.5 -> 0 | L14: =Input!L111*(1+vanilla5)^0.5 -> 0 | M14: =Input!M111*(1+vanilla6)^0.5 -> 0 | N14: =Input!N111*(1+vanilla7)^0.5 -> 0 | O14: =Input!O111*(1+vanilla8)^0.5 -> 0 | P14: =Input!P111*(1+vanilla9)^0.5 -> 0 | Q14: =Input!Q111*(1+vanilla10)^0.5 -> 0
D15: =Asset4 -> Substations Primary Plant | H15: =Input!H112*(1+vanilla1)^0.5 -> 208.9772493 | I15: =Input!I112*(1+vanilla2)^0.5 -> 171.849109 | J15: =Input!J112*(1+vanilla3)^0.5 -> 81.03173549 | K15: =Input!K112*(1+vanilla4)^0.5 -> 120.8625498 | L15: =Input!L112*(1+vanilla5)^0.5 -> 201.8599196 | M15: =Input!M112*(1+vanilla6)^0.5 -> 0 | N15: =Input!N112*(1+vanilla7)^0.5 -> 0 | O15: =Input!O112*(1+vanilla8)^0.5 -> 0 | P15: =Input!P112*(1+vanilla9)^0.5 -> 0 | Q15: =Input!Q112*(1+vanilla10)^0.5 -> 0
D16: =Asset5 -> Substations Secondary Systems | H16: =Input!H113*(1+vanilla1)^0.5 -> 85.57824483 | I16: =Input!I113*(1+vanilla2)^0.5 -> 71.41440817 | J16: =Input!J113*(1+vanilla3)^0.5 -> 53.28625297 | K16: =Input!K113*(1+vanilla4)^0.5 -> 54.69942079 | L16: =Input!L113*(1+vanilla5)^0.5 -> 87.98667171 | M16: =Input!M113*(1+vanilla6)^0.5 -> 0 | N16: =Input!N113*(1+vanilla7)^0.5 -> 0 | O16: =Input!O113*(1+vanilla8)^0.5 -> 0 | P16: =Input!P113*(1+vanilla9)^0.5 -> 0 | Q16: =Input!Q113*(1+vanilla10)^0.5 -> 0
D17: =Asset6 -> Communications Other Assets | H17: =Input!H114*(1+vanilla1)^0.5 -> 14.1973691 | I17: =Input!I114*(1+vanilla2)^0.5 -> 16.45955866 | J17: =Input!J114*(1+vanilla3)^0.5 -> 13.25397492 | K17: =Input!K114*(1+vanilla4)^0.5 -> 10.80557695 | L17: =Input!L114*(1+vanilla5)^0.5 -> 36.17000534 | M17: =Input!M114*(1+vanilla6)^0.5 -> 0 | N17: =Input!N114*(1+vanilla7)^0.5 -> 0 | O17: =Input!O114*(1+vanilla8)^0.5 -> 0 | P17: =Input!P114*(1+vanilla9)^0.5 -> 0 | Q17: =Input!Q114*(1+vanilla10)^0.5 -> 0
D18: =Asset7 -> Comms - Civil Works | H18: =Input!H115*(1+vanilla1)^0.5 -> 0 | I18: =Input!I115*(1+vanilla2)^0.5 -> 0 | J18: =Input!J115*(1+vanilla3)^0.5 -> 0.008567533885 | K18: =Input!K115*(1+vanilla4)^0.5 -> 0 | L18: =Input!L115*(1+vanilla5)^0.5 -> 0 | M18: =Input!M115*(1+vanilla6)^0.5 -> 0 | N18: =Input!N115*(1+vanilla7)^0.5 -> 0 | O18: =Input!O115*(1+vanilla8)^0.5 -> 0 | P18: =Input!P115*(1+vanilla9)^0.5 -> 0 | Q18: =Input!Q115*(1+vanilla10)^0.5 -> 0
D19: =Asset8 -> Network Switching Centres | H19: =Input!H116*(1+vanilla1)^0.5 -> 0.8944997546 | I19: =Input!I116*(1+vanilla2)^0.5 -> 4.573092696 | J19: =Input!J116*(1+vanilla3)^0.5 -> 3.080504406 | K19: =Input!K116*(1+vanilla4)^0.5 -> 5.139837016 | L19: =Input!L116*(1+vanilla5)^0.5 -> 10.76589531 | M19: =Input!M116*(1+vanilla6)^0.5 -> 0 | N19: =Input!N116*(1+vanilla7)^0.5 -> 0 | O19: =Input!O116*(1+vanilla8)^0.5 -> 0 | P19: =Input!P116*(1+vanilla9)^0.5 -> 0 | Q19: =Input!Q116*(1+vanilla10)^0.5 -> 0
D20: =Asset9 -> Land | H20: =Input!H117*(1+vanilla1)^0.5 -> 7.718922002 | I20: =Input!I117*(1+vanilla2)^0.5 -> 5.545951137 | J20: =Input!J117*(1+vanilla3)^0.5 -> 4.039307747 | K20: =Input!K117*(1+vanilla4)^0.5 -> 5.23958051 | L20: =Input!L117*(1+vanilla5)^0.5 -> 4.311501352 | M20: =Input!M117*(1+vanilla6)^0.5 -> 0 | N20: =Input!N117*(1+vanilla7)^0.5 -> 0 | O20: =Input!O117*(1+vanilla8)^0.5 -> 0 | P20: =Input!P117*(1+vanilla9)^0.5 -> 0 | Q20: =Input!Q117*(1+vanilla10)^0.5 -> 0
D21: =Asset10 -> Easements | H21: =Input!H118*(1+vanilla1)^0.5 -> 15.85843672 | I21: =Input!I118*(1+vanilla2)^0.5 -> 15.58101726 | J21: =Input!J118*(1+vanilla3)^0.5 -> 11.64899024 | K21: =Input!K118*(1+vanilla4)^0.5 -> 10.16052619 | L21: =Input!L118*(1+vanilla5)^0.5 -> 14.9380187 | M21: =Input!M118*(1+vanilla6)^0.5 -> 0 | N21: =Input!N118*(1+vanilla7)^0.5 -> 0 | O21: =Input!O118*(1+vanilla8)^0.5 -> 0 | P21: =Input!P118*(1+vanilla9)^0.5 -> 0 | Q21: =Input!Q118*(1+vanilla10)^0.5 -> 0
D22: =Asset11 -> 0 | H22: =Input!H119*(1+vanilla1)^0.5 -> 0 | I22: =Input!I119*(1+vanilla2)^0.5 -> 0 | J22: =Input!J119*(1+vanilla3)^0.5 -> 0 | K22: =Input!K119*(1+vanilla4)^0.5 -> 0 | L22: =Input!L119*(1+vanilla5)^0.5 -> 0 | M22: =Input!M119*(1+vanilla6)^0.5 -> 0 | N22: =Input!N119*(1+vanilla7)^0.5 -> 0 | O22: =Input!O119*(1+vanilla8)^0.5 -> 0 | P22: =Input!P119*(1+vanilla9)^0.5 -> 0 | Q22: =Input!Q119*(1+vanilla10)^0.5 -> 0
D23: =Asset12 -> Commercial Buildings | H23: =Input!H120*(1+vanilla1)^0.5 -> 4.366059443 | I23: =Input!I120*(1+vanilla2)^0.5 -> 3.751532407 | J23: =Input!J120*(1+vanilla3)^0.5 -> 10.10588219 | K23: =Input!K120*(1+vanilla4)^0.5 -> 13.55407932 | L23: =Input!L120*(1+vanilla5)^0.5 -> 3.726144575 | M23: =Input!M120*(1+vanilla6)^0.5 -> 0 | N23: =Input!N120*(1+vanilla7)^0.5 -> 0 | O23: =Input!O120*(1+vanilla8)^0.5 -> 0 | P23: =Input!P120*(1+vanilla9)^0.5 -> 0 | Q23: =Input!Q120*(1+vanilla10)^0.5 -> 0
D24: =Asset13 -> Computer Equipment | H24: =Input!H121*(1+vanilla1)^0.5 -> 10.09126725 | I24: =Input!I121*(1+vanilla2)^0.5 -> 12.70894741 | J24: =Input!J121*(1+vanilla3)^0.5 -> 10.99595377 | K24: =Input!K121*(1+vanilla4)^0.5 -> 11.49710428 | L24: =Input!L121*(1+vanilla5)^0.5 -> 13.21564814 | M24: =Input!M121*(1+vanilla6)^0.5 -> 0 | N24: =Input!N121*(1+vanilla7)^0.5 -> 0 | O24: =Input!O121*(1+vanilla8)^0.5 -> 0 | P24: =Input!P121*(1+vanilla9)^0.5 -> 0 | Q24: =Input!Q121*(1+vanilla10)^0.5 -> 0
D25: =Asset14 -> Office Furniture & Miscellaneous | H25: =Input!H122*(1+vanilla1)^0.5 -> 0.1340726177 | I25: =Input!I122*(1+vanilla2)^0.5 -> 0.006813888648 | J25: =Input!J122*(1+vanilla3)^0.5 -> 0 | K25: =Input!K122*(1+vanilla4)^0.5 -> 0 | L25: =Input!L122*(1+vanilla5)^0.5 -> 0.005496221031 | M25: =Input!M122*(1+vanilla6)^0.5 -> 0 | N25: =Input!N122*(1+vanilla7)^0.5 -> 0 | O25: =Input!O122*(1+vanilla8)^0.5 -> 0 | P25: =Input!P122*(1+vanilla9)^0.5 -> 0 | Q25: =Input!Q122*(1+vanilla10)^0.5 -> 0
D26: =Asset15 -> Office Machines | H26: =Input!H123*(1+vanilla1)^0.5 -> 0 | I26: =Input!I123*(1+vanilla2)^0.5 -> 0.0243353166 | J26: =Input!J123*(1+vanilla3)^0.5 -> 0 | K26: =Input!K123*(1+vanilla4)^0.5 -> 0 | L26: =Input!L123*(1+vanilla5)^0.5 -> 0 | M26: =Input!M123*(1+vanilla6)^0.5 -> 0 | N26: =Input!N123*(1+vanilla7)^0.5 -> 0 | O26: =Input!O123*(1+vanilla8)^0.5 -> 0 | P26: =Input!P123*(1+vanilla9)^0.5 -> 0 | Q26: =Input!Q123*(1+vanilla10)^0.5 -> 0
D27: =Asset16 -> Vehicles | H27: =Input!H124*(1+vanilla1)^0.5 -> 0.7857479073 | I27: =Input!I124*(1+vanilla2)^0.5 -> 1.229949186 | J27: =Input!J124*(1+vanilla3)^0.5 -> 3.133712847 | K27: =Input!K124*(1+vanilla4)^0.5 -> 2.75479054 | L27: =Input!L124*(1+vanilla5)^0.5 -> 3.795450077 | M27: =Input!M124*(1+vanilla6)^0.5 -> 0 | N27: =Input!N124*(1+vanilla7)^0.5 -> 0 | O27: =Input!O124*(1+vanilla8)^0.5 -> 0 | P27: =Input!P124*(1+vanilla9)^0.5 -> 0 | Q27: =Input!Q124*(1+vanilla10)^0.5 -> 0
D28: =Asset17 -> Moveable Plant | H28: =Input!H125*(1+vanilla1)^0.5 -> 1.462517333 | I28: =Input!I125*(1+vanilla2)^0.5 -> 1.326761461 | J28: =Input!J125*(1+vanilla3)^0.5 -> 1.33463139 | K28: =Input!K125*(1+vanilla4)^0.5 -> 1.984177674 | L28: =Input!L125*(1+vanilla5)^0.5 -> 1.585413408 | M28: =Input!M125*(1+vanilla6)^0.5 -> 0 | N28: =Input!N125*(1+vanilla7)^0.5 -> 0 | O28: =Input!O125*(1+vanilla8)^0.5 -> 0 | P28: =Input!P125*(1+vanilla9)^0.5 -> 0 | Q28: =Input!Q125*(1+vanilla10)^0.5 -> 0
D29: =Asset18 -> Insurance Spares | H29: =Input!H126*(1+vanilla1)^0.5 -> 0 | I29: =Input!I126*(1+vanilla2)^0.5 -> -0.7008571181 | J29: =Input!J126*(1+vanilla3)^0.5 -> -0.199909124 | K29: =Input!K126*(1+vanilla4)^0.5 -> 1.362035982 | L29: =Input!L126*(1+vanilla5)^0.5 -> 0 | M29: =Input!M126*(1+vanilla6)^0.5 -> 0 | N29: =Input!N126*(1+vanilla7)^0.5 -> 0 | O29: =Input!O126*(1+vanilla8)^0.5 -> 0 | P29: =Input!P126*(1+vanilla9)^0.5 -> 0 | Q29: =Input!Q126*(1+vanilla10)^0.5 -> 0
D30: =Asset19 -> 0 | H30: =Input!H127*(1+vanilla1)^0.5 -> 0 | I30: =Input!I127*(1+vanilla2)^0.5 -> 0 | J30: =Input!J127*(1+vanilla3)^0.5 -> 0 | K30: =Input!K127*(1+vanilla4)^0.5 -> 0 | L30: =Input!L127*(1+vanilla5)^0.5 -> 0 | M30: =Input!M127*(1+vanilla6)^0.5 -> 0 | N30: =Input!N127*(1+vanilla7)^0.5 -> 0 | O30: =Input!O127*(1+vanilla8)^0.5 -> 0 | P30: =Input!P127*(1+vanilla9)^0.5 -> 0 | Q30: =Input!Q127*(1+vanilla10)^0.5 -> 0
D31: =Asset20 -> Equity raising costs | H31: =Input!H128*(1+vanilla1)^0.5 -> 8.944060151 | I31: =Input!I128*(1+vanilla2)^0.5 -> 0 | J31: =Input!J128*(1+vanilla3)^0.5 -> 0 | K31: =Input!K128*(1+vanilla4)^0.5 -> 0 | L31: =Input!L128*(1+vanilla5)^0.5 -> 0 | M31: =Input!M128*(1+vanilla6)^0.5 -> 0 | N31: =Input!N128*(1+vanilla7)^0.5 -> 0 | O31: =Input!O128*(1+vanilla8)^0.5 -> 0 | P31: =Input!P128*(1+vanilla9)^0.5 -> 0 | Q31: =Input!Q128*(1+vanilla10)^0.5 -> 0
D32: =Asset21 -> 0 | H32: =Input!H129*(1+vanilla1)^0.5 -> 0 | I32: =Input!I129*(1+vanilla2)^0.5 -> 0 | J32: =Input!J129*(1+vanilla3)^0.5 -> 0 | K32: =Input!K129*(1+vanilla4)^0.5 -> 0 | L32: =Input!L129*(1+vanilla5)^0.5 -> 0 | M32: =Input!M129*(1+vanilla6)^0.5 -> 0 | N32: =Input!N129*(1+vanilla7)^0.5 -> 0 | O32: =Input!O129*(1+vanilla8)^0.5 -> 0 | P32: =Input!P129*(1+vanilla9)^0.5 -> 0 | Q32: =Input!Q129*(1+vanilla10)^0.5 -> 0
D33: =Asset22 -> 0 | H33: =Input!H130*(1+vanilla1)^0.5 -> 0 | I33: =Input!I130*(1+vanilla2)^0.5 -> 0 | J33: =Input!J130*(1+vanilla3)^0.5 -> 0 | K33: =Input!K130*(1+vanilla4)^0.5 -> 0 | L33: =Input!L130*(1+vanilla5)^0.5 -> 0 | M33: =Input!M130*(1+vanilla6)^0.5 -> 0 | N33: =Input!N130*(1+vanilla7)^0.5 -> 0 | O33: =Input!O130*(1+vanilla8)^0.5 -> 0 | P33: =Input!P130*(1+vanilla9)^0.5 -> 0 | Q33: =Input!Q130*(1+vanilla10)^0.5 -> 0
D34: =Asset23 -> 0 | H34: =Input!H131*(1+vanilla1)^0.5 -> 0 | I34: =Input!I131*(1+vanilla2)^0.5 -> 0 | J34: =Input!J131*(1+vanilla3)^0.5 -> 0 | K34: =Input!K131*(1+vanilla4)^0.5 -> 0 | L34: =Input!L131*(1+vanilla5)^0.5 -> 0 | M34: =Input!M131*(1+vanilla6)^0.5 -> 0 | N34: =Input!N131*(1+vanilla7)^0.5 -> 0 | O34: =Input!O131*(1+vanilla8)^0.5 -> 0 | P34: =Input!P131*(1+vanilla9)^0.5 -> 0 | Q34: =Input!Q131*(1+vanilla10)^0.5 -> 0
D35: =Asset24 -> 0 | H35: =Input!H132*(1+vanilla1)^0.5 -> 0 | I35: =Input!I132*(1+vanilla2)^0.5 -> 0 | J35: =Input!J132*(1+vanilla3)^0.5 -> 0 | K35: =Input!K132*(1+vanilla4)^0.5 -> 0 | L35: =Input!L132*(1+vanilla5)^0.5 -> 0 | M35: =Input!M132*(1+vanilla6)^0.5 -> 0 | N35: =Input!N132*(1+vanilla7)^0.5 -> 0 | O35: =Input!O132*(1+vanilla8)^0.5 -> 0 | P35: =Input!P132*(1+vanilla9)^0.5 -> 0 | Q35: =Input!Q132*(1+vanilla10)^0.5 -> 0
D36: =Asset25 -> 0 | H36: =Input!H133*(1+vanilla1)^0.5 -> 0 | I36: =Input!I133*(1+vanilla2)^0.5 -> 0 | J36: =Input!J133*(1+vanilla3)^0.5 -> 0 | K36: =Input!K133*(1+vanilla4)^0.5 -> 0 | L36: =Input!L133*(1+vanilla5)^0.5 -> 0 | M36: =Input!M133*(1+vanilla6)^0.5 -> 0 | N36: =Input!N133*(1+vanilla7)^0.5 -> 0 | O36: =Input!O133*(1+vanilla8)^0.5 -> 0 | P36: =Input!P133*(1+vanilla9)^0.5 -> 0 | Q36: =Input!Q133*(1+vanilla10)^0.5 -> 0
D37: =Asset26 -> 0 | H37: =Input!H134*(1+vanilla1)^0.5 -> 0 | I37: =Input!I134*(1+vanilla2)^0.5 -> 0 | J37: =Input!J134*(1+vanilla3)^0.5 -> 0 | K37: =Input!K134*(1+vanilla4)^0.5 -> 0 | L37: =Input!L134*(1+vanilla5)^0.5 -> 0 | M37: =Input!M134*(1+vanilla6)^0.5 -> 0 | N37: =Input!N134*(1+vanilla7)^0.5 -> 0 | O37: =Input!O134*(1+vanilla8)^0.5 -> 0 | P37: =Input!P134*(1+vanilla9)^0.5 -> 0 | Q37: =Input!Q134*(1+vanilla10)^0.5 -> 0
D38: =Asset27 -> 0 | H38: =Input!H135*(1+vanilla1)^0.5 -> 0 | I38: =Input!I135*(1+vanilla2)^0.5 -> 0 | J38: =Input!J135*(1+vanilla3)^0.5 -> 0 | K38: =Input!K135*(1+vanilla4)^0.5 -> 0 | L38: =Input!L135*(1+vanilla5)^0.5 -> 0 | M38: =Input!M135*(1+vanilla6)^0.5 -> 0 | N38: =Input!N135*(1+vanilla7)^0.5 -> 0 | O38: =Input!O135*(1+vanilla8)^0.5 -> 0 | P38: =Input!P135*(1+vanilla9)^0.5 -> 0 | Q38: =Input!Q135*(1+vanilla10)^0.5 -> 0
D39: =Asset28 -> 0 | H39: =Input!H136*(1+vanilla1)^0.5 -> 0 | I39: =Input!I136*(1+vanilla2)^0.5 -> 0 | J39: =Input!J136*(1+vanilla3)^0.5 -> 0 | K39: =Input!K136*(1+vanilla4)^0.5 -> 0 | L39: =Input!L136*(1+vanilla5)^0.5 -> 0 | M39: =Input!M136*(1+vanilla6)^0.5 -> 0 | N39: =Input!N136*(1+vanilla7)^0.5 -> 0 | O39: =Input!O136*(1+vanilla8)^0.5 -> 0 | P39: =Input!P136*(1+vanilla9)^0.5 -> 0 | Q39: =Input!Q136*(1+vanilla10)^0.5 -> 0
D40: =Asset29 -> 0 | H40: =Input!H137*(1+vanilla1)^0.5 -> 0 | I40: =Input!I137*(1+vanilla2)^0.5 -> 0 | J40: =Input!J137*(1+vanilla3)^0.5 -> 0 | K40: =Input!K137*(1+vanilla4)^0.5 -> 0 | L40: =Input!L137*(1+vanilla5)^0.5 -> 0 | M40: =Input!M137*(1+vanilla6)^0.5 -> 0 | N40: =Input!N137*(1+vanilla7)^0.5 -> 0 | O40: =Input!O137*(1+vanilla8)^0.5 -> 0 | P40: =Input!P137*(1+vanilla9)^0.5 -> 0 | Q40: =Input!Q137*(1+vanilla10)^0.5 -> 0
D41: =Asset30 -> 0 | H41: =Input!H138*(1+vanilla1)^0.5 -> 0 | I41: =Input!I138*(1+vanilla2)^0.5 -> 0 | J41: =Input!J138*(1+vanilla3)^0.5 -> 0 | K41: =Input!K138*(1+vanilla4)^0.5 -> 0 | L41: =Input!L138*(1+vanilla5)^0.5 -> 0 | M41: =Input!M138*(1+vanilla6)^0.5 -> 0 | N41: =Input!N138*(1+vanilla7)^0.5 -> 0 | O41: =Input!O138*(1+vanilla8)^0.5 -> 0 | P41: =Input!P138*(1+vanilla9)^0.5 -> 0 | Q41: =Input!Q138*(1+vanilla10)^0.5 -> 0
C43: Real Actual Net Capex - As Commissioned | H43: =SUM(H44:H73) -> 660.2194691 | I43: =SUM(I44:I73) -> 624.6258786 | J43: 430.9293685 | K43: 409.7347828 | L43: 453.4065543 | M43: 0 | N43: 0 | O43: 0 | P43: 0 | Q43: =SUM(Q44:Q73) -> 0
D44: =Asset1 -> Transmission Lines - Overhead | H44: =Input!H211*(1+vanilla1)^0.5 -> 443.0178905 | I44: =Input!I211*(1+vanilla2)^0.5 -> 298.3178357 | J44: =Input!J211*(1+vanilla3)^0.5 -> 85.80575576 | K44: =Input!K211*(1+vanilla4)^0.5 -> 238.3229182 | L44: =Input!L211*(1+vanilla5)^0.5 -> 191.2120508 | M44: =Input!M211*(1+vanilla6)^0.5 -> 0 | N44: =Input!N211*(1+vanilla7)^0.5 -> 0 | O44: =Input!O211*(1+vanilla8)^0.5 -> 0 | P44: =Input!P211*(1+vanilla9)^0.5 -> 0 | Q44: =Input!Q211*(1+vanilla10)^0.5 -> 0
D45: =Asset2 -> Transmission Lines - Underground | H45: =Input!H212*(1+vanilla1)^0.5 -> 0 | I45: =Input!I212*(1+vanilla2)^0.5 -> 5.603936707 | J45: =Input!J212*(1+vanilla3)^0.5 -> 13.17591517 | K45: =Input!K212*(1+vanilla4)^0.5 -> 0.03938778119 | L45: =Input!L212*(1+vanilla5)^0.5 -> 0 | M45: =Input!M212*(1+vanilla6)^0.5 -> 0 | N45: =Input!N212*(1+vanilla7)^0.5 -> 0 | O45: =Input!O212*(1+vanilla8)^0.5 -> 0 | P45: =Input!P212*(1+vanilla9)^0.5 -> 0 | Q45: =Input!Q212*(1+vanilla10)^0.5 -> 0
D46: =Asset3 -> Transmission Lines - Refit | H46: =Input!H213*(1+vanilla1)^0.5 -> 0 | I46: =Input!I213*(1+vanilla2)^0.5 -> 0 | J46: =Input!J213*(1+vanilla3)^0.5 -> 0 | K46: =Input!K213*(1+vanilla4)^0.5 -> 0 | L46: =Input!L213*(1+vanilla5)^0.5 -> 0 | M46: =Input!M213*(1+vanilla6)^0.5 -> 0 | N46: =Input!N213*(1+vanilla7)^0.5 -> 0 | O46: =Input!O213*(1+vanilla8)^0.5 -> 0 | P46: =Input!P213*(1+vanilla9)^0.5 -> 0 | Q46: =Input!Q213*(1+vanilla10)^0.5 -> 0
D47: =Asset4 -> Substations Primary Plant | H47: =Input!H214*(1+vanilla1)^0.5 -> 138.6188052 | I47: =Input!I214*(1+vanilla2)^0.5 -> 217.7941868 | J47: =Input!J214*(1+vanilla3)^0.5 -> 184.3600019 | K47: =Input!K214*(1+vanilla4)^0.5 -> 79.27986193 | L47: =Input!L214*(1+vanilla5)^0.5 -> 116.6693187 | M47: =Input!M214*(1+vanilla6)^0.5 -> 0 | N47: =Input!N214*(1+vanilla7)^0.5 -> 0 | O47: =Input!O214*(1+vanilla8)^0.5 -> 0 | P47: =Input!P214*(1+vanilla9)^0.5 -> 0 | Q47: =Input!Q214*(1+vanilla10)^0.5 -> 0
D48: =Asset5 -> Substations Secondary Systems | H48: =Input!H215*(1+vanilla1)^0.5 -> 46.62759075 | I48: =Input!I215*(1+vanilla2)^0.5 -> 54.92285082 | J48: =Input!J215*(1+vanilla3)^0.5 -> 63.90809109 | K48: =Input!K215*(1+vanilla4)^0.5 -> 31.69625274 | L48: =Input!L215*(1+vanilla5)^0.5 -> 59.23943028 | M48: =Input!M215*(1+vanilla6)^0.5 -> 0 | N48: =Input!N215*(1+vanilla7)^0.5 -> 0 | O48: =Input!O215*(1+vanilla8)^0.5 -> 0 | P48: =Input!P215*(1+vanilla9)^0.5 -> 0 | Q48: =Input!Q215*(1+vanilla10)^0.5 -> 0
D49: =Asset6 -> Communications Other Assets | H49: =Input!H216*(1+vanilla1)^0.5 -> 2.386697286 | I49: =Input!I216*(1+vanilla2)^0.5 -> 4.334730512 | J49: =Input!J216*(1+vanilla3)^0.5 -> 23.21135319 | K49: =Input!K216*(1+vanilla4)^0.5 -> 6.472430222 | L49: =Input!L216*(1+vanilla5)^0.5 -> 17.10867168 | M49: =Input!M216*(1+vanilla6)^0.5 -> 0 | N49: =Input!N216*(1+vanilla7)^0.5 -> 0 | O49: =Input!O216*(1+vanilla8)^0.5 -> 0 | P49: =Input!P216*(1+vanilla9)^0.5 -> 0 | Q49: =Input!Q216*(1+vanilla10)^0.5 -> 0
D50: =Asset7 -> Comms - Civil Works | H50: =Input!H217*(1+vanilla1)^0.5 -> 0.2313008519 | I50: =Input!I217*(1+vanilla2)^0.5 -> 0.4292749848 | J50: =Input!J217*(1+vanilla3)^0.5 -> 3.314683665 | K50: =Input!K217*(1+vanilla4)^0.5 -> 0.2881832634 | L50: =Input!L217*(1+vanilla5)^0.5 -> 0 | M50: =Input!M217*(1+vanilla6)^0.5 -> 0 | N50: =Input!N217*(1+vanilla7)^0.5 -> 0 | O50: =Input!O217*(1+vanilla8)^0.5 -> 0 | P50: =Input!P217*(1+vanilla9)^0.5 -> 0 | Q50: =Input!Q217*(1+vanilla10)^0.5 -> 0
D51: =Asset8 -> Network Switching Centres | H51: =Input!H218*(1+vanilla1)^0.5 -> 0 | I51: =Input!I218*(1+vanilla2)^0.5 -> 0 | J51: =Input!J218*(1+vanilla3)^0.5 -> 2.491248464 | K51: =Input!K218*(1+vanilla4)^0.5 -> 9.886149496 | L51: =Input!L218*(1+vanilla5)^0.5 -> 2.806200656 | M51: =Input!M218*(1+vanilla6)^0.5 -> 0 | N51: =Input!N218*(1+vanilla7)^0.5 -> 0 | O51: =Input!O218*(1+vanilla8)^0.5 -> 0 | P51: =Input!P218*(1+vanilla9)^0.5 -> 0 | Q51: =Input!Q218*(1+vanilla10)^0.5 -> 0
D52: =Asset9 -> Land | H52: =Input!H219*(1+vanilla1)^0.5 -> 6.480541335 | I52: =Input!I219*(1+vanilla2)^0.5 -> 2.208119112 | J52: =Input!J219*(1+vanilla3)^0.5 -> 16.88394494 | K52: =Input!K219*(1+vanilla4)^0.5 -> 6.114854822 | L52: =Input!L219*(1+vanilla5)^0.5 -> 10.42903919 | M52: =Input!M219*(1+vanilla6)^0.5 -> 0 | N52: =Input!N219*(1+vanilla7)^0.5 -> 0 | O52: =Input!O219*(1+vanilla8)^0.5 -> 0 | P52: =Input!P219*(1+vanilla9)^0.5 -> 0 | Q52: =Input!Q219*(1+vanilla10)^0.5 -> 0
D53: =Asset10 -> Easements | H53: =Input!H220*(1+vanilla1)^0.5 -> 2.763328761 | I53: =Input!I220*(1+vanilla2)^0.5 -> 18.72416675 | J53: =Input!J220*(1+vanilla3)^0.5 -> 13.46340353 | K53: =Input!K220*(1+vanilla4)^0.5 -> 7.445354127 | L53: =Input!L220*(1+vanilla5)^0.5 -> 29.82980379 | M53: =Input!M220*(1+vanilla6)^0.5 -> 0 | N53: =Input!N220*(1+vanilla7)^0.5 -> 0 | O53: =Input!O220*(1+vanilla8)^0.5 -> 0 | P53: =Input!P220*(1+vanilla9)^0.5 -> 0 | Q53: =Input!Q220*(1+vanilla10)^0.5 -> 0
D54: =Asset11 -> 0 | H54: =Input!H221*(1+vanilla1)^0.5 -> 0 | I54: =Input!I221*(1+vanilla2)^0.5 -> 0 | J54: =Input!J221*(1+vanilla3)^0.5 -> 0 | K54: =Input!K221*(1+vanilla4)^0.5 -> 0 | L54: =Input!L221*(1+vanilla5)^0.5 -> 0 | M54: =Input!M221*(1+vanilla6)^0.5 -> 0 | N54: =Input!N221*(1+vanilla7)^0.5 -> 0 | O54: =Input!O221*(1+vanilla8)^0.5 -> 0 | P54: =Input!P221*(1+vanilla9)^0.5 -> 0 | Q54: =Input!Q221*(1+vanilla10)^0.5 -> 0
D55: =Asset12 -> Commercial Buildings | H55: =Input!H222*(1+vanilla1)^0.5 -> 0.09415786891 | I55: =Input!I222*(1+vanilla2)^0.5 -> 6.166569227 | J55: =Input!J222*(1+vanilla3)^0.5 -> 3.691655156 | K55: =Input!K222*(1+vanilla4)^0.5 -> 11.18607452 | L55: =Input!L222*(1+vanilla5)^0.5 -> 4.22927401 | M55: =Input!M222*(1+vanilla6)^0.5 -> 0 | N55: =Input!N222*(1+vanilla7)^0.5 -> 0 | O55: =Input!O222*(1+vanilla8)^0.5 -> 0 | P55: =Input!P222*(1+vanilla9)^0.5 -> 0 | Q55: =Input!Q222*(1+vanilla10)^0.5 -> 0
D56: =Asset13 -> Computer Equipment | H56: =Input!H223*(1+vanilla1)^0.5 -> 6.129472575 | I56: =Input!I223*(1+vanilla2)^0.5 -> 12.29816727 | J56: =Input!J223*(1+vanilla3)^0.5 -> 15.87659224 | K56: =Input!K223*(1+vanilla4)^0.5 -> 11.77889324 | L56: =Input!L223*(1+vanilla5)^0.5 -> 14.8472763 | M56: =Input!M223*(1+vanilla6)^0.5 -> 0 | N56: =Input!N223*(1+vanilla7)^0.5 -> 0 | O56: =Input!O223*(1+vanilla8)^0.5 -> 0 | P56: =Input!P223*(1+vanilla9)^0.5 -> 0 | Q56: =Input!Q223*(1+vanilla10)^0.5 -> 0
D57: =Asset14 -> Office Furniture & Miscellaneous | H57: =Input!H224*(1+vanilla1)^0.5 -> 0.1514713543 | I57: =Input!I224*(1+vanilla2)^0.5 -> 0.0593781725 | J57: =Input!J224*(1+vanilla3)^0.5 -> 0 | K57: =Input!K224*(1+vanilla4)^0.5 -> 0 | L57: =Input!L224*(1+vanilla5)^0.5 -> 0.005496221031 | M57: =Input!M224*(1+vanilla6)^0.5 -> 0 | N57: =Input!N224*(1+vanilla7)^0.5 -> 0 | O57: =Input!O224*(1+vanilla8)^0.5 -> 0 | P57: =Input!P224*(1+vanilla9)^0.5 -> 0 | Q57: =Input!Q224*(1+vanilla10)^0.5 -> 0
D58: =Asset15 -> Office Machines | H58: =Input!H225*(1+vanilla1)^0.5 -> 0.063454216 | I58: =Input!I225*(1+vanilla2)^0.5 -> 1.265436463 | J58: =Input!J225*(1+vanilla3)^0.5 -> 0.9005430062 | K58: =Input!K225*(1+vanilla4)^0.5 -> 0.2091443802 | L58: =Input!L225*(1+vanilla5)^0.5 -> 0.01496890882 | M58: =Input!M225*(1+vanilla6)^0.5 -> 0 | N58: =Input!N225*(1+vanilla7)^0.5 -> 0 | O58: =Input!O225*(1+vanilla8)^0.5 -> 0 | P58: =Input!P225*(1+vanilla9)^0.5 -> 0 | Q58: =Input!Q225*(1+vanilla10)^0.5 -> 0
D59: =Asset16 -> Vehicles | H59: =Input!H226*(1+vanilla1)^0.5 -> 0.9167501597 | I59: =Input!I226*(1+vanilla2)^0.5 -> 0.9583670528 | J59: =Input!J226*(1+vanilla3)^0.5 -> 2.969436096 | K59: =Input!K226*(1+vanilla4)^0.5 -> 2.627178246 | L59: =Input!L226*(1+vanilla5)^0.5 -> 4.411100115 | M59: =Input!M226*(1+vanilla6)^0.5 -> 0 | N59: =Input!N226*(1+vanilla7)^0.5 -> 0 | O59: =Input!O226*(1+vanilla8)^0.5 -> 0 | P59: =Input!P226*(1+vanilla9)^0.5 -> 0 | Q59: =Input!Q226*(1+vanilla10)^0.5 -> 0
D60: =Asset17 -> Moveable Plant | H60: =Input!H227*(1+vanilla1)^0.5 -> 3.793948044 | I60: =Input!I227*(1+vanilla2)^0.5 -> 2.243716191 | J60: =Input!J227*(1+vanilla3)^0.5 -> 1.076653425 | K60: =Input!K227*(1+vanilla4)^0.5 -> 3.026063807 | L60: =Input!L227*(1+vanilla5)^0.5 -> 2.603923606 | M60: =Input!M227*(1+vanilla6)^0.5 -> 0 | N60: =Input!N227*(1+vanilla7)^0.5 -> 0 | O60: =Input!O227*(1+vanilla8)^0.5 -> 0 | P60: =Input!P227*(1+vanilla9)^0.5 -> 0 | Q60: =Input!Q227*(1+vanilla10)^0.5 -> 0
D61: =Asset18 -> Insurance Spares | H61: =Input!H228*(1+vanilla1)^0.5 -> 0 | I61: =Input!I228*(1+vanilla2)^0.5 -> -0.7008571181 | J61: =Input!J228*(1+vanilla3)^0.5 -> -0.199909124 | K61: =Input!K228*(1+vanilla4)^0.5 -> 1.362035982 | L61: =Input!L228*(1+vanilla5)^0.5 -> 0 | M61: =Input!M228*(1+vanilla6)^0.5 -> 0 | N61: =Input!N228*(1+vanilla7)^0.5 -> 0 | O61: =Input!O228*(1+vanilla8)^0.5 -> 0 | P61: =Input!P228*(1+vanilla9)^0.5 -> 0 | Q61: =Input!Q228*(1+vanilla10)^0.5 -> 0
D62: =Asset19 -> 0 | H62: =Input!H229*(1+vanilla1)^0.5 -> 0 | I62: =Input!I229*(1+vanilla2)^0.5 -> 0 | J62: =Input!J229*(1+vanilla3)^0.5 -> 0 | K62: =Input!K229*(1+vanilla4)^0.5 -> 0 | L62: =Input!L229*(1+vanilla5)^0.5 -> 0 | M62: =Input!M229*(1+vanilla6)^0.5 -> 0 | N62: =Input!N229*(1+vanilla7)^0.5 -> 0 | O62: =Input!O229*(1+vanilla8)^0.5 -> 0 | P62: =Input!P229*(1+vanilla9)^0.5 -> 0 | Q62: =Input!Q229*(1+vanilla10)^0.5 -> 0
D63: =Asset20 -> Equity raising costs | H63: =Input!H230*(1+vanilla1)^0.5 -> 8.944060151 | I63: =Input!I230*(1+vanilla2)^0.5 -> 0 | J63: =Input!J230*(1+vanilla3)^0.5 -> 0 | K63: =Input!K230*(1+vanilla4)^0.5 -> 0 | L63: =Input!L230*(1+vanilla5)^0.5 -> 0 | M63: =Input!M230*(1+vanilla6)^0.5 -> 0 | N63: =Input!N230*(1+vanilla7)^0.5 -> 0 | O63: =Input!O230*(1+vanilla8)^0.5 -> 0 | P63: =Input!P230*(1+vanilla9)^0.5 -> 0 | Q63: =Input!Q230*(1+vanilla10)^0.5 -> 0
D64: =Asset21 -> 0 | H64: =Input!H231*(1+vanilla1)^0.5 -> 0 | I64: =Input!I231*(1+vanilla2)^0.5 -> 0 | J64: =Input!J231*(1+vanilla3)^0.5 -> 0 | K64: =Input!K231*(1+vanilla4)^0.5 -> 0 | L64: =Input!L231*(1+vanilla5)^0.5 -> 0 | M64: =Input!M231*(1+vanilla6)^0.5 -> 0 | N64: =Input!N231*(1+vanilla7)^0.5 -> 0 | O64: =Input!O231*(1+vanilla8)^0.5 -> 0 | P64: =Input!P231*(1+vanilla9)^0.5 -> 0 | Q64: =Input!Q231*(1+vanilla10)^0.5 -> 0
D65: =Asset22 -> 0 | H65: =Input!H232*(1+vanilla1)^0.5 -> 0 | I65: =Input!I232*(1+vanilla2)^0.5 -> 0 | J65: =Input!J232*(1+vanilla3)^0.5 -> 0 | K65: =Input!K232*(1+vanilla4)^0.5 -> 0 | L65: =Input!L232*(1+vanilla5)^0.5 -> 0 | M65: =Input!M232*(1+vanilla6)^0.5 -> 0 | N65: =Input!N232*(1+vanilla7)^0.5 -> 0 | O65: =Input!O232*(1+vanilla8)^0.5 -> 0 | P65: =Input!P232*(1+vanilla9)^0.5 -> 0 | Q65: =Input!Q232*(1+vanilla10)^0.5 -> 0
D66: =Asset23 -> 0 | H66: =Input!H233*(1+vanilla1)^0.5 -> 0 | I66: =Input!I233*(1+vanilla2)^0.5 -> 0 | J66: =Input!J233*(1+vanilla3)^0.5 -> 0 | K66: =Input!K233*(1+vanilla4)^0.5 -> 0 | L66: =Input!L233*(1+vanilla5)^0.5 -> 0 | M66: =Input!M233*(1+vanilla6)^0.5 -> 0 | N66: =Input!N233*(1+vanilla7)^0.5 -> 0 | O66: =Input!O233*(1+vanilla8)^0.5 -> 0 | P66: =Input!P233*(1+vanilla9)^0.5 -> 0 | Q66: =Input!Q233*(1+vanilla10)^0.5 -> 0
D67: =Asset24 -> 0 | H67: =Input!H234*(1+vanilla1)^0.5 -> 0 | I67: =Input!I234*(1+vanilla2)^0.5 -> 0 | J67: =Input!J234*(1+vanilla3)^0.5 -> 0 | K67: =Input!K234*(1+vanilla4)^0.5 -> 0 | L67: =Input!L234*(1+vanilla5)^0.5 -> 0 | M67: =Input!M234*(1+vanilla6)^0.5 -> 0 | N67: =Input!N234*(1+vanilla7)^0.5 -> 0 | O67: =Input!O234*(1+vanilla8)^0.5 -> 0 | P67: =Input!P234*(1+vanilla9)^0.5 -> 0 | Q67: =Input!Q234*(1+vanilla10)^0.5 -> 0
D68: =Asset25 -> 0 | H68: =Input!H235*(1+vanilla1)^0.5 -> 0 | I68: =Input!I235*(1+vanilla2)^0.5 -> 0 | J68: =Input!J235*(1+vanilla3)^0.5 -> 0 | K68: =Input!K235*(1+vanilla4)^0.5 -> 0 | L68: =Input!L235*(1+vanilla5)^0.5 -> 0 | M68: =Input!M235*(1+vanilla6)^0.5 -> 0 | N68: =Input!N235*(1+vanilla7)^0.5 -> 0 | O68: =Input!O235*(1+vanilla8)^0.5 -> 0 | P68: =Input!P235*(1+vanilla9)^0.5 -> 0 | Q68: =Input!Q235*(1+vanilla10)^0.5 -> 0
D69: =Asset26 -> 0 | H69: =Input!H236*(1+vanilla1)^0.5 -> 0 | I69: =Input!I236*(1+vanilla2)^0.5 -> 0 | J69: =Input!J236*(1+vanilla3)^0.5 -> 0 | K69: =Input!K236*(1+vanilla4)^0.5 -> 0 | L69: =Input!L236*(1+vanilla5)^0.5 -> 0 | M69: =Input!M236*(1+vanilla6)^0.5 -> 0 | N69: =Input!N236*(1+vanilla7)^0.5 -> 0 | O69: =Input!O236*(1+vanilla8)^0.5 -> 0 | P69: =Input!P236*(1+vanilla9)^0.5 -> 0 | Q69: =Input!Q236*(1+vanilla10)^0.5 -> 0
D70: =Asset27 -> 0 | H70: =Input!H237*(1+vanilla1)^0.5 -> 0 | I70: =Input!I237*(1+vanilla2)^0.5 -> 0 | J70: =Input!J237*(1+vanilla3)^0.5 -> 0 | K70: =Input!K237*(1+vanilla4)^0.5 -> 0 | L70: =Input!L237*(1+vanilla5)^0.5 -> 0 | M70: =Input!M237*(1+vanilla6)^0.5 -> 0 | N70: =Input!N237*(1+vanilla7)^0.5 -> 0 | O70: =Input!O237*(1+vanilla8)^0.5 -> 0 | P70: =Input!P237*(1+vanilla9)^0.5 -> 0 | Q70: =Input!Q237*(1+vanilla10)^0.5 -> 0
D71: =Asset28 -> 0 | H71: =Input!H238*(1+vanilla1)^0.5 -> 0 | I71: =Input!I238*(1+vanilla2)^0.5 -> 0 | J71: =Input!J238*(1+vanilla3)^0.5 -> 0 | K71: =Input!K238*(1+vanilla4)^0.5 -> 0 | L71: =Input!L238*(1+vanilla5)^0.5 -> 0 | M71: =Input!M238*(1+vanilla6)^0.5 -> 0 | N71: =Input!N238*(1+vanilla7)^0.5 -> 0 | O71: =Input!O238*(1+vanilla8)^0.5 -> 0 | P71: =Input!P238*(1+vanilla9)^0.5 -> 0 | Q71: =Input!Q238*(1+vanilla10)^0.5 -> 0
D72: =Asset29 -> 0 | H72: =Input!H239*(1+vanilla1)^0.5 -> 0 | I72: =Input!I239*(1+vanilla2)^0.5 -> 0 | J72: =Input!J239*(1+vanilla3)^0.5 -> 0 | K72: =Input!K239*(1+vanilla4)^0.5 -> 0 | L72: =Input!L239*(1+vanilla5)^0.5 -> 0 | M72: =Input!M239*(1+vanilla6)^0.5 -> 0 | N72: =Input!N239*(1+vanilla7)^0.5 -> 0 | O72: =Input!O239*(1+vanilla8)^0.5 -> 0 | P72: =Input!P239*(1+vanilla9)^0.5 -> 0 | Q72: =Input!Q239*(1+vanilla10)^0.5 -> 0
D73: =Asset30 -> 0 | H73: =Input!H240*(1+vanilla1)^0.5 -> 0 | I73: =Input!I240*(1+vanilla2)^0.5 -> 0 | J73: =Input!J240*(1+vanilla3)^0.5 -> 0 | K73: =Input!K240*(1+vanilla4)^0.5 -> 0 | L73: =Input!L240*(1+vanilla5)^0.5 -> 0 | M73: =Input!M240*(1+vanilla6)^0.5 -> 0 | N73: =Input!N240*(1+vanilla7)^0.5 -> 0 | O73: =Input!O240*(1+vanilla8)^0.5 -> 0 | P73: =Input!P240*(1+vanilla9)^0.5 -> 0 | Q73: =Input!Q240*(1+vanilla10)^0.5 -> 0
C75: Real Actual Straight-line Depreciation | H75: =H88+H101+H114+H127+H140+H153+H166+H179+H192+H205+H218+H231+H244+H257+H270+H283+H296+H309+H322+H335+H348+H361+H374+H387+H400+H413+H426+H439+H452+H465 -> -153.2664307 | I75: =I88+I101+I114+I127+I140+I153+I166+I179+I192+I205+I218+I231+I244+I257+I270+I283+I296+I309+I322+I335+I348+I361+I374+I387+I400+I413+I426+I439+I452+I465 -> -171.0055707 | J75: =J88+J101+J114+J127+J140+J153+J166+J179+J192+J205+J218+J231+J244+J257+J270+J283+J296+J309+J322+J335+J348+J361+J374+J387+J400+J413+J426+J439+J452+J465 -> -175.4567528 | K75: -186.4511635 | L75: -193.4144455 | M75: =M88+M101+M114+M127+M140+M153+M166+M179+M192+M205+M218+M231+M244+M257+M270+M283+M296+M309+M322+M335+M348+M361+M374+M387+M400+M413+M426+M439+M452+M465 -> 0 | N75: 0 | O75: 0 | P75: 0 | Q75: =Q88+Q101+Q114+Q127+Q140+Q153+Q166+Q179+Q192+Q205+Q218+Q231+Q244+Q257+Q270+Q283+Q296+Q309+Q322+Q335+Q348+Q361+Q374+Q387+Q400+Q413+Q426+Q439+Q452+Q465 -> 0
C76: =Asset1 -> Transmission Lines - Overhead | E76: Opening RAB | H76: =IF(H$3>A1remlife,A1value-$G$630-SUM($G76:G76),IF(A1remlife="N/A","n/a",(A1value-$G$630)/A1remlife)) -> 50.43535281 | I76: =IF(I$3>A1remlife,A1value-$G$630-SUM($G76:H76),IF(A1remlife="N/A","n/a",(A1value-$G$630)/A1remlife)) -> 50.43535281 | J76: =IF(J$3>A1remlife,A1value-$G$630-SUM($G76:I76),IF(A1remlife="N/A","n/a",(A1value-$G$630)/A1remlife)) -> 50.43535281 | K76: =IF(K$3>A1remlife,A1value-$G$630-SUM($G76:J76),IF(A1remlife="N/A","n/a",(A1value-$G$630)/A1remlife)) -> 50.43535281 | L76: =IF(L$3>A1remlife,A1value-$G$630-SUM($G76:K76),IF(A1remlife="N/A","n/a",(A1value-$G$630)/A1remlife)) -> 50.43535281 | M76: =IF(M$3>A1remlife,A1value-$G$630-SUM($G76:L76),IF(A1remlife="N/A","n/a",(A1value-$G$630)/A1remlife)) -> 50.43535281 | N76: =IF(N$3>A1remlife,A1value-$G$630-SUM($G76:M76),IF(A1remlife="N/A","n/a",(A1value-$G$630)/A1remlife)) -> 50.43535281 | O76: =IF(O$3>A1remlife,A1value-$G$630-SUM($G76:N76),IF(A1remlife="N/A","n/a",(A1value-$G$630)/A1remlife)) -> 50.43535281 | P76: =IF(P$3>A1remlife,A1value-$G$630-SUM($G76:O76),IF(A1remlife="N/A","n/a",(A1value-$G$630)/A1remlife)) -> 50.43535281 | Q76: =IF(Q$3>A1remlife,A1value-$G$630-SUM($G76:P76),IF(A1remlife="N/A","n/a",(A1value-$G$630)/A1remlife)) -> 50.43535281
E77: Capex in year
F78: 1 | I78: =IF(A1stdlife="n/a","n/a",IF(I$3>(A1stdlife+$F78),(Input!$H$211*(1+vanilla1)^0.5)-SUM($H78:H78),(Input!$H$211*(1+vanilla1)^0.5)/A1stdlife)) -> 8.860357809 | J78: =IF(A1stdlife="n/a","n/a",IF(J$3>(A1stdlife+$F78),(Input!$H$211*(1+vanilla1)^0.5)-SUM($H78:I78),(Input!$H$211*(1+vanilla1)^0.5)/A1stdlife)) -> 8.860357809 | K78: =IF(A1stdlife="n/a","n/a",IF(K$3>(A1stdlife+$F78),(Input!$H$211*(1+vanilla1)^0.5)-SUM($H78:J78),(Input!$H$211*(1+vanilla1)^0.5)/A1stdlife)) -> 8.860357809 | L78: =IF(A1stdlife="n/a","n/a",IF(L$3>(A1stdlife+$F78),(Input!$H$211*(1+vanilla1)^0.5)-SUM($H78:K78),(Input!$H$211*(1+vanilla1)^0.5)/A1stdlife)) -> 8.860357809 | M78: =IF(A1stdlife="n/a","n/a",IF(M$3>(A1stdlife+$F78),(Input!$H$211*(1+vanilla1)^0.5)-SUM($H78:L78),(Input!$H$211*(1+vanilla1)^0.5)/A1stdlife)) -> 8.860357809 | N78: =IF(A1stdlife="n/a","n/a",IF(N$3>(A1stdlife+$F78),(Input!$H$211*(1+vanilla1)^0.5)-SUM($H78:M78),(Input!$H$211*(1+vanilla1)^0.5)/A1stdlife)) -> 8.860357809 | O78: =IF(A1stdlife="n/a","n/a",IF(O$3>(A1stdlife+$F78),(Input!$H$211*(1+vanilla1)^0.5)-SUM($H78:N78),(Input!$H$211*(1+vanilla1)^0.5)/A1stdlife)) -> 8.860357809 | P78: =IF(A1stdlife="n/a","n/a",IF(P$3>(A1stdlife+$F78),(Input!$H$211*(1+vanilla1)^0.5)-SUM($H78:O78),(Input!$H$211*(1+vanilla1)^0.5)/A1stdlife)) -> 8.860357809 | Q78: =IF(A1stdlife="n/a","n/a",IF(Q$3>(A1stdlife+$F78),(Input!$H$211*(1+vanilla1)^0.5)-SUM($H78:P78),(Input!$H$211*(1+vanilla1)^0.5)/A1stdlife)) -> 8.860357809
F79: 2 | J79: =IF(A1stdlife="n/a","n/a",IF(J$3>(A1stdlife+$F79),(Input!$I$211*(1+vanilla2)^0.5)-SUM($I79:I79),(Input!$I$211*(1+vanilla2)^0.5)/A1stdlife)) -> 5.966356714 | K79: =IF(A1stdlife="n/a","n/a",IF(K$3>(A1stdlife+$F79),(Input!$I$211*(1+vanilla2)^0.5)-SUM($I79:J79),(Input!$I$211*(1+vanilla2)^0.5)/A1stdlife)) -> 5.966356714 | L79: =IF(A1stdlife="n/a","n/a",IF(L$3>(A1stdlife+$F79),(Input!$I$211*(1+vanilla2)^0.5)-SUM($I79:K79),(Input!$I$211*(1+vanilla2)^0.5)/A1stdlife)) -> 5.966356714 | M79: =IF(A1stdlife="n/a","n/a",IF(M$3>(A1stdlife+$F79),(Input!$I$211*(1+vanilla2)^0.5)-SUM($I79:L79),(Input!$I$211*(1+vanilla2)^0.5)/A1stdlife)) -> 5.966356714 | N79: =IF(A1stdlife="n/a","n/a",IF(N$3>(A1stdlife+$F79),(Input!$I$211*(1+vanilla2)^0.5)-SUM($I79:M79),(Input!$I$211*(1+vanilla2)^0.5)/A1stdlife)) -> 5.966356714 | O79: =IF(A1stdlife="n/a","n/a",IF(O$3>(A1stdlife+$F79),(Input!$I$211*(1+vanilla2)^0.5)-SUM($I79:N79),(Input!$I$211*(1+vanilla2)^0.5)/A1stdlife)) -> 5.966356714 | P79: =IF(A1stdlife="n/a","n/a",IF(P$3>(A1stdlife+$F79),(Input!$I$211*(1+vanilla2)^0.5)-SUM($I79:O79),(Input!$I$211*(1+vanilla2)^0.5)/A1stdlife)) -> 5.966356714 | Q79: =IF(A1stdlife="n/a","n/a",IF(Q$3>(A1stdlife+$F79),(Input!$I$211*(1+vanilla2)^0.5)-SUM($I79:P79),(Input!$I$211*(1+vanilla2)^0.5)/A1stdlife)) -> 5.966356714
F80: 3 | K80: =IF(A1stdlife="n/a","n/a",IF(K$3>(A1stdlife+$F80),(Input!$J$211*(1+vanilla3)^0.5)-SUM($J80:J80),(Input!$J$211*(1+vanilla3)^0.5)/A1stdlife)) -> 1.716115115 | L80: =IF(A1stdlife="n/a","n/a",IF(L$3>(A1stdlife+$F80),(Input!$J$211*(1+vanilla3)^0.5)-SUM($J80:K80),(Input!$J$211*(1+vanilla3)^0.5)/A1stdlife)) -> 1.716115115 | M80: =IF(A1stdlife="n/a","n/a",IF(M$3>(A1stdlife+$F80),(Input!$J$211*(1+vanilla3)^0.5)-SUM($J80:L80),(Input!$J$211*(1+vanilla3)^0.5)/A1stdlife)) -> 1.716115115 | N80: =IF(A1stdlife="n/a","n/a",IF(N$3>(A1stdlife+$F80),(Input!$J$211*(1+vanilla3)^0.5)-SUM($J80:M80),(Input!$J$211*(1+vanilla3)^0.5)/A1stdlife)) -> 1.716115115 | O80: =IF(A1stdlife="n/a","n/a",IF(O$3>(A1stdlife+$F80),(Input!$J$211*(1+vanilla3)^0.5)-SUM($J80:N80),(Input!$J$211*(1+vanilla3)^0.5)/A1stdlife)) -> 1.716115115 | P80: =IF(A1stdlife="n/a","n/a",IF(P$3>(A1stdlife+$F80),(Input!$J$211*(1+vanilla3)^0.5)-SUM($J80:O80),(Input!$J$211*(1+vanilla3)^0.5)/A1stdlife)) -> 1.716115115 | Q80: =IF(A1stdlife="n/a","n/a",IF(Q$3>(A1stdlife+$F80),(Input!$J$211*(1+vanilla3)^0.5)-SUM($J80:P80),(Input!$J$211*(1+vanilla3)^0.5)/A1stdlife)) -> 1.716115115
F81: 4 | L81: =IF(A1stdlife="n/a","n/a",IF(L$3>(A1stdlife+$F81),(Input!$K$211*(1+vanilla4)^0.5)-SUM($K81:K81),(Input!$K$211*(1+vanilla4)^0.5)/A1stdlife)) -> 4.766458365 | M81: =IF(A1stdlife="n/a","n/a",IF(M$3>(A1stdlife+$F81),(Input!$K$211*(1+vanilla4)^0.5)-SUM($K81:L81),(Input!$K$211*(1+vanilla4)^0.5)/A1stdlife)) -> 4.766458365 | N81: =IF(A1stdlife="n/a","n/a",IF(N$3>(A1stdlife+$F81),(Input!$K$211*(1+vanilla4)^0.5)-SUM($K81:M81),(Input!$K$211*(1+vanilla4)^0.5)/A1stdlife)) -> 4.766458365 | O81: =IF(A1stdlife="n/a","n/a",IF(O$3>(A1stdlife+$F81),(Input!$K$211*(1+vanilla4)^0.5)-SUM($K81:N81),(Input!$K$211*(1+vanilla4)^0.5)/A1stdlife)) -> 4.766458365 | P81: =IF(A1stdlife="n/a","n/a",IF(P$3>(A1stdlife+$F81),(Input!$K$211*(1+vanilla4)^0.5)-SUM($K81:O81),(Input!$K$211*(1+vanilla4)^0.5)/A1stdlife)) -> 4.766458365 | Q81: =IF(A1stdlife="n/a","n/a",IF(Q$3>(A1stdlife+$F81),(Input!$K$211*(1+vanilla4)^0.5)-SUM($K81:P81),(Input!$K$211*(1+vanilla4)^0.5)/A1stdlife)) -> 4.766458365
F82: 5 | M82: =IF(A1stdlife="n/a","n/a",IF(M$3>(A1stdlife+$F82),(Input!$L$211*(1+vanilla5)^0.5)-SUM($L82:L82),(Input!$L$211*(1+vanilla5)^0.5)/A1stdlife)) -> 3.824241016 | N82: =IF(A1stdlife="n/a","n/a",IF(N$3>(A1stdlife+$F82),(Input!$L$211*(1+vanilla5)^0.5)-SUM($L82:M82),(Input!$L$211*(1+vanilla5)^0.5)/A1stdlife)) -> 3.824241016 | O82: =IF(A1stdlife="n/a","n/a",IF(O$3>(A1stdlife+$F82),(Input!$L$211*(1+vanilla5)^0.5)-SUM($L82:N82),(Input!$L$211*(1+vanilla5)^0.5)/A1stdlife)) -> 3.824241016 | P82: =IF(A1stdlife="n/a","n/a",IF(P$3>(A1stdlife+$F82),(Input!$L$211*(1+vanilla5)^0.5)-SUM($L82:O82),(Input!$L$211*(1+vanilla5)^0.5)/A1stdlife)) -> 3.824241016 | Q82: =IF(A1stdlife="n/a","n/a",IF(Q$3>(A1stdlife+$F82),(Input!$L$211*(1+vanilla5)^0.5)-SUM($L82:P82),(Input!$L$211*(1+vanilla5)^0.5)/A1stdlife)) -> 3.824241016
F83: 6 | N83: =IF(A1stdlife="n/a","n/a",IF(N$3>(A1stdlife+$F83),(Input!$M$211*(1+vanilla6)^0.5)-SUM($M83:M83),(Input!$M$211*(1+vanilla6)^0.5)/A1stdlife)) -> 0 | O83: =IF(A1stdlife="n/a","n/a",IF(O$3>(A1stdlife+$F83),(Input!$M$211*(1+vanilla6)^0.5)-SUM($M83:N83),(Input!$M$211*(1+vanilla6)^0.5)/A1stdlife)) -> 0 | P83: =IF(A1stdlife="n/a","n/a",IF(P$3>(A1stdlife+$F83),(Input!$M$211*(1+vanilla6)^0.5)-SUM($M83:O83),(Input!$M$211*(1+vanilla6)^0.5)/A1stdlife)) -> 0 | Q83: =IF(A1stdlife="n/a","n/a",IF(Q$3>(A1stdlife+$F83),(Input!$M$211*(1+vanilla6)^0.5)-SUM($M83:P83),(Input!$M$211*(1+vanilla6)^0.5)/A1stdlife)) -> 0
F84: 7 | O84: =IF(A1stdlife="n/a","n/a",IF(O$3>(A1stdlife+$F84),(Input!$N$211*(1+vanilla7)^0.5)-SUM($N84:N84),(Input!$N$211*(1+vanilla7)^0.5)/A1stdlife)) -> 0 | P84: =IF(A1stdlife="n/a","n/a",IF(P$3>(A1stdlife+$F84),(Input!$N$211*(1+vanilla7)^0.5)-SUM($N84:O84),(Input!$N$211*(1+vanilla7)^0.5)/A1stdlife)) -> 0 | Q84: =IF(A1stdlife="n/a","n/a",IF(Q$3>(A1stdlife+$F84),(Input!$N$211*(1+vanilla7)^0.5)-SUM($N84:P84),(Input!$N$211*(1+vanilla7)^0.5)/A1stdlife)) -> 0
F85: 8 | P85: =IF(A1stdlife="n/a","n/a",IF(P$3>(A1stdlife+$F85),(Input!$O$211*(1+vanilla8)^0.5)-SUM($O85:O85),(Input!$O$211*(1+vanilla8)^0.5)/A1stdlife)) -> 0 | Q85: =IF(A1stdlife="n/a","n/a",IF(Q$3>(A1stdlife+$F85),(Input!$O$211*(1+vanilla8)^0.5)-SUM($O85:P85),(Input!$O$211*(1+vanilla8)^0.5)/A1stdlife)) -> 0
F86: 9 | Q86: =IF(A1stdlife="n/a","n/a",IF(Q$3>(A1stdlife+$F86),(Input!$P$211*(1+vanilla9)^0.5)-SUM($P86:P86),(Input!$P$211*(1+vanilla9)^0.5)/A1stdlife)) -> 0
F87: 10
D88: =Asset1 -> Transmission Lines - Overhead | H88: =-SUM(H76:H87) -> -50.43535281 | I88: =-SUM(I76:I87) -> -59.29571062 | J88: =-SUM(J76:J87) -> -65.26206733 | K88: =-SUM(K76:K87) -> -66.97818245 | L88: =-SUM(L76:L87) -> -71.74464081 | M88: =IF(COUNT($H88:L88)>=Input!$W$7,0, -SUM(M76:M87)) -> 0 | N88: =IF(COUNT($H88:M88)>=Input!$W$7,0, -SUM(N76:N87)) -> 0 | O88: =IF(COUNT($H88:N88)>=Input!$W$7,0, -SUM(O76:O87)) -> 0 | P88: =IF(COUNT($H88:O88)>=Input!$W$7,0, -SUM(P76:P87)) -> 0 | Q88: =IF(COUNT($H88:P88)>=Input!$W$7,0, -SUM(Q76:Q87)) -> 0
C89: =Asset2 -> Transmission Lines - Underground | E89: Opening RAB | H89: =IF(H$3>A2remlife,A2value-$G$631-SUM($G89:G89),IF(A2remlife="N/A","n/a",(A2value-$G$631)/A2remlife)) -> 1.268439878 | I89: =IF(I$3>A2remlife,A2value-$G$631-SUM($G89:H89),IF(A2remlife="N/A","n/a",(A2value-$G$631)/A2remlife)) -> 1.268439878 | J89: =IF(J$3>A2remlife,A2value-$G$631-SUM($G89:I89),IF(A2remlife="N/A","n/a",(A2value-$G$631)/A2remlife)) -> 1.268439878 | K89: =IF(K$3>A2remlife,A2value-$G$631-SUM($G89:J89),IF(A2remlife="N/A","n/a",(A2value-$G$631)/A2remlife)) -> 1.268439878 | L89: =IF(L$3>A2remlife,A2value-$G$631-SUM($G89:K89),IF(A2remlife="N/A","n/a",(A2value-$G$631)/A2remlife)) -> 1.268439878 | M89: =IF(M$3>A2remlife,A2value-$G$631-SUM($G89:L89),IF(A2remlife="N/A","n/a",(A2value-$G$631)/A2remlife)) -> 1.268439878 | N89: =IF(N$3>A2remlife,A2value-$G$631-SUM($G89:M89),IF(A2remlife="N/A","n/a",(A2value-$G$631)/A2remlife)) -> 1.268439878 | O89: =IF(O$3>A2remlife,A2value-$G$631-SUM($G89:N89),IF(A2remlife="N/A","n/a",(A2value-$G$631)/A2remlife)) -> 1.268439878 | P89: =IF(P$3>A2remlife,A2value-$G$631-SUM($G89:O89),IF(A2remlife="N/A","n/a",(A2value-$G$631)/A2remlife)) -> 1.268439878 | Q89: =IF(Q$3>A2remlife,A2value-$G$631-SUM($G89:P89),IF(A2remlife="N/A","n/a",(A2value-$G$631)/A2remlife)) -> 1.268439878
E90: Capex in year
F91: 1 | I91: =IF(A2stdlife="n/a","n/a",IF(I$3>(A2stdlife+$F91),(Input!$H$212*(1+vanilla1)^0.5)-SUM($H91:H91),(Input!$H$212*(1+vanilla1)^0.5)/A2stdlife)) -> 0 | J91: =IF(A2stdlife="n/a","n/a",IF(J$3>(A2stdlife+$F91),(Input!$H$212*(1+vanilla1)^0.5)-SUM($H91:I91),(Input!$H$212*(1+vanilla1)^0.5)/A2stdlife)) -> 0 | K91: =IF(A2stdlife="n/a","n/a",IF(K$3>(A2stdlife+$F91),(Input!$H$212*(1+vanilla1)^0.5)-SUM($H91:J91),(Input!$H$212*(1+vanilla1)^0.5)/A2stdlife)) -> 0 | L91: =IF(A2stdlife="n/a","n/a",IF(L$3>(A2stdlife+$F91),(Input!$H$212*(1+vanilla1)^0.5)-SUM($H91:K91),(Input!$H$212*(1+vanilla1)^0.5)/A2stdlife)) -> 0 | M91: =IF(A2stdlife="n/a","n/a",IF(M$3>(A2stdlife+$F91),(Input!$H$212*(1+vanilla1)^0.5)-SUM($H91:L91),(Input!$H$212*(1+vanilla1)^0.5)/A2stdlife)) -> 0 | N91: =IF(A2stdlife="n/a","n/a",IF(N$3>(A2stdlife+$F91),(Input!$H$212*(1+vanilla1)^0.5)-SUM($H91:M91),(Input!$H$212*(1+vanilla1)^0.5)/A2stdlife)) -> 0 | O91: =IF(A2stdlife="n/a","n/a",IF(O$3>(A2stdlife+$F91),(Input!$H$212*(1+vanilla1)^0.5)-SUM($H91:N91),(Input!$H$212*(1+vanilla1)^0.5)/A2stdlife)) -> 0 | P91: =IF(A2stdlife="n/a","n/a",IF(P$3>(A2stdlife+$F91),(Input!$H$212*(1+vanilla1)^0.5)-SUM($H91:O91),(Input!$H$212*(1+vanilla1)^0.5)/A2stdlife)) -> 0 | Q91: =IF(A2stdlife="n/a","n/a",IF(Q$3>(A2stdlife+$F91),(Input!$H$212*(1+vanilla1)^0.5)-SUM($H91:P91),(Input!$H$212*(1+vanilla1)^0.5)/A2stdlife)) -> 0
F92: 2 | J92: =IF(A2stdlife="n/a","n/a",IF(J$3>(A2stdlife+$F92),(Input!$I$212*(1+vanilla2)^0.5)-SUM($I92:I92),(Input!$I$212*(1+vanilla2)^0.5)/A2stdlife)) -> 0.1245319268 | K92: =IF(A2stdlife="n/a","n/a",IF(K$3>(A2stdlife+$F92),(Input!$I$212*(1+vanilla2)^0.5)-SUM($I92:J92),(Input!$I$212*(1+vanilla2)^0.5)/A2stdlife)) -> 0.1245319268 | L92: =IF(A2stdlife="n/a","n/a",IF(L$3>(A2stdlife+$F92),(Input!$I$212*(1+vanilla2)^0.5)-SUM($I92:K92),(Input!$I$212*(1+vanilla2)^0.5)/A2stdlife)) -> 0.1245319268 | M92: =IF(A2stdlife="n/a","n/a",IF(M$3>(A2stdlife+$F92),(Input!$I$212*(1+vanilla2)^0.5)-SUM($I92:L92),(Input!$I$212*(1+vanilla2)^0.5)/A2stdlife)) -> 0.1245319268 | N92: =IF(A2stdlife="n/a","n/a",IF(N$3>(A2stdlife+$F92),(Input!$I$212*(1+vanilla2)^0.5)-SUM($I92:M92),(Input!$I$212*(1+vanilla2)^0.5)/A2stdlife)) -> 0.1245319268 | O92: =IF(A2stdlife="n/a","n/a",IF(O$3>(A2stdlife+$F92),(Input!$I$212*(1+vanilla2)^0.5)-SUM($I92:N92),(Input!$I$212*(1+vanilla2)^0.5)/A2stdlife)) -> 0.1245319268 | P92: =IF(A2stdlife="n/a","n/a",IF(P$3>(A2stdlife+$F92),(Input!$I$212*(1+vanilla2)^0.5)-SUM($I92:O92),(Input!$I$212*(1+vanilla2)^0.5)/A2stdlife)) -> 0.1245319268 | Q92: =IF(A2stdlife="n/a","n/a",IF(Q$3>(A2stdlife+$F92),(Input!$I$212*(1+vanilla2)^0.5)-SUM($I92:P92),(Input!$I$212*(1+vanilla2)^0.5)/A2stdlife)) -> 0.1245319268
F93: 3 | K93: =IF(A2stdlife="n/a","n/a",IF(K$3>(A2stdlife+$F93),(Input!$J$212*(1+vanilla3)^0.5)-SUM($J93:J93),(Input!$J$212*(1+vanilla3)^0.5)/A2stdlife)) -> 0.2927981148 | L93: =IF(A2stdlife="n/a","n/a",IF(L$3>(A2stdlife+$F93),(Input!$J$212*(1+vanilla3)^0.5)-SUM($J93:K93),(Input!$J$212*(1+vanilla3)^0.5)/A2stdlife)) -> 0.2927981148 | M93: =IF(A2stdlife="n/a","n/a",IF(M$3>(A2stdlife+$F93),(Input!$J$212*(1+vanilla3)^0.5)-SUM($J93:L93),(Input!$J$212*(1+vanilla3)^0.5)/A2stdlife)) -> 0.2927981148 | N93: =IF(A2stdlife="n/a","n/a",IF(N$3>(A2stdlife+$F93),(Input!$J$212*(1+vanilla3)^0.5)-SUM($J93:M93),(Input!$J$212*(1+vanilla3)^0.5)/A2stdlife)) -> 0.2927981148 | O93: =IF(A2stdlife="n/a","n/a",IF(O$3>(A2stdlife+$F93),(Input!$J$212*(1+vanilla3)^0.5)-SUM($J93:N93),(Input!$J$212*(1+vanilla3)^0.5)/A2stdlife)) -> 0.2927981148 | P93: =IF(A2stdlife="n/a","n/a",IF(P$3>(A2stdlife+$F93),(Input!$J$212*(1+vanilla3)^0.5)-SUM($J93:O93),(Input!$J$212*(1+vanilla3)^0.5)/A2stdlife)) -> 0.2927981148 | Q93: =IF(A2stdlife="n/a","n/a",IF(Q$3>(A2stdlife+$F93),(Input!$J$212*(1+vanilla3)^0.5)-SUM($J93:P93),(Input!$J$212*(1+vanilla3)^0.5)/A2stdlife)) -> 0.2927981148
F94: 4 | L94: =IF(A2stdlife="n/a","n/a",IF(L$3>(A2stdlife+$F94),(Input!$K$212*(1+vanilla4)^0.5)-SUM($K94:K94),(Input!$K$212*(1+vanilla4)^0.5)/A2stdlife)) -> 0.0008752840265 | M94: =IF(A2stdlife="n/a","n/a",IF(M$3>(A2stdlife+$F94),(Input!$K$212*(1+vanilla4)^0.5)-SUM($K94:L94),(Input!$K$212*(1+vanilla4)^0.5)/A2stdlife)) -> 0.0008752840265 | N94: =IF(A2stdlife="n/a","n/a",IF(N$3>(A2stdlife+$F94),(Input!$K$212*(1+vanilla4)^0.5)-SUM($K94:M94),(Input!$K$212*(1+vanilla4)^0.5)/A2stdlife)) -> 0.0008752840265 | O94: =IF(A2stdlife="n/a","n/a",IF(O$3>(A2stdlife+$F94),(Input!$K$212*(1+vanilla4)^0.5)-SUM($K94:N94),(Input!$K$212*(1+vanilla4)^0.5)/A2stdlife)) -> 0.0008752840265 | P94: =IF(A2stdlife="n/a","n/a",IF(P$3>(A2stdlife+$F94),(Input!$K$212*(1+vanilla4)^0.5)-SUM($K94:O94),(Input!$K$212*(1+vanilla4)^0.5)/A2stdlife)) -> 0.0008752840265 | Q94: =IF(A2stdlife="n/a","n/a",IF(Q$3>(A2stdlife+$F94),(Input!$K$212*(1+vanilla4)^0.5)-SUM($K94:P94),(Input!$K$212*(1+vanilla4)^0.5)/A2stdlife)) -> 0.0008752840265
F95: 5 | M95: =IF(A2stdlife="n/a","n/a",IF(M$3>(A2stdlife+$F95),(Input!$L$212*(1+vanilla5)^0.5)-SUM($L95:L95),(Input!$L$212*(1+vanilla5)^0.5)/A2stdlife)) -> 0 | N95: =IF(A2stdlife="n/a","n/a",IF(N$3>(A2stdlife+$F95),(Input!$L$212*(1+vanilla5)^0.5)-SUM($L95:M95),(Input!$L$212*(1+vanilla5)^0.5)/A2stdlife)) -> 0 | O95: =IF(A2stdlife="n/a","n/a",IF(O$3>(A2stdlife+$F95),(Input!$L$212*(1+vanilla5)^0.5)-SUM($L95:N95),(Input!$L$212*(1+vanilla5)^0.5)/A2stdlife)) -> 0 | P95: =IF(A2stdlife="n/a","n/a",IF(P$3>(A2stdlife+$F95),(Input!$L$212*(1+vanilla5)^0.5)-SUM($L95:O95),(Input!$L$212*(1+vanilla5)^0.5)/A2stdlife)) -> 0 | Q95: =IF(A2stdlife="n/a","n/a",IF(Q$3>(A2stdlife+$F95),(Input!$L$212*(1+vanilla5)^0.5)-SUM($L95:P95),(Input!$L$212*(1+vanilla5)^0.5)/A2stdlife)) -> 0
F96: 6 | N96: =IF(A2stdlife="n/a","n/a",IF(N$3>(A2stdlife+$F96),(Input!$M$212*(1+vanilla6)^0.5)-SUM($M96:M96),(Input!$M$212*(1+vanilla6)^0.5)/A2stdlife)) -> 0 | O96: =IF(A2stdlife="n/a","n/a",IF(O$3>(A2stdlife+$F96),(Input!$M$212*(1+vanilla6)^0.5)-SUM($M96:N96),(Input!$M$212*(1+vanilla6)^0.5)/A2stdlife)) -> 0 | P96: =IF(A2stdlife="n/a","n/a",IF(P$3>(A2stdlife+$F96),(Input!$M$212*(1+vanilla6)^0.5)-SUM($M96:O96),(Input!$M$212*(1+vanilla6)^0.5)/A2stdlife)) -> 0 | Q96: =IF(A2stdlife="n/a","n/a",IF(Q$3>(A2stdlife+$F96),(Input!$M$212*(1+vanilla6)^0.5)-SUM($M96:P96),(Input!$M$212*(1+vanilla6)^0.5)/A2stdlife)) -> 0
F97: 7 | O97: =IF(A2stdlife="n/a","n/a",IF(O$3>(A2stdlife+$F97),(Input!$N$212*(1+vanilla7)^0.5)-SUM($N97:N97),(Input!$N$212*(1+vanilla7)^0.5)/A2stdlife)) -> 0 | P97: =IF(A2stdlife="n/a","n/a",IF(P$3>(A2stdlife+$F97),(Input!$N$212*(1+vanilla7)^0.5)-SUM($N97:O97),(Input!$N$212*(1+vanilla7)^0.5)/A2stdlife)) -> 0 | Q97: =IF(A2stdlife="n/a","n/a",IF(Q$3>(A2stdlife+$F97),(Input!$N$212*(1+vanilla7)^0.5)-SUM($N97:P97),(Input!$N$212*(1+vanilla7)^0.5)/A2stdlife)) -> 0
F98: 8 | P98: =IF(A2stdlife="n/a","n/a",IF(P$3>(A2stdlife+$F98),(Input!$O$212*(1+vanilla8)^0.5)-SUM($O98:O98),(Input!$O$212*(1+vanilla8)^0.5)/A2stdlife)) -> 0 | Q98: =IF(A2stdlife="n/a","n/a",IF(Q$3>(A2stdlife+$F98),(Input!$O$212*(1+vanilla8)^0.5)-SUM($O98:P98),(Input!$O$212*(1+vanilla8)^0.5)/A2stdlife)) -> 0
F99: 9 | Q99: =IF(A2stdlife="n/a","n/a",IF(Q$3>(A2stdlife+$F99),(Input!$P$212*(1+vanilla9)^0.5)-SUM($P99:P99),(Input!$P$212*(1+vanilla9)^0.5)/A2stdlife)) -> 0
F100: 10
D101: =Asset2 -> Transmission Lines - Underground | H101: =-SUM(H89:H100) -> -1.268439878 | I101: =-SUM(I89:I100) -> -1.268439878 | J101: =-SUM(J89:J100) -> -1.392971805 | K101: =-SUM(K89:K100) -> -1.685769919 | L101: =-SUM(L89:L100) -> -1.686645203 | M101: =IF(COUNT($H101:L101)>=Input!$W$7,0, -SUM(M89:M100)) -> 0 | N101: =IF(COUNT($H101:M101)>=Input!$W$7,0, -SUM(N89:N100)) -> 0 | O101: =IF(COUNT($H101:N101)>=Input!$W$7,0, -SUM(O89:O100)) -> 0 | P101: =IF(COUNT($H101:O101)>=Input!$W$7,0, -SUM(P89:P100)) -> 0 | Q101: =IF(COUNT($H101:P101)>=Input!$W$7,0, -SUM(Q89:Q100)) -> 0
C102: =Asset3 -> Transmission Lines - Refit | E102: Opening RAB | H102: =IF(H$3>A3remlife,A3value-$G$632-SUM($G102:G102),IF(A3remlife="N/A","n/a",(A3value-$G$632)/A3remlife)) -> 0 | I102: =IF(I$3>A3remlife,A3value-$G$632-SUM($G102:H102),IF(A3remlife="N/A","n/a",(A3value-$G$632)/A3remlife)) -> 0 | J102: =IF(J$3>A3remlife,A3value-$G$632-SUM($G102:I102),IF(A3remlife="N/A","n/a",(A3value-$G$632)/A3remlife)) -> 0 | K102: =IF(K$3>A3remlife,A3value-$G$632-SUM($G102:J102),IF(A3remlife="N/A","n/a",(A3value-$G$632)/A3remlife)) -> 0 | L102: =IF(L$3>A3remlife,A3value-$G$632-SUM($G102:K102),IF(A3remlife="N/A","n/a",(A3value-$G$632)/A3remlife)) -> 0 | M102: =IF(M$3>A3remlife,A3value-$G$632-SUM($G102:L102),IF(A3remlife="N/A","n/a",(A3value-$G$632)/A3remlife)) -> 0 | N102: =IF(N$3>A3remlife,A3value-$G$632-SUM($G102:M102),IF(A3remlife="N/A","n/a",(A3value-$G$632)/A3remlife)) -> 0 | O102: =IF(O$3>A3remlife,A3value-$G$632-SUM($G102:N102),IF(A3remlife="N/A","n/a",(A3value-$G$632)/A3remlife)) -> 0 | P102: =IF(P$3>A3remlife,A3value-$G$632-SUM($G102:O102),IF(A3remlife="N/A","n/a",(A3value-$G$632)/A3remlife)) -> 0 | Q102: =IF(Q$3>A3remlife,A3value-$G$632-SUM($G102:P102),IF(A3remlife="N/A","n/a",(A3value-$G$632)/A3remlife)) -> 0
E103: Capex in year
F104: 1 | I104: =IF(A3stdlife="n/a","n/a",IF(I$3>(A3stdlife+$F104),(Input!$H$213*(1+vanilla1)^0.5)-SUM($H104:H104),(Input!$H$213*(1+vanilla1)^0.5)/A3stdlife)) -> 0 | J104: =IF(A3stdlife="n/a","n/a",IF(J$3>(A3stdlife+$F104),(Input!$H$213*(1+vanilla1)^0.5)-SUM($H104:I104),(Input!$H$213*(1+vanilla1)^0.5)/A3stdlife)) -> 0 | K104: =IF(A3stdlife="n/a","n/a",IF(K$3>(A3stdlife+$F104),(Input!$H$213*(1+vanilla1)^0.5)-SUM($H104:J104),(Input!$H$213*(1+vanilla1)^0.5)/A3stdlife)) -> 0 | L104: =IF(A3stdlife="n/a","n/a",IF(L$3>(A3stdlife+$F104),(Input!$H$213*(1+vanilla1)^0.5)-SUM($H104:K104),(Input!$H$213*(1+vanilla1)^0.5)/A3stdlife)) -> 0 | M104: =IF(A3stdlife="n/a","n/a",IF(M$3>(A3stdlife+$F104),(Input!$H$213*(1+vanilla1)^0.5)-SUM($H104:L104),(Input!$H$213*(1+vanilla1)^0.5)/A3stdlife)) -> 0 | N104: =IF(A3stdlife="n/a","n/a",IF(N$3>(A3stdlife+$F104),(Input!$H$213*(1+vanilla1)^0.5)-SUM($H104:M104),(Input!$H$213*(1+vanilla1)^0.5)/A3stdlife)) -> 0 | O104: =IF(A3stdlife="n/a","n/a",IF(O$3>(A3stdlife+$F104),(Input!$H$213*(1+vanilla1)^0.5)-SUM($H104:N104),(Input!$H$213*(1+vanilla1)^0.5)/A3stdlife)) -> 0 | P104: =IF(A3stdlife="n/a","n/a",IF(P$3>(A3stdlife+$F104),(Input!$H$213*(1+vanilla1)^0.5)-SUM($H104:O104),(Input!$H$213*(1+vanilla1)^0.5)/A3stdlife)) -> 0 | Q104: =IF(A3stdlife="n/a","n/a",IF(Q$3>(A3stdlife+$F104),(Input!$H$213*(1+vanilla1)^0.5)-SUM($H104:P104),(Input!$H$213*(1+vanilla1)^0.5)/A3stdlife)) -> 0
F105: 2 | J105: =IF(A3stdlife="n/a","n/a",IF(J$3>(A3stdlife+$F105),(Input!$I$213*(1+vanilla2)^0.5)-SUM($I105:I105),(Input!$I$213*(1+vanilla2)^0.5)/A3stdlife)) -> 0 | K105: =IF(A3stdlife="n/a","n/a",IF(K$3>(A3stdlife+$F105),(Input!$I$213*(1+vanilla2)^0.5)-SUM($I105:J105),(Input!$I$213*(1+vanilla2)^0.5)/A3stdlife)) -> 0 | L105: =IF(A3stdlife="n/a","n/a",IF(L$3>(A3stdlife+$F105),(Input!$I$213*(1+vanilla2)^0.5)-SUM($I105:K105),(Input!$I$213*(1+vanilla2)^0.5)/A3stdlife)) -> 0 | M105: =IF(A3stdlife="n/a","n/a",IF(M$3>(A3stdlife+$F105),(Input!$I$213*(1+vanilla2)^0.5)-SUM($I105:L105),(Input!$I$213*(1+vanilla2)^0.5)/A3stdlife)) -> 0 | N105: =IF(A3stdlife="n/a","n/a",IF(N$3>(A3stdlife+$F105),(Input!$I$213*(1+vanilla2)^0.5)-SUM($I105:M105),(Input!$I$213*(1+vanilla2)^0.5)/A3stdlife)) -> 0 | O105: =IF(A3stdlife="n/a","n/a",IF(O$3>(A3stdlife+$F105),(Input!$I$213*(1+vanilla2)^0.5)-SUM($I105:N105),(Input!$I$213*(1+vanilla2)^0.5)/A3stdlife)) -> 0 | P105: =IF(A3stdlife="n/a","n/a",IF(P$3>(A3stdlife+$F105),(Input!$I$213*(1+vanilla2)^0.5)-SUM($I105:O105),(Input!$I$213*(1+vanilla2)^0.5)/A3stdlife)) -> 0 | Q105: =IF(A3stdlife="n/a","n/a",IF(Q$3>(A3stdlife+$F105),(Input!$I$213*(1+vanilla2)^0.5)-SUM($I105:P105),(Input!$I$213*(1+vanilla2)^0.5)/A3stdlife)) -> 0
F106: 3 | K106: =IF(A3stdlife="n/a","n/a",IF(K$3>(A3stdlife+$F106),(Input!$J$213*(1+vanilla3)^0.5)-SUM($J106:J106),(Input!$J$213*(1+vanilla3)^0.5)/A3stdlife)) -> 0 | L106: =IF(A3stdlife="n/a","n/a",IF(L$3>(A3stdlife+$F106),(Input!$J$213*(1+vanilla3)^0.5)-SUM($J106:K106),(Input!$J$213*(1+vanilla3)^0.5)/A3stdlife)) -> 0 | M106: =IF(A3stdlife="n/a","n/a",IF(M$3>(A3stdlife+$F106),(Input!$J$213*(1+vanilla3)^0.5)-SUM($J106:L106),(Input!$J$213*(1+vanilla3)^0.5)/A3stdlife)) -> 0 | N106: =IF(A3stdlife="n/a","n/a",IF(N$3>(A3stdlife+$F106),(Input!$J$213*(1+vanilla3)^0.5)-SUM($J106:M106),(Input!$J$213*(1+vanilla3)^0.5)/A3stdlife)) -> 0 | O106: =IF(A3stdlife="n/a","n/a",IF(O$3>(A3stdlife+$F106),(Input!$J$213*(1+vanilla3)^0.5)-SUM($J106:N106),(Input!$J$213*(1+vanilla3)^0.5)/A3stdlife)) -> 0 | P106: =IF(A3stdlife="n/a","n/a",IF(P$3>(A3stdlife+$F106),(Input!$J$213*(1+vanilla3)^0.5)-SUM($J106:O106),(Input!$J$213*(1+vanilla3)^0.5)/A3stdlife)) -> 0 | Q106: =IF(A3stdlife="n/a","n/a",IF(Q$3>(A3stdlife+$F106),(Input!$J$213*(1+vanilla3)^0.5)-SUM($J106:P106),(Input!$J$213*(1+vanilla3)^0.5)/A3stdlife)) -> 0
F107: 4 | L107: =IF(A3stdlife="n/a","n/a",IF(L$3>(A3stdlife+$F107),(Input!$K$213*(1+vanilla4)^0.5)-SUM($K107:K107),(Input!$K$213*(1+vanilla4)^0.5)/A3stdlife)) -> 0 | M107: =IF(A3stdlife="n/a","n/a",IF(M$3>(A3stdlife+$F107),(Input!$K$213*(1+vanilla4)^0.5)-SUM($K107:L107),(Input!$K$213*(1+vanilla4)^0.5)/A3stdlife)) -> 0 | N107: =IF(A3stdlife="n/a","n/a",IF(N$3>(A3stdlife+$F107),(Input!$K$213*(1+vanilla4)^0.5)-SUM($K107:M107),(Input!$K$213*(1+vanilla4)^0.5)/A3stdlife)) -> 0 | O107: =IF(A3stdlife="n/a","n/a",IF(O$3>(A3stdlife+$F107),(Input!$K$213*(1+vanilla4)^0.5)-SUM($K107:N107),(Input!$K$213*(1+vanilla4)^0.5)/A3stdlife)) -> 0 | P107: =IF(A3stdlife="n/a","n/a",IF(P$3>(A3stdlife+$F107),(Input!$K$213*(1+vanilla4)^0.5)-SUM($K107:O107),(Input!$K$213*(1+vanilla4)^0.5)/A3stdlife)) -> 0 | Q107: =IF(A3stdlife="n/a","n/a",IF(Q$3>(A3stdlife+$F107),(Input!$K$213*(1+vanilla4)^0.5)-SUM($K107:P107),(Input!$K$213*(1+vanilla4)^0.5)/A3stdlife)) -> 0
F108: 5 | M108: =IF(A3stdlife="n/a","n/a",IF(M$3>(A3stdlife+$F108),(Input!$L$213*(1+vanilla5)^0.5)-SUM($L108:L108),(Input!$L$213*(1+vanilla5)^0.5)/A3stdlife)) -> 0 | N108: =IF(A3stdlife="n/a","n/a",IF(N$3>(A3stdlife+$F108),(Input!$L$213*(1+vanilla5)^0.5)-SUM($L108:M108),(Input!$L$213*(1+vanilla5)^0.5)/A3stdlife)) -> 0 | O108: =IF(A3stdlife="n/a","n/a",IF(O$3>(A3stdlife+$F108),(Input!$L$213*(1+vanilla5)^0.5)-SUM($L108:N108),(Input!$L$213*(1+vanilla5)^0.5)/A3stdlife)) -> 0 | P108: =IF(A3stdlife="n/a","n/a",IF(P$3>(A3stdlife+$F108),(Input!$L$213*(1+vanilla5)^0.5)-SUM($L108:O108),(Input!$L$213*(1+vanilla5)^0.5)/A3stdlife)) -> 0 | Q108: =IF(A3stdlife="n/a","n/a",IF(Q$3>(A3stdlife+$F108),(Input!$L$213*(1+vanilla5)^0.5)-SUM($L108:P108),(Input!$L$213*(1+vanilla5)^0.5)/A3stdlife)) -> 0
F109: 6 | N109: =IF(A3stdlife="n/a","n/a",IF(N$3>(A3stdlife+$F109),(Input!$M$213*(1+vanilla6)^0.5)-SUM($M109:M109),(Input!$M$213*(1+vanilla6)^0.5)/A3stdlife)) -> 0 | O109: =IF(A3stdlife="n/a","n/a",IF(O$3>(A3stdlife+$F109),(Input!$M$213*(1+vanilla6)^0.5)-SUM($M109:N109),(Input!$M$213*(1+vanilla6)^0.5)/A3stdlife)) -> 0 | P109: =IF(A3stdlife="n/a","n/a",IF(P$3>(A3stdlife+$F109),(Input!$M$213*(1+vanilla6)^0.5)-SUM($M109:O109),(Input!$M$213*(1+vanilla6)^0.5)/A3stdlife)) -> 0 | Q109: =IF(A3stdlife="n/a","n/a",IF(Q$3>(A3stdlife+$F109),(Input!$M$213*(1+vanilla6)^0.5)-SUM($M109:P109),(Input!$M$213*(1+vanilla6)^0.5)/A3stdlife)) -> 0
F110: 7 | O110: =IF(A3stdlife="n/a","n/a",IF(O$3>(A3stdlife+$F110),(Input!$N$213*(1+vanilla7)^0.5)-SUM($N110:N110),(Input!$N$213*(1+vanilla7)^0.5)/A3stdlife)) -> 0 | P110: =IF(A3stdlife="n/a","n/a",IF(P$3>(A3stdlife+$F110),(Input!$N$213*(1+vanilla7)^0.5)-SUM($N110:O110),(Input!$N$213*(1+vanilla7)^0.5)/A3stdlife)) -> 0 | Q110: =IF(A3stdlife="n/a","n/a",IF(Q$3>(A3stdlife+$F110),(Input!$N$213*(1+vanilla7)^0.5)-SUM($N110:P110),(Input!$N$213*(1+vanilla7)^0.5)/A3stdlife)) -> 0
F111: 8 | P111: =IF(A3stdlife="n/a","n/a",IF(P$3>(A3stdlife+$F111),(Input!$O$213*(1+vanilla8)^0.5)-SUM($O111:O111),(Input!$O$213*(1+vanilla8)^0.5)/A3stdlife)) -> 0 | Q111: =IF(A3stdlife="n/a","n/a",IF(Q$3>(A3stdlife+$F111),(Input!$O$213*(1+vanilla8)^0.5)-SUM($O111:P111),(Input!$O$213*(1+vanilla8)^0.5)/A3stdlife)) -> 0
F112: 9 | Q112: =IF(A3stdlife="n/a","n/a",IF(Q$3>(A3stdlife+$F112),(Input!$P$213*(1+vanilla9)^0.5)-SUM($P112:P112),(Input!$P$213*(1+vanilla9)^0.5)/A3stdlife)) -> 0
F113: 10
D114: =Asset3 -> Transmission Lines - Refit | H114: =-SUM(H102:H113) -> 0 | I114: =-SUM(I102:I113) -> 0 | J114: =-SUM(J102:J113) -> 0 | K114: =-SUM(K102:K113) -> 0 | L114: =-SUM(L102:L113) -> 0 | M114: =IF(COUNT($H114:L114)>=Input!$W$7,0, -SUM(M102:M113)) -> 0 | N114: =IF(COUNT($H114:M114)>=Input!$W$7,0, -SUM(N102:N113)) -> 0 | O114: =IF(COUNT($H114:N114)>=Input!$W$7,0, -SUM(O102:O113)) -> 0 | P114: =IF(COUNT($H114:O114)>=Input!$W$7,0, -SUM(P102:P113)) -> 0 | Q114: =IF(COUNT($H114:P114)>=Input!$W$7,0, -SUM(Q102:Q113)) -> 0
C115: =Asset4 -> Substations Primary Plant | E115: Opening RAB | H115: =IF(H$3>A4remlife,A4value-$G$633-SUM($G115:G115),IF(A4remlife="N/A","n/a",(A4value-$G$633)/A4remlife)) -> 34.34918395 | I115: =IF(I$3>A4remlife,A4value-$G$633-SUM($G115:H115),IF(A4remlife="N/A","n/a",(A4value-$G$633)/A4remlife)) -> 34.34918395 | J115: =IF(J$3>A4remlife,A4value-$G$633-SUM($G115:I115),IF(A4remlife="N/A","n/a",(A4value-$G$633)/A4remlife)) -> 34.34918395 | K115: =IF(K$3>A4remlife,A4value-$G$633-SUM($G115:J115),IF(A4remlife="N/A","n/a",(A4value-$G$633)/A4remlife)) -> 34.34918395 | L115: =IF(L$3>A4remlife,A4value-$G$633-SUM($G115:K115),IF(A4remlife="N/A","n/a",(A4value-$G$633)/A4remlife)) -> 34.34918395 | M115: =IF(M$3>A4remlife,A4value-$G$633-SUM($G115:L115),IF(A4remlife="N/A","n/a",(A4value-$G$633)/A4remlife)) -> 34.34918395 | N115: =IF(N$3>A4remlife,A4value-$G$633-SUM($G115:M115),IF(A4remlife="N/A","n/a",(A4value-$G$633)/A4remlife)) -> 34.34918395 | O115: =IF(O$3>A4remlife,A4value-$G$633-SUM($G115:N115),IF(A4remlife="N/A","n/a",(A4value-$G$633)/A4remlife)) -> 34.34918395 | P115: =IF(P$3>A4remlife,A4value-$G$633-SUM($G115:O115),IF(A4remlife="N/A","n/a",(A4value-$G$633)/A4remlife)) -> 34.34918395 | Q115: =IF(Q$3>A4remlife,A4value-$G$633-SUM($G115:P115),IF(A4remlife="N/A","n/a",(A4value-$G$633)/A4remlife)) -> 34.34918395
E116: Capex in year
F117: 1 | I117: =IF(A4stdlife="n/a","n/a",IF(I$3>(A4stdlife+$F117),(Input!$H$214*(1+vanilla1)^0.5)-SUM($H117:H117),(Input!$H$214*(1+vanilla1)^0.5)/A4stdlife)) -> 3.465470131 | J117: =IF(A4stdlife="n/a","n/a",IF(J$3>(A4stdlife+$F117),(Input!$H$214*(1+vanilla1)^0.5)-SUM($H117:I117),(Input!$H$214*(1+vanilla1)^0.5)/A4stdlife)) -> 3.465470131 | K117: =IF(A4stdlife="n/a","n/a",IF(K$3>(A4stdlife+$F117),(Input!$H$214*(1+vanilla1)^0.5)-SUM($H117:J117),(Input!$H$214*(1+vanilla1)^0.5)/A4stdlife)) -> 3.465470131 | L117: =IF(A4stdlife="n/a","n/a",IF(L$3>(A4stdlife+$F117),(Input!$H$214*(1+vanilla1)^0.5)-SUM($H117:K117),(Input!$H$214*(1+vanilla1)^0.5)/A4stdlife)) -> 3.465470131 | M117: =IF(A4stdlife="n/a","n/a",IF(M$3>(A4stdlife+$F117),(Input!$H$214*(1+vanilla1)^0.5)-SUM($H117:L117),(Input!$H$214*(1+vanilla1)^0.5)/A4stdlife)) -> 3.465470131 | N117: =IF(A4stdlife="n/a","n/a",IF(N$3>(A4stdlife+$F117),(Input!$H$214*(1+vanilla1)^0.5)-SUM($H117:M117),(Input!$H$214*(1+vanilla1)^0.5)/A4stdlife)) -> 3.465470131 | O117: =IF(A4stdlife="n/a","n/a",IF(O$3>(A4stdlife+$F117),(Input!$H$214*(1+vanilla1)^0.5)-SUM($H117:N117),(Input!$H$214*(1+vanilla1)^0.5)/A4stdlife)) -> 3.465470131 | P117: =IF(A4stdlife="n/a","n/a",IF(P$3>(A4stdlife+$F117),(Input!$H$214*(1+vanilla1)^0.5)-SUM($H117:O117),(Input!$H$214*(1+vanilla1)^0.5)/A4stdlife)) -> 3.465470131 | Q117: =IF(A4stdlife="n/a","n/a",IF(Q$3>(A4stdlife+$F117),(Input!$H$214*(1+vanilla1)^0.5)-SUM($H117:P117),(Input!$H$214*(1+vanilla1)^0.5)/A4stdlife)) -> 3.465470131
F118: 2 | J118: =IF(A4stdlife="n/a","n/a",IF(J$3>(A4stdlife+$F118),(Input!$I$214*(1+vanilla2)^0.5)-SUM($I118:I118),(Input!$I$214*(1+vanilla2)^0.5)/A4stdlife)) -> 5.44485467 | K118: =IF(A4stdlife="n/a","n/a",IF(K$3>(A4stdlife+$F118),(Input!$I$214*(1+vanilla2)^0.5)-SUM($I118:J118),(Input!$I$214*(1+vanilla2)^0.5)/A4stdlife)) -> 5.44485467 | L118: =IF(A4stdlife="n/a","n/a",IF(L$3>(A4stdlife+$F118),(Input!$I$214*(1+vanilla2)^0.5)-SUM($I118:K118),(Input!$I$214*(1+vanilla2)^0.5)/A4stdlife)) -> 5.44485467 | M118: =IF(A4stdlife="n/a","n/a",IF(M$3>(A4stdlife+$F118),(Input!$I$214*(1+vanilla2)^0.5)-SUM($I118:L118),(Input!$I$214*(1+vanilla2)^0.5)/A4stdlife)) -> 5.44485467 | N118: =IF(A4stdlife="n/a","n/a",IF(N$3>(A4stdlife+$F118),(Input!$I$214*(1+vanilla2)^0.5)-SUM($I118:M118),(Input!$I$214*(1+vanilla2)^0.5)/A4stdlife)) -> 5.44485467 | O118: =IF(A4stdlife="n/a","n/a",IF(O$3>(A4stdlife+$F118),(Input!$I$214*(1+vanilla2)^0.5)-SUM($I118:N118),(Input!$I$214*(1+vanilla2)^0.5)/A4stdlife)) -> 5.44485467 | P118: =IF(A4stdlife="n/a","n/a",IF(P$3>(A4stdlife+$F118),(Input!$I$214*(1+vanilla2)^0.5)-SUM($I118:O118),(Input!$I$214*(1+vanilla2)^0.5)/A4stdlife)) -> 5.44485467 | Q118: =IF(A4stdlife="n/a","n/a",IF(Q$3>(A4stdlife+$F118),(Input!$I$214*(1+vanilla2)^0.5)-SUM($I118:P118),(Input!$I$214*(1+vanilla2)^0.5)/A4stdlife)) -> 5.44485467
F119: 3 | K119: =IF(A4stdlife="n/a","n/a",IF(K$3>(A4stdlife+$F119),(Input!$J$214*(1+vanilla3)^0.5)-SUM($J119:J119),(Input!$J$214*(1+vanilla3)^0.5)/A4stdlife)) -> 4.609000048 | L119: =IF(A4stdlife="n/a","n/a",IF(L$3>(A4stdlife+$F119),(Input!$J$214*(1+vanilla3)^0.5)-SUM($J119:K119),(Input!$J$214*(1+vanilla3)^0.5)/A4stdlife)) -> 4.609000048 | M119: =IF(A4stdlife="n/a","n/a",IF(M$3>(A4stdlife+$F119),(Input!$J$214*(1+vanilla3)^0.5)-SUM($J119:L119),(Input!$J$214*(1+vanilla3)^0.5)/A4stdlife)) -> 4.609000048 | N119: =IF(A4stdlife="n/a","n/a",IF(N$3>(A4stdlife+$F119),(Input!$J$214*(1+vanilla3)^0.5)-SUM($J119:M119),(Input!$J$214*(1+vanilla3)^0.5)/A4stdlife)) -> 4.609000048 | O119: =IF(A4stdlife="n/a","n/a",IF(O$3>(A4stdlife+$F119),(Input!$J$214*(1+vanilla3)^0.5)-SUM($J119:N119),(Input!$J$214*(1+vanilla3)^0.5)/A4stdlife)) -> 4.609000048 | P119: =IF(A4stdlife="n/a","n/a",IF(P$3>(A4stdlife+$F119),(Input!$J$214*(1+vanilla3)^0.5)-SUM($J119:O119),(Input!$J$214*(1+vanilla3)^0.5)/A4stdlife)) -> 4.609000048 | Q119: =IF(A4stdlife="n/a","n/a",IF(Q$3>(A4stdlife+$F119),(Input!$J$214*(1+vanilla3)^0.5)-SUM($J119:P119),(Input!$J$214*(1+vanilla3)^0.5)/A4stdlife)) -> 4.609000048
F120: 4 | L120: =IF(A4stdlife="n/a","n/a",IF(L$3>(A4stdlife+$F120),(Input!$K$214*(1+vanilla4)^0.5)-SUM($K120:K120),(Input!$K$214*(1+vanilla4)^0.5)/A4stdlife)) -> 1.981996548 | M120: =IF(A4stdlife="n/a","n/a",IF(M$3>(A4stdlife+$F120),(Input!$K$214*(1+vanilla4)^0.5)-SUM($K120:L120),(Input!$K$214*(1+vanilla4)^0.5)/A4stdlife)) -> 1.981996548 | N120: =IF(A4stdlife="n/a","n/a",IF(N$3>(A4stdlife+$F120),(Input!$K$214*(1+vanilla4)^0.5)-SUM($K120:M120),(Input!$K$214*(1+vanilla4)^0.5)/A4stdlife)) -> 1.981996548 | O120: =IF(A4stdlife="n/a","n/a",IF(O$3>(A4stdlife+$F120),(Input!$K$214*(1+vanilla4)^0.5)-SUM($K120:N120),(Input!$K$214*(1+vanilla4)^0.5)/A4stdlife)) -> 1.981996548 | P120: =IF(A4stdlife="n/a","n/a",IF(P$3>(A4stdlife+$F120),(Input!$K$214*(1+vanilla4)^0.5)-SUM($K120:O120),(Input!$K$214*(1+vanilla4)^0.5)/A4stdlife)) -> 1.981996548 | Q120: =IF(A4stdlife="n/a","n/a",IF(Q$3>(A4stdlife+$F120),(Input!$K$214*(1+vanilla4)^0.5)-SUM($K120:P120),(Input!$K$214*(1+vanilla4)^0.5)/A4stdlife)) -> 1.981996548
F121: 5 | M121: =IF(A4stdlife="n/a","n/a",IF(M$3>(A4stdlife+$F121),(Input!$L$214*(1+vanilla5)^0.5)-SUM($L121:L121),(Input!$L$214*(1+vanilla5)^0.5)/A4stdlife)) -> 2.916732968 | N121: =IF(A4stdlife="n/a","n/a",IF(N$3>(A4stdlife+$F121),(Input!$L$214*(1+vanilla5)^0.5)-SUM($L121:M121),(Input!$L$214*(1+vanilla5)^0.5)/A4stdlife)) -> 2.916732968 | O121: =IF(A4stdlife="n/a","n/a",IF(O$3>(A4stdlife+$F121),(Input!$L$214*(1+vanilla5)^0.5)-SUM($L121:N121),(Input!$L$214*(1+vanilla5)^0.5)/A4stdlife)) -> 2.916732968 | P121: =IF(A4stdlife="n/a","n/a",IF(P$3>(A4stdlife+$F121),(Input!$L$214*(1+vanilla5)^0.5)-SUM($L121:O121),(Input!$L$214*(1+vanilla5)^0.5)/A4stdlife)) -> 2.916732968 | Q121: =IF(A4stdlife="n/a","n/a",IF(Q$3>(A4stdlife+$F121),(Input!$L$214*(1+vanilla5)^0.5)-SUM($L121:P121),(Input!$L$214*(1+vanilla5)^0.5)/A4stdlife)) -> 2.916732968
F122: 6 | N122: =IF(A4stdlife="n/a","n/a",IF(N$3>(A4stdlife+$F122),(Input!$M$214*(1+vanilla6)^0.5)-SUM($M122:M122),(Input!$M$214*(1+vanilla6)^0.5)/A4stdlife)) -> 0 | O122: =IF(A4stdlife="n/a","n/a",IF(O$3>(A4stdlife+$F122),(Input!$M$214*(1+vanilla6)^0.5)-SUM($M122:N122),(Input!$M$214*(1+vanilla6)^0.5)/A4stdlife)) -> 0 | P122: =IF(A4stdlife="n/a","n/a",IF(P$3>(A4stdlife+$F122),(Input!$M$214*(1+vanilla6)^0.5)-SUM($M122:O122),(Input!$M$214*(1+vanilla6)^0.5)/A4stdlife)) -> 0 | Q122: =IF(A4stdlife="n/a","n/a",IF(Q$3>(A4stdlife+$F122),(Input!$M$214*(1+vanilla6)^0.5)-SUM($M122:P122),(Input!$M$214*(1+vanilla6)^0.5)/A4stdlife)) -> 0
F123: 7 | O123: =IF(A4stdlife="n/a","n/a",IF(O$3>(A4stdlife+$F123),(Input!$N$214*(1+vanilla7)^0.5)-SUM($N123:N123),(Input!$N$214*(1+vanilla7)^0.5)/A4stdlife)) -> 0 | P123: =IF(A4stdlife="n/a","n/a",IF(P$3>(A4stdlife+$F123),(Input!$N$214*(1+vanilla7)^0.5)-SUM($N123:O123),(Input!$N$214*(1+vanilla7)^0.5)/A4stdlife)) -> 0 | Q123: =IF(A4stdlife="n/a","n/a",IF(Q$3>(A4stdlife+$F123),(Input!$N$214*(1+vanilla7)^0.5)-SUM($N123:P123),(Input!$N$214*(1+vanilla7)^0.5)/A4stdlife)) -> 0
F124: 8 | P124: =IF(A4stdlife="n/a","n/a",IF(P$3>(A4stdlife+$F124),(Input!$O$214*(1+vanilla8)^0.5)-SUM($O124:O124),(Input!$O$214*(1+vanilla8)^0.5)/A4stdlife)) -> 0 | Q124: =IF(A4stdlife="n/a","n/a",IF(Q$3>(A4stdlife+$F124),(Input!$O$214*(1+vanilla8)^0.5)-SUM($O124:P124),(Input!$O$214*(1+vanilla8)^0.5)/A4stdlife)) -> 0
F125: 9 | Q125: =IF(A4stdlife="n/a","n/a",IF(Q$3>(A4stdlife+$F125),(Input!$P$214*(1+vanilla9)^0.5)-SUM($P125:P125),(Input!$P$214*(1+vanilla9)^0.5)/A4stdlife)) -> 0
F126: 10
D127: =Asset4 -> Substations Primary Plant | H127: =-SUM(H115:H126) -> -34.34918395 | I127: =-SUM(I115:I126) -> -37.81465408 | J127: =-SUM(J115:J126) -> -43.25950875 | K127: =-SUM(K115:K126) -> -47.8685088 | L127: =-SUM(L115:L126) -> -49.85050534 | M127: =IF(COUNT($H127:L127)>=Input!$W$7,0, -SUM(M115:M126)) -> 0 | N127: =IF(COUNT($H127:M127)>=Input!$W$7,0, -SUM(N115:N126)) -> 0 | O127: =IF(COUNT($H127:N127)>=Input!$W$7,0, -SUM(O115:O126)) -> 0 | P127: =IF(COUNT($H127:O127)>=Input!$W$7,0, -SUM(P115:P126)) -> 0 | Q127: =IF(COUNT($H127:P127)>=Input!$W$7,0, -SUM(Q115:Q126)) -> 0
C128: =Asset5 -> Substations Secondary Systems | E128: Opening RAB | H128: =IF(H$3>A5remlife,A5value-$G$634-SUM($G128:G128),IF(A5remlife="N/A","n/a",(A5value-$G$634)/A5remlife)) -> 26.66841887 | I128: =IF(I$3>A5remlife,A5value-$G$634-SUM($G128:H128),IF(A5remlife="N/A","n/a",(A5value-$G$634)/A5remlife)) -> 26.66841887 | J128: =IF(J$3>A5remlife,A5value-$G$634-SUM($G128:I128),IF(A5remlife="N/A","n/a",(A5value-$G$634)/A5remlife)) -> 26.66841887 | K128: =IF(K$3>A5remlife,A5value-$G$634-SUM($G128:J128),IF(A5remlife="N/A","n/a",(A5value-$G$634)/A5remlife)) -> 26.66841887 | L128: =IF(L$3>A5remlife,A5value-$G$634-SUM($G128:K128),IF(A5remlife="N/A","n/a",(A5value-$G$634)/A5remlife)) -> 26.66841887 | M128: =IF(M$3>A5remlife,A5value-$G$634-SUM($G128:L128),IF(A5remlife="N/A","n/a",(A5value-$G$634)/A5remlife)) -> 26.66841887 | N128: =IF(N$3>A5remlife,A5value-$G$634-SUM($G128:M128),IF(A5remlife="N/A","n/a",(A5value-$G$634)/A5remlife)) -> 26.66841887 | O128: =IF(O$3>A5remlife,A5value-$G$634-SUM($G128:N128),IF(A5remlife="N/A","n/a",(A5value-$G$634)/A5remlife)) -> 26.66841887 | P128: =IF(P$3>A5remlife,A5value-$G$634-SUM($G128:O128),IF(A5remlife="N/A","n/a",(A5value-$G$634)/A5remlife)) -> 26.66841887 | Q128: =IF(Q$3>A5remlife,A5value-$G$634-SUM($G128:P128),IF(A5remlife="N/A","n/a",(A5value-$G$634)/A5remlife)) -> 8.613899295
E129: Capex in year
F130: 1 | I130: =IF(A5stdlife="n/a","n/a",IF(I$3>(A5stdlife+$F130),(Input!$H$215*(1+vanilla1)^0.5)-SUM($H130:H130),(Input!$H$215*(1+vanilla1)^0.5)/A5stdlife)) -> 3.10850605 | J130: =IF(A5stdlife="n/a","n/a",IF(J$3>(A5stdlife+$F130),(Input!$H$215*(1+vanilla1)^0.5)-SUM($H130:I130),(Input!$H$215*(1+vanilla1)^0.5)/A5stdlife)) -> 3.10850605 | K130: =IF(A5stdlife="n/a","n/a",IF(K$3>(A5stdlife+$F130),(Input!$H$215*(1+vanilla1)^0.5)-SUM($H130:J130),(Input!$H$215*(1+vanilla1)^0.5)/A5stdlife)) -> 3.10850605 | L130: =IF(A5stdlife="n/a","n/a",IF(L$3>(A5stdlife+$F130),(Input!$H$215*(1+vanilla1)^0.5)-SUM($H130:K130),(Input!$H$215*(1+vanilla1)^0.5)/A5stdlife)) -> 3.10850605 | M130: =IF(A5stdlife="n/a","n/a",IF(M$3>(A5stdlife+$F130),(Input!$H$215*(1+vanilla1)^0.5)-SUM($H130:L130),(Input!$H$215*(1+vanilla1)^0.5)/A5stdlife)) -> 3.10850605 | N130: =IF(A5stdlife="n/a","n/a",IF(N$3>(A5stdlife+$F130),(Input!$H$215*(1+vanilla1)^0.5)-SUM($H130:M130),(Input!$H$215*(1+vanilla1)^0.5)/A5stdlife)) -> 3.10850605 | O130: =IF(A5stdlife="n/a","n/a",IF(O$3>(A5stdlife+$F130),(Input!$H$215*(1+vanilla1)^0.5)-SUM($H130:N130),(Input!$H$215*(1+vanilla1)^0.5)/A5stdlife)) -> 3.10850605 | P130: =IF(A5stdlife="n/a","n/a",IF(P$3>(A5stdlife+$F130),(Input!$H$215*(1+vanilla1)^0.5)-SUM($H130:O130),(Input!$H$215*(1+vanilla1)^0.5)/A5stdlife)) -> 3.10850605 | Q130: =IF(A5stdlife="n/a","n/a",IF(Q$3>(A5stdlife+$F130),(Input!$H$215*(1+vanilla1)^0.5)-SUM($H130:P130),(Input!$H$215*(1+vanilla1)^0.5)/A5stdlife)) -> 3.10850605
F131: 2 | J131: =IF(A5stdlife="n/a","n/a",IF(J$3>(A5stdlife+$F131),(Input!$I$215*(1+vanilla2)^0.5)-SUM($I131:I131),(Input!$I$215*(1+vanilla2)^0.5)/A5stdlife)) -> 3.661523388 | K131: =IF(A5stdlife="n/a","n/a",IF(K$3>(A5stdlife+$F131),(Input!$I$215*(1+vanilla2)^0.5)-SUM($I131:J131),(Input!$I$215*(1+vanilla2)^0.5)/A5stdlife)) -> 3.661523388 | L131: =IF(A5stdlife="n/a","n/a",IF(L$3>(A5stdlife+$F131),(Input!$I$215*(1+vanilla2)^0.5)-SUM($I131:K131),(Input!$I$215*(1+vanilla2)^0.5)/A5stdlife)) -> 3.661523388 | M131: =IF(A5stdlife="n/a","n/a",IF(M$3>(A5stdlife+$F131),(Input!$I$215*(1+vanilla2)^0.5)-SUM($I131:L131),(Input!$I$215*(1+vanilla2)^0.5)/A5stdlife)) -> 3.661523388 | N131: =IF(A5stdlife="n/a","n/a",IF(N$3>(A5stdlife+$F131),(Input!$I$215*(1+vanilla2)^0.5)-SUM($I131:M131),(Input!$I$215*(1+vanilla2)^0.5)/A5stdlife)) -> 3.661523388 | O131: =IF(A5stdlife="n/a","n/a",IF(O$3>(A5stdlife+$F131),(Input!$I$215*(1+vanilla2)^0.5)-SUM($I131:N131),(Input!$I$215*(1+vanilla2)^0.5)/A5stdlife)) -> 3.661523388 | P131: =IF(A5stdlife="n/a","n/a",IF(P$3>(A5stdlife+$F131),(Input!$I$215*(1+vanilla2)^0.5)-SUM($I131:O131),(Input!$I$215*(1+vanilla2)^0.5)/A5stdlife)) -> 3.661523388 | Q131: =IF(A5stdlife="n/a","n/a",IF(Q$3>(A5stdlife+$F131),(Input!$I$215*(1+vanilla2)^0.5)-SUM($I131:P131),(Input!$I$215*(1+vanilla2)^0.5)/A5stdlife)) -> 3.661523388
F132: 3 | K132: =IF(A5stdlife="n/a","n/a",IF(K$3>(A5stdlife+$F132),(Input!$J$215*(1+vanilla3)^0.5)-SUM($J132:J132),(Input!$J$215*(1+vanilla3)^0.5)/A5stdlife)) -> 4.260539406 | L132: =IF(A5stdlife="n/a","n/a",IF(L$3>(A5stdlife+$F132),(Input!$J$215*(1+vanilla3)^0.5)-SUM($J132:K132),(Input!$J$215*(1+vanilla3)^0.5)/A5stdlife)) -> 4.260539406 | M132: =IF(A5stdlife="n/a","n/a",IF(M$3>(A5stdlife+$F132),(Input!$J$215*(1+vanilla3)^0.5)-SUM($J132:L132),(Input!$J$215*(1+vanilla3)^0.5)/A5stdlife)) -> 4.260539406 | N132: =IF(A5stdlife="n/a","n/a",IF(N$3>(A5stdlife+$F132),(Input!$J$215*(1+vanilla3)^0.5)-SUM($J132:M132),(Input!$J$215*(1+vanilla3)^0.5)/A5stdlife)) -> 4.260539406 | O132: =IF(A5stdlife="n/a","n/a",IF(O$3>(A5stdlife+$F132),(Input!$J$215*(1+vanilla3)^0.5)-SUM($J132:N132),(Input!$J$215*(1+vanilla3)^0.5)/A5stdlife)) -> 4.260539406 | P132: =IF(A5stdlife="n/a","n/a",IF(P$3>(A5stdlife+$F132),(Input!$J$215*(1+vanilla3)^0.5)-SUM($J132:O132),(Input!$J$215*(1+vanilla3)^0.5)/A5stdlife)) -> 4.260539406 | Q132: =IF(A5stdlife="n/a","n/a",IF(Q$3>(A5stdlife+$F132),(Input!$J$215*(1+vanilla3)^0.5)-SUM($J132:P132),(Input!$J$215*(1+vanilla3)^0.5)/A5stdlife)) -> 4.260539406
F133: 4 | L133: =IF(A5stdlife="n/a","n/a",IF(L$3>(A5stdlife+$F133),(Input!$K$215*(1+vanilla4)^0.5)-SUM($K133:K133),(Input!$K$215*(1+vanilla4)^0.5)/A5stdlife)) -> 2.113083516 | M133: =IF(A5stdlife="n/a","n/a",IF(M$3>(A5stdlife+$F133),(Input!$K$215*(1+vanilla4)^0.5)-SUM($K133:L133),(Input!$K$215*(1+vanilla4)^0.5)/A5stdlife)) -> 2.113083516 | N133: =IF(A5stdlife="n/a","n/a",IF(N$3>(A5stdlife+$F133),(Input!$K$215*(1+vanilla4)^0.5)-SUM($K133:M133),(Input!$K$215*(1+vanilla4)^0.5)/A5stdlife)) -> 2.113083516 | O133: =IF(A5stdlife="n/a","n/a",IF(O$3>(A5stdlife+$F133),(Input!$K$215*(1+vanilla4)^0.5)-SUM($K133:N133),(Input!$K$215*(1+vanilla4)^0.5)/A5stdlife)) -> 2.113083516 | P133: =IF(A5stdlife="n/a","n/a",IF(P$3>(A5stdlife+$F133),(Input!$K$215*(1+vanilla4)^0.5)-SUM($K133:O133),(Input!$K$215*(1+vanilla4)^0.5)/A5stdlife)) -> 2.113083516 | Q133: =IF(A5stdlife="n/a","n/a",IF(Q$3>(A5stdlife+$F133),(Input!$K$215*(1+vanilla4)^0.5)-SUM($K133:P133),(Input!$K$215*(1+vanilla4)^0.5)/A5stdlife)) -> 2.113083516
F134: 5 | M134: =IF(A5stdlife="n/a","n/a",IF(M$3>(A5stdlife+$F134),(Input!$L$215*(1+vanilla5)^0.5)-SUM($L134:L134),(Input!$L$215*(1+vanilla5)^0.5)/A5stdlife)) -> 3.949295352 | N134: =IF(A5stdlife="n/a","n/a",IF(N$3>(A5stdlife+$F134),(Input!$L$215*(1+vanilla5)^0.5)-SUM($L134:M134),(Input!$L$215*(1+vanilla5)^0.5)/A5stdlife)) -> 3.949295352 | O134: =IF(A5stdlife="n/a","n/a",IF(O$3>(A5stdlife+$F134),(Input!$L$215*(1+vanilla5)^0.5)-SUM($L134:N134),(Input!$L$215*(1+vanilla5)^0.5)/A5stdlife)) -> 3.949295352 | P134: =IF(A5stdlife="n/a","n/a",IF(P$3>(A5stdlife+$F134),(Input!$L$215*(1+vanilla5)^0.5)-SUM($L134:O134),(Input!$L$215*(1+vanilla5)^0.5)/A5stdlife)) -> 3.949295352 | Q134: =IF(A5stdlife="n/a","n/a",IF(Q$3>(A5stdlife+$F134),(Input!$L$215*(1+vanilla5)^0.5)-SUM($L134:P134),(Input!$L$215*(1+vanilla5)^0.5)/A5stdlife)) -> 3.949295352
F135: 6 | N135: =IF(A5stdlife="n/a","n/a",IF(N$3>(A5stdlife+$F135),(Input!$M$215*(1+vanilla6)^0.5)-SUM($M135:M135),(Input!$M$215*(1+vanilla6)^0.5)/A5stdlife)) -> 0 | O135: =IF(A5stdlife="n/a","n/a",IF(O$3>(A5stdlife+$F135),(Input!$M$215*(1+vanilla6)^0.5)-SUM($M135:N135),(Input!$M$215*(1+vanilla6)^0.5)/A5stdlife)) -> 0 | P135: =IF(A5stdlife="n/a","n/a",IF(P$3>(A5stdlife+$F135),(Input!$M$215*(1+vanilla6)^0.5)-SUM($M135:O135),(Input!$M$215*(1+vanilla6)^0.5)/A5stdlife)) -> 0 | Q135: =IF(A5stdlife="n/a","n/a",IF(Q$3>(A5stdlife+$F135),(Input!$M$215*(1+vanilla6)^0.5)-SUM($M135:P135),(Input!$M$215*(1+vanilla6)^0.5)/A5stdlife)) -> 0
F136: 7 | O136: =IF(A5stdlife="n/a","n/a",IF(O$3>(A5stdlife+$F136),(Input!$N$215*(1+vanilla7)^0.5)-SUM($N136:N136),(Input!$N$215*(1+vanilla7)^0.5)/A5stdlife)) -> 0 | P136: =IF(A5stdlife="n/a","n/a",IF(P$3>(A5stdlife+$F136),(Input!$N$215*(1+vanilla7)^0.5)-SUM($N136:O136),(Input!$N$215*(1+vanilla7)^0.5)/A5stdlife)) -> 0 | Q136: =IF(A5stdlife="n/a","n/a",IF(Q$3>(A5stdlife+$F136),(Input!$N$215*(1+vanilla7)^0.5)-SUM($N136:P136),(Input!$N$215*(1+vanilla7)^0.5)/A5stdlife)) -> 0
F137: 8 | P137: =IF(A5stdlife="n/a","n/a",IF(P$3>(A5stdlife+$F137),(Input!$O$215*(1+vanilla8)^0.5)-SUM($O137:O137),(Input!$O$215*(1+vanilla8)^0.5)/A5stdlife)) -> 0 | Q137: =IF(A5stdlife="n/a","n/a",IF(Q$3>(A5stdlife+$F137),(Input!$O$215*(1+vanilla8)^0.5)-SUM($O137:P137),(Input!$O$215*(1+vanilla8)^0.5)/A5stdlife)) -> 0
F138: 9 | Q138: =IF(A5stdlife="n/a","n/a",IF(Q$3>(A5stdlife+$F138),(Input!$P$215*(1+vanilla9)^0.5)-SUM($P138:P138),(Input!$P$215*(1+vanilla9)^0.5)/A5stdlife)) -> 0
F139: 10
D140: =Asset5 -> Substations Secondary Systems | H140: =-SUM(H128:H139) -> -26.66841887 | I140: =-SUM(I128:I139) -> -29.77692492 | J140: =-SUM(J128:J139) -> -33.43844831 | K140: =-SUM(K128:K139) -> -37.69898771 | L140: =-SUM(L128:L139) -> -39.81207123 | M140: =IF(COUNT($H140:L140)>=Input!$W$7,0, -SUM(M128:M139)) -> 0 | N140: =IF(COUNT($H140:M140)>=Input!$W$7,0, -SUM(N128:N139)) -> 0 | O140: =IF(COUNT($H140:N140)>=Input!$W$7,0, -SUM(O128:O139)) -> 0 | P140: =IF(COUNT($H140:O140)>=Input!$W$7,0, -SUM(P128:P139)) -> 0 | Q140: =IF(COUNT($H140:P140)>=Input!$W$7,0, -SUM(Q128:Q139)) -> 0
C141: =Asset6 -> Communications Other Assets | E141: Opening RAB | H141: =IF(H$3>A6remlife,A6value-$G$635-SUM($G141:G141),IF(A6remlife="N/A","n/a",(A6value-$G$635)/A6remlife)) -> 5.853387899 | I141: =IF(I$3>A6remlife,A6value-$G$635-SUM($G141:H141),IF(A6remlife="N/A","n/a",(A6value-$G$635)/A6remlife)) -> 5.853387899 | J141: =IF(J$3>A6remlife,A6value-$G$635-SUM($G141:I141),IF(A6remlife="N/A","n/a",(A6value-$G$635)/A6remlife)) -> 5.853387899 | K141: =IF(K$3>A6remlife,A6value-$G$635-SUM($G141:J141),IF(A6remlife="N/A","n/a",(A6value-$G$635)/A6remlife)) -> 5.853387899 | L141: =IF(L$3>A6remlife,A6value-$G$635-SUM($G141:K141),IF(A6remlife="N/A","n/a",(A6value-$G$635)/A6remlife)) -> 5.853387899 | M141: =IF(M$3>A6remlife,A6value-$G$635-SUM($G141:L141),IF(A6remlife="N/A","n/a",(A6value-$G$635)/A6remlife)) -> 5.853387899 | N141: =IF(N$3>A6remlife,A6value-$G$635-SUM($G141:M141),IF(A6remlife="N/A","n/a",(A6value-$G$635)/A6remlife)) -> 5.853387899 | O141: =IF(O$3>A6remlife,A6value-$G$635-SUM($G141:N141),IF(A6remlife="N/A","n/a",(A6value-$G$635)/A6remlife)) -> 5.853387899 | P141: =IF(P$3>A6remlife,A6value-$G$635-SUM($G141:O141),IF(A6remlife="N/A","n/a",(A6value-$G$635)/A6remlife)) -> 3.4827658 | Q141: =IF(Q$3>A6remlife,A6value-$G$635-SUM($G141:P141),IF(A6remlife="N/A","n/a",(A6value-$G$635)/A6remlife)) -> 0
E142: Capex in year
F143: 1 | I143: =IF(A6stdlife="n/a","n/a",IF(I$3>(A6stdlife+$F143),(Input!$H$216*(1+vanilla1)^0.5)-SUM($H143:H143),(Input!$H$216*(1+vanilla1)^0.5)/A6stdlife)) -> 0.1591131524 | J143: =IF(A6stdlife="n/a","n/a",IF(J$3>(A6stdlife+$F143),(Input!$H$216*(1+vanilla1)^0.5)-SUM($H143:I143),(Input!$H$216*(1+vanilla1)^0.5)/A6stdlife)) -> 0.1591131524 | K143: =IF(A6stdlife="n/a","n/a",IF(K$3>(A6stdlife+$F143),(Input!$H$216*(1+vanilla1)^0.5)-SUM($H143:J143),(Input!$H$216*(1+vanilla1)^0.5)/A6stdlife)) -> 0.1591131524 | L143: =IF(A6stdlife="n/a","n/a",IF(L$3>(A6stdlife+$F143),(Input!$H$216*(1+vanilla1)^0.5)-SUM($H143:K143),(Input!$H$216*(1+vanilla1)^0.5)/A6stdlife)) -> 0.1591131524 | M143: =IF(A6stdlife="n/a","n/a",IF(M$3>(A6stdlife+$F143),(Input!$H$216*(1+vanilla1)^0.5)-SUM($H143:L143),(Input!$H$216*(1+vanilla1)^0.5)/A6stdlife)) -> 0.1591131524 | N143: =IF(A6stdlife="n/a","n/a",IF(N$3>(A6stdlife+$F143),(Input!$H$216*(1+vanilla1)^0.5)-SUM($H143:M143),(Input!$H$216*(1+vanilla1)^0.5)/A6stdlife)) -> 0.1591131524 | O143: =IF(A6stdlife="n/a","n/a",IF(O$3>(A6stdlife+$F143),(Input!$H$216*(1+vanilla1)^0.5)-SUM($H143:N143),(Input!$H$216*(1+vanilla1)^0.5)/A6stdlife)) -> 0.1591131524 | P143: =IF(A6stdlife="n/a","n/a",IF(P$3>(A6stdlife+$F143),(Input!$H$216*(1+vanilla1)^0.5)-SUM($H143:O143),(Input!$H$216*(1+vanilla1)^0.5)/A6stdlife)) -> 0.1591131524 | Q143: =IF(A6stdlife="n/a","n/a",IF(Q$3>(A6stdlife+$F143),(Input!$H$216*(1+vanilla1)^0.5)-SUM($H143:P143),(Input!$H$216*(1+vanilla1)^0.5)/A6stdlife)) -> 0.1591131524
F144: 2 | J144: =IF(A6stdlife="n/a","n/a",IF(J$3>(A6stdlife+$F144),(Input!$I$216*(1+vanilla2)^0.5)-SUM($I144:I144),(Input!$I$216*(1+vanilla2)^0.5)/A6stdlife)) -> 0.2889820341 | K144: =IF(A6stdlife="n/a","n/a",IF(K$3>(A6stdlife+$F144),(Input!$I$216*(1+vanilla2)^0.5)-SUM($I144:J144),(Input!$I$216*(1+vanilla2)^0.5)/A6stdlife)) -> 0.2889820341 | L144: =IF(A6stdlife="n/a","n/a",IF(L$3>(A6stdlife+$F144),(Input!$I$216*(1+vanilla2)^0.5)-SUM($I144:K144),(Input!$I$216*(1+vanilla2)^0.5)/A6stdlife)) -> 0.2889820341 | M144: =IF(A6stdlife="n/a","n/a",IF(M$3>(A6stdlife+$F144),(Input!$I$216*(1+vanilla2)^0.5)-SUM($I144:L144),(Input!$I$216*(1+vanilla2)^0.5)/A6stdlife)) -> 0.2889820341 | N144: =IF(A6stdlife="n/a","n/a",IF(N$3>(A6stdlife+$F144),(Input!$I$216*(1+vanilla2)^0.5)-SUM($I144:M144),(Input!$I$216*(1+vanilla2)^0.5)/A6stdlife)) -> 0.2889820341 | O144: =IF(A6stdlife="n/a","n/a",IF(O$3>(A6stdlife+$F144),(Input!$I$216*(1+vanilla2)^0.5)-SUM($I144:N144),(Input!$I$216*(1+vanilla2)^0.5)/A6stdlife)) -> 0.2889820341 | P144: =IF(A6stdlife="n/a","n/a",IF(P$3>(A6stdlife+$F144),(Input!$I$216*(1+vanilla2)^0.5)-SUM($I144:O144),(Input!$I$216*(1+vanilla2)^0.5)/A6stdlife)) -> 0.2889820341 | Q144: =IF(A6stdlife="n/a","n/a",IF(Q$3>(A6stdlife+$F144),(Input!$I$216*(1+vanilla2)^0.5)-SUM($I144:P144),(Input!$I$216*(1+vanilla2)^0.5)/A6stdlife)) -> 0.2889820341
F145: 3 | K145: =IF(A6stdlife="n/a","n/a",IF(K$3>(A6stdlife+$F145),(Input!$J$216*(1+vanilla3)^0.5)-SUM($J145:J145),(Input!$J$216*(1+vanilla3)^0.5)/A6stdlife)) -> 1.547423546 | L145: =IF(A6stdlife="n/a","n/a",IF(L$3>(A6stdlife+$F145),(Input!$J$216*(1+vanilla3)^0.5)-SUM($J145:K145),(Input!$J$216*(1+vanilla3)^0.5)/A6stdlife)) -> 1.547423546 | M145: =IF(A6stdlife="n/a","n/a",IF(M$3>(A6stdlife+$F145),(Input!$J$216*(1+vanilla3)^0.5)-SUM($J145:L145),(Input!$J$216*(1+vanilla3)^0.5)/A6stdlife)) -> 1.547423546 | N145: =IF(A6stdlife="n/a","n/a",IF(N$3>(A6stdlife+$F145),(Input!$J$216*(1+vanilla3)^0.5)-SUM($J145:M145),(Input!$J$216*(1+vanilla3)^0.5)/A6stdlife)) -> 1.547423546 | O145: =IF(A6stdlife="n/a","n/a",IF(O$3>(A6stdlife+$F145),(Input!$J$216*(1+vanilla3)^0.5)-SUM($J145:N145),(Input!$J$216*(1+vanilla3)^0.5)/A6stdlife)) -> 1.547423546 | P145: =IF(A6stdlife="n/a","n/a",IF(P$3>(A6stdlife+$F145),(Input!$J$216*(1+vanilla3)^0.5)-SUM($J145:O145),(Input!$J$216*(1+vanilla3)^0.5)/A6stdlife)) -> 1.547423546 | Q145: =IF(A6stdlife="n/a","n/a",IF(Q$3>(A6stdlife+$F145),(Input!$J$216*(1+vanilla3)^0.5)-SUM($J145:P145),(Input!$J$216*(1+vanilla3)^0.5)/A6stdlife)) -> 1.547423546
F146: 4 | L146: =IF(A6stdlife="n/a","n/a",IF(L$3>(A6stdlife+$F146),(Input!$K$216*(1+vanilla4)^0.5)-SUM($K146:K146),(Input!$K$216*(1+vanilla4)^0.5)/A6stdlife)) -> 0.4314953481 | M146: =IF(A6stdlife="n/a","n/a",IF(M$3>(A6stdlife+$F146),(Input!$K$216*(1+vanilla4)^0.5)-SUM($K146:L146),(Input!$K$216*(1+vanilla4)^0.5)/A6stdlife)) -> 0.4314953481 | N146: =IF(A6stdlife="n/a","n/a",IF(N$3>(A6stdlife+$F146),(Input!$K$216*(1+vanilla4)^0.5)-SUM($K146:M146),(Input!$K$216*(1+vanilla4)^0.5)/A6stdlife)) -> 0.4314953481 | O146: =IF(A6stdlife="n/a","n/a",IF(O$3>(A6stdlife+$F146),(Input!$K$216*(1+vanilla4)^0.5)-SUM($K146:N146),(Input!$K$216*(1+vanilla4)^0.5)/A6stdlife)) -> 0.4314953481 | P146: =IF(A6stdlife="n/a","n/a",IF(P$3>(A6stdlife+$F146),(Input!$K$216*(1+vanilla4)^0.5)-SUM($K146:O146),(Input!$K$216*(1+vanilla4)^0.5)/A6stdlife)) -> 0.4314953481 | Q146: =IF(A6stdlife="n/a","n/a",IF(Q$3>(A6stdlife+$F146),(Input!$K$216*(1+vanilla4)^0.5)-SUM($K146:P146),(Input!$K$216*(1+vanilla4)^0.5)/A6stdlife)) -> 0.4314953481
F147: 5 | M147: =IF(A6stdlife="n/a","n/a",IF(M$3>(A6stdlife+$F147),(Input!$L$216*(1+vanilla5)^0.5)-SUM($L147:L147),(Input!$L$216*(1+vanilla5)^0.5)/A6stdlife)) -> 1.140578112 | N147: =IF(A6stdlife="n/a","n/a",IF(N$3>(A6stdlife+$F147),(Input!$L$216*(1+vanilla5)^0.5)-SUM($L147:M147),(Input!$L$216*(1+vanilla5)^0.5)/A6stdlife)) -> 1.140578112 | O147: =IF(A6stdlife="n/a","n/a",IF(O$3>(A6stdlife+$F147),(Input!$L$216*(1+vanilla5)^0.5)-SUM($L147:N147),(Input!$L$216*(1+vanilla5)^0.5)/A6stdlife)) -> 1.140578112 | P147: =IF(A6stdlife="n/a","n/a",IF(P$3>(A6stdlife+$F147),(Input!$L$216*(1+vanilla5)^0.5)-SUM($L147:O147),(Input!$L$216*(1+vanilla5)^0.5)/A6stdlife)) -> 1.140578112 | Q147: =IF(A6stdlife="n/a","n/a",IF(Q$3>(A6stdlife+$F147),(Input!$L$216*(1+vanilla5)^0.5)-SUM($L147:P147),(Input!$L$216*(1+vanilla5)^0.5)/A6stdlife)) -> 1.140578112
F148: 6 | N148: =IF(A6stdlife="n/a","n/a",IF(N$3>(A6stdlife+$F148),(Input!$M$216*(1+vanilla6)^0.5)-SUM($M148:M148),(Input!$M$216*(1+vanilla6)^0.5)/A6stdlife)) -> 0 | O148: =IF(A6stdlife="n/a","n/a",IF(O$3>(A6stdlife+$F148),(Input!$M$216*(1+vanilla6)^0.5)-SUM($M148:N148),(Input!$M$216*(1+vanilla6)^0.5)/A6stdlife)) -> 0 | P148: =IF(A6stdlife="n/a","n/a",IF(P$3>(A6stdlife+$F148),(Input!$M$216*(1+vanilla6)^0.5)-SUM($M148:O148),(Input!$M$216*(1+vanilla6)^0.5)/A6stdlife)) -> 0 | Q148: =IF(A6stdlife="n/a","n/a",IF(Q$3>(A6stdlife+$F148),(Input!$M$216*(1+vanilla6)^0.5)-SUM($M148:P148),(Input!$M$216*(1+vanilla6)^0.5)/A6stdlife)) -> 0
F149: 7 | O149: =IF(A6stdlife="n/a","n/a",IF(O$3>(A6stdlife+$F149),(Input!$N$216*(1+vanilla7)^0.5)-SUM($N149:N149),(Input!$N$216*(1+vanilla7)^0.5)/A6stdlife)) -> 0 | P149: =IF(A6stdlife="n/a","n/a",IF(P$3>(A6stdlife+$F149),(Input!$N$216*(1+vanilla7)^0.5)-SUM($N149:O149),(Input!$N$216*(1+vanilla7)^0.5)/A6stdlife)) -> 0 | Q149: =IF(A6stdlife="n/a","n/a",IF(Q$3>(A6stdlife+$F149),(Input!$N$216*(1+vanilla7)^0.5)-SUM($N149:P149),(Input!$N$216*(1+vanilla7)^0.5)/A6stdlife)) -> 0
F150: 8 | P150: =IF(A6stdlife="n/a","n/a",IF(P$3>(A6stdlife+$F150),(Input!$O$216*(1+vanilla8)^0.5)-SUM($O150:O150),(Input!$O$216*(1+vanilla8)^0.5)/A6stdlife)) -> 0 | Q150: =IF(A6stdlife="n/a","n/a",IF(Q$3>(A6stdlife+$F150),(Input!$O$216*(1+vanilla8)^0.5)-SUM($O150:P150),(Input!$O$216*(1+vanilla8)^0.5)/A6stdlife)) -> 0
F151: 9 | Q151: =IF(A6stdlife="n/a","n/a",IF(Q$3>(A6stdlife+$F151),(Input!$P$216*(1+vanilla9)^0.5)-SUM($P151:P151),(Input!$P$216*(1+vanilla9)^0.5)/A6stdlife)) -> 0
F152: 10
D153: =Asset6 -> Communications Other Assets | H153: =-SUM(H141:H152) -> -5.853387899 | I153: =-SUM(I141:I152) -> -6.012501051 | J153: =-SUM(J141:J152) -> -6.301483085 | K153: =-SUM(K141:K152) -> -7.848906631 | L153: =-SUM(L141:L152) -> -8.28040198 | M153: =IF(COUNT($H153:L153)>=Input!$W$7,0, -SUM(M141:M152)) -> 0 | N153: =IF(COUNT($H153:M153)>=Input!$W$7,0, -SUM(N141:N152)) -> 0 | O153: =IF(COUNT($H153:N153)>=Input!$W$7,0, -SUM(O141:O152)) -> 0 | P153: =IF(COUNT($H153:O153)>=Input!$W$7,0, -SUM(P141:P152)) -> 0 | Q153: =IF(COUNT($H153:P153)>=Input!$W$7,0, -SUM(Q141:Q152)) -> 0
C154: =Asset7 -> Comms - Civil Works | E154: Opening RAB | H154: =IF(H$3>A7remlife,A7value-$G$636-SUM($G154:G154),IF(A7remlife="N/A","n/a",(A7value-$G$636)/A7remlife)) -> 0.4921072175 | I154: =IF(I$3>A7remlife,A7value-$G$636-SUM($G154:H154),IF(A7remlife="N/A","n/a",(A7value-$G$636)/A7remlife)) -> 0.4921072175 | J154: =IF(J$3>A7remlife,A7value-$G$636-SUM($G154:I154),IF(A7remlife="N/A","n/a",(A7value-$G$636)/A7remlife)) -> 0.4921072175 | K154: =IF(K$3>A7remlife,A7value-$G$636-SUM($G154:J154),IF(A7remlife="N/A","n/a",(A7value-$G$636)/A7remlife)) -> 0.4921072175 | L154: =IF(L$3>A7remlife,A7value-$G$636-SUM($G154:K154),IF(A7remlife="N/A","n/a",(A7value-$G$636)/A7remlife)) -> 0.4921072175 | M154: =IF(M$3>A7remlife,A7value-$G$636-SUM($G154:L154),IF(A7remlife="N/A","n/a",(A7value-$G$636)/A7remlife)) -> 0.4921072175 | N154: =IF(N$3>A7remlife,A7value-$G$636-SUM($G154:M154),IF(A7remlife="N/A","n/a",(A7value-$G$636)/A7remlife)) -> 0.4921072175 | O154: =IF(O$3>A7remlife,A7value-$G$636-SUM($G154:N154),IF(A7remlife="N/A","n/a",(A7value-$G$636)/A7remlife)) -> 0.4921072175 | P154: =IF(P$3>A7remlife,A7value-$G$636-SUM($G154:O154),IF(A7remlife="N/A","n/a",(A7value-$G$636)/A7remlife)) -> 0.4921072175 | Q154: =IF(Q$3>A7remlife,A7value-$G$636-SUM($G154:P154),IF(A7remlife="N/A","n/a",(A7value-$G$636)/A7remlife)) -> 0.4921072175
E155: Capex in year
F156: 1 | I156: =IF(A7stdlife="n/a","n/a",IF(I$3>(A7stdlife+$F156),(Input!$H$217*(1+vanilla1)^0.5)-SUM($H156:H156),(Input!$H$217*(1+vanilla1)^0.5)/A7stdlife)) -> 0.005782521297 | J156: =IF(A7stdlife="n/a","n/a",IF(J$3>(A7stdlife+$F156),(Input!$H$217*(1+vanilla1)^0.5)-SUM($H156:I156),(Input!$H$217*(1+vanilla1)^0.5)/A7stdlife)) -> 0.005782521297 | K156: =IF(A7stdlife="n/a","n/a",IF(K$3>(A7stdlife+$F156),(Input!$H$217*(1+vanilla1)^0.5)-SUM($H156:J156),(Input!$H$217*(1+vanilla1)^0.5)/A7stdlife)) -> 0.005782521297 | L156: =IF(A7stdlife="n/a","n/a",IF(L$3>(A7stdlife+$F156),(Input!$H$217*(1+vanilla1)^0.5)-SUM($H156:K156),(Input!$H$217*(1+vanilla1)^0.5)/A7stdlife)) -> 0.005782521297 | M156: =IF(A7stdlife="n/a","n/a",IF(M$3>(A7stdlife+$F156),(Input!$H$217*(1+vanilla1)^0.5)-SUM($H156:L156),(Input!$H$217*(1+vanilla1)^0.5)/A7stdlife)) -> 0.005782521297 | N156: =IF(A7stdlife="n/a","n/a",IF(N$3>(A7stdlife+$F156),(Input!$H$217*(1+vanilla1)^0.5)-SUM($H156:M156),(Input!$H$217*(1+vanilla1)^0.5)/A7stdlife)) -> 0.005782521297 | O156: =IF(A7stdlife="n/a","n/a",IF(O$3>(A7stdlife+$F156),(Input!$H$217*(1+vanilla1)^0.5)-SUM($H156:N156),(Input!$H$217*(1+vanilla1)^0.5)/A7stdlife)) -> 0.005782521297 | P156: =IF(A7stdlife="n/a","n/a",IF(P$3>(A7stdlife+$F156),(Input!$H$217*(1+vanilla1)^0.5)-SUM($H156:O156),(Input!$H$217*(1+vanilla1)^0.5)/A7stdlife)) -> 0.005782521297 | Q156: =IF(A7stdlife="n/a","n/a",IF(Q$3>(A7stdlife+$F156),(Input!$H$217*(1+vanilla1)^0.5)-SUM($H156:P156),(Input!$H$217*(1+vanilla1)^0.5)/A7stdlife)) -> 0.005782521297
F157: 2 | J157: =IF(A7stdlife="n/a","n/a",IF(J$3>(A7stdlife+$F157),(Input!$I$217*(1+vanilla2)^0.5)-SUM($I157:I157),(Input!$I$217*(1+vanilla2)^0.5)/A7stdlife)) -> 0.01073187462 | K157: =IF(A7stdlife="n/a","n/a",IF(K$3>(A7stdlife+$F157),(Input!$I$217*(1+vanilla2)^0.5)-SUM($I157:J157),(Input!$I$217*(1+vanilla2)^0.5)/A7stdlife)) -> 0.01073187462 | L157: =IF(A7stdlife="n/a","n/a",IF(L$3>(A7stdlife+$F157),(Input!$I$217*(1+vanilla2)^0.5)-SUM($I157:K157),(Input!$I$217*(1+vanilla2)^0.5)/A7stdlife)) -> 0.01073187462 | M157: =IF(A7stdlife="n/a","n/a",IF(M$3>(A7stdlife+$F157),(Input!$I$217*(1+vanilla2)^0.5)-SUM($I157:L157),(Input!$I$217*(1+vanilla2)^0.5)/A7stdlife)) -> 0.01073187462 | N157: =IF(A7stdlife="n/a","n/a",IF(N$3>(A7stdlife+$F157),(Input!$I$217*(1+vanilla2)^0.5)-SUM($I157:M157),(Input!$I$217*(1+vanilla2)^0.5)/A7stdlife)) -> 0.01073187462 | O157: =IF(A7stdlife="n/a","n/a",IF(O$3>(A7stdlife+$F157),(Input!$I$217*(1+vanilla2)^0.5)-SUM($I157:N157),(Input!$I$217*(1+vanilla2)^0.5)/A7stdlife)) -> 0.01073187462 | P157: =IF(A7stdlife="n/a","n/a",IF(P$3>(A7stdlife+$F157),(Input!$I$217*(1+vanilla2)^0.5)-SUM($I157:O157),(Input!$I$217*(1+vanilla2)^0.5)/A7stdlife)) -> 0.01073187462 | Q157: =IF(A7stdlife="n/a","n/a",IF(Q$3>(A7stdlife+$F157),(Input!$I$217*(1+vanilla2)^0.5)-SUM($I157:P157),(Input!$I$217*(1+vanilla2)^0.5)/A7stdlife)) -> 0.01073187462
F158: 3 | K158: =IF(A7stdlife="n/a","n/a",IF(K$3>(A7stdlife+$F158),(Input!$J$217*(1+vanilla3)^0.5)-SUM($J158:J158),(Input!$J$217*(1+vanilla3)^0.5)/A7stdlife)) -> 0.08286709163 | L158: =IF(A7stdlife="n/a","n/a",IF(L$3>(A7stdlife+$F158),(Input!$J$217*(1+vanilla3)^0.5)-SUM($J158:K158),(Input!$J$217*(1+vanilla3)^0.5)/A7stdlife)) -> 0.08286709163 | M158: =IF(A7stdlife="n/a","n/a",IF(M$3>(A7stdlife+$F158),(Input!$J$217*(1+vanilla3)^0.5)-SUM($J158:L158),(Input!$J$217*(1+vanilla3)^0.5)/A7stdlife)) -> 0.08286709163 | N158: =IF(A7stdlife="n/a","n/a",IF(N$3>(A7stdlife+$F158),(Input!$J$217*(1+vanilla3)^0.5)-SUM($J158:M158),(Input!$J$217*(1+vanilla3)^0.5)/A7stdlife)) -> 0.08286709163 | O158: =IF(A7stdlife="n/a","n/a",IF(O$3>(A7stdlife+$F158),(Input!$J$217*(1+vanilla3)^0.5)-SUM($J158:N158),(Input!$J$217*(1+vanilla3)^0.5)/A7stdlife)) -> 0.08286709163 | P158: =IF(A7stdlife="n/a","n/a",IF(P$3>(A7stdlife+$F158),(Input!$J$217*(1+vanilla3)^0.5)-SUM($J158:O158),(Input!$J$217*(1+vanilla3)^0.5)/A7stdlife)) -> 0.08286709163 | Q158: =IF(A7stdlife="n/a","n/a",IF(Q$3>(A7stdlife+$F158),(Input!$J$217*(1+vanilla3)^0.5)-SUM($J158:P158),(Input!$J$217*(1+vanilla3)^0.5)/A7stdlife)) -> 0.08286709163
F159: 4 | L159: =IF(A7stdlife="n/a","n/a",IF(L$3>(A7stdlife+$F159),(Input!$K$217*(1+vanilla4)^0.5)-SUM($K159:K159),(Input!$K$217*(1+vanilla4)^0.5)/A7stdlife)) -> 0.007204581584 | M159: =IF(A7stdlife="n/a","n/a",IF(M$3>(A7stdlife+$F159),(Input!$K$217*(1+vanilla4)^0.5)-SUM($K159:L159),(Input!$K$217*(1+vanilla4)^0.5)/A7stdlife)) -> 0.007204581584 | N159: =IF(A7stdlife="n/a","n/a",IF(N$3>(A7stdlife+$F159),(Input!$K$217*(1+vanilla4)^0.5)-SUM($K159:M159),(Input!$K$217*(1+vanilla4)^0.5)/A7stdlife)) -> 0.007204581584 | O159: =IF(A7stdlife="n/a","n/a",IF(O$3>(A7stdlife+$F159),(Input!$K$217*(1+vanilla4)^0.5)-SUM($K159:N159),(Input!$K$217*(1+vanilla4)^0.5)/A7stdlife)) -> 0.007204581584 | P159: =IF(A7stdlife="n/a","n/a",IF(P$3>(A7stdlife+$F159),(Input!$K$217*(1+vanilla4)^0.5)-SUM($K159:O159),(Input!$K$217*(1+vanilla4)^0.5)/A7stdlife)) -> 0.007204581584 | Q159: =IF(A7stdlife="n/a","n/a",IF(Q$3>(A7stdlife+$F159),(Input!$K$217*(1+vanilla4)^0.5)-SUM($K159:P159),(Input!$K$217*(1+vanilla4)^0.5)/A7stdlife)) -> 0.007204581584
F160: 5 | M160: =IF(A7stdlife="n/a","n/a",IF(M$3>(A7stdlife+$F160),(Input!$L$217*(1+vanilla5)^0.5)-SUM($L160:L160),(Input!$L$217*(1+vanilla5)^0.5)/A7stdlife)) -> 0 | N160: =IF(A7stdlife="n/a","n/a",IF(N$3>(A7stdlife+$F160),(Input!$L$217*(1+vanilla5)^0.5)-SUM($L160:M160),(Input!$L$217*(1+vanilla5)^0.5)/A7stdlife)) -> 0 | O160: =IF(A7stdlife="n/a","n/a",IF(O$3>(A7stdlife+$F160),(Input!$L$217*(1+vanilla5)^0.5)-SUM($L160:N160),(Input!$L$217*(1+vanilla5)^0.5)/A7stdlife)) -> 0 | P160: =IF(A7stdlife="n/a","n/a",IF(P$3>(A7stdlife+$F160),(Input!$L$217*(1+vanilla5)^0.5)-SUM($L160:O160),(Input!$L$217*(1+vanilla5)^0.5)/A7stdlife)) -> 0 | Q160: =IF(A7stdlife="n/a","n/a",IF(Q$3>(A7stdlife+$F160),(Input!$L$217*(1+vanilla5)^0.5)-SUM($L160:P160),(Input!$L$217*(1+vanilla5)^0.5)/A7stdlife)) -> 0
F161: 6 | N161: =IF(A7stdlife="n/a","n/a",IF(N$3>(A7stdlife+$F161),(Input!$M$217*(1+vanilla6)^0.5)-SUM($M161:M161),(Input!$M$217*(1+vanilla6)^0.5)/A7stdlife)) -> 0 | O161: =IF(A7stdlife="n/a","n/a",IF(O$3>(A7stdlife+$F161),(Input!$M$217*(1+vanilla6)^0.5)-SUM($M161:N161),(Input!$M$217*(1+vanilla6)^0.5)/A7stdlife)) -> 0 | P161: =IF(A7stdlife="n/a","n/a",IF(P$3>(A7stdlife+$F161),(Input!$M$217*(1+vanilla6)^0.5)-SUM($M161:O161),(Input!$M$217*(1+vanilla6)^0.5)/A7stdlife)) -> 0 | Q161: =IF(A7stdlife="n/a","n/a",IF(Q$3>(A7stdlife+$F161),(Input!$M$217*(1+vanilla6)^0.5)-SUM($M161:P161),(Input!$M$217*(1+vanilla6)^0.5)/A7stdlife)) -> 0
F162: 7 | O162: =IF(A7stdlife="n/a","n/a",IF(O$3>(A7stdlife+$F162),(Input!$N$217*(1+vanilla7)^0.5)-SUM($N162:N162),(Input!$N$217*(1+vanilla7)^0.5)/A7stdlife)) -> 0 | P162: =IF(A7stdlife="n/a","n/a",IF(P$3>(A7stdlife+$F162),(Input!$N$217*(1+vanilla7)^0.5)-SUM($N162:O162),(Input!$N$217*(1+vanilla7)^0.5)/A7stdlife)) -> 0 | Q162: =IF(A7stdlife="n/a","n/a",IF(Q$3>(A7stdlife+$F162),(Input!$N$217*(1+vanilla7)^0.5)-SUM($N162:P162),(Input!$N$217*(1+vanilla7)^0.5)/A7stdlife)) -> 0
F163: 8 | P163: =IF(A7stdlife="n/a","n/a",IF(P$3>(A7stdlife+$F163),(Input!$O$217*(1+vanilla8)^0.5)-SUM($O163:O163),(Input!$O$217*(1+vanilla8)^0.5)/A7stdlife)) -> 0 | Q163: =IF(A7stdlife="n/a","n/a",IF(Q$3>(A7stdlife+$F163),(Input!$O$217*(1+vanilla8)^0.5)-SUM($O163:P163),(Input!$O$217*(1+vanilla8)^0.5)/A7stdlife)) -> 0
F164: 9 | Q164: =IF(A7stdlife="n/a","n/a",IF(Q$3>(A7stdlife+$F164),(Input!$P$217*(1+vanilla9)^0.5)-SUM($P164:P164),(Input!$P$217*(1+vanilla9)^0.5)/A7stdlife)) -> 0
F165: 10
D166: =Asset7 -> Comms - Civil Works | H166: =-SUM(H154:H165) -> -0.4921072175 | I166: =-SUM(I154:I165) -> -0.4978897388 | J166: =-SUM(J154:J165) -> -0.5086216135 | K166: =-SUM(K154:K165) -> -0.5914887051 | L166: =-SUM(L154:L165) -> -0.5986932867 | M166: =IF(COUNT($H166:L166)>=Input!$W$7,0, -SUM(M154:M165)) -> 0 | N166: =IF(COUNT($H166:M166)>=Input!$W$7,0, -SUM(N154:N165)) -> 0 | O166: =IF(COUNT($H166:N166)>=Input!$W$7,0, -SUM(O154:O165)) -> 0 | P166: =IF(COUNT($H166:O166)>=Input!$W$7,0, -SUM(P154:P165)) -> 0 | Q166: =IF(COUNT($H166:P166)>=Input!$W$7,0, -SUM(Q154:Q165)) -> 0
C167: =Asset8 -> Network Switching Centres | E167: Opening RAB | H167: =IF(H$3>A8remlife,A8value-$G$637-SUM($G167:G167),IF(A8remlife="N/A","n/a",(A8value-$G$637)/A8remlife)) -> 4.618191759 | I167: =IF(I$3>A8remlife,A8value-$G$637-SUM($G167:H167),IF(A8remlife="N/A","n/a",(A8value-$G$637)/A8remlife)) -> 4.618191759 | J167: =IF(J$3>A8remlife,A8value-$G$637-SUM($G167:I167),IF(A8remlife="N/A","n/a",(A8value-$G$637)/A8remlife)) -> 4.618191759 | K167: =IF(K$3>A8remlife,A8value-$G$637-SUM($G167:J167),IF(A8remlife="N/A","n/a",(A8value-$G$637)/A8remlife)) -> 4.618191759 | L167: =IF(L$3>A8remlife,A8value-$G$637-SUM($G167:K167),IF(A8remlife="N/A","n/a",(A8value-$G$637)/A8remlife)) -> 4.618191759 | M167: =IF(M$3>A8remlife,A8value-$G$637-SUM($G167:L167),IF(A8remlife="N/A","n/a",(A8value-$G$637)/A8remlife)) -> 2.045858949 | N167: =IF(N$3>A8remlife,A8value-$G$637-SUM($G167:M167),IF(A8remlife="N/A","n/a",(A8value-$G$637)/A8remlife)) -> 0 | O167: =IF(O$3>A8remlife,A8value-$G$637-SUM($G167:N167),IF(A8remlife="N/A","n/a",(A8value-$G$637)/A8remlife)) -> 0 | P167: =IF(P$3>A8remlife,A8value-$G$637-SUM($G167:O167),IF(A8remlife="N/A","n/a",(A8value-$G$637)/A8remlife)) -> 0 | Q167: =IF(Q$3>A8remlife,A8value-$G$637-SUM($G167:P167),IF(A8remlife="N/A","n/a",(A8value-$G$637)/A8remlife)) -> 0
E168: Capex in year
F169: 1 | I169: =IF(A8stdlife="n/a","n/a",IF(I$3>(A8stdlife+$F169),(Input!$H$218*(1+vanilla1)^0.5)-SUM($H169:H169),(Input!$H$218*(1+vanilla1)^0.5)/A8stdlife)) -> 0 | J169: =IF(A8stdlife="n/a","n/a",IF(J$3>(A8stdlife+$F169),(Input!$H$218*(1+vanilla1)^0.5)-SUM($H169:I169),(Input!$H$218*(1+vanilla1)^0.5)/A8stdlife)) -> 0 | K169: =IF(A8stdlife="n/a","n/a",IF(K$3>(A8stdlife+$F169),(Input!$H$218*(1+vanilla1)^0.5)-SUM($H169:J169),(Input!$H$218*(1+vanilla1)^0.5)/A8stdlife)) -> 0 | L169: =IF(A8stdlife="n/a","n/a",IF(L$3>(A8stdlife+$F169),(Input!$H$218*(1+vanilla1)^0.5)-SUM($H169:K169),(Input!$H$218*(1+vanilla1)^0.5)/A8stdlife)) -> 0 | M169: =IF(A8stdlife="n/a","n/a",IF(M$3>(A8stdlife+$F169),(Input!$H$218*(1+vanilla1)^0.5)-SUM($H169:L169),(Input!$H$218*(1+vanilla1)^0.5)/A8stdlife)) -> 0 | N169: =IF(A8stdlife="n/a","n/a",IF(N$3>(A8stdlife+$F169),(Input!$H$218*(1+vanilla1)^0.5)-SUM($H169:M169),(Input!$H$218*(1+vanilla1)^0.5)/A8stdlife)) -> 0 | O169: =IF(A8stdlife="n/a","n/a",IF(O$3>(A8stdlife+$F169),(Input!$H$218*(1+vanilla1)^0.5)-SUM($H169:N169),(Input!$H$218*(1+vanilla1)^0.5)/A8stdlife)) -> 0 | P169: =IF(A8stdlife="n/a","n/a",IF(P$3>(A8stdlife+$F169),(Input!$H$218*(1+vanilla1)^0.5)-SUM($H169:O169),(Input!$H$218*(1+vanilla1)^0.5)/A8stdlife)) -> 0 | Q169: =IF(A8stdlife="n/a","n/a",IF(Q$3>(A8stdlife+$F169),(Input!$H$218*(1+vanilla1)^0.5)-SUM($H169:P169),(Input!$H$218*(1+vanilla1)^0.5)/A8stdlife)) -> 0
F170: 2 | J170: =IF(A8stdlife="n/a","n/a",IF(J$3>(A8stdlife+$F170),(Input!$I$218*(1+vanilla2)^0.5)-SUM($I170:I170),(Input!$I$218*(1+vanilla2)^0.5)/A8stdlife)) -> 0 | K170: =IF(A8stdlife="n/a","n/a",IF(K$3>(A8stdlife+$F170),(Input!$I$218*(1+vanilla2)^0.5)-SUM($I170:J170),(Input!$I$218*(1+vanilla2)^0.5)/A8stdlife)) -> 0 | L170: =IF(A8stdlife="n/a","n/a",IF(L$3>(A8stdlife+$F170),(Input!$I$218*(1+vanilla2)^0.5)-SUM($I170:K170),(Input!$I$218*(1+vanilla2)^0.5)/A8stdlife)) -> 0 | M170: =IF(A8stdlife="n/a","n/a",IF(M$3>(A8stdlife+$F170),(Input!$I$218*(1+vanilla2)^0.5)-SUM($I170:L170),(Input!$I$218*(1+vanilla2)^0.5)/A8stdlife)) -> 0 | N170: =IF(A8stdlife="n/a","n/a",IF(N$3>(A8stdlife+$F170),(Input!$I$218*(1+vanilla2)^0.5)-SUM($I170:M170),(Input!$I$218*(1+vanilla2)^0.5)/A8stdlife)) -> 0 | O170: =IF(A8stdlife="n/a","n/a",IF(O$3>(A8stdlife+$F170),(Input!$I$218*(1+vanilla2)^0.5)-SUM($I170:N170),(Input!$I$218*(1+vanilla2)^0.5)/A8stdlife)) -> 0 | P170: =IF(A8stdlife="n/a","n/a",IF(P$3>(A8stdlife+$F170),(Input!$I$218*(1+vanilla2)^0.5)-SUM($I170:O170),(Input!$I$218*(1+vanilla2)^0.5)/A8stdlife)) -> 0 | Q170: =IF(A8stdlife="n/a","n/a",IF(Q$3>(A8stdlife+$F170),(Input!$I$218*(1+vanilla2)^0.5)-SUM($I170:P170),(Input!$I$218*(1+vanilla2)^0.5)/A8stdlife)) -> 0
F171: 3 | K171: =IF(A8stdlife="n/a","n/a",IF(K$3>(A8stdlife+$F171),(Input!$J$218*(1+vanilla3)^0.5)-SUM($J171:J171),(Input!$J$218*(1+vanilla3)^0.5)/A8stdlife)) -> 0.2076040387 | L171: =IF(A8stdlife="n/a","n/a",IF(L$3>(A8stdlife+$F171),(Input!$J$218*(1+vanilla3)^0.5)-SUM($J171:K171),(Input!$J$218*(1+vanilla3)^0.5)/A8stdlife)) -> 0.2076040387 | M171: =IF(A8stdlife="n/a","n/a",IF(M$3>(A8stdlife+$F171),(Input!$J$218*(1+vanilla3)^0.5)-SUM($J171:L171),(Input!$J$218*(1+vanilla3)^0.5)/A8stdlife)) -> 0.2076040387 | N171: =IF(A8stdlife="n/a","n/a",IF(N$3>(A8stdlife+$F171),(Input!$J$218*(1+vanilla3)^0.5)-SUM($J171:M171),(Input!$J$218*(1+vanilla3)^0.5)/A8stdlife)) -> 0.2076040387 | O171: =IF(A8stdlife="n/a","n/a",IF(O$3>(A8stdlife+$F171),(Input!$J$218*(1+vanilla3)^0.5)-SUM($J171:N171),(Input!$J$218*(1+vanilla3)^0.5)/A8stdlife)) -> 0.2076040387 | P171: =IF(A8stdlife="n/a","n/a",IF(P$3>(A8stdlife+$F171),(Input!$J$218*(1+vanilla3)^0.5)-SUM($J171:O171),(Input!$J$218*(1+vanilla3)^0.5)/A8stdlife)) -> 0.2076040387 | Q171: =IF(A8stdlife="n/a","n/a",IF(Q$3>(A8stdlife+$F171),(Input!$J$218*(1+vanilla3)^0.5)-SUM($J171:P171),(Input!$J$218*(1+vanilla3)^0.5)/A8stdlife)) -> 0.2076040387
F172: 4 | L172: =IF(A8stdlife="n/a","n/a",IF(L$3>(A8stdlife+$F172),(Input!$K$218*(1+vanilla4)^0.5)-SUM($K172:K172),(Input!$K$218*(1+vanilla4)^0.5)/A8stdlife)) -> 0.8238457914 | M172: =IF(A8stdlife="n/a","n/a",IF(M$3>(A8stdlife+$F172),(Input!$K$218*(1+vanilla4)^0.5)-SUM($K172:L172),(Input!$K$218*(1+vanilla4)^0.5)/A8stdlife)) -> 0.8238457914 | N172: =IF(A8stdlife="n/a","n/a",IF(N$3>(A8stdlife+$F172),(Input!$K$218*(1+vanilla4)^0.5)-SUM($K172:M172),(Input!$K$218*(1+vanilla4)^0.5)/A8stdlife)) -> 0.8238457914 | O172: =IF(A8stdlife="n/a","n/a",IF(O$3>(A8stdlife+$F172),(Input!$K$218*(1+vanilla4)^0.5)-SUM($K172:N172),(Input!$K$218*(1+vanilla4)^0.5)/A8stdlife)) -> 0.8238457914 | P172: =IF(A8stdlife="n/a","n/a",IF(P$3>(A8stdlife+$F172),(Input!$K$218*(1+vanilla4)^0.5)-SUM($K172:O172),(Input!$K$218*(1+vanilla4)^0.5)/A8stdlife)) -> 0.8238457914 | Q172: =IF(A8stdlife="n/a","n/a",IF(Q$3>(A8stdlife+$F172),(Input!$K$218*(1+vanilla4)^0.5)-SUM($K172:P172),(Input!$K$218*(1+vanilla4)^0.5)/A8stdlife)) -> 0.8238457914
F173: 5 | M173: =IF(A8stdlife="n/a","n/a",IF(M$3>(A8stdlife+$F173),(Input!$L$218*(1+vanilla5)^0.5)-SUM($L173:L173),(Input!$L$218*(1+vanilla5)^0.5)/A8stdlife)) -> 0.2338500547 | N173: =IF(A8stdlife="n/a","n/a",IF(N$3>(A8stdlife+$F173),(Input!$L$218*(1+vanilla5)^0.5)-SUM($L173:M173),(Input!$L$218*(1+vanilla5)^0.5)/A8stdlife)) -> 0.2338500547 | O173: =IF(A8stdlife="n/a","n/a",IF(O$3>(A8stdlife+$F173),(Input!$L$218*(1+vanilla5)^0.5)-SUM($L173:N173),(Input!$L$218*(1+vanilla5)^0.5)/A8stdlife)) -> 0.2338500547 | P173: =IF(A8stdlife="n/a","n/a",IF(P$3>(A8stdlife+$F173),(Input!$L$218*(1+vanilla5)^0.5)-SUM($L173:O173),(Input!$L$218*(1+vanilla5)^0.5)/A8stdlife)) -> 0.2338500547 | Q173: =IF(A8stdlife="n/a","n/a",IF(Q$3>(A8stdlife+$F173),(Input!$L$218*(1+vanilla5)^0.5)-SUM($L173:P173),(Input!$L$218*(1+vanilla5)^0.5)/A8stdlife)) -> 0.2338500547
F174: 6 | N174: =IF(A8stdlife="n/a","n/a",IF(N$3>(A8stdlife+$F174),(Input!$M$218*(1+vanilla6)^0.5)-SUM($M174:M174),(Input!$M$218*(1+vanilla6)^0.5)/A8stdlife)) -> 0 | O174: =IF(A8stdlife="n/a","n/a",IF(O$3>(A8stdlife+$F174),(Input!$M$218*(1+vanilla6)^0.5)-SUM($M174:N174),(Input!$M$218*(1+vanilla6)^0.5)/A8stdlife)) -> 0 | P174: =IF(A8stdlife="n/a","n/a",IF(P$3>(A8stdlife+$F174),(Input!$M$218*(1+vanilla6)^0.5)-SUM($M174:O174),(Input!$M$218*(1+vanilla6)^0.5)/A8stdlife)) -> 0 | Q174: =IF(A8stdlife="n/a","n/a",IF(Q$3>(A8stdlife+$F174),(Input!$M$218*(1+vanilla6)^0.5)-SUM($M174:P174),(Input!$M$218*(1+vanilla6)^0.5)/A8stdlife)) -> 0
F175: 7 | O175: =IF(A8stdlife="n/a","n/a",IF(O$3>(A8stdlife+$F175),(Input!$N$218*(1+vanilla7)^0.5)-SUM($N175:N175),(Input!$N$218*(1+vanilla7)^0.5)/A8stdlife)) -> 0 | P175: =IF(A8stdlife="n/a","n/a",IF(P$3>(A8stdlife+$F175),(Input!$N$218*(1+vanilla7)^0.5)-SUM($N175:O175),(Input!$N$218*(1+vanilla7)^0.5)/A8stdlife)) -> 0 | Q175: =IF(A8stdlife="n/a","n/a",IF(Q$3>(A8stdlife+$F175),(Input!$N$218*(1+vanilla7)^0.5)-SUM($N175:P175),(Input!$N$218*(1+vanilla7)^0.5)/A8stdlife)) -> 0
F176: 8 | P176: =IF(A8stdlife="n/a","n/a",IF(P$3>(A8stdlife+$F176),(Input!$O$218*(1+vanilla8)^0.5)-SUM($O176:O176),(Input!$O$218*(1+vanilla8)^0.5)/A8stdlife)) -> 0 | Q176: =IF(A8stdlife="n/a","n/a",IF(Q$3>(A8stdlife+$F176),(Input!$O$218*(1+vanilla8)^0.5)-SUM($O176:P176),(Input!$O$218*(1+vanilla8)^0.5)/A8stdlife)) -> 0
F177: 9 | Q177: =IF(A8stdlife="n/a","n/a",IF(Q$3>(A8stdlife+$F177),(Input!$P$218*(1+vanilla9)^0.5)-SUM($P177:P177),(Input!$P$218*(1+vanilla9)^0.5)/A8stdlife)) -> 0
F178: 10
D179: =Asset8 -> Network Switching Centres | H179: =-SUM(H167:H178) -> -4.618191759 | I179: =-SUM(I167:I178) -> -4.618191759 | J179: =-SUM(J167:J178) -> -4.618191759 | K179: =-SUM(K167:K178) -> -4.825795798 | L179: =-SUM(L167:L178) -> -5.649641589 | M179: =IF(COUNT($H179:L179)>=Input!$W$7,0, -SUM(M167:M178)) -> 0 | N179: =IF(COUNT($H179:M179)>=Input!$W$7,0, -SUM(N167:N178)) -> 0 | O179: =IF(COUNT($H179:N179)>=Input!$W$7,0, -SUM(O167:O178)) -> 0 | P179: =IF(COUNT($H179:O179)>=Input!$W$7,0, -SUM(P167:P178)) -> 0 | Q179: =IF(COUNT($H179:P179)>=Input!$W$7,0, -SUM(Q167:Q178)) -> 0
C180: =Asset9 -> Land | E180: Opening RAB | H180: =IF(H$3>A9remlife,A9value-$G$638-SUM($G180:G180),IF(A9remlife="N/A","n/a",(A9value-$G$638)/A9remlife)) -> n/a | I180: =IF(I$3>A9remlife,A9value-$G$638-SUM($G180:H180),IF(A9remlife="N/A","n/a",(A9value-$G$638)/A9remlife)) -> n/a | J180: =IF(J$3>A9remlife,A9value-$G$638-SUM($G180:I180),IF(A9remlife="N/A","n/a",(A9value-$G$638)/A9remlife)) -> n/a | K180: =IF(K$3>A9remlife,A9value-$G$638-SUM($G180:J180),IF(A9remlife="N/A","n/a",(A9value-$G$638)/A9remlife)) -> n/a | L180: =IF(L$3>A9remlife,A9value-$G$638-SUM($G180:K180),IF(A9remlife="N/A","n/a",(A9value-$G$638)/A9remlife)) -> n/a | M180: =IF(M$3>A9remlife,A9value-$G$638-SUM($G180:L180),IF(A9remlife="N/A","n/a",(A9value-$G$638)/A9remlife)) -> n/a | N180: =IF(N$3>A9remlife,A9value-$G$638-SUM($G180:M180),IF(A9remlife="N/A","n/a",(A9value-$G$638)/A9remlife)) -> n/a | O180: =IF(O$3>A9remlife,A9value-$G$638-SUM($G180:N180),IF(A9remlife="N/A","n/a",(A9value-$G$638)/A9remlife)) -> n/a | P180: =IF(P$3>A9remlife,A9value-$G$638-SUM($G180:O180),IF(A9remlife="N/A","n/a",(A9value-$G$638)/A9remlife)) -> n/a | Q180: =IF(Q$3>A9remlife,A9value-$G$638-SUM($G180:P180),IF(A9remlife="N/A","n/a",(A9value-$G$638)/A9remlife)) -> n/a
E181: Capex in year
F182: 1 | I182: =IF(A9stdlife="n/a","n/a",IF(I$3>(A9stdlife+$F182),(Input!$H$219*(1+vanilla1)^0.5)-SUM($H182:H182),(Input!$H$219*(1+vanilla1)^0.5)/A9stdlife)) -> n/a | J182: =IF(A9stdlife="n/a","n/a",IF(J$3>(A9stdlife+$F182),(Input!$H$219*(1+vanilla1)^0.5)-SUM($H182:I182),(Input!$H$219*(1+vanilla1)^0.5)/A9stdlife)) -> n/a | K182: =IF(A9stdlife="n/a","n/a",IF(K$3>(A9stdlife+$F182),(Input!$H$219*(1+vanilla1)^0.5)-SUM($H182:J182),(Input!$H$219*(1+vanilla1)^0.5)/A9stdlife)) -> n/a | L182: =IF(A9stdlife="n/a","n/a",IF(L$3>(A9stdlife+$F182),(Input!$H$219*(1+vanilla1)^0.5)-SUM($H182:K182),(Input!$H$219*(1+vanilla1)^0.5)/A9stdlife)) -> n/a | M182: =IF(A9stdlife="n/a","n/a",IF(M$3>(A9stdlife+$F182),(Input!$H$219*(1+vanilla1)^0.5)-SUM($H182:L182),(Input!$H$219*(1+vanilla1)^0.5)/A9stdlife)) -> n/a | N182: =IF(A9stdlife="n/a","n/a",IF(N$3>(A9stdlife+$F182),(Input!$H$219*(1+vanilla1)^0.5)-SUM($H182:M182),(Input!$H$219*(1+vanilla1)^0.5)/A9stdlife)) -> n/a | O182: =IF(A9stdlife="n/a","n/a",IF(O$3>(A9stdlife+$F182),(Input!$H$219*(1+vanilla1)^0.5)-SUM($H182:N182),(Input!$H$219*(1+vanilla1)^0.5)/A9stdlife)) -> n/a | P182: =IF(A9stdlife="n/a","n/a",IF(P$3>(A9stdlife+$F182),(Input!$H$219*(1+vanilla1)^0.5)-SUM($H182:O182),(Input!$H$219*(1+vanilla1)^0.5)/A9stdlife)) -> n/a | Q182: =IF(A9stdlife="n/a","n/a",IF(Q$3>(A9stdlife+$F182),(Input!$H$219*(1+vanilla1)^0.5)-SUM($H182:P182),(Input!$H$219*(1+vanilla1)^0.5)/A9stdlife)) -> n/a
F183: 2 | J183: =IF(A9stdlife="n/a","n/a",IF(J$3>(A9stdlife+$F183),(Input!$I$219*(1+vanilla2)^0.5)-SUM($I183:I183),(Input!$I$219*(1+vanilla2)^0.5)/A9stdlife)) -> n/a | K183: =IF(A9stdlife="n/a","n/a",IF(K$3>(A9stdlife+$F183),(Input!$I$219*(1+vanilla2)^0.5)-SUM($I183:J183),(Input!$I$219*(1+vanilla2)^0.5)/A9stdlife)) -> n/a | L183: =IF(A9stdlife="n/a","n/a",IF(L$3>(A9stdlife+$F183),(Input!$I$219*(1+vanilla2)^0.5)-SUM($I183:K183),(Input!$I$219*(1+vanilla2)^0.5)/A9stdlife)) -> n/a | M183: =IF(A9stdlife="n/a","n/a",IF(M$3>(A9stdlife+$F183),(Input!$I$219*(1+vanilla2)^0.5)-SUM($I183:L183),(Input!$I$219*(1+vanilla2)^0.5)/A9stdlife)) -> n/a | N183: =IF(A9stdlife="n/a","n/a",IF(N$3>(A9stdlife+$F183),(Input!$I$219*(1+vanilla2)^0.5)-SUM($I183:M183),(Input!$I$219*(1+vanilla2)^0.5)/A9stdlife)) -> n/a | O183: =IF(A9stdlife="n/a","n/a",IF(O$3>(A9stdlife+$F183),(Input!$I$219*(1+vanilla2)^0.5)-SUM($I183:N183),(Input!$I$219*(1+vanilla2)^0.5)/A9stdlife)) -> n/a | P183: =IF(A9stdlife="n/a","n/a",IF(P$3>(A9stdlife+$F183),(Input!$I$219*(1+vanilla2)^0.5)-SUM($I183:O183),(Input!$I$219*(1+vanilla2)^0.5)/A9stdlife)) -> n/a | Q183: =IF(A9stdlife="n/a","n/a",IF(Q$3>(A9stdlife+$F183),(Input!$I$219*(1+vanilla2)^0.5)-SUM($I183:P183),(Input!$I$219*(1+vanilla2)^0.5)/A9stdlife)) -> n/a
F184: 3 | K184: =IF(A9stdlife="n/a","n/a",IF(K$3>(A9stdlife+$F184),(Input!$J$219*(1+vanilla3)^0.5)-SUM($J184:J184),(Input!$J$219*(1+vanilla3)^0.5)/A9stdlife)) -> n/a | L184: =IF(A9stdlife="n/a","n/a",IF(L$3>(A9stdlife+$F184),(Input!$J$219*(1+vanilla3)^0.5)-SUM($J184:K184),(Input!$J$219*(1+vanilla3)^0.5)/A9stdlife)) -> n/a | M184: =IF(A9stdlife="n/a","n/a",IF(M$3>(A9stdlife+$F184),(Input!$J$219*(1+vanilla3)^0.5)-SUM($J184:L184),(Input!$J$219*(1+vanilla3)^0.5)/A9stdlife)) -> n/a | N184: =IF(A9stdlife="n/a","n/a",IF(N$3>(A9stdlife+$F184),(Input!$J$219*(1+vanilla3)^0.5)-SUM($J184:M184),(Input!$J$219*(1+vanilla3)^0.5)/A9stdlife)) -> n/a | O184: =IF(A9stdlife="n/a","n/a",IF(O$3>(A9stdlife+$F184),(Input!$J$219*(1+vanilla3)^0.5)-SUM($J184:N184),(Input!$J$219*(1+vanilla3)^0.5)/A9stdlife)) -> n/a | P184: =IF(A9stdlife="n/a","n/a",IF(P$3>(A9stdlife+$F184),(Input!$J$219*(1+vanilla3)^0.5)-SUM($J184:O184),(Input!$J$219*(1+vanilla3)^0.5)/A9stdlife)) -> n/a | Q184: =IF(A9stdlife="n/a","n/a",IF(Q$3>(A9stdlife+$F184),(Input!$J$219*(1+vanilla3)^0.5)-SUM($J184:P184),(Input!$J$219*(1+vanilla3)^0.5)/A9stdlife)) -> n/a
F185: 4 | L185: =IF(A9stdlife="n/a","n/a",IF(L$3>(A9stdlife+$F185),(Input!$K$219*(1+vanilla4)^0.5)-SUM($K185:K185),(Input!$K$219*(1+vanilla4)^0.5)/A9stdlife)) -> n/a | M185: =IF(A9stdlife="n/a","n/a",IF(M$3>(A9stdlife+$F185),(Input!$K$219*(1+vanilla4)^0.5)-SUM($K185:L185),(Input!$K$219*(1+vanilla4)^0.5)/A9stdlife)) -> n/a | N185: =IF(A9stdlife="n/a","n/a",IF(N$3>(A9stdlife+$F185),(Input!$K$219*(1+vanilla4)^0.5)-SUM($K185:M185),(Input!$K$219*(1+vanilla4)^0.5)/A9stdlife)) -> n/a | O185: =IF(A9stdlife="n/a","n/a",IF(O$3>(A9stdlife+$F185),(Input!$K$219*(1+vanilla4)^0.5)-SUM($K185:N185),(Input!$K$219*(1+vanilla4)^0.5)/A9stdlife)) -> n/a | P185: =IF(A9stdlife="n/a","n/a",IF(P$3>(A9stdlife+$F185),(Input!$K$219*(1+vanilla4)^0.5)-SUM($K185:O185),(Input!$K$219*(1+vanilla4)^0.5)/A9stdlife)) -> n/a | Q185: =IF(A9stdlife="n/a","n/a",IF(Q$3>(A9stdlife+$F185),(Input!$K$219*(1+vanilla4)^0.5)-SUM($K185:P185),(Input!$K$219*(1+vanilla4)^0.5)/A9stdlife)) -> n/a
F186: 5 | M186: =IF(A9stdlife="n/a","n/a",IF(M$3>(A9stdlife+$F186),(Input!$L$219*(1+vanilla5)^0.5)-SUM($L186:L186),(Input!$L$219*(1+vanilla5)^0.5)/A9stdlife)) -> n/a | N186: =IF(A9stdlife="n/a","n/a",IF(N$3>(A9stdlife+$F186),(Input!$L$219*(1+vanilla5)^0.5)-SUM($L186:M186),(Input!$L$219*(1+vanilla5)^0.5)/A9stdlife)) -> n/a | O186: =IF(A9stdlife="n/a","n/a",IF(O$3>(A9stdlife+$F186),(Input!$L$219*(1+vanilla5)^0.5)-SUM($L186:N186),(Input!$L$219*(1+vanilla5)^0.5)/A9stdlife)) -> n/a | P186: =IF(A9stdlife="n/a","n/a",IF(P$3>(A9stdlife+$F186),(Input!$L$219*(1+vanilla5)^0.5)-SUM($L186:O186),(Input!$L$219*(1+vanilla5)^0.5)/A9stdlife)) -> n/a | Q186: =IF(A9stdlife="n/a","n/a",IF(Q$3>(A9stdlife+$F186),(Input!$L$219*(1+vanilla5)^0.5)-SUM($L186:P186),(Input!$L$219*(1+vanilla5)^0.5)/A9stdlife)) -> n/a
F187: 6 | N187: =IF(A9stdlife="n/a","n/a",IF(N$3>(A9stdlife+$F187),(Input!$M$219*(1+vanilla6)^0.5)-SUM($M187:M187),(Input!$M$219*(1+vanilla6)^0.5)/A9stdlife)) -> n/a | O187: =IF(A9stdlife="n/a","n/a",IF(O$3>(A9stdlife+$F187),(Input!$M$219*(1+vanilla6)^0.5)-SUM($M187:N187),(Input!$M$219*(1+vanilla6)^0.5)/A9stdlife)) -> n/a | P187: =IF(A9stdlife="n/a","n/a",IF(P$3>(A9stdlife+$F187),(Input!$M$219*(1+vanilla6)^0.5)-SUM($M187:O187),(Input!$M$219*(1+vanilla6)^0.5)/A9stdlife)) -> n/a | Q187: =IF(A9stdlife="n/a","n/a",IF(Q$3>(A9stdlife+$F187),(Input!$M$219*(1+vanilla6)^0.5)-SUM($M187:P187),(Input!$M$219*(1+vanilla6)^0.5)/A9stdlife)) -> n/a
F188: 7 | O188: =IF(A9stdlife="n/a","n/a",IF(O$3>(A9stdlife+$F188),(Input!$N$219*(1+vanilla7)^0.5)-SUM($N188:N188),(Input!$N$219*(1+vanilla7)^0.5)/A9stdlife)) -> n/a | P188: =IF(A9stdlife="n/a","n/a",IF(P$3>(A9stdlife+$F188),(Input!$N$219*(1+vanilla7)^0.5)-SUM($N188:O188),(Input!$N$219*(1+vanilla7)^0.5)/A9stdlife)) -> n/a | Q188: =IF(A9stdlife="n/a","n/a",IF(Q$3>(A9stdlife+$F188),(Input!$N$219*(1+vanilla7)^0.5)-SUM($N188:P188),(Input!$N$219*(1+vanilla7)^0.5)/A9stdlife)) -> n/a
F189: 8 | P189: =IF(A9stdlife="n/a","n/a",IF(P$3>(A9stdlife+$F189),(Input!$O$219*(1+vanilla8)^0.5)-SUM($O189:O189),(Input!$O$219*(1+vanilla8)^0.5)/A9stdlife)) -> n/a | Q189: =IF(A9stdlife="n/a","n/a",IF(Q$3>(A9stdlife+$F189),(Input!$O$219*(1+vanilla8)^0.5)-SUM($O189:P189),(Input!$O$219*(1+vanilla8)^0.5)/A9stdlife)) -> n/a
F190: 9 | Q190: =IF(A9stdlife="n/a","n/a",IF(Q$3>(A9stdlife+$F190),(Input!$P$219*(1+vanilla9)^0.5)-SUM($P190:P190),(Input!$P$219*(1+vanilla9)^0.5)/A9stdlife)) -> n/a
F191: 10
D192: =Asset9 -> Land | H192: =-SUM(H180:H191) -> 0 | I192: =-SUM(I180:I191) -> 0 | J192: =-SUM(J180:J191) -> 0 | K192: =-SUM(K180:K191) -> 0 | L192: =-SUM(L180:L191) -> 0 | M192: =IF(COUNT($H192:L192)>=Input!$W$7,0, -SUM(M180:M191)) -> 0 | N192: =IF(COUNT($H192:M192)>=Input!$W$7,0, -SUM(N180:N191)) -> 0 | O192: =IF(COUNT($H192:N192)>=Input!$W$7,0, -SUM(O180:O191)) -> 0 | P192: =IF(COUNT($H192:O192)>=Input!$W$7,0, -SUM(P180:P191)) -> 0 | Q192: =IF(COUNT($H192:P192)>=Input!$W$7,0, -SUM(Q180:Q191)) -> 0
C193: =Asset10 -> Easements | E193: Opening RAB | H193: =IF(H$3>A10remlife,A10value-$G$639-SUM($G193:G193),IF(A10remlife="N/A","n/a",(A10value-$G$639)/A10remlife)) -> n/a | I193: =IF(I$3>A10remlife,A10value-$G$639-SUM($G193:H193),IF(A10remlife="N/A","n/a",(A10value-$G$639)/A10remlife)) -> n/a | J193: =IF(J$3>A10remlife,A10value-$G$639-SUM($G193:I193),IF(A10remlife="N/A","n/a",(A10value-$G$639)/A10remlife)) -> n/a | K193: =IF(K$3>A10remlife,A10value-$G$639-SUM($G193:J193),IF(A10remlife="N/A","n/a",(A10value-$G$639)/A10remlife)) -> n/a | L193: =IF(L$3>A10remlife,A10value-$G$639-SUM($G193:K193),IF(A10remlife="N/A","n/a",(A10value-$G$639)/A10remlife)) -> n/a | M193: =IF(M$3>A10remlife,A10value-$G$639-SUM($G193:L193),IF(A10remlife="N/A","n/a",(A10value-$G$639)/A10remlife)) -> n/a | N193: =IF(N$3>A10remlife,A10value-$G$639-SUM($G193:M193),IF(A10remlife="N/A","n/a",(A10value-$G$639)/A10remlife)) -> n/a | O193: =IF(O$3>A10remlife,A10value-$G$639-SUM($G193:N193),IF(A10remlife="N/A","n/a",(A10value-$G$639)/A10remlife)) -> n/a | P193: =IF(P$3>A10remlife,A10value-$G$639-SUM($G193:O193),IF(A10remlife="N/A","n/a",(A10value-$G$639)/A10remlife)) -> n/a | Q193: =IF(Q$3>A10remlife,A10value-$G$639-SUM($G193:P193),IF(A10remlife="N/A","n/a",(A10value-$G$639)/A10remlife)) -> n/a
E194: Capex in year
F195: 1 | I195: =IF(A10stdlife="n/a","n/a",IF(I$3>(A10stdlife+$F195),(Input!$H$220*(1+vanilla1)^0.5)-SUM($H195:H195),(Input!$H$220*(1+vanilla1)^0.5)/A10stdlife)) -> n/a | J195: =IF(A10stdlife="n/a","n/a",IF(J$3>(A10stdlife+$F195),(Input!$H$220*(1+vanilla1)^0.5)-SUM($H195:I195),(Input!$H$220*(1+vanilla1)^0.5)/A10stdlife)) -> n/a | K195: =IF(A10stdlife="n/a","n/a",IF(K$3>(A10stdlife+$F195),(Input!$H$220*(1+vanilla1)^0.5)-SUM($H195:J195),(Input!$H$220*(1+vanilla1)^0.5)/A10stdlife)) -> n/a | L195: =IF(A10stdlife="n/a","n/a",IF(L$3>(A10stdlife+$F195),(Input!$H$220*(1+vanilla1)^0.5)-SUM($H195:K195),(Input!$H$220*(1+vanilla1)^0.5)/A10stdlife)) -> n/a | M195: =IF(A10stdlife="n/a","n/a",IF(M$3>(A10stdlife+$F195),(Input!$H$220*(1+vanilla1)^0.5)-SUM($H195:L195),(Input!$H$220*(1+vanilla1)^0.5)/A10stdlife)) -> n/a | N195: =IF(A10stdlife="n/a","n/a",IF(N$3>(A10stdlife+$F195),(Input!$H$220*(1+vanilla1)^0.5)-SUM($H195:M195),(Input!$H$220*(1+vanilla1)^0.5)/A10stdlife)) -> n/a | O195: =IF(A10stdlife="n/a","n/a",IF(O$3>(A10stdlife+$F195),(Input!$H$220*(1+vanilla1)^0.5)-SUM($H195:N195),(Input!$H$220*(1+vanilla1)^0.5)/A10stdlife)) -> n/a | P195: =IF(A10stdlife="n/a","n/a",IF(P$3>(A10stdlife+$F195),(Input!$H$220*(1+vanilla1)^0.5)-SUM($H195:O195),(Input!$H$220*(1+vanilla1)^0.5)/A10stdlife)) -> n/a | Q195: =IF(A10stdlife="n/a","n/a",IF(Q$3>(A10stdlife+$F195),(Input!$H$220*(1+vanilla1)^0.5)-SUM($H195:P195),(Input!$H$220*(1+vanilla1)^0.5)/A10stdlife)) -> n/a
F196: 2 | J196: =IF(A10stdlife="n/a","n/a",IF(J$3>(A10stdlife+$F196),(Input!$I$220*(1+vanilla2)^0.5)-SUM($I196:I196),(Input!$I$220*(1+vanilla2)^0.5)/A10stdlife)) -> n/a | K196: =IF(A10stdlife="n/a","n/a",IF(K$3>(A10stdlife+$F196),(Input!$I$220*(1+vanilla2)^0.5)-SUM($I196:J196),(Input!$I$220*(1+vanilla2)^0.5)/A10stdlife)) -> n/a | L196: =IF(A10stdlife="n/a","n/a",IF(L$3>(A10stdlife+$F196),(Input!$I$220*(1+vanilla2)^0.5)-SUM($I196:K196),(Input!$I$220*(1+vanilla2)^0.5)/A10stdlife)) -> n/a | M196: =IF(A10stdlife="n/a","n/a",IF(M$3>(A10stdlife+$F196),(Input!$I$220*(1+vanilla2)^0.5)-SUM($I196:L196),(Input!$I$220*(1+vanilla2)^0.5)/A10stdlife)) -> n/a | N196: =IF(A10stdlife="n/a","n/a",IF(N$3>(A10stdlife+$F196),(Input!$I$220*(1+vanilla2)^0.5)-SUM($I196:M196),(Input!$I$220*(1+vanilla2)^0.5)/A10stdlife)) -> n/a | O196: =IF(A10stdlife="n/a","n/a",IF(O$3>(A10stdlife+$F196),(Input!$I$220*(1+vanilla2)^0.5)-SUM($I196:N196),(Input!$I$220*(1+vanilla2)^0.5)/A10stdlife)) -> n/a | P196: =IF(A10stdlife="n/a","n/a",IF(P$3>(A10stdlife+$F196),(Input!$I$220*(1+vanilla2)^0.5)-SUM($I196:O196),(Input!$I$220*(1+vanilla2)^0.5)/A10stdlife)) -> n/a | Q196: =IF(A10stdlife="n/a","n/a",IF(Q$3>(A10stdlife+$F196),(Input!$I$220*(1+vanilla2)^0.5)-SUM($I196:P196),(Input!$I$220*(1+vanilla2)^0.5)/A10stdlife)) -> n/a
F197: 3 | K197: =IF(A10stdlife="n/a","n/a",IF(K$3>(A10stdlife+$F197),(Input!$J$220*(1+vanilla3)^0.5)-SUM($J197:J197),(Input!$J$220*(1+vanilla3)^0.5)/A10stdlife)) -> n/a | L197: =IF(A10stdlife="n/a","n/a",IF(L$3>(A10stdlife+$F197),(Input!$J$220*(1+vanilla3)^0.5)-SUM($J197:K197),(Input!$J$220*(1+vanilla3)^0.5)/A10stdlife)) -> n/a | M197: =IF(A10stdlife="n/a","n/a",IF(M$3>(A10stdlife+$F197),(Input!$J$220*(1+vanilla3)^0.5)-SUM($J197:L197),(Input!$J$220*(1+vanilla3)^0.5)/A10stdlife)) -> n/a | N197: =IF(A10stdlife="n/a","n/a",IF(N$3>(A10stdlife+$F197),(Input!$J$220*(1+vanilla3)^0.5)-SUM($J197:M197),(Input!$J$220*(1+vanilla3)^0.5)/A10stdlife)) -> n/a | O197: =IF(A10stdlife="n/a","n/a",IF(O$3>(A10stdlife+$F197),(Input!$J$220*(1+vanilla3)^0.5)-SUM($J197:N197),(Input!$J$220*(1+vanilla3)^0.5)/A10stdlife)) -> n/a | P197: =IF(A10stdlife="n/a","n/a",IF(P$3>(A10stdlife+$F197),(Input!$J$220*(1+vanilla3)^0.5)-SUM($J197:O197),(Input!$J$220*(1+vanilla3)^0.5)/A10stdlife)) -> n/a | Q197: =IF(A10stdlife="n/a","n/a",IF(Q$3>(A10stdlife+$F197),(Input!$J$220*(1+vanilla3)^0.5)-SUM($J197:P197),(Input!$J$220*(1+vanilla3)^0.5)/A10stdlife)) -> n/a
F198: 4 | L198: =IF(A10stdlife="n/a","n/a",IF(L$3>(A10stdlife+$F198),(Input!$K$220*(1+vanilla4)^0.5)-SUM($K198:K198),(Input!$K$220*(1+vanilla4)^0.5)/A10stdlife)) -> n/a | M198: =IF(A10stdlife="n/a","n/a",IF(M$3>(A10stdlife+$F198),(Input!$K$220*(1+vanilla4)^0.5)-SUM($K198:L198),(Input!$K$220*(1+vanilla4)^0.5)/A10stdlife)) -> n/a | N198: =IF(A10stdlife="n/a","n/a",IF(N$3>(A10stdlife+$F198),(Input!$K$220*(1+vanilla4)^0.5)-SUM($K198:M198),(Input!$K$220*(1+vanilla4)^0.5)/A10stdlife)) -> n/a | O198: =IF(A10stdlife="n/a","n/a",IF(O$3>(A10stdlife+$F198),(Input!$K$220*(1+vanilla4)^0.5)-SUM($K198:N198),(Input!$K$220*(1+vanilla4)^0.5)/A10stdlife)) -> n/a | P198: =IF(A10stdlife="n/a","n/a",IF(P$3>(A10stdlife+$F198),(Input!$K$220*(1+vanilla4)^0.5)-SUM($K198:O198),(Input!$K$220*(1+vanilla4)^0.5)/A10stdlife)) -> n/a | Q198: =IF(A10stdlife="n/a","n/a",IF(Q$3>(A10stdlife+$F198),(Input!$K$220*(1+vanilla4)^0.5)-SUM($K198:P198),(Input!$K$220*(1+vanilla4)^0.5)/A10stdlife)) -> n/a
F199: 5 | M199: =IF(A10stdlife="n/a","n/a",IF(M$3>(A10stdlife+$F199),(Input!$L$220*(1+vanilla5)^0.5)-SUM($L199:L199),(Input!$L$220*(1+vanilla5)^0.5)/A10stdlife)) -> n/a | N199: =IF(A10stdlife="n/a","n/a",IF(N$3>(A10stdlife+$F199),(Input!$L$220*(1+vanilla5)^0.5)-SUM($L199:M199),(Input!$L$220*(1+vanilla5)^0.5)/A10stdlife)) -> n/a | O199: =IF(A10stdlife="n/a","n/a",IF(O$3>(A10stdlife+$F199),(Input!$L$220*(1+vanilla5)^0.5)-SUM($L199:N199),(Input!$L$220*(1+vanilla5)^0.5)/A10stdlife)) -> n/a | P199: =IF(A10stdlife="n/a","n/a",IF(P$3>(A10stdlife+$F199),(Input!$L$220*(1+vanilla5)^0.5)-SUM($L199:O199),(Input!$L$220*(1+vanilla5)^0.5)/A10stdlife)) -> n/a | Q199: =IF(A10stdlife="n/a","n/a",IF(Q$3>(A10stdlife+$F199),(Input!$L$220*(1+vanilla5)^0.5)-SUM($L199:P199),(Input!$L$220*(1+vanilla5)^0.5)/A10stdlife)) -> n/a
F200: 6 | N200: =IF(A10stdlife="n/a","n/a",IF(N$3>(A10stdlife+$F200),(Input!$M$220*(1+vanilla6)^0.5)-SUM($M200:M200),(Input!$M$220*(1+vanilla6)^0.5)/A10stdlife)) -> n/a | O200: =IF(A10stdlife="n/a","n/a",IF(O$3>(A10stdlife+$F200),(Input!$M$220*(1+vanilla6)^0.5)-SUM($M200:N200),(Input!$M$220*(1+vanilla6)^0.5)/A10stdlife)) -> n/a | P200: =IF(A10stdlife="n/a","n/a",IF(P$3>(A10stdlife+$F200),(Input!$M$220*(1+vanilla6)^0.5)-SUM($M200:O200),(Input!$M$220*(1+vanilla6)^0.5)/A10stdlife)) -> n/a | Q200: =IF(A10stdlife="n/a","n/a",IF(Q$3>(A10stdlife+$F200),(Input!$M$220*(1+vanilla6)^0.5)-SUM($M200:P200),(Input!$M$220*(1+vanilla6)^0.5)/A10stdlife)) -> n/a
F201: 7 | O201: =IF(A10stdlife="n/a","n/a",IF(O$3>(A10stdlife+$F201),(Input!$N$220*(1+vanilla7)^0.5)-SUM($N201:N201),(Input!$N$220*(1+vanilla7)^0.5)/A10stdlife)) -> n/a | P201: =IF(A10stdlife="n/a","n/a",IF(P$3>(A10stdlife+$F201),(Input!$N$220*(1+vanilla7)^0.5)-SUM($N201:O201),(Input!$N$220*(1+vanilla7)^0.5)/A10stdlife)) -> n/a | Q201: =IF(A10stdlife="n/a","n/a",IF(Q$3>(A10stdlife+$F201),(Input!$N$220*(1+vanilla7)^0.5)-SUM($N201:P201),(Input!$N$220*(1+vanilla7)^0.5)/A10stdlife)) -> n/a
F202: 8 | P202: =IF(A10stdlife="n/a","n/a",IF(P$3>(A10stdlife+$F202),(Input!$O$220*(1+vanilla8)^0.5)-SUM($O202:O202),(Input!$O$220*(1+vanilla8)^0.5)/A10stdlife)) -> n/a | Q202: =IF(A10stdlife="n/a","n/a",IF(Q$3>(A10stdlife+$F202),(Input!$O$220*(1+vanilla8)^0.5)-SUM($O202:P202),(Input!$O$220*(1+vanilla8)^0.5)/A10stdlife)) -> n/a
F203: 9 | Q203: =IF(A10stdlife="n/a","n/a",IF(Q$3>(A10stdlife+$F203),(Input!$P$220*(1+vanilla9)^0.5)-SUM($P203:P203),(Input!$P$220*(1+vanilla9)^0.5)/A10stdlife)) -> n/a
F204: 10
D205: =Asset10 -> Easements | H205: =-SUM(H193:H204) -> 0 | I205: =-SUM(I193:I204) -> 0 | J205: =-SUM(J193:J204) -> 0 | K205: =-SUM(K193:K204) -> 0 | L205: =-SUM(L193:L204) -> 0 | M205: =IF(COUNT($H205:L205)>=Input!$W$7,0, -SUM(M193:M204)) -> 0 | N205: =IF(COUNT($H205:M205)>=Input!$W$7,0, -SUM(N193:N204)) -> 0 | O205: =IF(COUNT($H205:N205)>=Input!$W$7,0, -SUM(O193:O204)) -> 0 | P205: =IF(COUNT($H205:O205)>=Input!$W$7,0, -SUM(P193:P204)) -> 0 | Q205: =IF(COUNT($H205:P205)>=Input!$W$7,0, -SUM(Q193:Q204)) -> 0
... 727 more rows

Sheet Total actual RAB roll forward
C1: ='Powerlink information'!$B$8 -> Powerlink - RFM - data at 16 January 2012
C2: ="Total Asset Base Roll Forward - RFM "&Intro!L4 -> Total Asset Base Roll Forward - RFM Version: 2.0
G3: 0 | H3: =G3+1 -> 1 | I3: 2 | J3: 3 | K3: 4 | L3: 5 | M3: 6
C4: Year | G4: =Input!G40 -> 2006-07 | H4: =Input!H40 -> 2007-08 | I4: =Input!I40 -> 2008-09 | J4: =Input!J40 -> 2009-10 | K4: =Input!K40 -> 2010-11 | L4: =Input!L40 -> 2011-12 | M4: =Input!M40 -> 2012-13 | N4: =Input!N40 -> 2013-14 | O4: =Input!O40 -> 2014-15 | P4: =Input!P40 -> 2015-16 | Q4: =Input!Q40 -> 2016-17
C5: Asset Values – Partially As Incurred ($m Nominal)
C7: Nominal Opening Regulatory Asset Base | G7: =SUM(G8:G37) -> 3007.529205 | H7: =SUM(H8:H37) -> 3752.832877 | I7: =SUM(I8:I37) -> 4448.097724 | J7: 5016.032927 | K7: 5429.658459 | L7: 5840.324248 | M7: 0 | N7: 0 | O7: 0 | P7: 0 | Q7: =SUM(Q8:Q37) -> 0
D8: =Asset1 -> Transmission Lines - Overhead | G8: ='Actual RAB roll forward'!G470 -> 1567.120337 | H8: =G8+G40+G72+G104+G136+G168 -> 1809.70268 | I8: =H8+H40+H72 -> 2160.129467 | J8: 2466.557314 | K8: 2717.303254 | L8: 2904.147179 | M8: =IF(COUNT($H8:L8)>=Input!$W$7,0,L8+L40+L72) -> 0 | N8: =IF(COUNT($H8:M8)>=Input!$W$7,0,M8+M40+M72) -> 0 | O8: =IF(COUNT($H8:N8)>=Input!$W$7,0,N8+N40+N72) -> 0 | P8: =IF(COUNT($H8:O8)>=Input!$W$7,0,O8+O40+O72) -> 0 | Q8: =IF(COUNT($H8:P8)>=Input!$W$7,0,P8+P40+P72) -> 0
D9: =Asset2 -> Transmission Lines - Underground | G9: ='Actual RAB roll forward'!G471 -> 29.99073556 | H9: 27.57393502 | I9: 27.44418682 | J9: 26.76653555 | K9: 26.01598103 | L9: 24.98462873 | M9: =IF(COUNT($H9:L9)>=Input!$W$7,0,L9+L41+L73) -> 0 | N9: =IF(COUNT($H9:M9)>=Input!$W$7,0,M9+M41+M73) -> 0 | O9: =IF(COUNT($H9:N9)>=Input!$W$7,0,N9+N41+N73) -> 0 | P9: =IF(COUNT($H9:O9)>=Input!$W$7,0,O9+O41+O73) -> 0 | Q9: =IF(COUNT($H9:P9)>=Input!$W$7,0,P9+P41+P73) -> 0
D10: =Asset3 -> Transmission Lines - Refit | G10: ='Actual RAB roll forward'!G472 -> 0 | H10: 0 | I10: 0 | J10: 0 | K10: 0 | L10: 0 | M10: =IF(COUNT($H10:L10)>=Input!$W$7,0,L10+L42+L74) -> 0 | N10: =IF(COUNT($H10:M10)>=Input!$W$7,0,M10+M42+M74) -> 0 | O10: =IF(COUNT($H10:N10)>=Input!$W$7,0,N10+N42+N74) -> 0 | P10: =IF(COUNT($H10:O10)>=Input!$W$7,0,O10+O42+O74) -> 0 | Q10: =IF(COUNT($H10:P10)>=Input!$W$7,0,P10+P42+P74) -> 0
D11: =Asset4 -> Substations Primary Plant | G11: ='Actual RAB roll forward'!G473 -> 865.8956695 | H11: 1040.288713 | I11: 1263.295748 | J11: 1437.572806 | K11: 1520.446798 | L11: 1653.251561 | M11: =IF(COUNT($H11:L11)>=Input!$W$7,0,L11+L43+L75) -> 0 | N11: =IF(COUNT($H11:M11)>=Input!$W$7,0,M11+M43+M75) -> 0 | O11: =IF(COUNT($H11:N11)>=Input!$W$7,0,N11+N43+N75) -> 0 | P11: =IF(COUNT($H11:O11)>=Input!$W$7,0,O11+O43+O75) -> 0 | Q11: =IF(COUNT($H11:P11)>=Input!$W$7,0,P11+P43+P75) -> 0
D12: =Asset5 -> Substations Secondary Systems | G12: ='Actual RAB roll forward'!G474 -> 131.5955045 | H12: 310.4296691 | I12: 383.9417536 | J12: 437.8709356 | K12: 472.2417002 | L12: 507.1057827 | M12: =IF(COUNT($H12:L12)>=Input!$W$7,0,L12+L44+L76) -> 0 | N12: =IF(COUNT($H12:M12)>=Input!$W$7,0,M12+M44+M76) -> 0 | O12: =IF(COUNT($H12:N12)>=Input!$W$7,0,N12+N44+N76) -> 0 | P12: =IF(COUNT($H12:O12)>=Input!$W$7,0,O12+O44+O76) -> 0 | Q12: =IF(COUNT($H12:P12)>=Input!$W$7,0,P12+P44+P76) -> 0
D13: =Asset6 -> Communications Other Assets | G13: ='Actual RAB roll forward'!G475 -> 55.59190711 | H13: 59.95986899 | I13: 71.05037891 | J13: 83.95799535 | K13: 93.99138696 | L13: 100.4498059 | M13: =IF(COUNT($H13:L13)>=Input!$W$7,0,L13+L45+L77) -> 0 | N13: =IF(COUNT($H13:M13)>=Input!$W$7,0,M13+M45+M77) -> 0 | O13: =IF(COUNT($H13:N13)>=Input!$W$7,0,N13+N45+N77) -> 0 | P13: =IF(COUNT($H13:O13)>=Input!$W$7,0,O13+O45+O77) -> 0 | Q13: =IF(COUNT($H13:P13)>=Input!$W$7,0,P13+P45+P77) -> 0
D14: =Asset7 -> Comms - Civil Works | G14: ='Actual RAB roll forward'!G476 -> 21.38263998 | H14: 11.6727832 | I14: 11.66380722 | J14: 11.41979682 | K14: 11.20269934 | L14: 10.90987398 | M14: =IF(COUNT($H14:L14)>=Input!$W$7,0,L14+L46+L78) -> 0 | N14: =IF(COUNT($H14:M14)>=Input!$W$7,0,M14+M46+M78) -> 0 | O14: =IF(COUNT($H14:N14)>=Input!$W$7,0,N14+N46+N78) -> 0 | P14: =IF(COUNT($H14:O14)>=Input!$W$7,0,O14+O46+O78) -> 0 | Q14: =IF(COUNT($H14:P14)>=Input!$W$7,0,P14+P46+P78) -> 0
D15: =Asset8 -> Network Switching Centres | G15: ='Actual RAB roll forward'!G477 -> 21.92551084 | H15: 25.89681775 | I15: 23.1808747 | J15: 23.70437909 | K15: 22.70698905 | L15: 23.81666732 | M15: =IF(COUNT($H15:L15)>=Input!$W$7,0,L15+L47+L79) -> 0 | N15: =IF(COUNT($H15:M15)>=Input!$W$7,0,M15+M47+M79) -> 0 | O15: =IF(COUNT($H15:N15)>=Input!$W$7,0,N15+N47+N79) -> 0 | P15: =IF(COUNT($H15:O15)>=Input!$W$7,0,O15+O47+O79) -> 0 | Q15: =IF(COUNT($H15:P15)>=Input!$W$7,0,P15+P47+P79) -> 0
D16: =Asset9 -> Land | G16: ='Actual RAB roll forward'!G478 -> 38.0068623 | H16: 80.9957639 | I16: 92.33825738 | J16: 100.5374128 | K16: 107.8625157 | L16: 117.3528558 | M16: =IF(COUNT($H16:L16)>=Input!$W$7,0,L16+L48+L80) -> 0 | N16: =IF(COUNT($H16:M16)>=Input!$W$7,0,M16+M48+M80) -> 0 | O16: =IF(COUNT($H16:N16)>=Input!$W$7,0,N16+N48+N80) -> 0 | P16: =IF(COUNT($H16:O16)>=Input!$W$7,0,O16+O48+O80) -> 0 | Q16: =IF(COUNT($H16:P16)>=Input!$W$7,0,P16+P48+P80) -> 0
D17: =Asset10 -> Easements | G17: ='Actual RAB roll forward'!G479 -> 193.9343875 | H17: 251.2999929 | I17: 278.2039657 | J17: 301.7022606 | K17: 323.1670924 | L17: 345.3668863 | M17: =IF(COUNT($H17:L17)>=Input!$W$7,0,L17+L49+L81) -> 0 | N17: =IF(COUNT($H17:M17)>=Input!$W$7,0,M17+M49+M81) -> 0 | O17: =IF(COUNT($H17:N17)>=Input!$W$7,0,N17+N49+N81) -> 0 | P17: =IF(COUNT($H17:O17)>=Input!$W$7,0,O17+O49+O81) -> 0 | Q17: =IF(COUNT($H17:P17)>=Input!$W$7,0,P17+P49+P81) -> 0
D18: =Asset11 -> 0 | G18: ='Actual RAB roll forward'!G480 -> 0 | H18: 0.0005148289585 | I18: 0.0005366661765 | J18: 0.0005499008541 | K18: 0.0005657929888 | L18: 0.0005846338953 | M18: =IF(COUNT($H18:L18)>=Input!$W$7,0,L18+L50+L82) -> 0 | N18: =IF(COUNT($H18:M18)>=Input!$W$7,0,M18+M50+M82) -> 0 | O18: =IF(COUNT($H18:N18)>=Input!$W$7,0,N18+N50+N82) -> 0 | P18: =IF(COUNT($H18:O18)>=Input!$W$7,0,O18+O50+O82) -> 0 | Q18: =IF(COUNT($H18:P18)>=Input!$W$7,0,P18+P50+P82) -> 0
D19: =Asset12 -> Commercial Buildings | G19: ='Actual RAB roll forward'!G481 -> 17.13887952 | H19: 44.32604734 | I19: 49.34893436 | J19: 53.18325074 | K19: 64.18599548 | L19: 79.84064772 | M19: =IF(COUNT($H19:L19)>=Input!$W$7,0,L19+L51+L83) -> 0 | N19: =IF(COUNT($H19:M19)>=Input!$W$7,0,M19+M51+M83) -> 0 | O19: =IF(COUNT($H19:N19)>=Input!$W$7,0,N19+N51+N83) -> 0 | P19: =IF(COUNT($H19:O19)>=Input!$W$7,0,O19+O51+O83) -> 0 | Q19: =IF(COUNT($H19:P19)>=Input!$W$7,0,P19+P51+P83) -> 0
D20: =Asset13 -> Computer Equipment | G20: ='Actual RAB roll forward'!G482 -> 31.289478 | H20: 49.00777666 | I20: 41.14363497 | J20: 33.27981476 | K20: 36.06671296 | L20: 42.48705535 | M20: =IF(COUNT($H20:L20)>=Input!$W$7,0,L20+L52+L84) -> 0 | N20: =IF(COUNT($H20:M20)>=Input!$W$7,0,M20+M52+M84) -> 0 | O20: =IF(COUNT($H20:N20)>=Input!$W$7,0,N20+N52+N84) -> 0 | P20: =IF(COUNT($H20:O20)>=Input!$W$7,0,O20+O52+O84) -> 0 | Q20: =IF(COUNT($H20:P20)>=Input!$W$7,0,P20+P52+P84) -> 0
D21: =Asset14 -> Office Furniture & Miscellaneous | G21: ='Actual RAB roll forward'!G483 -> 0.03524011134 | H21: 2.715644041 | I21: 2.386083763 | J21: 1.822319958 | K21: 1.220287635 | L21: 0.5873050897 | M21: =IF(COUNT($H21:L21)>=Input!$W$7,0,L21+L53+L85) -> 0 | N21: =IF(COUNT($H21:M21)>=Input!$W$7,0,M21+M53+M85) -> 0 | O21: =IF(COUNT($H21:N21)>=Input!$W$7,0,N21+N53+N85) -> 0 | P21: =IF(COUNT($H21:O21)>=Input!$W$7,0,O21+O53+O85) -> 0 | Q21: =IF(COUNT($H21:P21)>=Input!$W$7,0,P21+P53+P85) -> 0
D22: =Asset15 -> Office Machines | G22: ='Actual RAB roll forward'!G484 -> 0.3429969924 | H22: 0.4634400742 | I22: 0.2733191189 | J22: 0.0776888036 | K22: -0.1867095792 | L22: -0.5514713981 | M22: =IF(COUNT($H22:L22)>=Input!$W$7,0,L22+L54+L86) -> 0 | N22: =IF(COUNT($H22:M22)>=Input!$W$7,0,M22+M54+M86) -> 0 | O22: =IF(COUNT($H22:N22)>=Input!$W$7,0,N22+N54+N86) -> 0 | P22: =IF(COUNT($H22:O22)>=Input!$W$7,0,O22+O54+O86) -> 0 | Q22: =IF(COUNT($H22:P22)>=Input!$W$7,0,P22+P54+P86) -> 0
D23: =Asset16 -> Vehicles | G23: ='Actual RAB roll forward'!G485 -> 22.83203482 | H23: 20.62015381 | I23: 17.18652495 | J23: 13.45383336 | K23: 11.51680569 | L23: 8.603124978 | M23: =IF(COUNT($H23:L23)>=Input!$W$7,0,L23+L55+L87) -> 0 | N23: =IF(COUNT($H23:M23)>=Input!$W$7,0,M23+M55+M87) -> 0 | O23: =IF(COUNT($H23:N23)>=Input!$W$7,0,N23+N55+N87) -> 0 | P23: =IF(COUNT($H23:O23)>=Input!$W$7,0,O23+O55+O87) -> 0 | Q23: =IF(COUNT($H23:P23)>=Input!$W$7,0,P23+P55+P87) -> 0
D24: =Asset17 -> Moveable Plant | G24: ='Actual RAB roll forward'!G486 -> 8.429174641 | H24: 11.43354632 | I24: 10.62940317 | J24: 8.824035635 | K24: 6.618470423 | L24: 4.865258402 | M24: =IF(COUNT($H24:L24)>=Input!$W$7,0,L24+L56+L88) -> 0 | N24: =IF(COUNT($H24:M24)>=Input!$W$7,0,M24+M56+M88) -> 0 | O24: =IF(COUNT($H24:N24)>=Input!$W$7,0,N24+N56+N88) -> 0 | P24: =IF(COUNT($H24:O24)>=Input!$W$7,0,O24+O56+O88) -> 0 | Q24: =IF(COUNT($H24:P24)>=Input!$W$7,0,P24+P56+P88) -> 0
D25: =Asset18 -> Insurance Spares | G25: ='Actual RAB roll forward'!G487 -> 2.017847149 | H25: 6.445530518 | I25: 6.718927056 | J25: 6.136241253 | K25: 6.09484988 | L25: 7.831136125 | M25: =IF(COUNT($H25:L25)>=Input!$W$7,0,L25+L57+L89) -> 0 | N25: =IF(COUNT($H25:M25)>=Input!$W$7,0,M25+M57+M89) -> 0 | O25: =IF(COUNT($H25:N25)>=Input!$W$7,0,N25+N57+N89) -> 0 | P25: =IF(COUNT($H25:O25)>=Input!$W$7,0,O25+O57+O89) -> 0 | Q25: =IF(COUNT($H25:P25)>=Input!$W$7,0,P25+P57+P89) -> 0
D26: =Asset19 -> 0 | G26: ='Actual RAB roll forward'!G488 -> 0 | H26: 0 | I26: 0 | J26: 0 | K26: 0 | L26: 0 | M26: =IF(COUNT($H26:L26)>=Input!$W$7,0,L26+L58+L90) -> 0 | N26: =IF(COUNT($H26:M26)>=Input!$W$7,0,M26+M58+M90) -> 0 | O26: =IF(COUNT($H26:N26)>=Input!$W$7,0,N26+N58+N90) -> 0 | P26: =IF(COUNT($H26:O26)>=Input!$W$7,0,O26+O58+O90) -> 0 | Q26: =IF(COUNT($H26:P26)>=Input!$W$7,0,P26+P58+P90) -> 0
D27: =Asset20 -> Equity raising costs | G27: ='Actual RAB roll forward'!G489 -> 0 | H27: 0 | I27: 9.161920734 | J27: 9.16575655 | K27: 9.20306408 | L27: 9.275366136 | M27: =IF(COUNT($H27:L27)>=Input!$W$7,0,L27+L59+L91) -> 0 | N27: =IF(COUNT($H27:M27)>=Input!$W$7,0,M27+M59+M91) -> 0 | O27: =IF(COUNT($H27:N27)>=Input!$W$7,0,N27+N59+N91) -> 0 | P27: =IF(COUNT($H27:O27)>=Input!$W$7,0,O27+O59+O91) -> 0 | Q27: =IF(COUNT($H27:P27)>=Input!$W$7,0,P27+P59+P91) -> 0
D28: =Asset21 -> 0 | G28: ='Actual RAB roll forward'!G490 -> 0 | H28: =G28+G60+G92+G124+G156+G188 -> 0 | I28: =H28+H60+H92 -> 0 | J28: =I28+I60+I92 -> 0 | K28: 0 | L28: 0 | M28: =IF(COUNT($H28:L28)>=Input!$W$7,0,L28+L60+L92) -> 0 | N28: =IF(COUNT($H28:M28)>=Input!$W$7,0,M28+M60+M92) -> 0 | O28: =IF(COUNT($H28:N28)>=Input!$W$7,0,N28+N60+N92) -> 0 | P28: =IF(COUNT($H28:O28)>=Input!$W$7,0,O28+O60+O92) -> 0 | Q28: =IF(COUNT($H28:P28)>=Input!$W$7,0,P28+P60+P92) -> 0
D29: =Asset22 -> 0 | G29: ='Actual RAB roll forward'!G491 -> 0 | H29: 0 | I29: =H29+H61+H93 -> 0 | J29: 0 | K29: 0 | L29: 0 | M29: =IF(COUNT($H29:L29)>=Input!$W$7,0,L29+L61+L93) -> 0 | N29: =IF(COUNT($H29:M29)>=Input!$W$7,0,M29+M61+M93) -> 0 | O29: =IF(COUNT($H29:N29)>=Input!$W$7,0,N29+N61+N93) -> 0 | P29: =IF(COUNT($H29:O29)>=Input!$W$7,0,O29+O61+O93) -> 0 | Q29: =IF(COUNT($H29:P29)>=Input!$W$7,0,P29+P61+P93) -> 0
D30: =Asset23 -> 0 | G30: ='Actual RAB roll forward'!G492 -> 0 | H30: 0 | I30: 0 | J30: 0 | K30: 0 | L30: 0 | M30: =IF(COUNT($H30:L30)>=Input!$W$7,0,L30+L62+L94) -> 0 | N30: =IF(COUNT($H30:M30)>=Input!$W$7,0,M30+M62+M94) -> 0 | O30: =IF(COUNT($H30:N30)>=Input!$W$7,0,N30+N62+N94) -> 0 | P30: =IF(COUNT($H30:O30)>=Input!$W$7,0,O30+O62+O94) -> 0 | Q30: =IF(COUNT($H30:P30)>=Input!$W$7,0,P30+P62+P94) -> 0
D31: =Asset24 -> 0 | G31: ='Actual RAB roll forward'!G493 -> 0 | H31: 0 | I31: 0 | J31: 0 | K31: 0 | L31: 0 | M31: =IF(COUNT($H31:L31)>=Input!$W$7,0,L31+L63+L95) -> 0 | N31: =IF(COUNT($H31:M31)>=Input!$W$7,0,M31+M63+M95) -> 0 | O31: =IF(COUNT($H31:N31)>=Input!$W$7,0,N31+N63+N95) -> 0 | P31: =IF(COUNT($H31:O31)>=Input!$W$7,0,O31+O63+O95) -> 0 | Q31: =IF(COUNT($H31:P31)>=Input!$W$7,0,P31+P63+P95) -> 0
D32: =Asset25 -> 0 | G32: ='Actual RAB roll forward'!G494 -> 0 | H32: 0 | I32: 0 | J32: 0 | K32: 0 | L32: 0 | M32: =IF(COUNT($H32:L32)>=Input!$W$7,0,L32+L64+L96) -> 0 | N32: =IF(COUNT($H32:M32)>=Input!$W$7,0,M32+M64+M96) -> 0 | O32: =IF(COUNT($H32:N32)>=Input!$W$7,0,N32+N64+N96) -> 0 | P32: =IF(COUNT($H32:O32)>=Input!$W$7,0,O32+O64+O96) -> 0 | Q32: =IF(COUNT($H32:P32)>=Input!$W$7,0,P32+P64+P96) -> 0
D33: =Asset26 -> 0 | G33: ='Actual RAB roll forward'!G495 -> 0 | H33: 0 | I33: 0 | J33: 0 | K33: 0 | L33: 0 | M33: =IF(COUNT($H33:L33)>=Input!$W$7,0,L33+L65+L97) -> 0 | N33: =IF(COUNT($H33:M33)>=Input!$W$7,0,M33+M65+M97) -> 0 | O33: =IF(COUNT($H33:N33)>=Input!$W$7,0,N33+N65+N97) -> 0 | P33: =IF(COUNT($H33:O33)>=Input!$W$7,0,O33+O65+O97) -> 0 | Q33: =IF(COUNT($H33:P33)>=Input!$W$7,0,P33+P65+P97) -> 0
D34: =Asset27 -> 0 | G34: ='Actual RAB roll forward'!G496 -> 0 | H34: 0 | I34: 0 | J34: 0 | K34: 0 | L34: 0 | M34: =IF(COUNT($H34:L34)>=Input!$W$7,0,L34+L66+L98) -> 0 | N34: =IF(COUNT($H34:M34)>=Input!$W$7,0,M34+M66+M98) -> 0 | O34: =IF(COUNT($H34:N34)>=Input!$W$7,0,N34+N66+N98) -> 0 | P34: =IF(COUNT($H34:O34)>=Input!$W$7,0,O34+O66+O98) -> 0 | Q34: =IF(COUNT($H34:P34)>=Input!$W$7,0,P34+P66+P98) -> 0
D35: =Asset28 -> 0 | G35: ='Actual RAB roll forward'!G497 -> 0 | H35: 0 | I35: 0 | J35: 0 | K35: 0 | L35: 0 | M35: =IF(COUNT($H35:L35)>=Input!$W$7,0,L35+L67+L99) -> 0 | N35: =IF(COUNT($H35:M35)>=Input!$W$7,0,M35+M67+M99) -> 0 | O35: =IF(COUNT($H35:N35)>=Input!$W$7,0,N35+N67+N99) -> 0 | P35: =IF(COUNT($H35:O35)>=Input!$W$7,0,O35+O67+O99) -> 0 | Q35: =IF(COUNT($H35:P35)>=Input!$W$7,0,P35+P67+P99) -> 0
D36: =Asset29 -> 0 | G36: ='Actual RAB roll forward'!G498 -> 0 | H36: =G36+G68+G100+G132+G164+G196 -> 0 | I36: 0 | J36: 0 | K36: 0 | L36: 0 | M36: =IF(COUNT($H36:L36)>=Input!$W$7,0,L36+L68+L100) -> 0 | N36: =IF(COUNT($H36:M36)>=Input!$W$7,0,M36+M68+M100) -> 0 | O36: =IF(COUNT($H36:N36)>=Input!$W$7,0,N36+N68+N100) -> 0 | P36: =IF(COUNT($H36:O36)>=Input!$W$7,0,O36+O68+O100) -> 0 | Q36: =IF(COUNT($H36:P36)>=Input!$W$7,0,P36+P68+P100) -> 0
D37: =Asset30 -> 0 | G37: ='Actual RAB roll forward'!G499 -> 0 | H37: =G37+G69+G101+G133+G165+G197 -> 0 | I37: 0 | J37: =I37+I69+I101 -> 0 | K37: =J37+J69+J101 -> 0 | L37: =K37+K69+K101 -> 0 | M37: =IF(COUNT($H37:L37)>=Input!$W$7,0,L37+L69+L101) -> 0 | N37: =IF(COUNT($H37:M37)>=Input!$W$7,0,M37+M69+M101) -> 0 | O37: =IF(COUNT($H37:N37)>=Input!$W$7,0,N37+N69+N101) -> 0 | P37: =IF(COUNT($H37:O37)>=Input!$W$7,0,O37+O69+O101) -> 0 | Q37: =IF(COUNT($H37:P37)>=Input!$W$7,0,P37+P69+P101) -> 0
C39: Nominal Actual Net Capex | G39: =SUM(G40:G69) -> 290.032873 | H39: =SUM(H40:H69) -> 693.0827039 | I39: =SUM(I40:I69) -> 640.842131 | J39: 460.6365875 | K39: 439.7577138 | L39: 711.0286509 | M39: 0 | N39: 0 | O39: 0 | P39: 0 | Q39: =SUM(Q40:Q69) -> 0
D40: =Asset1 -> Transmission Lines - Overhead | G40: ='Actual RAB roll forward'!G502 -> 51.04001722 | H40: ='Actual RAB roll forward'!H502 -> 325.3294829 | I40: ='Actual RAB roll forward'!I502 -> 316.4735037 | J40: ='Actual RAB roll forward'!J502 -> 250.8683305 | K40: ='Actual RAB roll forward'!K502 -> 171.7591892 | L40: ='Actual RAB roll forward'!L502 -> 270.8399273 | M40: ='Actual RAB roll forward'!M502 -> 0 | N40: ='Actual RAB roll forward'!N502 -> 0 | O40: ='Actual RAB roll forward'!O502 -> 0 | P40: ='Actual RAB roll forward'!P502 -> 0 | Q40: ='Actual RAB roll forward'!Q502 -> 0
D41: =Asset2 -> Transmission Lines - Underground | G41: ='Actual RAB roll forward'!G503 -> 0 | H41: ='Actual RAB roll forward'!H503 -> 0 | I41: ='Actual RAB roll forward'!I503 -> 0 | J41: ='Actual RAB roll forward'!J503 -> 0 | K41: ='Actual RAB roll forward'!K503 -> 9.049704519e-05 | L41: ='Actual RAB roll forward'!L503 -> 0.06148427014 | M41: ='Actual RAB roll forward'!M503 -> 0 | N41: ='Actual RAB roll forward'!N503 -> 0 | O41: ='Actual RAB roll forward'!O503 -> 0 | P41: ='Actual RAB roll forward'!P503 -> 0 | Q41: ='Actual RAB roll forward'!Q503 -> 0
D42: =Asset3 -> Transmission Lines - Refit | G42: ='Actual RAB roll forward'!G504 -> 0 | H42: ='Actual RAB roll forward'!H504 -> 0 | I42: ='Actual RAB roll forward'!I504 -> 0 | J42: ='Actual RAB roll forward'!J504 -> 0 | K42: ='Actual RAB roll forward'!K504 -> 0 | L42: ='Actual RAB roll forward'!L504 -> 0 | M42: ='Actual RAB roll forward'!M504 -> 0 | N42: ='Actual RAB roll forward'!N504 -> 0 | O42: ='Actual RAB roll forward'!O504 -> 0 | P42: ='Actual RAB roll forward'!P504 -> 0 | Q42: ='Actual RAB roll forward'!Q504 -> 0
D43: =Asset4 -> Substations Primary Plant | G43: ='Actual RAB roll forward'!G505 -> 109.3047707 | H43: ='Actual RAB roll forward'!H505 -> 214.0675444 | I43: ='Actual RAB roll forward'!I505 -> 183.5018136 | J43: ='Actual RAB roll forward'!J505 -> 88.66013455 | K43: ='Actual RAB roll forward'!K505 -> 136.0624119 | L43: ='Actual RAB roll forward'!L505 -> 234.8134331 | M43: ='Actual RAB roll forward'!M505 -> 0 | N43: ='Actual RAB roll forward'!N505 -> 0 | O43: ='Actual RAB roll forward'!O505 -> 0 | P43: ='Actual RAB roll forward'!P505 -> 0 | Q43: ='Actual RAB roll forward'!Q505 -> 0
D44: =Asset5 -> Substations Secondary Systems | G44: ='Actual RAB roll forward'!G506 -> 64.76646169 | H44: ='Actual RAB roll forward'!H506 -> 87.66277087 | I44: ='Actual RAB roll forward'!I506 -> 76.25685981 | J44: ='Actual RAB roll forward'!J506 -> 58.30266783 | K44: ='Actual RAB roll forward'!K506 -> 61.57850493 | L44: ='Actual RAB roll forward'!L506 -> 102.3504443 | M44: ='Actual RAB roll forward'!M506 -> 0 | N44: ='Actual RAB roll forward'!N506 -> 0 | O44: ='Actual RAB roll forward'!O506 -> 0 | P44: ='Actual RAB roll forward'!P506 -> 0 | Q44: ='Actual RAB roll forward'!Q506 -> 0
D45: =Asset6 -> Communications Other Assets | G45: ='Actual RAB roll forward'!G507 -> 10.73444413 | H45: ='Actual RAB roll forward'!H507 -> 14.54319047 | I45: ='Actual RAB roll forward'!I507 -> 17.57564459 | J45: ='Actual RAB roll forward'!J507 -> 14.50171581 | K45: ='Actual RAB roll forward'!K507 -> 12.16450309 | L45: ='Actual RAB roll forward'!L507 -> 42.0747375 | M45: ='Actual RAB roll forward'!M507 -> 0 | N45: ='Actual RAB roll forward'!N507 -> 0 | O45: ='Actual RAB roll forward'!O507 -> 0 | P45: ='Actual RAB roll forward'!P507 -> 0 | Q45: ='Actual RAB roll forward'!Q507 -> 0
D46: =Asset7 -> Comms - Civil Works | G46: ='Actual RAB roll forward'!G508 -> 0 | H46: ='Actual RAB roll forward'!H508 -> 0 | I46: ='Actual RAB roll forward'!I508 -> 0 | J46: ='Actual RAB roll forward'!J508 -> 0.009374089083 | K46: ='Actual RAB roll forward'!K508 -> 0 | L46: ='Actual RAB roll forward'!L508 -> 0 | M46: ='Actual RAB roll forward'!M508 -> 0 | N46: ='Actual RAB roll forward'!N508 -> 0 | O46: ='Actual RAB roll forward'!O508 -> 0 | P46: ='Actual RAB roll forward'!P508 -> 0 | Q46: ='Actual RAB roll forward'!Q508 -> 0
D47: =Asset8 -> Network Switching Centres | G47: ='Actual RAB roll forward'!G509 -> 5.414041607 | H47: ='Actual RAB roll forward'!H509 -> 0.9162880962 | I47: ='Actual RAB roll forward'!I509 -> 4.883183905 | J47: ='Actual RAB roll forward'!J509 -> 3.370505808 | K47: ='Actual RAB roll forward'!K509 -> 5.786230905 | L47: ='Actual RAB roll forward'!L509 -> 12.52342141 | M47: ='Actual RAB roll forward'!M509 -> 0 | N47: ='Actual RAB roll forward'!N509 -> 0 | O47: ='Actual RAB roll forward'!O509 -> 0 | P47: ='Actual RAB roll forward'!P509 -> 0 | Q47: ='Actual RAB roll forward'!Q509 -> 0
D48: =Asset9 -> Land | G48: ='Actual RAB roll forward'!G510 -> 17.72971354 | H48: ='Actual RAB roll forward'!H510 -> 7.906940511 | I48: ='Actual RAB roll forward'!I510 -> 5.922009707 | J48: ='Actual RAB roll forward'!J510 -> 4.419571741 | K48: ='Actual RAB roll forward'!K510 -> 5.898518295 | L48: ='Actual RAB roll forward'!L510 -> 5.015351418 | M48: ='Actual RAB roll forward'!M510 -> 0 | N48: ='Actual RAB roll forward'!N510 -> 0 | O48: ='Actual RAB roll forward'!O510 -> 0 | P48: ='Actual RAB roll forward'!P510 -> 0 | Q48: ='Actual RAB roll forward'!Q510 -> 0
D49: =Asset10 -> Easements | G49: ='Actual RAB roll forward'!G511 -> 9.530220049 | H49: ='Actual RAB roll forward'!H511 -> 16.24471859 | I49: ='Actual RAB roll forward'!I511 -> 16.63753127 | J49: ='Actual RAB roll forward'!J511 -> 12.74563646 | K49: ='Actual RAB roll forward'!K511 -> 11.43832975 | L49: ='Actual RAB roll forward'!L511 -> 17.37664149 | M49: ='Actual RAB roll forward'!M511 -> 0 | N49: ='Actual RAB roll forward'!N511 -> 0 | O49: ='Actual RAB roll forward'!O511 -> 0 | P49: ='Actual RAB roll forward'!P511 -> 0 | Q49: ='Actual RAB roll forward'!Q511 -> 0
D50: =Asset11 -> 0 | G50: ='Actual RAB roll forward'!G512 -> 0 | H50: ='Actual RAB roll forward'!H512 -> 0 | I50: ='Actual RAB roll forward'!I512 -> 0 | J50: ='Actual RAB roll forward'!J512 -> 0 | K50: ='Actual RAB roll forward'!K512 -> 0 | L50: ='Actual RAB roll forward'!L512 -> 0 | M50: ='Actual RAB roll forward'!M512 -> 0 | N50: ='Actual RAB roll forward'!N512 -> 0 | O50: ='Actual RAB roll forward'!O512 -> 0 | P50: ='Actual RAB roll forward'!P512 -> 0 | Q50: ='Actual RAB roll forward'!Q512 -> 0
D51: =Asset12 -> Commercial Buildings | G51: ='Actual RAB roll forward'!G513 -> 3.848424491 | H51: ='Actual RAB roll forward'!H513 -> 4.472408488 | I51: ='Actual RAB roll forward'!I513 -> 4.005915447 | J51: ='Actual RAB roll forward'!J513 -> 11.05725886 | K51: ='Actual RAB roll forward'!K513 -> 15.25866139 | L51: ='Actual RAB roll forward'!L513 -> 4.334435491 | M51: ='Actual RAB roll forward'!M513 -> 0 | N51: ='Actual RAB roll forward'!N513 -> 0 | O51: ='Actual RAB roll forward'!O513 -> 0 | P51: ='Actual RAB roll forward'!P513 -> 0 | Q51: ='Actual RAB roll forward'!Q513 -> 0
D52: =Asset13 -> Computer Equipment | G52: ='Actual RAB roll forward'!G514 -> 10.84631863 | H52: ='Actual RAB roll forward'!H514 -> 10.33707166 | I52: ='Actual RAB roll forward'!I514 -> 13.57071277 | J52: ='Actual RAB roll forward'!J514 -> 12.03112256 | K52: ='Actual RAB roll forward'!K514 -> 12.94299797 | L52: ='Actual RAB roll forward'!L514 -> 15.37309495 | M52: ='Actual RAB roll forward'!M514 -> 0 | N52: ='Actual RAB roll forward'!N514 -> 0 | O52: ='Actual RAB roll forward'!O514 -> 0 | P52: ='Actual RAB roll forward'!P514 -> 0 | Q52: ='Actual RAB roll forward'!Q514 -> 0
D53: =Asset14 -> Office Furniture & Miscellaneous | G53: ='Actual RAB roll forward'!G515 -> 0.2169889656 | H53: ='Actual RAB roll forward'!H515 -> 0.137338376 | I53: ='Actual RAB roll forward'!I515 -> 0.007275923231 | J53: ='Actual RAB roll forward'!J515 -> 0 | K53: ='Actual RAB roll forward'!K515 -> 0 | L53: ='Actual RAB roll forward'!L515 -> 0.00639347589 | M53: ='Actual RAB roll forward'!M515 -> 0 | N53: ='Actual RAB roll forward'!N515 -> 0 | O53: ='Actual RAB roll forward'!O515 -> 0 | P53: ='Actual RAB roll forward'!P515 -> 0 | Q53: ='Actual RAB roll forward'!Q515 -> 0
D54: =Asset15 -> Office Machines | G54: ='Actual RAB roll forward'!G516 -> 0 | H54: ='Actual RAB roll forward'!H516 -> 0 | I54: ='Actual RAB roll forward'!I516 -> 0.02598544011 | J54: ='Actual RAB roll forward'!J516 -> 0 | K54: ='Actual RAB roll forward'!K516 -> 0 | L54: ='Actual RAB roll forward'!L516 -> 0 | M54: ='Actual RAB roll forward'!M516 -> 0 | N54: ='Actual RAB roll forward'!N516 -> 0 | O54: ='Actual RAB roll forward'!O516 -> 0 | P54: ='Actual RAB roll forward'!P516 -> 0 | Q54: ='Actual RAB roll forward'!Q516 -> 0
D55: =Asset16 -> Vehicles | G55: ='Actual RAB roll forward'!G517 -> 4.270927044 | H55: ='Actual RAB roll forward'!H517 -> 0.8048872572 | I55: ='Actual RAB roll forward'!I517 -> 1.313349295 | J55: ='Actual RAB roll forward'!J517 -> 3.428723338 | K55: ='Actual RAB roll forward'!K517 -> 3.101237278 | L55: ='Actual RAB roll forward'!L517 -> 4.415055075 | M55: ='Actual RAB roll forward'!M517 -> 0 | N55: ='Actual RAB roll forward'!N517 -> 0 | O55: ='Actual RAB roll forward'!O517 -> 0 | P55: ='Actual RAB roll forward'!P517 -> 0 | Q55: ='Actual RAB roll forward'!Q517 -> 0
D56: =Asset17 -> Moveable Plant | G56: ='Actual RAB roll forward'!G518 -> 2.330544948 | H56: ='Actual RAB roll forward'!H518 -> 1.498141521 | I56: ='Actual RAB roll forward'!I518 -> 1.416726195 | J56: ='Actual RAB roll forward'!J518 -> 1.460274766 | K56: ='Actual RAB roll forward'!K518 -> 2.233710941 | L56: ='Actual RAB roll forward'!L518 -> 1.844231217 | M56: ='Actual RAB roll forward'!M518 -> 0 | N56: ='Actual RAB roll forward'!N518 -> 0 | O56: ='Actual RAB roll forward'!O518 -> 0 | P56: ='Actual RAB roll forward'!P518 -> 0 | Q56: ='Actual RAB roll forward'!Q518 -> 0
D57: =Asset18 -> Insurance Spares | G57: ='Actual RAB roll forward'!G519 -> 0 | H57: ='Actual RAB roll forward'!H519 -> 0 | I57: ='Actual RAB roll forward'!I519 -> -0.7483806751 | J57: ='Actual RAB roll forward'!J519 -> -0.2187287453 | K57: ='Actual RAB roll forward'!K519 -> 1.533327744 | L57: ='Actual RAB roll forward'!L519 -> 0 | M57: ='Actual RAB roll forward'!M519 -> 0 | N57: ='Actual RAB roll forward'!N519 -> 0 | O57: ='Actual RAB roll forward'!O519 -> 0 | P57: ='Actual RAB roll forward'!P519 -> 0 | Q57: ='Actual RAB roll forward'!Q519 -> 0
D58: =Asset19 -> 0 | G58: ='Actual RAB roll forward'!G520 -> 0 | H58: ='Actual RAB roll forward'!H520 -> 0 | I58: ='Actual RAB roll forward'!I520 -> 0 | J58: ='Actual RAB roll forward'!J520 -> 0 | K58: ='Actual RAB roll forward'!K520 -> 0 | L58: ='Actual RAB roll forward'!L520 -> 0 | M58: ='Actual RAB roll forward'!M520 -> 0 | N58: ='Actual RAB roll forward'!N520 -> 0 | O58: ='Actual RAB roll forward'!O520 -> 0 | P58: ='Actual RAB roll forward'!P520 -> 0 | Q58: ='Actual RAB roll forward'!Q520 -> 0
D59: =Asset20 -> Equity raising costs | G59: ='Actual RAB roll forward'!G521 -> 0 | H59: ='Actual RAB roll forward'!H521 -> 9.161920734 | I59: ='Actual RAB roll forward'!I521 -> 0 | J59: ='Actual RAB roll forward'!J521 -> 0 | K59: ='Actual RAB roll forward'!K521 -> 0 | L59: ='Actual RAB roll forward'!L521 -> 0 | M59: ='Actual RAB roll forward'!M521 -> 0 | N59: ='Actual RAB roll forward'!N521 -> 0 | O59: ='Actual RAB roll forward'!O521 -> 0 | P59: ='Actual RAB roll forward'!P521 -> 0 | Q59: ='Actual RAB roll forward'!Q521 -> 0
D60: =Asset21 -> 0 | G60: ='Actual RAB roll forward'!G522 -> 0 | H60: ='Actual RAB roll forward'!H522 -> 0 | I60: ='Actual RAB roll forward'!I522 -> 0 | J60: ='Actual RAB roll forward'!J522 -> 0 | K60: ='Actual RAB roll forward'!K522 -> 0 | L60: ='Actual RAB roll forward'!L522 -> 0 | M60: ='Actual RAB roll forward'!M522 -> 0 | N60: ='Actual RAB roll forward'!N522 -> 0 | O60: ='Actual RAB roll forward'!O522 -> 0 | P60: ='Actual RAB roll forward'!P522 -> 0 | Q60: ='Actual RAB roll forward'!Q522 -> 0
D61: =Asset22 -> 0 | G61: ='Actual RAB roll forward'!G523 -> 0 | H61: ='Actual RAB roll forward'!H523 -> 0 | I61: ='Actual RAB roll forward'!I523 -> 0 | J61: ='Actual RAB roll forward'!J523 -> 0 | K61: ='Actual RAB roll forward'!K523 -> 0 | L61: ='Actual RAB roll forward'!L523 -> 0 | M61: ='Actual RAB roll forward'!M523 -> 0 | N61: ='Actual RAB roll forward'!N523 -> 0 | O61: ='Actual RAB roll forward'!O523 -> 0 | P61: ='Actual RAB roll forward'!P523 -> 0 | Q61: ='Actual RAB roll forward'!Q523 -> 0
D62: =Asset23 -> 0 | G62: ='Actual RAB roll forward'!G524 -> 0 | H62: ='Actual RAB roll forward'!H524 -> 0 | I62: ='Actual RAB roll forward'!I524 -> 0 | J62: ='Actual RAB roll forward'!J524 -> 0 | K62: ='Actual RAB roll forward'!K524 -> 0 | L62: ='Actual RAB roll forward'!L524 -> 0 | M62: ='Actual RAB roll forward'!M524 -> 0 | N62: ='Actual RAB roll forward'!N524 -> 0 | O62: ='Actual RAB roll forward'!O524 -> 0 | P62: ='Actual RAB roll forward'!P524 -> 0 | Q62: ='Actual RAB roll forward'!Q524 -> 0
D63: =Asset24 -> 0 | G63: ='Actual RAB roll forward'!G525 -> 0 | H63: ='Actual RAB roll forward'!H525 -> 0 | I63: ='Actual RAB roll forward'!I525 -> 0 | J63: ='Actual RAB roll forward'!J525 -> 0 | K63: ='Actual RAB roll forward'!K525 -> 0 | L63: ='Actual RAB roll forward'!L525 -> 0 | M63: ='Actual RAB roll forward'!M525 -> 0 | N63: ='Actual RAB roll forward'!N525 -> 0 | O63: ='Actual RAB roll forward'!O525 -> 0 | P63: ='Actual RAB roll forward'!P525 -> 0 | Q63: ='Actual RAB roll forward'!Q525 -> 0
D64: =Asset25 -> 0 | G64: ='Actual RAB roll forward'!G526 -> 0 | H64: ='Actual RAB roll forward'!H526 -> 0 | I64: ='Actual RAB roll forward'!I526 -> 0 | J64: ='Actual RAB roll forward'!J526 -> 0 | K64: ='Actual RAB roll forward'!K526 -> 0 | L64: ='Actual RAB roll forward'!L526 -> 0 | M64: ='Actual RAB roll forward'!M526 -> 0 | N64: ='Actual RAB roll forward'!N526 -> 0 | O64: ='Actual RAB roll forward'!O526 -> 0 | P64: ='Actual RAB roll forward'!P526 -> 0 | Q64: ='Actual RAB roll forward'!Q526 -> 0
D65: =Asset26 -> 0 | G65: ='Actual RAB roll forward'!G527 -> 0 | H65: ='Actual RAB roll forward'!H527 -> 0 | I65: ='Actual RAB roll forward'!I527 -> 0 | J65: ='Actual RAB roll forward'!J527 -> 0 | K65: ='Actual RAB roll forward'!K527 -> 0 | L65: ='Actual RAB roll forward'!L527 -> 0 | M65: ='Actual RAB roll forward'!M527 -> 0 | N65: ='Actual RAB roll forward'!N527 -> 0 | O65: ='Actual RAB roll forward'!O527 -> 0 | P65: ='Actual RAB roll forward'!P527 -> 0 | Q65: ='Actual RAB roll forward'!Q527 -> 0
D66: =Asset27 -> 0 | G66: ='Actual RAB roll forward'!G528 -> 0 | H66: ='Actual RAB roll forward'!H528 -> 0 | I66: ='Actual RAB roll forward'!I528 -> 0 | J66: ='Actual RAB roll forward'!J528 -> 0 | K66: ='Actual RAB roll forward'!K528 -> 0 | L66: ='Actual RAB roll forward'!L528 -> 0 | M66: ='Actual RAB roll forward'!M528 -> 0 | N66: ='Actual RAB roll forward'!N528 -> 0 | O66: ='Actual RAB roll forward'!O528 -> 0 | P66: ='Actual RAB roll forward'!P528 -> 0 | Q66: ='Actual RAB roll forward'!Q528 -> 0
D67: =Asset28 -> 0 | G67: ='Actual RAB roll forward'!G529 -> 0 | H67: ='Actual RAB roll forward'!H529 -> 0 | I67: ='Actual RAB roll forward'!I529 -> 0 | J67: ='Actual RAB roll forward'!J529 -> 0 | K67: ='Actual RAB roll forward'!K529 -> 0 | L67: ='Actual RAB roll forward'!L529 -> 0 | M67: ='Actual RAB roll forward'!M529 -> 0 | N67: ='Actual RAB roll forward'!N529 -> 0 | O67: ='Actual RAB roll forward'!O529 -> 0 | P67: ='Actual RAB roll forward'!P529 -> 0 | Q67: ='Actual RAB roll forward'!Q529 -> 0
D68: =Asset29 -> 0 | G68: ='Actual RAB roll forward'!G530 -> 0 | H68: ='Actual RAB roll forward'!H530 -> 0 | I68: ='Actual RAB roll forward'!I530 -> 0 | J68: ='Actual RAB roll forward'!J530 -> 0 | K68: ='Actual RAB roll forward'!K530 -> 0 | L68: ='Actual RAB roll forward'!L530 -> 0 | M68: ='Actual RAB roll forward'!M530 -> 0 | N68: ='Actual RAB roll forward'!N530 -> 0 | O68: ='Actual RAB roll forward'!O530 -> 0 | P68: ='Actual RAB roll forward'!P530 -> 0 | Q68: ='Actual RAB roll forward'!Q530 -> 0
D69: =Asset30 -> 0 | G69: ='Actual RAB roll forward'!G531 -> 0 | H69: ='Actual RAB roll forward'!H531 -> 0 | I69: ='Actual RAB roll forward'!I531 -> 0 | J69: ='Actual RAB roll forward'!J531 -> 0 | K69: ='Actual RAB roll forward'!K531 -> 0 | L69: ='Actual RAB roll forward'!L531 -> 0 | M69: ='Actual RAB roll forward'!M531 -> 0 | N69: ='Actual RAB roll forward'!N531 -> 0 | O69: ='Actual RAB roll forward'!O531 -> 0 | P69: ='Actual RAB roll forward'!P531 -> 0 | Q69: ='Actual RAB roll forward'!Q531 -> 0
C71: Nominal Actual Regulatory Depreciation | G71: =SUM(G72:G101) -> -67.09947788 | H71: =SUM(H72:H101) -> 2.182142882 | I71: =SUM(I72:I101) -> -72.9069283 | J71: -47.01105475 | K71: -29.0919248 | L71: -78.98113401 | M71: 0 | N71: 0 | O71: 0 | P71: 0 | Q71: =SUM(Q72:Q101) -> 0
D72: =Asset1 -> Transmission Lines - Overhead | G72: ='Actual RAB roll forward'!G534 -> -40.20019961 | H72: ='Actual RAB roll forward'!H534 -> 25.09730394 | I72: ='Actual RAB roll forward'!I534 -> -10.04565676 | J72: ='Actual RAB roll forward'!J534 -> -0.1223895608 | K72: ='Actual RAB roll forward'!K534 -> 15.08473564 | L72: ='Actual RAB roll forward'!L534 -> -10.85323186 | M72: ='Actual RAB roll forward'!M534 -> 0 | N72: ='Actual RAB roll forward'!N534 -> 0 | O72: ='Actual RAB roll forward'!O534 -> 0 | P72: ='Actual RAB roll forward'!P534 -> 0 | Q72: ='Actual RAB roll forward'!Q534 -> 0
D73: =Asset2 -> Transmission Lines - Underground | G73: ='Actual RAB roll forward'!G535 -> -0.7582197032 | H73: ='Actual RAB roll forward'!H535 -> -0.1297481982 | I73: ='Actual RAB roll forward'!I535 -> -0.6776512664 | J73: ='Actual RAB roll forward'!J535 -> -0.7505545215 | K73: ='Actual RAB roll forward'!K535 -> -1.031442795 | L73: ='Actual RAB roll forward'!L535 -> -1.337373325 | M73: ='Actual RAB roll forward'!M535 -> 0 | N73: ='Actual RAB roll forward'!N535 -> 0 | O73: ='Actual RAB roll forward'!O535 -> 0 | P73: ='Actual RAB roll forward'!P535 -> 0 | Q73: ='Actual RAB roll forward'!Q535 -> 0
D74: =Asset3 -> Transmission Lines - Refit | G74: ='Actual RAB roll forward'!G536 -> 0 | H74: ='Actual RAB roll forward'!H536 -> 0 | I74: ='Actual RAB roll forward'!I536 -> 0 | J74: ='Actual RAB roll forward'!J536 -> 0 | K74: ='Actual RAB roll forward'!K536 -> 0 | L74: ='Actual RAB roll forward'!L536 -> 0 | M74: ='Actual RAB roll forward'!M536 -> 0 | N74: ='Actual RAB roll forward'!N536 -> 0 | O74: ='Actual RAB roll forward'!O536 -> 0 | P74: ='Actual RAB roll forward'!P536 -> 0 | Q74: ='Actual RAB roll forward'!Q536 -> 0
D75: =Asset4 -> Substations Primary Plant | G75: ='Actual RAB roll forward'!G537 -> -19.70570384 | H75: ='Actual RAB roll forward'!H537 -> 8.939490879 | I75: ='Actual RAB roll forward'!I537 -> -9.224755525 | J75: ='Actual RAB roll forward'!J537 -> -5.786142956 | K75: ='Actual RAB roll forward'!K537 -> -3.257648458 | L75: ='Actual RAB roll forward'!L537 -> -16.65728206 | M75: ='Actual RAB roll forward'!M537 -> 0 | N75: ='Actual RAB roll forward'!N537 -> 0 | O75: ='Actual RAB roll forward'!O537 -> 0 | P75: ='Actual RAB roll forward'!P537 -> 0 | Q75: ='Actual RAB roll forward'!Q537 -> 0
D76: =Asset5 -> Substations Secondary Systems | G76: ='Actual RAB roll forward'!G538 -> -3.668443815 | H76: ='Actual RAB roll forward'!H538 -> -14.1506864 | I76: ='Actual RAB roll forward'!I538 -> -22.32767777 | J76: ='Actual RAB roll forward'!J538 -> -23.93190329 | K76: ='Actual RAB roll forward'!K538 -> -26.71442236 | L76: ='Actual RAB roll forward'!L538 -> -33.63372393 | M76: ='Actual RAB roll forward'!M538 -> 0 | N76: ='Actual RAB roll forward'!N538 -> 0 | O76: ='Actual RAB roll forward'!O538 -> 0 | P76: ='Actual RAB roll forward'!P538 -> 0 | Q76: ='Actual RAB roll forward'!Q538 -> 0
D77: =Asset6 -> Communications Other Assets | G77: ='Actual RAB roll forward'!G539 -> -0.9174127786 | H77: ='Actual RAB roll forward'!H539 -> -3.452680553 | I77: ='Actual RAB roll forward'!I539 -> -4.668028155 | J77: ='Actual RAB roll forward'!J539 -> -4.468324196 | K77: ='Actual RAB roll forward'!K539 -> -5.706084138 | L77: ='Actual RAB roll forward'!L539 -> -7.120927598 | M77: ='Actual RAB roll forward'!M539 -> 0 | N77: ='Actual RAB roll forward'!N539 -> 0 | O77: ='Actual RAB roll forward'!O539 -> 0 | P77: ='Actual RAB roll forward'!P539 -> 0 | Q77: ='Actual RAB roll forward'!Q539 -> 0
D78: =Asset7 -> Comms - Civil Works | G78: ='Actual RAB roll forward'!G540 -> -0.221435475 | H78: ='Actual RAB roll forward'!H540 -> -0.008975975818 | I78: ='Actual RAB roll forward'!I540 -> -0.244010402 | J78: ='Actual RAB roll forward'!J540 -> -0.2264715727 | K78: ='Actual RAB roll forward'!K540 -> -0.2928253556 | L78: ='Actual RAB roll forward'!L540 -> -0.423682765 | M78: ='Actual RAB roll forward'!M540 -> 0 | N78: ='Actual RAB roll forward'!N540 -> 0 | O78: ='Actual RAB roll forward'!O540 -> 0 | P78: ='Actual RAB roll forward'!P540 -> 0 | Q78: ='Actual RAB roll forward'!Q540 -> 0
D79: =Asset8 -> Network Switching Centres | G79: ='Actual RAB roll forward'!G541 -> -0.3238284462 | H79: ='Actual RAB roll forward'!H541 -> -3.632231138 | I79: ='Actual RAB roll forward'!I541 -> -4.359679514 | J79: ='Actual RAB roll forward'!J541 -> -4.36789585 | K79: ='Actual RAB roll forward'!K541 -> -4.67655264 | L79: ='Actual RAB roll forward'!L541 -> -5.976525582 | M79: ='Actual RAB roll forward'!M541 -> 0 | N79: ='Actual RAB roll forward'!N541 -> 0 | O79: ='Actual RAB roll forward'!O541 -> 0 | P79: ='Actual RAB roll forward'!P541 -> 0 | Q79: ='Actual RAB roll forward'!Q541 -> 0
D80: =Asset9 -> Land | G80: ='Actual RAB roll forward'!G542 -> 0.04416535084 | H80: ='Actual RAB roll forward'!H542 -> 3.435552968 | I80: ='Actual RAB roll forward'!I542 -> 2.277145681 | J80: ='Actual RAB roll forward'!J542 -> 2.905531229 | K80: ='Actual RAB roll forward'!K542 -> 3.591821774 | L80: ='Actual RAB roll forward'!L542 -> 2.933821395 | M80: ='Actual RAB roll forward'!M542 -> 0 | N80: ='Actual RAB roll forward'!N542 -> 0 | O80: ='Actual RAB roll forward'!O542 -> 0 | P80: ='Actual RAB roll forward'!P542 -> 0 | Q80: ='Actual RAB roll forward'!Q542 -> 0
D81: =Asset10 -> Easements | G81: ='Actual RAB roll forward'!G543 -> 0.2232385421 | H81: ='Actual RAB roll forward'!H543 -> 10.6592542 | I81: ='Actual RAB roll forward'!I543 -> 6.860763642 | J81: ='Actual RAB roll forward'!J543 -> 8.719195331 | K81: ='Actual RAB roll forward'!K543 -> 10.76146418 | L81: ='Actual RAB roll forward'!L543 -> 8.634172158 | M81: ='Actual RAB roll forward'!M543 -> 0 | N81: ='Actual RAB roll forward'!N543 -> 0 | O81: ='Actual RAB roll forward'!O543 -> 0 | P81: ='Actual RAB roll forward'!P543 -> 0 | Q81: ='Actual RAB roll forward'!Q543 -> 0
D82: =Asset11 -> 0 | G82: ='Actual RAB roll forward'!G544 -> 0.0005148289585 | H82: ='Actual RAB roll forward'!H544 -> 2.183721803e-05 | I82: ='Actual RAB roll forward'!I544 -> 1.32346776e-05 | J82: ='Actual RAB roll forward'!J544 -> 1.589213468e-05 | K82: ='Actual RAB roll forward'!K544 -> 1.884090653e-05 | L82: ='Actual RAB roll forward'!L544 -> 1.461584738e-05 | M82: ='Actual RAB roll forward'!M544 -> 0 | N82: ='Actual RAB roll forward'!N544 -> 0 | O82: ='Actual RAB roll forward'!O544 -> 0 | P82: ='Actual RAB roll forward'!P544 -> 0 | Q82: ='Actual RAB roll forward'!Q544 -> 0
D83: =Asset12 -> Commercial Buildings | G83: ='Actual RAB roll forward'!G545 -> -0.9535786472 | H83: ='Actual RAB roll forward'!H545 -> 0.5504785302 | I83: ='Actual RAB roll forward'!I545 -> -0.1715990642 | J83: ='Actual RAB roll forward'!J545 -> -0.05451412213 | K83: ='Actual RAB roll forward'!K545 -> 0.3959908537 | L83: ='Actual RAB roll forward'!L545 -> -0.1286801815 | M83: ='Actual RAB roll forward'!M545 -> 0 | N83: ='Actual RAB roll forward'!N545 -> 0 | O83: ='Actual RAB roll forward'!O545 -> 0 | P83: ='Actual RAB roll forward'!P545 -> 0 | Q83: ='Actual RAB roll forward'!Q545 -> 0
D84: =Asset13 -> Computer Equipment | G84: ='Actual RAB roll forward'!G546 -> -0.2837049838 | H84: ='Actual RAB roll forward'!H546 -> -18.20121335 | I84: ='Actual RAB roll forward'!I546 -> -21.43453299 | J84: ='Actual RAB roll forward'!J546 -> -9.244224355 | K84: ='Actual RAB roll forward'!K546 -> -6.522655579 | L84: ='Actual RAB roll forward'!L546 -> -9.659057316 | M84: ='Actual RAB roll forward'!M546 -> 0 | N84: ='Actual RAB roll forward'!N546 -> 0 | O84: ='Actual RAB roll forward'!O546 -> 0 | P84: ='Actual RAB roll forward'!P546 -> 0 | Q84: ='Actual RAB roll forward'!Q546 -> 0
D85: =Asset14 -> Office Furniture & Miscellaneous | G85: ='Actual RAB roll forward'!G547 -> -0.01933939749 | H85: ='Actual RAB roll forward'!H547 -> -0.4668986537 | I85: ='Actual RAB roll forward'!I547 -> -0.5710397288 | J85: ='Actual RAB roll forward'!J547 -> -0.6020323228 | K85: ='Actual RAB roll forward'!K547 -> -0.6329825454 | L85: ='Actual RAB roll forward'!L547 -> -0.5352835596 | M85: ='Actual RAB roll forward'!M547 -> 0 | N85: ='Actual RAB roll forward'!N547 -> 0 | O85: ='Actual RAB roll forward'!O547 -> 0 | P85: ='Actual RAB roll forward'!P547 -> 0 | Q85: ='Actual RAB roll forward'!Q547 -> 0
D86: =Asset15 -> Office Machines | G86: ='Actual RAB roll forward'!G548 -> -0.003707888761 | H86: ='Actual RAB roll forward'!H548 -> -0.1901209553 | I86: ='Actual RAB roll forward'!I548 -> -0.2216157554 | J86: ='Actual RAB roll forward'!J548 -> -0.2643983828 | K86: ='Actual RAB roll forward'!K548 -> -0.3647618189 | L86: ='Actual RAB roll forward'!L548 -> -0.4190259999 | M86: ='Actual RAB roll forward'!M548 -> 0 | N86: ='Actual RAB roll forward'!N548 -> 0 | O86: ='Actual RAB roll forward'!O548 -> 0 | P86: ='Actual RAB roll forward'!P548 -> 0 | Q86: ='Actual RAB roll forward'!Q548 -> 0
D87: =Asset16 -> Vehicles | G87: ='Actual RAB roll forward'!G549 -> -0.1640216401 | H87: ='Actual RAB roll forward'!H549 -> -4.238516119 | I87: ='Actual RAB roll forward'!I549 -> -5.046040891 | J87: ='Actual RAB roll forward'!J549 -> -5.365751002 | K87: ='Actual RAB roll forward'!K549 -> -6.014917992 | L87: ='Actual RAB roll forward'!L549 -> -1.787205873 | M87: ='Actual RAB roll forward'!M549 -> 0 | N87: ='Actual RAB roll forward'!N549 -> 0 | O87: ='Actual RAB roll forward'!O549 -> 0 | P87: ='Actual RAB roll forward'!P549 -> 0 | Q87: ='Actual RAB roll forward'!Q549 -> 0
D88: =Asset17 -> Moveable Plant | G88: ='Actual RAB roll forward'!G550 -> -0.1501606995 | H88: ='Actual RAB roll forward'!H550 -> -2.302284674 | I88: ='Actual RAB roll forward'!I550 -> -3.222093728 | J88: ='Actual RAB roll forward'!J550 -> -3.665839979 | K88: ='Actual RAB roll forward'!K550 -> -3.986922961 | L88: ='Actual RAB roll forward'!L550 -> -2.20284718 | M88: ='Actual RAB roll forward'!M550 -> 0 | N88: ='Actual RAB roll forward'!N550 -> 0 | O88: ='Actual RAB roll forward'!O550 -> 0 | P88: ='Actual RAB roll forward'!P550 -> 0 | Q88: ='Actual RAB roll forward'!Q550 -> 0
D89: =Asset18 -> Insurance Spares | G89: ='Actual RAB roll forward'!G551 -> 0.002360329517 | H89: ='Actual RAB roll forward'!H551 -> 0.2733965387 | I89: ='Actual RAB roll forward'!I551 -> 0.1656948719 | J89: ='Actual RAB roll forward'!J551 -> 0.1773373722 | K89: ='Actual RAB roll forward'!K551 -> 0.202958501 | L89: ='Actual RAB roll forward'!L551 -> 0.1957784031 | M89: ='Actual RAB roll forward'!M551 -> 0 | N89: ='Actual RAB roll forward'!N551 -> 0 | O89: ='Actual RAB roll forward'!O551 -> 0 | P89: ='Actual RAB roll forward'!P551 -> 0 | Q89: ='Actual RAB roll forward'!Q551 -> 0
D90: =Asset19 -> 0 | G90: ='Actual RAB roll forward'!G552 -> 0 | H90: ='Actual RAB roll forward'!H552 -> 0 | I90: ='Actual RAB roll forward'!I552 -> 0 | J90: ='Actual RAB roll forward'!J552 -> 0 | K90: ='Actual RAB roll forward'!K552 -> 0 | L90: ='Actual RAB roll forward'!L552 -> 0 | M90: ='Actual RAB roll forward'!M552 -> 0 | N90: ='Actual RAB roll forward'!N552 -> 0 | O90: ='Actual RAB roll forward'!O552 -> 0 | P90: ='Actual RAB roll forward'!P552 -> 0 | Q90: ='Actual RAB roll forward'!Q552 -> 0
D91: =Asset20 -> Equity raising costs | G91: ='Actual RAB roll forward'!G553 -> 0 | H91: ='Actual RAB roll forward'!H553 -> 0 | I91: ='Actual RAB roll forward'!I553 -> 0.003835815616 | J91: ='Actual RAB roll forward'!J553 -> 0.03730753025 | K91: ='Actual RAB roll forward'!K553 -> 0.07230205592 | L91: ='Actual RAB roll forward'!L553 -> -0.01007335181 | M91: ='Actual RAB roll forward'!M553 -> 0 | N91: ='Actual RAB roll forward'!N553 -> 0 | O91: ='Actual RAB roll forward'!O553 -> 0 | P91: ='Actual RAB roll forward'!P553 -> 0 | Q91: ='Actual RAB roll forward'!Q553 -> 0
D92: =Asset21 -> 0 | G92: ='Actual RAB roll forward'!G554 -> 0 | H92: ='Actual RAB roll forward'!H554 -> 0 | I92: ='Actual RAB roll forward'!I554 -> 0 | J92: ='Actual RAB roll forward'!J554 -> 0 | K92: ='Actual RAB roll forward'!K554 -> 0 | L92: ='Actual RAB roll forward'!L554 -> 0 | M92: ='Actual RAB roll forward'!M554 -> 0 | N92: ='Actual RAB roll forward'!N554 -> 0 | O92: ='Actual RAB roll forward'!O554 -> 0 | P92: ='Actual RAB roll forward'!P554 -> 0 | Q92: ='Actual RAB roll forward'!Q554 -> 0
D93: =Asset22 -> 0 | G93: ='Actual RAB roll forward'!G555 -> 0 | H93: ='Actual RAB roll forward'!H555 -> 0 | I93: ='Actual RAB roll forward'!I555 -> 0 | J93: ='Actual RAB roll forward'!J555 -> 0 | K93: ='Actual RAB roll forward'!K555 -> 0 | L93: ='Actual RAB roll forward'!L555 -> 0 | M93: ='Actual RAB roll forward'!M555 -> 0 | N93: ='Actual RAB roll forward'!N555 -> 0 | O93: ='Actual RAB roll forward'!O555 -> 0 | P93: ='Actual RAB roll forward'!P555 -> 0 | Q93: ='Actual RAB roll forward'!Q555 -> 0
D94: =Asset23 -> 0 | G94: ='Actual RAB roll forward'!G556 -> 0 | H94: ='Actual RAB roll forward'!H556 -> 0 | I94: ='Actual RAB roll forward'!I556 -> 0 | J94: ='Actual RAB roll forward'!J556 -> 0 | K94: ='Actual RAB roll forward'!K556 -> 0 | L94: ='Actual RAB roll forward'!L556 -> 0 | M94: ='Actual RAB roll forward'!M556 -> 0 | N94: ='Actual RAB roll forward'!N556 -> 0 | O94: ='Actual RAB roll forward'!O556 -> 0 | P94: ='Actual RAB roll forward'!P556 -> 0 | Q94: ='Actual RAB roll forward'!Q556 -> 0
D95: =Asset24 -> 0 | G95: ='Actual RAB roll forward'!G557 -> 0 | H95: ='Actual RAB roll forward'!H557 -> 0 | I95: ='Actual RAB roll forward'!I557 -> 0 | J95: ='Actual RAB roll forward'!J557 -> 0 | K95: ='Actual RAB roll forward'!K557 -> 0 | L95: ='Actual RAB roll forward'!L557 -> 0 | M95: ='Actual RAB roll forward'!M557 -> 0 | N95: ='Actual RAB roll forward'!N557 -> 0 | O95: ='Actual RAB roll forward'!O557 -> 0 | P95: ='Actual RAB roll forward'!P557 -> 0 | Q95: ='Actual RAB roll forward'!Q557 -> 0
D96: =Asset25 -> 0 | G96: ='Actual RAB roll forward'!G558 -> 0 | H96: ='Actual RAB roll forward'!H558 -> 0 | I96: ='Actual RAB roll forward'!I558 -> 0 | J96: ='Actual RAB roll forward'!J558 -> 0 | K96: ='Actual RAB roll forward'!K558 -> 0 | L96: ='Actual RAB roll forward'!L558 -> 0 | M96: ='Actual RAB roll forward'!M558 -> 0 | N96: ='Actual RAB roll forward'!N558 -> 0 | O96: ='Actual RAB roll forward'!O558 -> 0 | P96: ='Actual RAB roll forward'!P558 -> 0 | Q96: ='Actual RAB roll forward'!Q558 -> 0
D97: =Asset26 -> 0 | G97: ='Actual RAB roll forward'!G559 -> 0 | H97: ='Actual RAB roll forward'!H559 -> 0 | I97: ='Actual RAB roll forward'!I559 -> 0 | J97: ='Actual RAB roll forward'!J559 -> 0 | K97: ='Actual RAB roll forward'!K559 -> 0 | L97: ='Actual RAB roll forward'!L559 -> 0 | M97: ='Actual RAB roll forward'!M559 -> 0 | N97: ='Actual RAB roll forward'!N559 -> 0 | O97: ='Actual RAB roll forward'!O559 -> 0 | P97: ='Actual RAB roll forward'!P559 -> 0 | Q97: ='Actual RAB roll forward'!Q559 -> 0
D98: =Asset27 -> 0 | G98: ='Actual RAB roll forward'!G560 -> 0 | H98: ='Actual RAB roll forward'!H560 -> 0 | I98: ='Actual RAB roll forward'!I560 -> 0 | J98: ='Actual RAB roll forward'!J560 -> 0 | K98: ='Actual RAB roll forward'!K560 -> 0 | L98: ='Actual RAB roll forward'!L560 -> 0 | M98: ='Actual RAB roll forward'!M560 -> 0 | N98: ='Actual RAB roll forward'!N560 -> 0 | O98: ='Actual RAB roll forward'!O560 -> 0 | P98: ='Actual RAB roll forward'!P560 -> 0 | Q98: ='Actual RAB roll forward'!Q560 -> 0
D99: =Asset28 -> 0 | G99: ='Actual RAB roll forward'!G561 -> 0 | H99: ='Actual RAB roll forward'!H561 -> 0 | I99: ='Actual RAB roll forward'!I561 -> 0 | J99: ='Actual RAB roll forward'!J561 -> 0 | K99: ='Actual RAB roll forward'!K561 -> 0 | L99: ='Actual RAB roll forward'!L561 -> 0 | M99: ='Actual RAB roll forward'!M561 -> 0 | N99: ='Actual RAB roll forward'!N561 -> 0 | O99: ='Actual RAB roll forward'!O561 -> 0 | P99: ='Actual RAB roll forward'!P561 -> 0 | Q99: ='Actual RAB roll forward'!Q561 -> 0
D100: =Asset29 -> 0 | G100: ='Actual RAB roll forward'!G562 -> 0 | H100: ='Actual RAB roll forward'!H562 -> 0 | I100: ='Actual RAB roll forward'!I562 -> 0 | J100: ='Actual RAB roll forward'!J562 -> 0 | K100: ='Actual RAB roll forward'!K562 -> 0 | L100: ='Actual RAB roll forward'!L562 -> 0 | M100: ='Actual RAB roll forward'!M562 -> 0 | N100: ='Actual RAB roll forward'!N562 -> 0 | O100: ='Actual RAB roll forward'!O562 -> 0 | P100: ='Actual RAB roll forward'!P562 -> 0 | Q100: ='Actual RAB roll forward'!Q562 -> 0
D101: =Asset30 -> 0 | G101: ='Actual RAB roll forward'!G563 -> 0 | H101: ='Actual RAB roll forward'!H563 -> 0 | I101: ='Actual RAB roll forward'!I563 -> 0 | J101: ='Actual RAB roll forward'!J563 -> 0 | K101: ='Actual RAB roll forward'!K563 -> 0 | L101: ='Actual RAB roll forward'!L563 -> 0 | M101: ='Actual RAB roll forward'!M563 -> 0 | N101: ='Actual RAB roll forward'!N563 -> 0 | O101: ='Actual RAB roll forward'!O563 -> 0 | P101: ='Actual RAB roll forward'!P563 -> 0 | Q101: ='Actual RAB roll forward'!Q563 -> 0
C103: Nominal Prudent Additional Capex Allowance | G103: =SUM(G104:G133) -> 9.480276708
D104: =Asset1 -> Transmission Lines - Overhead | G104: ='Actual RAB roll forward'!G566 -> -33.37747475
D105: =Asset2 -> Transmission Lines - Underground | G105: ='Actual RAB roll forward'!G567 -> -2.048580841
D106: =Asset3 -> Transmission Lines - Refit | G106: ='Actual RAB roll forward'!G568 -> 0
D107: =Asset4 -> Substations Primary Plant | G107: ='Actual RAB roll forward'!G569 -> -53.1760233
D108: =Asset5 -> Substations Secondary Systems | G108: ='Actual RAB roll forward'!G570 -> 55.93614672
D109: =Asset6 -> Communications Other Assets | G109: ='Actual RAB roll forward'!G571 -> -15.09906947
D110: =Asset7 -> Comms - Civil Works | G110: ='Actual RAB roll forward'!G572 -> -9.488421301
D111: =Asset8 -> Network Switching Centres | G111: ='Actual RAB roll forward'!G573 -> -1.878906257
D112: =Asset9 -> Land | G112: ='Actual RAB roll forward'!G574 -> 23.67502271
D113: =Asset10 -> Easements | G113: ='Actual RAB roll forward'!G575 -> 15.72214682
D114: =Asset11 -> 0 | G114: ='Actual RAB roll forward'!G576 -> 0
D115: =Asset12 -> Commercial Buildings | G115: ='Actual RAB roll forward'!G577 -> 24.29232198
D116: =Asset13 -> Computer Equipment | G116: ='Actual RAB roll forward'!G578 -> 3.385685016
D117: =Asset14 -> Office Furniture & Miscellaneous | G117: ='Actual RAB roll forward'!G579 -> 2.482754362
D118: =Asset15 -> Office Machines | G118: ='Actual RAB roll forward'!G580 -> 0.1241509706
D119: =Asset16 -> Vehicles | G119: ='Actual RAB roll forward'!G581 -> -6.31878641
D120: =Asset17 -> Moveable Plant | G120: ='Actual RAB roll forward'!G582 -> 0.8239874318
D121: =Asset18 -> Insurance Spares | G121: ='Actual RAB roll forward'!G583 -> 4.425323039
D122: =Asset19 -> 0 | G122: ='Actual RAB roll forward'!G584 -> 0
D123: =Asset20 -> Equity raising costs | G123: ='Actual RAB roll forward'!G585 -> 0
D124: =Asset21 -> 0 | G124: ='Actual RAB roll forward'!G586 -> 0
D125: =Asset22 -> 0 | G125: ='Actual RAB roll forward'!G587 -> 0
D126: =Asset23 -> 0 | G126: ='Actual RAB roll forward'!G588 -> 0
D127: =Asset24 -> 0 | G127: ='Actual RAB roll forward'!G589 -> 0
D128: =Asset25 -> 0 | G128: ='Actual RAB roll forward'!G590 -> 0
D129: =Asset26 -> 0 | G129: ='Actual RAB roll forward'!G591 -> 0
D130: =Asset27 -> 0 | G130: ='Actual RAB roll forward'!G592 -> 0
D131: =Asset28 -> 0 | G131: ='Actual RAB roll forward'!G593 -> 0
D132: =Asset29 -> 0 | G132: ='Actual RAB roll forward'!G594 -> 0
D133: =Asset30 -> 0 | G133: ='Actual RAB roll forward'!G595 -> 0
C135: Nominal Foregone Return on Prudent Additional Capex | G135: =SUM(G136:G165) -> 0
D136: =Asset1 -> Transmission Lines - Overhead | G136: ='Actual RAB roll forward'!G598 -> 0
D137: =Asset2 -> Transmission Lines - Underground | G137: ='Actual RAB roll forward'!G599 -> 0
D138: =Asset3 -> Transmission Lines - Refit | G138: ='Actual RAB roll forward'!G600 -> 0
D139: =Asset4 -> Substations Primary Plant | G139: ='Actual RAB roll forward'!G601 -> 0
D140: =Asset5 -> Substations Secondary Systems | G140: ='Actual RAB roll forward'!G602 -> 0
D141: =Asset6 -> Communications Other Assets | G141: ='Actual RAB roll forward'!G603 -> 0
D142: =Asset7 -> Comms - Civil Works | G142: ='Actual RAB roll forward'!G604 -> 0
D143: =Asset8 -> Network Switching Centres | G143: ='Actual RAB roll forward'!G605 -> 0
D144: =Asset9 -> Land | G144: ='Actual RAB roll forward'!G606 -> 0
D145: =Asset10 -> Easements | G145: ='Actual RAB roll forward'!G607 -> 0
D146: =Asset11 -> 0 | G146: ='Actual RAB roll forward'!G608 -> 0
D147: =Asset12 -> Commercial Buildings | G147: ='Actual RAB roll forward'!G609 -> 0
D148: =Asset13 -> Computer Equipment | G148: ='Actual RAB roll forward'!G610 -> 0
D149: =Asset14 -> Office Furniture & Miscellaneous | G149: ='Actual RAB roll forward'!G611 -> 0
D150: =Asset15 -> Office Machines | G150: ='Actual RAB roll forward'!G612 -> 0
D151: =Asset16 -> Vehicles | G151: ='Actual RAB roll forward'!G613 -> 0
D152: =Asset17 -> Moveable Plant | G152: ='Actual RAB roll forward'!G614 -> 0
D153: =Asset18 -> Insurance Spares | G153: ='Actual RAB roll forward'!G615 -> 0
D154: =Asset19 -> 0 | G154: ='Actual RAB roll forward'!G616 -> 0
D155: =Asset20 -> Equity raising costs | G155: ='Actual RAB roll forward'!G617 -> 0
D156: =Asset21 -> 0 | G156: ='Actual RAB roll forward'!G618 -> 0
D157: =Asset22 -> 0 | G157: ='Actual RAB roll forward'!G619 -> 0
D158: =Asset23 -> 0 | G158: ='Actual RAB roll forward'!G620 -> 0
D159: =Asset24 -> 0 | G159: ='Actual RAB roll forward'!G621 -> 0
D160: =Asset25 -> 0 | G160: ='Actual RAB roll forward'!G622 -> 0
D161: =Asset26 -> 0 | G161: ='Actual RAB roll forward'!G623 -> 0
D162: =Asset27 -> 0 | G162: ='Actual RAB roll forward'!G624 -> 0
D163: =Asset28 -> 0 | G163: ='Actual RAB roll forward'!G625 -> 0
D164: =Asset29 -> 0 | G164: ='Actual RAB roll forward'!G626 -> 0
D165: =Asset30 -> 0 | G165: ='Actual RAB roll forward'!G627 -> 0
C167: Nominal Forecast Assets Under Construction | G167: =SUM(G168:G197) -> 512.89
D168: =Asset1 -> Transmission Lines - Overhead | G168: ='Actual RAB roll forward'!G630 -> 265.12
D169: =Asset2 -> Transmission Lines - Underground | G169: ='Actual RAB roll forward'!G631 -> 0.39
D170: =Asset3 -> Transmission Lines - Refit | G170: ='Actual RAB roll forward'!G632 -> 0
D171: =Asset4 -> Substations Primary Plant | G171: ='Actual RAB roll forward'!G633 -> 137.97
D172: =Asset5 -> Substations Secondary Systems | G172: ='Actual RAB roll forward'!G634 -> 61.8
D173: =Asset6 -> Communications Other Assets | G173: ='Actual RAB roll forward'!G635 -> 9.65
D174: =Asset7 -> Comms - Civil Works | G174: ='Actual RAB roll forward'!G636 -> 0
D175: =Asset8 -> Network Switching Centres | G175: ='Actual RAB roll forward'!G637 -> 0.76
D176: =Asset9 -> Land | G176: ='Actual RAB roll forward'!G638 -> 1.54
D177: =Asset10 -> Easements | G177: ='Actual RAB roll forward'!G639 -> 31.89
D178: =Asset11 -> 0 | G178: ='Actual RAB roll forward'!G640 -> 0
D179: =Asset12 -> Commercial Buildings | G179: ='Actual RAB roll forward'!G641 -> 0
D180: =Asset13 -> Computer Equipment | G180: ='Actual RAB roll forward'!G642 -> 3.77
D181: =Asset14 -> Office Furniture & Miscellaneous | G181: ='Actual RAB roll forward'!G643 -> 0
D182: =Asset15 -> Office Machines | G182: ='Actual RAB roll forward'!G644 -> 0
D183: =Asset16 -> Vehicles | G183: ='Actual RAB roll forward'!G645 -> 0
D184: =Asset17 -> Moveable Plant | G184: ='Actual RAB roll forward'!G646 -> 0
D185: =Asset18 -> Insurance Spares | G185: ='Actual RAB roll forward'!G647 -> 0
D186: =Asset19 -> 0 | G186: ='Actual RAB roll forward'!G648 -> 0
D187: =Asset20 -> Equity raising costs | G187: ='Actual RAB roll forward'!G649 -> 0
D188: =Asset21 -> 0 | G188: ='Actual RAB roll forward'!G650 -> 0
D189: =Asset22 -> 0 | G189: ='Actual RAB roll forward'!G651 -> 0
D190: =Asset23 -> 0 | G190: ='Actual RAB roll forward'!G652 -> 0
D191: =Asset24 -> 0 | G191: ='Actual RAB roll forward'!G653 -> 0
D192: =Asset25 -> 0 | G192: ='Actual RAB roll forward'!G654 -> 0
D193: =Asset26 -> 0 | G193: ='Actual RAB roll forward'!G655 -> 0
D194: =Asset27 -> 0 | G194: ='Actual RAB roll forward'!G656 -> 0
D195: =Asset28 -> 0 | G195: ='Actual RAB roll forward'!G657 -> 0
D196: =Asset29 -> 0 | G196: ='Actual RAB roll forward'!G658 -> 0
D197: =Asset30 -> 0 | G197: ='Actual RAB roll forward'!G659 -> 0
C199: Interim Closing Regulatory Asset Base – Partially As Incurred
C201: Interim Closing Regulatory Asset Base | G201: =SUM(G202:G231) -> 3752.832877 | H201: =SUM(H202:H231) -> 4448.097724 | I201: =SUM(I202:I231) -> 5016.032927 | J201: 5429.658459 | K201: 5840.324248 | L201: 6472.371765 | M201: 0 | N201: 0 | O201: 0 | P201: 0 | Q201: =SUM(Q202:Q231) -> 0
D202: =Asset1 -> Transmission Lines - Overhead | G202: =G8+G40+G72+G104+G136+G168 -> 1809.70268 | H202: =H8+H40+H72 -> 2160.129467 | I202: 2466.557314 | J202: 2717.303254 | K202: 2904.147179 | L202: 3164.133875 | M202: =IF(COUNT($H202:L202)>=Input!$W$7,0, M8+M40+M72) -> 0 | N202: =IF(COUNT($H202:M202)>=Input!$W$7,0, N8+N40+N72) -> 0 | O202: =IF(COUNT($H202:N202)>=Input!$W$7,0, O8+O40+O72) -> 0 | P202: =IF(COUNT($H202:O202)>=Input!$W$7,0, P8+P40+P72) -> 0 | Q202: =IF(COUNT($H202:P202)>=Input!$W$7,0, Q8+Q40+Q72) -> 0
D203: =Asset2 -> Transmission Lines - Underground | G203: 27.57393502 | H203: 27.44418682 | I203: 26.76653555 | J203: 26.01598103 | K203: 24.98462873 | L203: 23.70873968 | M203: =IF(COUNT($H203:L203)>=Input!$W$7,0, M9+M41+M73) -> 0 | N203: =IF(COUNT($H203:M203)>=Input!$W$7,0, N9+N41+N73) -> 0 | O203: =IF(COUNT($H203:N203)>=Input!$W$7,0, O9+O41+O73) -> 0 | P203: =IF(COUNT($H203:O203)>=Input!$W$7,0, P9+P41+P73) -> 0 | Q203: =IF(COUNT($H203:P203)>=Input!$W$7,0, Q9+Q41+Q73) -> 0
D204: =Asset3 -> Transmission Lines - Refit | G204: 0 | H204: 0 | I204: 0 | J204: 0 | K204: 0 | L204: 0 | M204: =IF(COUNT($H204:L204)>=Input!$W$7,0, M10+M42+M74) -> 0 | N204: =IF(COUNT($H204:M204)>=Input!$W$7,0, N10+N42+N74) -> 0 | O204: =IF(COUNT($H204:N204)>=Input!$W$7,0, O10+O42+O74) -> 0 | P204: =IF(COUNT($H204:O204)>=Input!$W$7,0, P10+P42+P74) -> 0 | Q204: =IF(COUNT($H204:P204)>=Input!$W$7,0, Q10+Q42+Q74) -> 0
D205: =Asset4 -> Substations Primary Plant | G205: 1040.288713 | H205: 1263.295748 | I205: 1437.572806 | J205: 1520.446798 | K205: 1653.251561 | L205: 1871.407712 | M205: =IF(COUNT($H205:L205)>=Input!$W$7,0, M11+M43+M75) -> 0 | N205: =IF(COUNT($H205:M205)>=Input!$W$7,0, N11+N43+N75) -> 0 | O205: =IF(COUNT($H205:N205)>=Input!$W$7,0, O11+O43+O75) -> 0 | P205: =IF(COUNT($H205:O205)>=Input!$W$7,0, P11+P43+P75) -> 0 | Q205: =IF(COUNT($H205:P205)>=Input!$W$7,0, Q11+Q43+Q75) -> 0
D206: =Asset5 -> Substations Secondary Systems | G206: 310.4296691 | H206: 383.9417536 | I206: 437.8709356 | J206: 472.2417002 | K206: 507.1057827 | L206: 575.8225031 | M206: =IF(COUNT($H206:L206)>=Input!$W$7,0, M12+M44+M76) -> 0 | N206: =IF(COUNT($H206:M206)>=Input!$W$7,0, N12+N44+N76) -> 0 | O206: =IF(COUNT($H206:N206)>=Input!$W$7,0, O12+O44+O76) -> 0 | P206: =IF(COUNT($H206:O206)>=Input!$W$7,0, P12+P44+P76) -> 0 | Q206: =IF(COUNT($H206:P206)>=Input!$W$7,0, Q12+Q44+Q76) -> 0
D207: =Asset6 -> Communications Other Assets | G207: 59.95986899 | H207: 71.05037891 | I207: 83.95799535 | J207: 93.99138696 | K207: 100.4498059 | L207: 135.4036158 | M207: =IF(COUNT($H207:L207)>=Input!$W$7,0, M13+M45+M77) -> 0 | N207: =IF(COUNT($H207:M207)>=Input!$W$7,0, N13+N45+N77) -> 0 | O207: =IF(COUNT($H207:N207)>=Input!$W$7,0, O13+O45+O77) -> 0 | P207: =IF(COUNT($H207:O207)>=Input!$W$7,0, P13+P45+P77) -> 0 | Q207: =IF(COUNT($H207:P207)>=Input!$W$7,0, Q13+Q45+Q77) -> 0
D208: =Asset7 -> Comms - Civil Works | G208: 11.6727832 | H208: 11.66380722 | I208: 11.41979682 | J208: 11.20269934 | K208: 10.90987398 | L208: 10.48619122 | M208: =IF(COUNT($H208:L208)>=Input!$W$7,0, M14+M46+M78) -> 0 | N208: =IF(COUNT($H208:M208)>=Input!$W$7,0, N14+N46+N78) -> 0 | O208: =IF(COUNT($H208:N208)>=Input!$W$7,0, O14+O46+O78) -> 0 | P208: =IF(COUNT($H208:O208)>=Input!$W$7,0, P14+P46+P78) -> 0 | Q208: =IF(COUNT($H208:P208)>=Input!$W$7,0, Q14+Q46+Q78) -> 0
... 461 more rows

Sheet Tax value roll forward
B1: ='Powerlink information'!$B$8 -> Powerlink - RFM - data at 16 January 2012
B2: ="Tax Asset Value Roll Forward - RFM "&Intro!L4 -> Tax Asset Value Roll Forward - RFM Version: 2.0 | I2: 1 | J2: 2 | K2: 3 | L2: 4 | M2: 5 | N2: 6 | O2: 7 | P2: 8 | Q2: 9 | R2: 10
G3: 0 | H3: =G3+1 -> 1 | I3: 2 | J3: 3 | K3: 4 | L3: 5 | M3: 6 | N3: 7 | O3: 8 | P3: 9 | Q3: 10 | R3: 11
B4: Year | H4: =Input!H40 -> 2007-08 | I4: =Input!I40 -> 2008-09 | J4: =Input!J40 -> 2009-10 | K4: =Input!K40 -> 2010-11 | L4: =Input!L40 -> 2011-12 | M4: =Input!M40 -> 2012-13 | N4: =Input!N40 -> 2013-14 | O4: =Input!O40 -> 2014-15 | P4: =Input!P40 -> 2015-16 | Q4: =Input!Q40 -> 2016-17 | R4: =CONCATENATE(LEFT(Q4, 4)+1 &"-" &IF(Q4>"2007-08",,"0") &RIGHT(Q4,2)+1) -> 2017-18
B5: Tax Values ($m Nominal)
B7: Opening Tax Asset Values | H7: =SUM(H8:H37) -> 2492.524606 | I7: =SUM(I8:I37) -> 3038.657861 | J7: =SUM(J8:J37) -> 3561.566394 | K7: 3874.867603 | L7: 4157.346086 | M7: 4493.485158 | N7: 0 | O7: 0 | P7: 0 | Q7: 0 | R7: =SUM(R8:R37) -> 0
C8: =Asset1 -> Transmission Lines - Overhead | H8: =A1taxvalue-Input!M7+(Input!G143-Input!G177) -> 1327.072393 | I8: =H8+H40+H84 -> 1717.231107 | J8: =I8+I40+I84 -> 1971.877823 | K8: =J8+J40+J84 -> 2003.743675 | L8: =K8+K40+K84 -> 2200.613906 | M8: =L8+L40+L84 -> 2348.990635 | N8: =IF(COUNT($H8:M8)>Input!$W$7,0, M8+M40+M84) -> 0 | O8: =IF(COUNT($H8:N8)>Input!$W$7,0, N8+N40+N84) -> 0 | P8: =IF(COUNT($H8:O8)>Input!$W$7,0, O8+O40+O84) -> 0 | Q8: =IF(COUNT($H8:P8)>Input!$W$7,0, P8+P40+P84) -> 0 | R8: =IF(COUNT($H8:Q8)>Input!$W$7,0, Q8+Q40+Q84) -> 0
C9: =Asset2 -> Transmission Lines - Underground | H9: =A2taxvalue-Input!M8+(Input!G144-Input!G178) -> 10.8 | I9: =H9+H41+H97 -> 10.29605711 | J9: =I9+I41+I97 -> 15.54911423 | K9: =J9+J41+J97 -> 28.75823801 | L9: =K9+K41+K97 -> 27.86126501 | M9: =L9+L41+L97 -> 26.92086699 | N9: =IF(COUNT($H9:M9)>Input!$W$7,0, M9+M41+M97) -> 0 | O9: =IF(COUNT($H9:N9)>Input!$W$7,0, N9+N41+N97) -> 0 | P9: =IF(COUNT($H9:O9)>Input!$W$7,0, O9+O41+O97) -> 0 | Q9: =IF(COUNT($H9:P9)>Input!$W$7,0, P9+P41+P97) -> 0 | R9: =IF(COUNT($H9:Q9)>Input!$W$7,0, Q9+Q41+Q97) -> 0
C10: =Asset3 -> Transmission Lines - Refit | H10: =A3taxvalue-Input!M9+(Input!G145-Input!G179) -> 0 | I10: =H10+H42+H110 -> 0 | J10: =I10+I42+I110 -> 0 | K10: =J10+J42+J110 -> 0 | L10: =K10+K42+K110 -> 0 | M10: =L10+L42+L110 -> 0 | N10: =IF(COUNT($H10:M10)>Input!$W$7,0, M10+M42+M110) -> 0 | O10: =IF(COUNT($H10:N10)>Input!$W$7,0, N10+N42+N110) -> 0 | P10: =IF(COUNT($H10:O10)>Input!$W$7,0, O10+O42+O110) -> 0 | Q10: =IF(COUNT($H10:P10)>Input!$W$7,0, P10+P42+P110) -> 0 | R10: =IF(COUNT($H10:Q10)>Input!$W$7,0, Q10+Q42+Q110) -> 0
C11: =Asset4 -> Substations Primary Plant | H11: =A4taxvalue-Input!M10+(Input!G146-Input!G180) -> 677.3931493 | I11: =H11+H43+H123 -> 785.5516592 | J11: =I11+I43+I123 -> 978.625034 | K11: =J11+J43+J123 -> 1136.027921 | L11: =K11+K43+K123 -> 1180.429062 | M11: =L11+L43+L123 -> 1267.733859 | N11: =IF(COUNT($H11:M11)>Input!$W$7,0, M11+M43+M123) -> 0 | O11: =IF(COUNT($H11:N11)>Input!$W$7,0, N11+N43+N123) -> 0 | P11: =IF(COUNT($H11:O11)>Input!$W$7,0, O11+O43+O123) -> 0 | Q11: =IF(COUNT($H11:P11)>Input!$W$7,0, P11+P43+P123) -> 0 | R11: =IF(COUNT($H11:Q11)>Input!$W$7,0, Q11+Q43+Q123) -> 0
C12: =Asset5 -> Substations Secondary Systems | H12: =A5taxvalue-Input!M11+(Input!G147-Input!G181) -> 146.6247983 | I12: =H12+H44+H136 -> 176.3530571 | J12: =I12+I44+I136 -> 213.3005837 | K12: =J12+J44+J136 -> 256.4452835 | L12: =K12+K44+K136 -> 261.2707003 | M12: =L12+L44+L136 -> 295.4618431 | N12: =IF(COUNT($H12:M12)>Input!$W$7,0, M12+M44+M136) -> 0 | O12: =IF(COUNT($H12:N12)>Input!$W$7,0, N12+N44+N136) -> 0 | P12: =IF(COUNT($H12:O12)>Input!$W$7,0, O12+O44+O136) -> 0 | Q12: =IF(COUNT($H12:P12)>Input!$W$7,0, P12+P44+P136) -> 0 | R12: =IF(COUNT($H12:Q12)>Input!$W$7,0, Q12+Q44+Q136) -> 0
C13: =Asset6 -> Communications Other Assets | H13: =A6taxvalue-Input!M12+(Input!G148-Input!G182) -> 18.44015587 | I13: =H13+H45+H149 -> 17.64242929 | J13: =I13+I45+I149 -> 18.77927 | K13: =J13+J45+J149 -> 39.48973323 | L13: =K13+K45+K149 -> 40.84728247 | M13: =L13+L45+L149 -> 53.80940662 | N13: =IF(COUNT($H13:M13)>Input!$W$7,0, M13+M45+M149) -> 0 | O13: =IF(COUNT($H13:N13)>Input!$W$7,0, N13+N45+N149) -> 0 | P13: =IF(COUNT($H13:O13)>Input!$W$7,0, O13+O45+O149) -> 0 | Q13: =IF(COUNT($H13:P13)>Input!$W$7,0, P13+P45+P149) -> 0 | R13: =IF(COUNT($H13:Q13)>Input!$W$7,0, Q13+Q45+Q149) -> 0
C14: =Asset7 -> Comms - Civil Works | H14: =A7taxvalue-Input!M13+(Input!G149-Input!G183) -> 8.8718 | I14: =H14+H46+H162 -> 8.727648229 | J14: =I14+I46+I162 -> 8.792846459 | K14: =J14+J46+J162 -> 11.88801969 | L14: =K14+K46+K162 -> 11.72495792 | M14: =L14+L46+L162 -> 11.24331077 | N14: =IF(COUNT($H14:M14)>Input!$W$7,0, M14+M46+M162) -> 0 | O14: =IF(COUNT($H14:N14)>Input!$W$7,0, N14+N46+N162) -> 0 | P14: =IF(COUNT($H14:O14)>Input!$W$7,0, O14+O46+O162) -> 0 | Q14: =IF(COUNT($H14:P14)>Input!$W$7,0, P14+P46+P162) -> 0 | R14: =IF(COUNT($H14:Q14)>Input!$W$7,0, Q14+Q46+Q162) -> 0
C15: =Asset8 -> Network Switching Centres | H15: =A8taxvalue-Input!M14+(Input!G150-Input!G184) -> 1.695958393 | I15: =H15+H47+H175 -> 0.3896934658 | J15: =I15+I47+I175 -> -0.9165714616 | K15: =J15+J47+J175 -> 0.394163611 | L15: =K15+K47+K175 -> 9.53234835 | M15: =L15+L47+L175 -> 10.25945567 | N15: =IF(COUNT($H15:M15)>Input!$W$7,0, M15+M47+M175) -> 0 | O15: =IF(COUNT($H15:N15)>Input!$W$7,0, N15+N47+N175) -> 0 | P15: =IF(COUNT($H15:O15)>Input!$W$7,0, O15+O47+O175) -> 0 | Q15: =IF(COUNT($H15:P15)>Input!$W$7,0, P15+P47+P175) -> 0 | R15: =IF(COUNT($H15:Q15)>Input!$W$7,0, Q15+Q47+Q175) -> 0
C16: =Asset9 -> Land | H16: =A9taxvalue-Input!M15+(Input!G151-Input!G185) -> 48.85722071 | I16: =H16+H48+H188 -> 55.18924383 | J16: =I16+I48+I188 -> 57.45767447 | K16: =J16+J48+J188 -> 75.19387563 | L16: =K16+K48+K188 -> 81.78894496 | M16: =L16+L48+L188 -> 93.45852496 | N16: =IF(COUNT($H16:M16)>Input!$W$7,0, M16+M48+M188) -> 0 | O16: =IF(COUNT($H16:N16)>Input!$W$7,0, N16+N48+N188) -> 0 | P16: =IF(COUNT($H16:O16)>Input!$W$7,0, O16+O48+O188) -> 0 | Q16: =IF(COUNT($H16:P16)>Input!$W$7,0, P16+P48+P188) -> 0 | R16: =IF(COUNT($H16:Q16)>Input!$W$7,0, Q16+Q48+Q188) -> 0
C17: =Asset10 -> Easements | H17: =A10taxvalue-Input!M16+(Input!G152-Input!G186) -> 189.1654 | I17: =H17+H49+H201 -> 191.8654 | J17: =I17+I49+I201 -> 211.1009898 | K17: =J17+J49+J201 -> 225.2439898 | L17: =K17+K49+K201 -> 233.2740458 | M17: =L17+L49+L201 -> 266.6521236 | N17: =IF(COUNT($H17:M17)>Input!$W$7,0, M17+M49+M201) -> 0 | O17: =IF(COUNT($H17:N17)>Input!$W$7,0, N17+N49+N201) -> 0 | P17: =IF(COUNT($H17:O17)>Input!$W$7,0, O17+O49+O201) -> 0 | Q17: =IF(COUNT($H17:P17)>Input!$W$7,0, P17+P49+P201) -> 0 | R17: =IF(COUNT($H17:Q17)>Input!$W$7,0, Q17+Q49+Q201) -> 0
C18: =Asset11 -> 0 | H18: =A11taxvalue-Input!M17+(Input!G153-Input!G187) -> 0 | I18: =H18+H50+H214 -> 0 | J18: =I18+I50+I214 -> 0 | K18: =J18+J50+J214 -> 0 | L18: =K18+K50+K214 -> 0 | M18: =L18+L50+L214 -> 0 | N18: =IF(COUNT($H18:M18)>Input!$W$7,0, M18+M50+M214) -> 0 | O18: =IF(COUNT($H18:N18)>Input!$W$7,0, N18+N50+N214) -> 0 | P18: =IF(COUNT($H18:O18)>Input!$W$7,0, O18+O50+O214) -> 0 | Q18: =IF(COUNT($H18:P18)>Input!$W$7,0, P18+P50+P214) -> 0 | R18: =IF(COUNT($H18:Q18)>Input!$W$7,0, Q18+Q50+Q214) -> 0
C19: =Asset12 -> Commercial Buildings | H19: =A12taxvalue-Input!M18+(Input!G154-Input!G188) -> 43.17116891 | I19: =H19+H51+H227 -> 41.98315251 | J19: =I19+I51+I227 -> 47.03583611 | K19: =J19+J51+J227 -> 49.47314471 | L19: =K19+K51+K227 -> 60.00004763 | M19: =L19+L51+L227 -> 62.89314145 | N19: =IF(COUNT($H19:M19)>Input!$W$7,0, M19+M51+M227) -> 0 | O19: =IF(COUNT($H19:N19)>Input!$W$7,0, N19+N51+N227) -> 0 | P19: =IF(COUNT($H19:O19)>Input!$W$7,0, O19+O51+O227) -> 0 | Q19: =IF(COUNT($H19:P19)>Input!$W$7,0, P19+P51+P227) -> 0 | R19: =IF(COUNT($H19:Q19)>Input!$W$7,0, Q19+Q51+Q227) -> 0
C20: =Asset13 -> Computer Equipment | H20: =A13taxvalue-Input!M19+(Input!G155-Input!G189) -> 1.950793368 | I20: =H20+H52+H240 -> 4.583119407 | J20: =I20+I52+I240 -> 11.46491908 | K20: =J20+J52+J240 -> 19.73703755 | L20: =K20+K52+K240 -> 19.51832663 | M20: =L20+L52+L240 -> 21.8521137 | N20: =IF(COUNT($H20:M20)>Input!$W$7,0, M20+M52+M240) -> 0 | O20: =IF(COUNT($H20:N20)>Input!$W$7,0, N20+N52+N240) -> 0 | P20: =IF(COUNT($H20:O20)>Input!$W$7,0, O20+O52+O240) -> 0 | Q20: =IF(COUNT($H20:P20)>Input!$W$7,0, P20+P52+P240) -> 0 | R20: =IF(COUNT($H20:Q20)>Input!$W$7,0, Q20+Q52+Q240) -> 0
C21: =Asset14 -> Office Furniture & Miscellaneous | H21: =A14taxvalue-Input!M20+(Input!G156-Input!G190) -> -0.1843809656 | I21: =H21+H53+H253 -> -0.03638096562 | J21: =I21+I53+I253 -> 0.01475236772 | K21: =J21+J53+J253 -> 0.0008190343819 | L21: =K21+K53+K253 -> -0.01311429895 | M21: =L21+L53+L253 -> -0.02089763228 | N21: =IF(COUNT($H21:M21)>Input!$W$7,0, M21+M53+M253) -> 0 | O21: =IF(COUNT($H21:N21)>Input!$W$7,0, N21+N53+N253) -> 0 | P21: =IF(COUNT($H21:O21)>Input!$W$7,0, O21+O53+O253) -> 0 | Q21: =IF(COUNT($H21:P21)>Input!$W$7,0, P21+P53+P253) -> 0 | R21: =IF(COUNT($H21:Q21)>Input!$W$7,0, Q21+Q53+Q253) -> 0
C22: =Asset15 -> Office Machines | H22: =A15taxvalue-Input!M21+(Input!G157-Input!G191) -> 0.057484 | I22: =H22+H54+H266 -> 0.119484 | J22: =I22+I54+I266 -> 1.413284 | K22: =J22+J54+J266 -> 2.223084 | L22: =K22+K54+K266 -> 2.217853 | M22: =L22+L54+L266 -> 1.98124557 | N22: =IF(COUNT($H22:M22)>Input!$W$7,0, M22+M54+M266) -> 0 | O22: =IF(COUNT($H22:N22)>Input!$W$7,0, N22+N54+N266) -> 0 | P22: =IF(COUNT($H22:O22)>Input!$W$7,0, O22+O54+O266) -> 0 | Q22: =IF(COUNT($H22:P22)>Input!$W$7,0, P22+P54+P266) -> 0 | R22: =IF(COUNT($H22:Q22)>Input!$W$7,0, Q22+Q54+Q266) -> 0
C23: =Asset16 -> Vehicles | H23: =A16taxvalue-Input!M22+(Input!G158-Input!G192) -> 10.51838996 | I23: =H23+H55+H279 -> 9.058768538 | J23: =I23+I55+I279 -> 7.559987154 | K23: =J23+J55+J279 -> 8.055338528 | L23: =K23+K55+K279 -> 7.819243727 | M23: =L23+L55+L279 -> 11.32747942 | N23: =IF(COUNT($H23:M23)>Input!$W$7,0, M23+M55+M279) -> 0 | O23: =IF(COUNT($H23:N23)>Input!$W$7,0, N23+N55+N279) -> 0 | P23: =IF(COUNT($H23:O23)>Input!$W$7,0, O23+O55+O279) -> 0 | Q23: =IF(COUNT($H23:P23)>Input!$W$7,0, P23+P55+P279) -> 0 | R23: =IF(COUNT($H23:Q23)>Input!$W$7,0, Q23+Q55+Q279) -> 0
C24: =Asset17 -> Moveable Plant | H24: =A17taxvalue-Input!M23+(Input!G159-Input!G193) -> 2.703275052 | I24: =H24+H56+H292 -> 5.577338355 | J24: =I24+I56+I292 -> 6.308001658 | K24: =J24+J56+J292 -> 5.403664962 | L24: =K24+K56+K292 -> 6.405836265 | M24: =L24+L56+L292 -> 7.069903418 | N24: =IF(COUNT($H24:M24)>Input!$W$7,0, M24+M56+M292) -> 0 | O24: =IF(COUNT($H24:N24)>Input!$W$7,0, N24+N56+N292) -> 0 | P24: =IF(COUNT($H24:O24)>Input!$W$7,0, O24+O56+O292) -> 0 | Q24: =IF(COUNT($H24:P24)>Input!$W$7,0, P24+P56+P292) -> 0 | R24: =IF(COUNT($H24:Q24)>Input!$W$7,0, Q24+Q56+Q292) -> 0
C25: =Asset18 -> Insurance Spares | H25: =A18taxvalue-Input!M24+(Input!G160-Input!G194) -> 5.387 | I25: =H25+H57+H305 -> 5.387 | J25: =I25+I57+I305 -> 4.667 | K25: =J25+J57+J305 -> 4.457 | L25: =K25+K57+K305 -> 5.926 | M25: =L25+L57+L305 -> 5.926 | N25: =IF(COUNT($H25:M25)>Input!$W$7,0, M25+M57+M305) -> 0 | O25: =IF(COUNT($H25:N25)>Input!$W$7,0, N25+N57+N305) -> 0 | P25: =IF(COUNT($H25:O25)>Input!$W$7,0, O25+O57+O305) -> 0 | Q25: =IF(COUNT($H25:P25)>Input!$W$7,0, P25+P57+P305) -> 0 | R25: =IF(COUNT($H25:Q25)>Input!$W$7,0, Q25+Q57+Q305) -> 0
C26: =Asset19 -> 0 | H26: =A19taxvalue-Input!M25+(Input!G161-Input!G195) -> 0 | I26: =H26+H58+H318 -> 0 | J26: =I26+I58+I318 -> 0 | K26: =J26+J58+J318 -> 0 | L26: =K26+K58+K318 -> 0 | M26: =L26+L58+L318 -> 0 | N26: =IF(COUNT($H26:M26)>Input!$W$7,0, M26+M58+M318) -> 0 | O26: =IF(COUNT($H26:N26)>Input!$W$7,0, N26+N58+N318) -> 0 | P26: =IF(COUNT($H26:O26)>Input!$W$7,0, O26+O58+O318) -> 0 | Q26: =IF(COUNT($H26:P26)>Input!$W$7,0, P26+P58+P318) -> 0 | R26: =IF(COUNT($H26:Q26)>Input!$W$7,0, Q26+Q58+Q318) -> 0
C27: =Asset20 -> Equity raising costs | H27: =A20taxvalue-Input!M26+(Input!G162-Input!G196) -> 0 | I27: =H27+H59+H331 -> 8.739084088 | J27: =I27+I59+I331 -> 8.535849574 | K27: =J27+J59+J331 -> 8.332615061 | L27: =K27+K59+K331 -> 8.129380547 | M27: =L27+L59+L331 -> 7.926146033 | N27: =IF(COUNT($H27:M27)>Input!$W$7,0, M27+M59+M331) -> 0 | O27: =IF(COUNT($H27:N27)>Input!$W$7,0, N27+N59+N331) -> 0 | P27: =IF(COUNT($H27:O27)>Input!$W$7,0, O27+O59+O331) -> 0 | Q27: =IF(COUNT($H27:P27)>Input!$W$7,0, P27+P59+P331) -> 0 | R27: =IF(COUNT($H27:Q27)>Input!$W$7,0, Q27+Q59+Q331) -> 0
C28: =Asset21 -> 0 | H28: =A21taxvalue-Input!M27+(Input!G163-Input!G197) -> 0 | I28: =H28+H60+H344 -> 0 | J28: =I28+I60+I344 -> 0 | K28: =J28+J60+J344 -> 0 | L28: =K28+K60+K344 -> 0 | M28: =L28+L60+L344 -> 0 | N28: =IF(COUNT($H28:M28)>Input!$W$7,0, M28+M60+M344) -> 0 | O28: =IF(COUNT($H28:N28)>Input!$W$7,0, N28+N60+N344) -> 0 | P28: =IF(COUNT($H28:O28)>Input!$W$7,0, O28+O60+O344) -> 0 | Q28: =IF(COUNT($H28:P28)>Input!$W$7,0, P28+P60+P344) -> 0 | R28: =IF(COUNT($H28:Q28)>Input!$W$7,0, Q28+Q60+Q344) -> 0
C29: =Asset22 -> 0 | H29: =A22taxvalue-Input!M28+(Input!G164-Input!G198) -> 0 | I29: =H29+H61+H357 -> 0 | J29: =I29+I61+I357 -> 0 | K29: =J29+J61+J357 -> 0 | L29: =K29+K61+K357 -> 0 | M29: =L29+L61+L357 -> 0 | N29: =IF(COUNT($H29:M29)>Input!$W$7,0, M29+M61+M357) -> 0 | O29: =IF(COUNT($H29:N29)>Input!$W$7,0, N29+N61+N357) -> 0 | P29: =IF(COUNT($H29:O29)>Input!$W$7,0, O29+O61+O357) -> 0 | Q29: =IF(COUNT($H29:P29)>Input!$W$7,0, P29+P61+P357) -> 0 | R29: =IF(COUNT($H29:Q29)>Input!$W$7,0, Q29+Q61+Q357) -> 0
C30: =Asset23 -> 0 | H30: =A23taxvalue-Input!M29+(Input!G165-Input!G199) -> 0 | I30: =H30+H62+H370 -> 0 | J30: =I30+I62+I370 -> 0 | K30: =J30+J62+J370 -> 0 | L30: =K30+K62+K370 -> 0 | M30: =L30+L62+L370 -> 0 | N30: =IF(COUNT($H30:M30)>Input!$W$7,0, M30+M62+M370) -> 0 | O30: =IF(COUNT($H30:N30)>Input!$W$7,0, N30+N62+N370) -> 0 | P30: =IF(COUNT($H30:O30)>Input!$W$7,0, O30+O62+O370) -> 0 | Q30: =IF(COUNT($H30:P30)>Input!$W$7,0, P30+P62+P370) -> 0 | R30: =IF(COUNT($H30:Q30)>Input!$W$7,0, Q30+Q62+Q370) -> 0
C31: =Asset24 -> 0 | H31: =A24taxvalue-Input!M30+(Input!G166-Input!G200) -> 0 | I31: =H31+H63+H383 -> 0 | J31: =I31+I63+I383 -> 0 | K31: =J31+J63+J383 -> 0 | L31: =K31+K63+K383 -> 0 | M31: =L31+L63+L383 -> 0 | N31: =IF(COUNT($H31:M31)>Input!$W$7,0, M31+M63+M383) -> 0 | O31: =IF(COUNT($H31:N31)>Input!$W$7,0, N31+N63+N383) -> 0 | P31: =IF(COUNT($H31:O31)>Input!$W$7,0, O31+O63+O383) -> 0 | Q31: =IF(COUNT($H31:P31)>Input!$W$7,0, P31+P63+P383) -> 0 | R31: =IF(COUNT($H31:Q31)>Input!$W$7,0, Q31+Q63+Q383) -> 0
C32: =Asset25 -> 0 | H32: =A25taxvalue-Input!M31+(Input!G167-Input!G201) -> 0 | I32: =H32+H64+H396 -> 0 | J32: =I32+I64+I396 -> 0 | K32: =J32+J64+J396 -> 0 | L32: =K32+K64+K396 -> 0 | M32: =L32+L64+L396 -> 0 | N32: =IF(COUNT($H32:M32)>Input!$W$7,0, M32+M64+M396) -> 0 | O32: =IF(COUNT($H32:N32)>Input!$W$7,0, N32+N64+N396) -> 0 | P32: =IF(COUNT($H32:O32)>Input!$W$7,0, O32+O64+O396) -> 0 | Q32: =IF(COUNT($H32:P32)>Input!$W$7,0, P32+P64+P396) -> 0 | R32: =IF(COUNT($H32:Q32)>Input!$W$7,0, Q32+Q64+Q396) -> 0
C33: =Asset26 -> 0 | H33: =A26taxvalue-Input!M32+(Input!G168-Input!G202) -> 0 | I33: =H33+H65+H409 -> 0 | J33: =I33+I65+I409 -> 0 | K33: =J33+J65+J409 -> 0 | L33: =K33+K65+K409 -> 0 | M33: =L33+L65+L409 -> 0 | N33: =IF(COUNT($H33:M33)>Input!$W$7,0, M33+M65+M409) -> 0 | O33: =IF(COUNT($H33:N33)>Input!$W$7,0, N33+N65+N409) -> 0 | P33: =IF(COUNT($H33:O33)>Input!$W$7,0, O33+O65+O409) -> 0 | Q33: =IF(COUNT($H33:P33)>Input!$W$7,0, P33+P65+P409) -> 0 | R33: =IF(COUNT($H33:Q33)>Input!$W$7,0, Q33+Q65+Q409) -> 0
C34: =Asset27 -> 0 | H34: =A27taxvalue-Input!M33+(Input!G169-Input!G203) -> 0 | I34: =H34+H66+H422 -> 0 | J34: =I34+I66+I422 -> 0 | K34: =J34+J66+J422 -> 0 | L34: =K34+K66+K422 -> 0 | M34: =L34+L66+L422 -> 0 | N34: =IF(COUNT($H34:M34)>Input!$W$7,0, M34+M66+M422) -> 0 | O34: =IF(COUNT($H34:N34)>Input!$W$7,0, N34+N66+N422) -> 0 | P34: =IF(COUNT($H34:O34)>Input!$W$7,0, O34+O66+O422) -> 0 | Q34: =IF(COUNT($H34:P34)>Input!$W$7,0, P34+P66+P422) -> 0 | R34: =IF(COUNT($H34:Q34)>Input!$W$7,0, Q34+Q66+Q422) -> 0
C35: =Asset28 -> 0 | H35: =A28taxvalue-Input!M34+(Input!G170-Input!G204) -> 0 | I35: =H35+H67+H435 -> 0 | J35: =I35+I67+I435 -> 0 | K35: =J35+J67+J435 -> 0 | L35: =K35+K67+K435 -> 0 | M35: =L35+L67+L435 -> 0 | N35: =IF(COUNT($H35:M35)>Input!$W$7,0, M35+M67+M435) -> 0 | O35: =IF(COUNT($H35:N35)>Input!$W$7,0, N35+N67+N435) -> 0 | P35: =IF(COUNT($H35:O35)>Input!$W$7,0, O35+O67+O435) -> 0 | Q35: =IF(COUNT($H35:P35)>Input!$W$7,0, P35+P67+P435) -> 0 | R35: =IF(COUNT($H35:Q35)>Input!$W$7,0, Q35+Q67+Q435) -> 0
C36: =Asset29 -> 0 | H36: =A29taxvalue-Input!M35+(Input!G171-Input!G205) -> 0 | I36: =H36+H68+H448 -> 0 | J36: =I36+I68+I448 -> 0 | K36: =J36+J68+J448 -> 0 | L36: =K36+K68+K448 -> 0 | M36: =L36+L68+L448 -> 0 | N36: =IF(COUNT($H36:M36)>Input!$W$7,0, M36+M68+M448) -> 0 | O36: =IF(COUNT($H36:N36)>Input!$W$7,0, N36+N68+N448) -> 0 | P36: =IF(COUNT($H36:O36)>Input!$W$7,0, O36+O68+O448) -> 0 | Q36: =IF(COUNT($H36:P36)>Input!$W$7,0, P36+P68+P448) -> 0 | R36: =IF(COUNT($H36:Q36)>Input!$W$7,0, Q36+Q68+Q448) -> 0
C37: =Asset30 -> 0 | H37: =A30taxvalue-Input!M36+(Input!G172-Input!G206) -> 0 | I37: =H37+H69+H461 -> 0 | J37: =I37+I69+I461 -> 0 | K37: =J37+J69+J461 -> 0 | L37: =K37+K69+K461 -> 0 | M37: =L37+L69+L461 -> 0 | N37: =IF(COUNT($H37:M37)>Input!$W$7,0, M37+M69+M461) -> 0 | O37: =IF(COUNT($H37:N37)>Input!$W$7,0, N37+N69+N461) -> 0 | P37: =IF(COUNT($H37:O37)>Input!$W$7,0, O37+O69+O461) -> 0 | Q37: =IF(COUNT($H37:P37)>Input!$W$7,0, P37+P69+P461) -> 0 | R37: =IF(COUNT($H37:Q37)>Input!$W$7,0, Q37+Q69+Q461) -> 0
B39: Actual Net Capex | H39: =SUM(H40:H69) -> 645.0888477 | I39: =SUM(I40:I69) -> 641.6866163 | J39: =SUM(J40:J69) -> 452.6815264 | K39: 441.9122576 | L39: =SUM(L40:L69) -> 507.3395508 | M39: 0 | N39: 0 | O39: 0 | P39: 0 | Q39: 0
C40: =Asset1 -> Transmission Lines - Overhead | H40: =Input!H143-Input!H177 -> 432.865 | I40: =Input!I143-Input!I177 -> 306.4659489 | J40: =Input!J143-Input!J177 -> 90.137 | K40: =Input!K143-Input!K177 -> 257.039 | L40: =Input!L143-Input!L177 -> 213.9568452 | M40: =Input!M143-Input!M177 -> 0 | N40: =Input!N143-Input!N177 -> 0 | O40: =Input!O143-Input!O177 -> 0 | P40: =Input!P143-Input!P177 -> 0 | Q40: =Input!Q143-Input!Q177 -> 0
C41: =Asset2 -> Transmission Lines - Underground | H41: =Input!H144-Input!H178 -> 0 | I41: =Input!I144-Input!I178 -> 5.757 | J41: =Input!J144-Input!J178 -> 13.841 | K41: =Input!K144-Input!K178 -> 0.042481 | L41: =Input!L144-Input!L178 -> 0 | M41: =Input!M144-Input!M178 -> 0 | N41: =Input!N144-Input!N178 -> 0 | O41: =Input!O144-Input!O178 -> 0 | P41: =Input!P144-Input!P178 -> 0 | Q41: =Input!Q144-Input!Q178 -> 0
C42: =Asset3 -> Transmission Lines - Refit | H42: =Input!H145-Input!H179 -> 0 | I42: =Input!I145-Input!I179 -> 0 | J42: =Input!J145-Input!J179 -> 0 | K42: =Input!K145-Input!K179 -> 0 | L42: =Input!L145-Input!L179 -> 0 | M42: =Input!M145-Input!M179 -> 0 | N42: =Input!N145-Input!N179 -> 0 | O42: =Input!O145-Input!O179 -> 0 | P42: =Input!P145-Input!P179 -> 0 | Q42: =Input!Q145-Input!Q179 -> 0
C43: =Asset4 -> Substations Primary Plant | H43: =Input!H146-Input!H180 -> 135.442 | I43: =Input!I146-Input!I180 -> 223.7429148 | J43: =Input!J146-Input!J180 -> 193.666 | K43: =Input!K146-Input!K180 -> 85.50590342 | L43: =Input!L146-Input!L180 -> 130.547208 | M43: =Input!M146-Input!M180 -> 0 | N43: =Input!N146-Input!N180 -> 0 | O43: =Input!O146-Input!O180 -> 0 | P43: =Input!P146-Input!P180 -> 0 | Q43: =Input!Q146-Input!Q180 -> 0
C44: =Asset5 -> Substations Secondary Systems | H44: =Input!H147-Input!H181 -> 45.559 | I44: =Input!I147-Input!I181 -> 56.42298775 | J44: =Input!J147-Input!J181 -> 67.134 | K44: =Input!K147-Input!K181 -> 34.185437 | L44: =Input!L147-Input!L181 -> 66.28599799 | M44: =Input!M147-Input!M181 -> 0 | N44: =Input!N147-Input!N181 -> 0 | O44: =Input!O147-Input!O181 -> 0 | P44: =Input!P147-Input!P181 -> 0 | Q44: =Input!Q147-Input!Q181 -> 0
C45: =Asset6 -> Communications Other Assets | H45: =Input!H148-Input!H182 -> 2.332 | I45: =Input!I148-Input!I182 -> 4.453127304 | J45: =Input!J148-Input!J182 -> 24.383 | K45: =Input!K148-Input!K182 -> 6.980726 | L45: =Input!L148-Input!L182 -> 19.143759 | M45: =Input!M148-Input!M182 -> 0 | N45: =Input!N148-Input!N182 -> 0 | O45: =Input!O148-Input!O182 -> 0 | P45: =Input!P148-Input!P182 -> 0 | Q45: =Input!Q148-Input!Q182 -> 0
C46: =Asset7 -> Comms - Civil Works | H46: =Input!H149-Input!H183 -> 0.226 | I46: =Input!I149-Input!I183 -> 0.441 | J46: =Input!J149-Input!J183 -> 3.482 | K46: =Input!K149-Input!K183 -> 0.310815 | L46: =Input!L149-Input!L183 -> 0 | M46: =Input!M149-Input!M183 -> 0 | N46: =Input!N149-Input!N183 -> 0 | O46: =Input!O149-Input!O183 -> 0 | P46: =Input!P149-Input!P183 -> 0 | Q46: =Input!Q149-Input!Q183 -> 0
C47: =Asset8 -> Network Switching Centres | H47: =Input!H150-Input!H184 -> 0 | I47: =Input!I150-Input!I184 -> 0 | J47: =Input!J150-Input!J184 -> 2.617 | K47: =Input!K150-Input!K184 -> 10.662533 | L47: =Input!L150-Input!L184 -> 3.14 | M47: =Input!M150-Input!M184 -> 0 | N47: =Input!N150-Input!N184 -> 0 | O47: =Input!O150-Input!O184 -> 0 | P47: =Input!P150-Input!P184 -> 0 | Q47: =Input!Q150-Input!Q184 -> 0
C48: =Asset9 -> Land | H48: =Input!H151-Input!H185 -> 6.33202312 | I48: =Input!I151-Input!I185 -> 2.26843064 | J48: =Input!J151-Input!J185 -> 17.73620116 | K48: =Input!K151-Input!K185 -> 6.59506933 | L48: =Input!L151-Input!L185 -> 11.66958 | M48: =Input!M151-Input!M185 -> 0 | N48: =Input!N151-Input!N185 -> 0 | O48: =Input!O151-Input!O185 -> 0 | P48: =Input!P151-Input!P185 -> 0 | Q48: =Input!Q151-Input!Q185 -> 0
C49: =Asset10 -> Easements | H49: =Input!H152-Input!H186 -> 2.7 | I49: =Input!I152-Input!I186 -> 19.23558984 | J49: =Input!J152-Input!J186 -> 14.143 | K49: =Input!K152-Input!K186 -> 8.030056 | L49: =Input!L152-Input!L186 -> 33.37807782 | M49: =Input!M152-Input!M186 -> 0 | N49: =Input!N152-Input!N186 -> 0 | O49: =Input!O152-Input!O186 -> 0 | P49: =Input!P152-Input!P186 -> 0 | Q49: =Input!Q152-Input!Q186 -> 0
C50: =Asset11 -> 0 | H50: =Input!H153-Input!H187 -> 0 | I50: =Input!I153-Input!I187 -> 0 | J50: =Input!J153-Input!J187 -> 0 | K50: =Input!K153-Input!K187 -> 0 | L50: =Input!L153-Input!L187 -> 0 | M50: =Input!M153-Input!M187 -> 0 | N50: =Input!N153-Input!N187 -> 0 | O50: =Input!O153-Input!O187 -> 0 | P50: =Input!P153-Input!P187 -> 0 | Q50: =Input!Q153-Input!Q187 -> 0
C51: =Asset12 -> Commercial Buildings | H51: =Input!H154-Input!H188 -> 0.092 | I51: =Input!I154-Input!I188 -> 6.335 | J51: =Input!J154-Input!J188 -> 3.878 | K51: =Input!K154-Input!K188 -> 12.06454432 | L51: =Input!L154-Input!L188 -> 4.73234883 | M51: =Input!M154-Input!M188 -> 0 | N51: =Input!N154-Input!N188 -> 0 | O51: =Input!O154-Input!O188 -> 0 | P51: =Input!P154-Input!P188 -> 0 | Q51: =Input!Q154-Input!Q188 -> 0
C52: =Asset13 -> Computer Equipment | H52: =Input!H155-Input!H189 -> 5.989 | I52: =Input!I155-Input!I189 -> 12.63407363 | J52: =Input!J155-Input!J189 -> 16.678 | K52: =Input!K155-Input!K189 -> 12.70391854 | L52: =Input!L155-Input!L189 -> 16.61336921 | M52: =Input!M155-Input!M189 -> 0 | N52: =Input!N155-Input!N189 -> 0 | O52: =Input!O155-Input!O189 -> 0 | P52: =Input!P155-Input!P189 -> 0 | Q52: =Input!Q155-Input!Q189 -> 0
C53: =Asset14 -> Office Furniture & Miscellaneous | H53: =Input!H156-Input!H190 -> 0.148 | I53: =Input!I156-Input!I190 -> 0.061 | J53: =Input!J156-Input!J190 -> 0 | K53: =Input!K156-Input!K190 -> 0 | L53: =Input!L156-Input!L190 -> 0.00615 | M53: =Input!M156-Input!M190 -> 0 | N53: =Input!N156-Input!N190 -> 0 | O53: =Input!O156-Input!O190 -> 0 | P53: =Input!P156-Input!P190 -> 0 | Q53: =Input!Q156-Input!Q190 -> 0
C54: =Asset15 -> Office Machines | H54: =Input!H157-Input!H191 -> 0.062 | I54: =Input!I157-Input!I191 -> 1.3 | J54: =Input!J157-Input!J191 -> 0.946 | K54: =Input!K157-Input!K191 -> 0.225569 | L54: =Input!L157-Input!L191 -> 0.01674947 | M54: =Input!M157-Input!M191 -> 0 | N54: =Input!N157-Input!N191 -> 0 | O54: =Input!O157-Input!O191 -> 0 | P54: =Input!P157-Input!P191 -> 0 | Q54: =Input!Q157-Input!Q191 -> 0
C55: =Asset16 -> Vehicles | H55: =Input!H158-Input!H192 -> 0.89574048 | I55: =Input!I158-Input!I192 -> 0.98454344 | J55: =Input!J158-Input!J192 -> 3.11932526 | K55: =Input!K158-Input!K192 -> 2.83349698 | L55: =Input!L158-Input!L192 -> 4.935803265 | M55: =Input!M158-Input!M192 -> 0 | N55: =Input!N158-Input!N192 -> 0 | O55: =Input!O158-Input!O192 -> 0 | P55: =Input!P158-Input!P192 -> 0 | Q55: =Input!Q158-Input!Q192 -> 0
C56: =Asset17 -> Moveable Plant | H56: =Input!H159-Input!H193 -> 3.707 | I56: =Input!I159-Input!I193 -> 2.305 | J56: =Input!J159-Input!J193 -> 1.131 | K56: =Input!K159-Input!K193 -> 3.263708 | L56: =Input!L159-Input!L193 -> 2.913661967 | M56: =Input!M159-Input!M193 -> 0 | N56: =Input!N159-Input!N193 -> 0 | O56: =Input!O159-Input!O193 -> 0 | P56: =Input!P159-Input!P193 -> 0 | Q56: =Input!Q159-Input!Q193 -> 0
C57: =Asset18 -> Insurance Spares | H57: =Input!H160-Input!H194 -> 0 | I57: =Input!I160-Input!I194 -> -0.72 | J57: =Input!J160-Input!J194 -> -0.21 | K57: =Input!K160-Input!K194 -> 1.469 | L57: =Input!L160-Input!L194 -> 0 | M57: =Input!M160-Input!M194 -> 0 | N57: =Input!N160-Input!N194 -> 0 | O57: =Input!O160-Input!O194 -> 0 | P57: =Input!P160-Input!P194 -> 0 | Q57: =Input!Q160-Input!Q194 -> 0
C58: =Asset19 -> 0 | H58: =Input!H161-Input!H195 -> 0 | I58: =Input!I161-Input!I195 -> 0 | J58: =Input!J161-Input!J195 -> 0 | K58: =Input!K161-Input!K195 -> 0 | L58: =Input!L161-Input!L195 -> 0 | M58: =Input!M161-Input!M195 -> 0 | N58: =Input!N161-Input!N195 -> 0 | O58: =Input!O161-Input!O195 -> 0 | P58: =Input!P161-Input!P195 -> 0 | Q58: =Input!Q161-Input!Q195 -> 0
C59: =Asset20 -> Equity raising costs | H59: =Input!H162-Input!H196 -> 8.739084088 | I59: =Input!I162-Input!I196 -> 0 | J59: =Input!J162-Input!J196 -> 0 | K59: =Input!K162-Input!K196 -> 0 | L59: =Input!L162-Input!L196 -> 0 | M59: =Input!M162-Input!M196 -> 0 | N59: =Input!N162-Input!N196 -> 0 | O59: =Input!O162-Input!O196 -> 0 | P59: =Input!P162-Input!P196 -> 0 | Q59: =Input!Q162-Input!Q196 -> 0
C60: =Asset21 -> 0 | H60: =Input!H163-Input!H197 -> 0 | I60: =Input!I163-Input!I197 -> 0 | J60: =Input!J163-Input!J197 -> 0 | K60: =Input!K163-Input!K197 -> 0 | L60: =Input!L163-Input!L197 -> 0 | M60: =Input!M163-Input!M197 -> 0 | N60: =Input!N163-Input!N197 -> 0 | O60: =Input!O163-Input!O197 -> 0 | P60: =Input!P163-Input!P197 -> 0 | Q60: =Input!Q163-Input!Q197 -> 0
C61: =Asset22 -> 0 | H61: =Input!H164-Input!H198 -> 0 | I61: =Input!I164-Input!I198 -> 0 | J61: =Input!J164-Input!J198 -> 0 | K61: =Input!K164-Input!K198 -> 0 | L61: =Input!L164-Input!L198 -> 0 | M61: =Input!M164-Input!M198 -> 0 | N61: =Input!N164-Input!N198 -> 0 | O61: =Input!O164-Input!O198 -> 0 | P61: =Input!P164-Input!P198 -> 0 | Q61: =Input!Q164-Input!Q198 -> 0
C62: =Asset23 -> 0 | H62: =Input!H165-Input!H199 -> 0 | I62: =Input!I165-Input!I199 -> 0 | J62: =Input!J165-Input!J199 -> 0 | K62: =Input!K165-Input!K199 -> 0 | L62: =Input!L165-Input!L199 -> 0 | M62: =Input!M165-Input!M199 -> 0 | N62: =Input!N165-Input!N199 -> 0 | O62: =Input!O165-Input!O199 -> 0 | P62: =Input!P165-Input!P199 -> 0 | Q62: =Input!Q165-Input!Q199 -> 0
C63: =Asset24 -> 0 | H63: =Input!H166-Input!H200 -> 0 | I63: =Input!I166-Input!I200 -> 0 | J63: =Input!J166-Input!J200 -> 0 | K63: =Input!K166-Input!K200 -> 0 | L63: =Input!L166-Input!L200 -> 0 | M63: =Input!M166-Input!M200 -> 0 | N63: =Input!N166-Input!N200 -> 0 | O63: =Input!O166-Input!O200 -> 0 | P63: =Input!P166-Input!P200 -> 0 | Q63: =Input!Q166-Input!Q200 -> 0
C64: =Asset25 -> 0 | H64: =Input!H167-Input!H201 -> 0 | I64: =Input!I167-Input!I201 -> 0 | J64: =Input!J167-Input!J201 -> 0 | K64: =Input!K167-Input!K201 -> 0 | L64: =Input!L167-Input!L201 -> 0 | M64: =Input!M167-Input!M201 -> 0 | N64: =Input!N167-Input!N201 -> 0 | O64: =Input!O167-Input!O201 -> 0 | P64: =Input!P167-Input!P201 -> 0 | Q64: =Input!Q167-Input!Q201 -> 0
C65: =Asset26 -> 0 | H65: =Input!H168-Input!H202 -> 0 | I65: =Input!I168-Input!I202 -> 0 | J65: =Input!J168-Input!J202 -> 0 | K65: =Input!K168-Input!K202 -> 0 | L65: =Input!L168-Input!L202 -> 0 | M65: =Input!M168-Input!M202 -> 0 | N65: =Input!N168-Input!N202 -> 0 | O65: =Input!O168-Input!O202 -> 0 | P65: =Input!P168-Input!P202 -> 0 | Q65: =Input!Q168-Input!Q202 -> 0
C66: =Asset27 -> 0 | H66: =Input!H169-Input!H203 -> 0 | I66: =Input!I169-Input!I203 -> 0 | J66: =Input!J169-Input!J203 -> 0 | K66: =Input!K169-Input!K203 -> 0 | L66: =Input!L169-Input!L203 -> 0 | M66: =Input!M169-Input!M203 -> 0 | N66: =Input!N169-Input!N203 -> 0 | O66: =Input!O169-Input!O203 -> 0 | P66: =Input!P169-Input!P203 -> 0 | Q66: =Input!Q169-Input!Q203 -> 0
C67: =Asset28 -> 0 | H67: =Input!H170-Input!H204 -> 0 | I67: =Input!I170-Input!I204 -> 0 | J67: =Input!J170-Input!J204 -> 0 | K67: =Input!K170-Input!K204 -> 0 | L67: =Input!L170-Input!L204 -> 0 | M67: =Input!M170-Input!M204 -> 0 | N67: =Input!N170-Input!N204 -> 0 | O67: =Input!O170-Input!O204 -> 0 | P67: =Input!P170-Input!P204 -> 0 | Q67: =Input!Q170-Input!Q204 -> 0
C68: =Asset29 -> 0 | H68: =Input!H171-Input!H205 -> 0 | I68: =Input!I171-Input!I205 -> 0 | J68: =Input!J171-Input!J205 -> 0 | K68: =Input!K171-Input!K205 -> 0 | L68: =Input!L171-Input!L205 -> 0 | M68: =Input!M171-Input!M205 -> 0 | N68: =Input!N171-Input!N205 -> 0 | O68: =Input!O171-Input!O205 -> 0 | P68: =Input!P171-Input!P205 -> 0 | Q68: =Input!Q171-Input!Q205 -> 0
C69: =Asset30 -> 0 | H69: =Input!H172-Input!H206 -> 0 | I69: =Input!I172-Input!I206 -> 0 | J69: =Input!J172-Input!J206 -> 0 | K69: =Input!K172-Input!K206 -> 0 | L69: =Input!L172-Input!L206 -> 0 | M69: =Input!M172-Input!M206 -> 0 | N69: =Input!N172-Input!N206 -> 0 | O69: =Input!O172-Input!O206 -> 0 | P69: =Input!P172-Input!P206 -> 0 | Q69: =Input!Q172-Input!Q206 -> 0
B71: Actual Tax Depreciation | H71: =H84+H97+H110+H123+H136+H149+H162+H175+H188+H201+H214+H227+H240+H253+H266+H279+H292+H305+H318+H331+H344+H357+H370+H383+H396+H409+H422+H435+H448+H461 -> -98.95559206 | I71: -118.7780835 | J71: -139.380317 | K71: -159.4337749 | L71: -171.2004789 | M71: 0 | N71: 0 | O71: 0 | P71: 0 | Q71: 0
B72: =Asset1 -> Transmission Lines - Overhead | D72: Initial Asset Base | H72: =IF(H$3>A1taxremlife,A1taxvalue-SUM($F72:F72),IF(A1taxremlife="N/A","n/a",A1taxvalue/A1taxremlife)) -> 42.70628571 | I72: =IF(I$3>A1taxremlife,A1taxvalue-SUM($F72:H72),IF(A1taxremlife="N/A","n/a",A1taxvalue/A1taxremlife)) -> 42.70628571 | J72: =IF(J$3>A1taxremlife,A1taxvalue-SUM($F72:I72),IF(A1taxremlife="N/A","n/a",A1taxvalue/A1taxremlife)) -> 42.70628571 | K72: =IF(K$3>A1taxremlife,A1taxvalue-SUM($F72:J72),IF(A1taxremlife="N/A","n/a",A1taxvalue/A1taxremlife)) -> 42.70628571 | L72: =IF(L$3>A1taxremlife,A1taxvalue-SUM($F72:K72),IF(A1taxremlife="N/A","n/a",A1taxvalue/A1taxremlife)) -> 42.70628571 | M72: =IF(M$3>A1taxremlife,A1taxvalue-SUM($F72:L72),IF(A1taxremlife="N/A","n/a",A1taxvalue/A1taxremlife)) -> 42.70628571 | N72: =IF(N$3>A1taxremlife,A1taxvalue-SUM($F72:M72),IF(A1taxremlife="N/A","n/a",A1taxvalue/A1taxremlife)) -> 42.70628571 | O72: =IF(O$3>A1taxremlife,A1taxvalue-SUM($F72:N72),IF(A1taxremlife="N/A","n/a",A1taxvalue/A1taxremlife)) -> 42.70628571 | P72: =IF(P$3>A1taxremlife,A1taxvalue-SUM($F72:O72),IF(A1taxremlife="N/A","n/a",A1taxvalue/A1taxremlife)) -> 42.70628571 | Q72: =IF(Q$3>A1taxremlife,A1taxvalue-SUM($F72:P72),IF(A1taxremlife="N/A","n/a",A1taxvalue/A1taxremlife)) -> 42.70628571
D73: Capex in year
E74: 1 | I74: =IF(A1taxstdlife="n/a","n/a",IF(I$3>(A1taxstdlife+$E74),(Input!$H$143-Input!$H$177)-SUM($H74:H74),(Input!$H$143-Input!$H$177)/A1taxstdlife)) -> 9.112947368 | J74: =IF(A1taxstdlife="n/a","n/a",IF(J$3>(A1taxstdlife+$E74),(Input!$H$143-Input!$H$177)-SUM($H74:I74),(Input!$H$143-Input!$H$177)/A1taxstdlife)) -> 9.112947368 | K74: =IF(A1taxstdlife="n/a","n/a",IF(K$3>(A1taxstdlife+$E74),(Input!$H$143-Input!$H$177)-SUM($H74:J74),(Input!$H$143-Input!$H$177)/A1taxstdlife)) -> 9.112947368 | L74: =IF(A1taxstdlife="n/a","n/a",IF(L$3>(A1taxstdlife+$E74),(Input!$H$143-Input!$H$177)-SUM($H74:K74),(Input!$H$143-Input!$H$177)/A1taxstdlife)) -> 9.112947368 | M74: =IF(A1taxstdlife="n/a","n/a",IF(M$3>(A1taxstdlife+$E74),(Input!$H$143-Input!$H$177)-SUM($H74:L74),(Input!$H$143-Input!$H$177)/A1taxstdlife)) -> 9.112947368 | N74: =IF(A1taxstdlife="n/a","n/a",IF(N$3>(A1taxstdlife+$E74),(Input!$H$143-Input!$H$177)-SUM($H74:M74),(Input!$H$143-Input!$H$177)/A1taxstdlife)) -> 9.112947368 | O74: =IF(A1taxstdlife="n/a","n/a",IF(O$3>(A1taxstdlife+$E74),(Input!$H$143-Input!$H$177)-SUM($H74:N74),(Input!$H$143-Input!$H$177)/A1taxstdlife)) -> 9.112947368 | P74: =IF(A1taxstdlife="n/a","n/a",IF(P$3>(A1taxstdlife+$E74),(Input!$H$143-Input!$H$177)-SUM($H74:O74),(Input!$H$143-Input!$H$177)/A1taxstdlife)) -> 9.112947368 | Q74: =IF(A1taxstdlife="n/a","n/a",IF(Q$3>(A1taxstdlife+$E74),(Input!$H$143-Input!$H$177)-SUM($H74:P74),(Input!$H$143-Input!$H$177)/A1taxstdlife)) -> 9.112947368
E75: 2 | J75: =IF(A1taxstdlife="n/a","n/a",IF(J$3>(A1taxstdlife+$E75),(Input!$I$143-Input!$I$177)-SUM($I75:I75),(Input!$I$143-Input!$I$177)/A1taxstdlife)) -> 6.451914713 | K75: =IF(A1taxstdlife="n/a","n/a",IF(K$3>(A1taxstdlife+$E75),(Input!$I$143-Input!$I$177)-SUM($I75:J75),(Input!$I$143-Input!$I$177)/A1taxstdlife)) -> 6.451914713 | L75: =IF(A1taxstdlife="n/a","n/a",IF(L$3>(A1taxstdlife+$E75),(Input!$I$143-Input!$I$177)-SUM($I75:K75),(Input!$I$143-Input!$I$177)/A1taxstdlife)) -> 6.451914713 | M75: =IF(A1taxstdlife="n/a","n/a",IF(M$3>(A1taxstdlife+$E75),(Input!$I$143-Input!$I$177)-SUM($I75:L75),(Input!$I$143-Input!$I$177)/A1taxstdlife)) -> 6.451914713 | N75: =IF(A1taxstdlife="n/a","n/a",IF(N$3>(A1taxstdlife+$E75),(Input!$I$143-Input!$I$177)-SUM($I75:M75),(Input!$I$143-Input!$I$177)/A1taxstdlife)) -> 6.451914713 | O75: =IF(A1taxstdlife="n/a","n/a",IF(O$3>(A1taxstdlife+$E75),(Input!$I$143-Input!$I$177)-SUM($I75:N75),(Input!$I$143-Input!$I$177)/A1taxstdlife)) -> 6.451914713 | P75: =IF(A1taxstdlife="n/a","n/a",IF(P$3>(A1taxstdlife+$E75),(Input!$I$143-Input!$I$177)-SUM($I75:O75),(Input!$I$143-Input!$I$177)/A1taxstdlife)) -> 6.451914713 | Q75: =IF(A1taxstdlife="n/a","n/a",IF(Q$3>(A1taxstdlife+$E75),(Input!$I$143-Input!$I$177)-SUM($I75:P75),(Input!$I$143-Input!$I$177)/A1taxstdlife)) -> 6.451914713
E76: 3 | K76: =IF(A1taxstdlife="n/a","n/a",IF(K$3>(A1taxstdlife+$E76),(Input!$J$143-Input!$J$177)-SUM($J76:J76),(Input!$J$143-Input!$J$177)/A1taxstdlife)) -> 1.897621053 | L76: =IF(A1taxstdlife="n/a","n/a",IF(L$3>(A1taxstdlife+$E76),(Input!$J$143-Input!$J$177)-SUM($J76:K76),(Input!$J$143-Input!$J$177)/A1taxstdlife)) -> 1.897621053 | M76: =IF(A1taxstdlife="n/a","n/a",IF(M$3>(A1taxstdlife+$E76),(Input!$J$143-Input!$J$177)-SUM($J76:L76),(Input!$J$143-Input!$J$177)/A1taxstdlife)) -> 1.897621053 | N76: =IF(A1taxstdlife="n/a","n/a",IF(N$3>(A1taxstdlife+$E76),(Input!$J$143-Input!$J$177)-SUM($J76:M76),(Input!$J$143-Input!$J$177)/A1taxstdlife)) -> 1.897621053 | O76: =IF(A1taxstdlife="n/a","n/a",IF(O$3>(A1taxstdlife+$E76),(Input!$J$143-Input!$J$177)-SUM($J76:N76),(Input!$J$143-Input!$J$177)/A1taxstdlife)) -> 1.897621053 | P76: =IF(A1taxstdlife="n/a","n/a",IF(P$3>(A1taxstdlife+$E76),(Input!$J$143-Input!$J$177)-SUM($J76:O76),(Input!$J$143-Input!$J$177)/A1taxstdlife)) -> 1.897621053 | Q76: =IF(A1taxstdlife="n/a","n/a",IF(Q$3>(A1taxstdlife+$E76),(Input!$J$143-Input!$J$177)-SUM($J76:P76),(Input!$J$143-Input!$J$177)/A1taxstdlife)) -> 1.897621053
E77: 4 | L77: =IF(A1taxstdlife="n/a","n/a",IF(L$3>(A1taxstdlife+$E77),(Input!$K$143-Input!$K$177)-SUM($K77:K77),(Input!$K$143-Input!$K$177)/A1taxstdlife)) -> 5.411347368 | M77: =IF(A1taxstdlife="n/a","n/a",IF(M$3>(A1taxstdlife+$E77),(Input!$K$143-Input!$K$177)-SUM($K77:L77),(Input!$K$143-Input!$K$177)/A1taxstdlife)) -> 5.411347368 | N77: =IF(A1taxstdlife="n/a","n/a",IF(N$3>(A1taxstdlife+$E77),(Input!$K$143-Input!$K$177)-SUM($K77:M77),(Input!$K$143-Input!$K$177)/A1taxstdlife)) -> 5.411347368 | O77: =IF(A1taxstdlife="n/a","n/a",IF(O$3>(A1taxstdlife+$E77),(Input!$K$143-Input!$K$177)-SUM($K77:N77),(Input!$K$143-Input!$K$177)/A1taxstdlife)) -> 5.411347368 | P77: =IF(A1taxstdlife="n/a","n/a",IF(P$3>(A1taxstdlife+$E77),(Input!$K$143-Input!$K$177)-SUM($K77:O77),(Input!$K$143-Input!$K$177)/A1taxstdlife)) -> 5.411347368 | Q77: =IF(A1taxstdlife="n/a","n/a",IF(Q$3>(A1taxstdlife+$E77),(Input!$K$143-Input!$K$177)-SUM($K77:P77),(Input!$K$143-Input!$K$177)/A1taxstdlife)) -> 5.411347368
E78: 5 | M78: =IF(A1taxstdlife="n/a","n/a",IF(M$3>(A1taxstdlife+$E78),(Input!$L$143-Input!$L$177)-SUM($L78:L78),(Input!$L$143-Input!$L$177)/A1taxstdlife)) -> 4.504354636 | N78: =IF(A1taxstdlife="n/a","n/a",IF(N$3>(A1taxstdlife+$E78),(Input!$L$143-Input!$L$177)-SUM($L78:M78),(Input!$L$143-Input!$L$177)/A1taxstdlife)) -> 4.504354636 | O78: =IF(A1taxstdlife="n/a","n/a",IF(O$3>(A1taxstdlife+$E78),(Input!$L$143-Input!$L$177)-SUM($L78:N78),(Input!$L$143-Input!$L$177)/A1taxstdlife)) -> 4.504354636 | P78: =IF(A1taxstdlife="n/a","n/a",IF(P$3>(A1taxstdlife+$E78),(Input!$L$143-Input!$L$177)-SUM($L78:O78),(Input!$L$143-Input!$L$177)/A1taxstdlife)) -> 4.504354636 | Q78: =IF(A1taxstdlife="n/a","n/a",IF(Q$3>(A1taxstdlife+$E78),(Input!$L$143-Input!$L$177)-SUM($L78:P78),(Input!$L$143-Input!$L$177)/A1taxstdlife)) -> 4.504354636
E79: 6 | N79: =IF(A1taxstdlife="n/a","n/a",IF(N$3>(A1taxstdlife+$E79),(Input!$M$143-Input!$M$177)-SUM($M79:M79),(Input!$M$143-Input!$M$177)/A1taxstdlife)) -> 0 | O79: =IF(A1taxstdlife="n/a","n/a",IF(O$3>(A1taxstdlife+$E79),(Input!$M$143-Input!$M$177)-SUM($M79:N79),(Input!$M$143-Input!$M$177)/A1taxstdlife)) -> 0 | P79: =IF(A1taxstdlife="n/a","n/a",IF(P$3>(A1taxstdlife+$E79),(Input!$M$143-Input!$M$177)-SUM($M79:O79),(Input!$M$143-Input!$M$177)/A1taxstdlife)) -> 0 | Q79: =IF(A1taxstdlife="n/a","n/a",IF(Q$3>(A1taxstdlife+$E79),(Input!$M$143-Input!$M$177)-SUM($M79:P79),(Input!$M$143-Input!$M$177)/A1taxstdlife)) -> 0
E80: 7 | O80: =IF(A1taxstdlife="n/a","n/a",IF(O$3>(A1taxstdlife+$E80),(Input!$N$143-Input!$N$177)-SUM($N80:N80),(Input!$N$143-Input!$N$177)/A1taxstdlife)) -> 0 | P80: =IF(A1taxstdlife="n/a","n/a",IF(P$3>(A1taxstdlife+$E80),(Input!$N$143-Input!$N$177)-SUM($N80:O80),(Input!$N$143-Input!$N$177)/A1taxstdlife)) -> 0 | Q80: =IF(A1taxstdlife="n/a","n/a",IF(Q$3>(A1taxstdlife+$E80),(Input!$N$143-Input!$N$177)-SUM($N80:P80),(Input!$N$143-Input!$N$177)/A1taxstdlife)) -> 0
E81: 8 | P81: =IF(A1taxstdlife="n/a","n/a",IF(P$3>(A1taxstdlife+$E81),(Input!$O$143-Input!$O$177)-SUM($O81:O81),(Input!$O$143-Input!$O$177)/A1taxstdlife)) -> 0 | Q81: =IF(A1taxstdlife="n/a","n/a",IF(Q$3>(A1taxstdlife+$E81),(Input!$O$143-Input!$O$177)-SUM($O81:P81),(Input!$O$143-Input!$O$177)/A1taxstdlife)) -> 0
E82: 9 | Q82: =IF(A1taxstdlife="n/a","n/a",IF(Q$3>(A1taxstdlife+$E82),(Input!$P$143-Input!$P$177)-SUM($P82:P82),(Input!$P$143-Input!$P$177)/A1taxstdlife)) -> 0
E83: 10
C84: =Asset1 -> Transmission Lines - Overhead | H84: =-SUM(H72:H83) -> -42.70628571 | I84: =-SUM(I72:I83) -> -51.81923308 | J84: =-SUM(J72:J83) -> -58.2711478 | K84: =-SUM(K72:K83) -> -60.16876885 | L84: =-SUM(L72:L83) -> -65.58011622 | M84: =IF(COUNT($H84:L84)>=Input!$W$7,0, -SUM(M72:M83)) -> 0 | N84: =IF(COUNT($H84:M84)>=Input!$W$7,0, -SUM(N72:N83)) -> 0 | O84: =IF(COUNT($H84:N84)>=Input!$W$7,0, -SUM(O72:O83)) -> 0 | P84: =IF(COUNT($H84:O84)>=Input!$W$7,0, -SUM(P72:P83)) -> 0 | Q84: =IF(COUNT($H84:P84)>=Input!$W$7,0, -SUM(Q72:Q83)) -> 0
B85: =Asset2 -> Transmission Lines - Underground | D85: Initial Asset Base | H85: =IF(H$3>A2taxremlife,A2taxvalue-SUM($F85:F85),IF(A2taxremlife="N/A","n/a",A2taxvalue/A2taxremlife)) -> 0.5039428865 | I85: =IF(I$3>A2taxremlife,A2taxvalue-SUM($F85:H85),IF(A2taxremlife="N/A","n/a",A2taxvalue/A2taxremlife)) -> 0.5039428865 | J85: =IF(J$3>A2taxremlife,A2taxvalue-SUM($F85:I85),IF(A2taxremlife="N/A","n/a",A2taxvalue/A2taxremlife)) -> 0.5039428865 | K85: =IF(K$3>A2taxremlife,A2taxvalue-SUM($F85:J85),IF(A2taxremlife="N/A","n/a",A2taxvalue/A2taxremlife)) -> 0.5039428865 | L85: =IF(L$3>A2taxremlife,A2taxvalue-SUM($F85:K85),IF(A2taxremlife="N/A","n/a",A2taxvalue/A2taxremlife)) -> 0.5039428865 | M85: =IF(M$3>A2taxremlife,A2taxvalue-SUM($F85:L85),IF(A2taxremlife="N/A","n/a",A2taxvalue/A2taxremlife)) -> 0.5039428865 | N85: =IF(N$3>A2taxremlife,A2taxvalue-SUM($F85:M85),IF(A2taxremlife="N/A","n/a",A2taxvalue/A2taxremlife)) -> 0.5039428865 | O85: =IF(O$3>A2taxremlife,A2taxvalue-SUM($F85:N85),IF(A2taxremlife="N/A","n/a",A2taxvalue/A2taxremlife)) -> 0.5039428865 | P85: =IF(P$3>A2taxremlife,A2taxvalue-SUM($F85:O85),IF(A2taxremlife="N/A","n/a",A2taxvalue/A2taxremlife)) -> 0.5039428865 | Q85: =IF(Q$3>A2taxremlife,A2taxvalue-SUM($F85:P85),IF(A2taxremlife="N/A","n/a",A2taxvalue/A2taxremlife)) -> 0.5039428865
D86: Capex in year
E87: 1 | I87: =IF(A2taxstdlife="n/a","n/a",IF(I$3>(A2taxstdlife+$E87),(Input!$H$144-Input!$H$178)-SUM($H87:H87),(Input!$H$144-Input!$H$178)/A2taxstdlife)) -> 0 | J87: =IF(A2taxstdlife="n/a","n/a",IF(J$3>(A2taxstdlife+$E87),(Input!$H$144-Input!$H$178)-SUM($H87:I87),(Input!$H$144-Input!$H$178)/A2taxstdlife)) -> 0 | K87: =IF(A2taxstdlife="n/a","n/a",IF(K$3>(A2taxstdlife+$E87),(Input!$H$144-Input!$H$178)-SUM($H87:J87),(Input!$H$144-Input!$H$178)/A2taxstdlife)) -> 0 | L87: =IF(A2taxstdlife="n/a","n/a",IF(L$3>(A2taxstdlife+$E87),(Input!$H$144-Input!$H$178)-SUM($H87:K87),(Input!$H$144-Input!$H$178)/A2taxstdlife)) -> 0 | M87: =IF(A2taxstdlife="n/a","n/a",IF(M$3>(A2taxstdlife+$E87),(Input!$H$144-Input!$H$178)-SUM($H87:L87),(Input!$H$144-Input!$H$178)/A2taxstdlife)) -> 0 | N87: =IF(A2taxstdlife="n/a","n/a",IF(N$3>(A2taxstdlife+$E87),(Input!$H$144-Input!$H$178)-SUM($H87:M87),(Input!$H$144-Input!$H$178)/A2taxstdlife)) -> 0 | O87: =IF(A2taxstdlife="n/a","n/a",IF(O$3>(A2taxstdlife+$E87),(Input!$H$144-Input!$H$178)-SUM($H87:N87),(Input!$H$144-Input!$H$178)/A2taxstdlife)) -> 0 | P87: =IF(A2taxstdlife="n/a","n/a",IF(P$3>(A2taxstdlife+$E87),(Input!$H$144-Input!$H$178)-SUM($H87:O87),(Input!$H$144-Input!$H$178)/A2taxstdlife)) -> 0 | Q87: =IF(A2taxstdlife="n/a","n/a",IF(Q$3>(A2taxstdlife+$E87),(Input!$H$144-Input!$H$178)-SUM($H87:P87),(Input!$H$144-Input!$H$178)/A2taxstdlife)) -> 0
E88: 2 | J88: =IF(A2taxstdlife="n/a","n/a",IF(J$3>(A2taxstdlife+$E88),(Input!$I$144-Input!$I$178)-SUM($I88:I88),(Input!$I$144-Input!$I$178)/A2taxstdlife)) -> 0.1279333333 | K88: =IF(A2taxstdlife="n/a","n/a",IF(K$3>(A2taxstdlife+$E88),(Input!$I$144-Input!$I$178)-SUM($I88:J88),(Input!$I$144-Input!$I$178)/A2taxstdlife)) -> 0.1279333333 | L88: =IF(A2taxstdlife="n/a","n/a",IF(L$3>(A2taxstdlife+$E88),(Input!$I$144-Input!$I$178)-SUM($I88:K88),(Input!$I$144-Input!$I$178)/A2taxstdlife)) -> 0.1279333333 | M88: =IF(A2taxstdlife="n/a","n/a",IF(M$3>(A2taxstdlife+$E88),(Input!$I$144-Input!$I$178)-SUM($I88:L88),(Input!$I$144-Input!$I$178)/A2taxstdlife)) -> 0.1279333333 | N88: =IF(A2taxstdlife="n/a","n/a",IF(N$3>(A2taxstdlife+$E88),(Input!$I$144-Input!$I$178)-SUM($I88:M88),(Input!$I$144-Input!$I$178)/A2taxstdlife)) -> 0.1279333333 | O88: =IF(A2taxstdlife="n/a","n/a",IF(O$3>(A2taxstdlife+$E88),(Input!$I$144-Input!$I$178)-SUM($I88:N88),(Input!$I$144-Input!$I$178)/A2taxstdlife)) -> 0.1279333333 | P88: =IF(A2taxstdlife="n/a","n/a",IF(P$3>(A2taxstdlife+$E88),(Input!$I$144-Input!$I$178)-SUM($I88:O88),(Input!$I$144-Input!$I$178)/A2taxstdlife)) -> 0.1279333333 | Q88: =IF(A2taxstdlife="n/a","n/a",IF(Q$3>(A2taxstdlife+$E88),(Input!$I$144-Input!$I$178)-SUM($I88:P88),(Input!$I$144-Input!$I$178)/A2taxstdlife)) -> 0.1279333333
E89: 3 | K89: =IF(A2taxstdlife="n/a","n/a",IF(K$3>(A2taxstdlife+$E89),(Input!$J$144-Input!$J$178)-SUM($J89:J89),(Input!$J$144-Input!$J$178)/A2taxstdlife)) -> 0.3075777778 | L89: =IF(A2taxstdlife="n/a","n/a",IF(L$3>(A2taxstdlife+$E89),(Input!$J$144-Input!$J$178)-SUM($J89:K89),(Input!$J$144-Input!$J$178)/A2taxstdlife)) -> 0.3075777778 | M89: =IF(A2taxstdlife="n/a","n/a",IF(M$3>(A2taxstdlife+$E89),(Input!$J$144-Input!$J$178)-SUM($J89:L89),(Input!$J$144-Input!$J$178)/A2taxstdlife)) -> 0.3075777778 | N89: =IF(A2taxstdlife="n/a","n/a",IF(N$3>(A2taxstdlife+$E89),(Input!$J$144-Input!$J$178)-SUM($J89:M89),(Input!$J$144-Input!$J$178)/A2taxstdlife)) -> 0.3075777778 | O89: =IF(A2taxstdlife="n/a","n/a",IF(O$3>(A2taxstdlife+$E89),(Input!$J$144-Input!$J$178)-SUM($J89:N89),(Input!$J$144-Input!$J$178)/A2taxstdlife)) -> 0.3075777778 | P89: =IF(A2taxstdlife="n/a","n/a",IF(P$3>(A2taxstdlife+$E89),(Input!$J$144-Input!$J$178)-SUM($J89:O89),(Input!$J$144-Input!$J$178)/A2taxstdlife)) -> 0.3075777778 | Q89: =IF(A2taxstdlife="n/a","n/a",IF(Q$3>(A2taxstdlife+$E89),(Input!$J$144-Input!$J$178)-SUM($J89:P89),(Input!$J$144-Input!$J$178)/A2taxstdlife)) -> 0.3075777778
E90: 4 | L90: =IF(A2taxstdlife="n/a","n/a",IF(L$3>(A2taxstdlife+$E90),(Input!$K$144-Input!$K$178)-SUM($K90:K90),(Input!$K$144-Input!$K$178)/A2taxstdlife)) -> 0.0009440222222 | M90: =IF(A2taxstdlife="n/a","n/a",IF(M$3>(A2taxstdlife+$E90),(Input!$K$144-Input!$K$178)-SUM($K90:L90),(Input!$K$144-Input!$K$178)/A2taxstdlife)) -> 0.0009440222222 | N90: =IF(A2taxstdlife="n/a","n/a",IF(N$3>(A2taxstdlife+$E90),(Input!$K$144-Input!$K$178)-SUM($K90:M90),(Input!$K$144-Input!$K$178)/A2taxstdlife)) -> 0.0009440222222 | O90: =IF(A2taxstdlife="n/a","n/a",IF(O$3>(A2taxstdlife+$E90),(Input!$K$144-Input!$K$178)-SUM($K90:N90),(Input!$K$144-Input!$K$178)/A2taxstdlife)) -> 0.0009440222222 | P90: =IF(A2taxstdlife="n/a","n/a",IF(P$3>(A2taxstdlife+$E90),(Input!$K$144-Input!$K$178)-SUM($K90:O90),(Input!$K$144-Input!$K$178)/A2taxstdlife)) -> 0.0009440222222 | Q90: =IF(A2taxstdlife="n/a","n/a",IF(Q$3>(A2taxstdlife+$E90),(Input!$K$144-Input!$K$178)-SUM($K90:P90),(Input!$K$144-Input!$K$178)/A2taxstdlife)) -> 0.0009440222222
E91: 5 | M91: =IF(A2taxstdlife="n/a","n/a",IF(M$3>(A2taxstdlife+$E91),(Input!$L$144-Input!$L$178)-SUM($L91:L91),(Input!$L$144-Input!$L$178)/A2taxstdlife)) -> 0 | N91: =IF(A2taxstdlife="n/a","n/a",IF(N$3>(A2taxstdlife+$E91),(Input!$L$144-Input!$L$178)-SUM($L91:M91),(Input!$L$144-Input!$L$178)/A2taxstdlife)) -> 0 | O91: =IF(A2taxstdlife="n/a","n/a",IF(O$3>(A2taxstdlife+$E91),(Input!$L$144-Input!$L$178)-SUM($L91:N91),(Input!$L$144-Input!$L$178)/A2taxstdlife)) -> 0 | P91: =IF(A2taxstdlife="n/a","n/a",IF(P$3>(A2taxstdlife+$E91),(Input!$L$144-Input!$L$178)-SUM($L91:O91),(Input!$L$144-Input!$L$178)/A2taxstdlife)) -> 0 | Q91: =IF(A2taxstdlife="n/a","n/a",IF(Q$3>(A2taxstdlife+$E91),(Input!$L$144-Input!$L$178)-SUM($L91:P91),(Input!$L$144-Input!$L$178)/A2taxstdlife)) -> 0
E92: 6 | N92: =IF(A2taxstdlife="n/a","n/a",IF(N$3>(A2taxstdlife+$E92),(Input!$M$144-Input!$M$178)-SUM($M92:M92),(Input!$M$144-Input!$M$178)/A2taxstdlife)) -> 0 | O92: =IF(A2taxstdlife="n/a","n/a",IF(O$3>(A2taxstdlife+$E92),(Input!$M$144-Input!$M$178)-SUM($M92:N92),(Input!$M$144-Input!$M$178)/A2taxstdlife)) -> 0 | P92: =IF(A2taxstdlife="n/a","n/a",IF(P$3>(A2taxstdlife+$E92),(Input!$M$144-Input!$M$178)-SUM($M92:O92),(Input!$M$144-Input!$M$178)/A2taxstdlife)) -> 0 | Q92: =IF(A2taxstdlife="n/a","n/a",IF(Q$3>(A2taxstdlife+$E92),(Input!$M$144-Input!$M$178)-SUM($M92:P92),(Input!$M$144-Input!$M$178)/A2taxstdlife)) -> 0
E93: 7 | O93: =IF(A2taxstdlife="n/a","n/a",IF(O$3>(A2taxstdlife+$E93),(Input!$N$144-Input!$N$178)-SUM($N93:N93),(Input!$N$144-Input!$N$178)/A2taxstdlife)) -> 0 | P93: =IF(A2taxstdlife="n/a","n/a",IF(P$3>(A2taxstdlife+$E93),(Input!$N$144-Input!$N$178)-SUM($N93:O93),(Input!$N$144-Input!$N$178)/A2taxstdlife)) -> 0 | Q93: =IF(A2taxstdlife="n/a","n/a",IF(Q$3>(A2taxstdlife+$E93),(Input!$N$144-Input!$N$178)-SUM($N93:P93),(Input!$N$144-Input!$N$178)/A2taxstdlife)) -> 0
E94: 8 | P94: =IF(A2taxstdlife="n/a","n/a",IF(P$3>(A2taxstdlife+$E94),(Input!$O$144-Input!$O$178)-SUM($O94:O94),(Input!$O$144-Input!$O$178)/A2taxstdlife)) -> 0 | Q94: =IF(A2taxstdlife="n/a","n/a",IF(Q$3>(A2taxstdlife+$E94),(Input!$O$144-Input!$O$178)-SUM($O94:P94),(Input!$O$144-Input!$O$178)/A2taxstdlife)) -> 0
E95: 9 | Q95: =IF(A2taxstdlife="n/a","n/a",IF(Q$3>(A2taxstdlife+$E95),(Input!$P$144-Input!$P$178)-SUM($P95:P95),(Input!$P$144-Input!$P$178)/A2taxstdlife)) -> 0
E96: 10
C97: =Asset2 -> Transmission Lines - Underground | H97: =-SUM(H85:H96) -> -0.5039428865 | I97: =-SUM(I85:I96) -> -0.5039428865 | J97: =-SUM(J85:J96) -> -0.6318762198 | K97: =-SUM(K85:K96) -> -0.9394539976 | L97: =-SUM(L85:L96) -> -0.9403980198 | M97: =IF(COUNT($H97:L97)>=Input!$W$7,0, -SUM(M85:M96)) -> 0 | N97: =IF(COUNT($H97:M97)>=Input!$W$7,0, -SUM(N85:N96)) -> 0 | O97: =IF(COUNT($H97:N97)>=Input!$W$7,0, -SUM(O85:O96)) -> 0 | P97: =IF(COUNT($H97:O97)>=Input!$W$7,0, -SUM(P85:P96)) -> 0 | Q97: =IF(COUNT($H97:P97)>=Input!$W$7,0, -SUM(Q85:Q96)) -> 0
